Workbook

Sheet Main
A1: بسم الله الرحمن الرحيم | J1: كنترول شيت الصف الاول
A2: ادارة ………….. التعليمية | J2: للعام الدراسى 2017 / 2018
A3: مدرسة …………. التجارية بنات
B5: مدير إدارة المدرسة الاستاذ / ……………………
B6: مدير المدرسة الاستاذ …. / ……………………
B7: رئيس الكنترول الاستاذ .... / ……………………
B8: مسئول كنترول الاستاذ …. / ……………………

Sheet بيانات الطالبات
B1: بسم الله الرحمن الرحيم | M1: جدول الفترات - قم باختيار اول رقم جلوس و عدد الفئة و عدد اللجان فقط
B2: مدرسة …………. التجارية | M2: البيان | O2: صباحى | S2: مسائى | W2: مجموع
B3: طالبات الصف الاول للعام الدراسى 2017 / 2018 | O3: من | P3: الى | Q3: عدد الفئة | R3: عدد اللجان | S3: من | T3: الى | U3: عدد الفئة | V3: عدد اللجان
M4: انتظام - بنات | O4: 101 | P4: =IF(AND(O4>0,Q4>0),O4+Q4-1,"") -> 400 | Q4: 300 | R4: 14 | S4: 401 | T4: =IF(AND(S4>0,U4>0),S4+U4-1,"") -> 452 | U4: 52 | V4: 3 | W4: =SUM(Q4,U4) -> 352
D5: بيانات طالبات الصف الاول | M5: خدمات - بنات | O5: 0 | S5: 501 | T5: 604 | U5: 104 | V5: 5 | W5: =SUM(Q5,U5) -> 104
B6: مسلسل | C6: جـــــــلوس | D6: الاسم | E6: الفصل | F6: الحــــالة | G6: الديانة | H6: النوع | I6: الصفة | J6: فترة الامتحان | K6: اللجنة | L6: مقرها | M6: انتظام - بنين | O6: 0 | S6: 651 | T6: 681 | U6: 31 | V6: 2 | W6: 31
B7: 1 | C7: 101 | D7: اسم 1 | E7: 1/1 | H7: بنات | I7: انتظام | J7: صباحى | K7: 1 | L7: 1/3 | M7: خدمات - بنبن | O7: 0 | S7: 0 | W7: 0
B8: 2 | C8: 102 | D8: اسم 10 | E8: 1/1 | H8: بنات | I8: انتظام | J8: صباحى | K8: 1 | L8: 1/3 | O8: اجمالى صباحى | Q8: =SUM(Q4:Q7) -> 300 | R8: =SUM(R4:R7) -> 14 | S8: اجمالى مسائى | U8: =SUM(U4:U7) -> 187 | V8: =SUM(V4:V7) -> 10 | W8: 487
B9: 3 | C9: 103 | D9: اسم 100 | E9: 3/1 | H9: بنات | I9: انتظام | J9: صباحى | K9: 1 | L9: 1/3
B10: 4 | C10: 104 | D10: اسم 101 | E10: 3/1 | H10: بنات | I10: انتظام | J10: صباحى | K10: 1 | L10: 1/3 | O10: خطوات العمل فى هذه الورقة :
B11: 5 | C11: 105 | D11: اسم 102 | E11: 3/1 | H11: بنات | I11: انتظام | J11: صباحى | K11: 1 | L11: 1/3 | O11: 1 - تسجيل الاسماء و الفصل و الحالة و الديانة (المسيحية فقط) النوع و الصفة
B12: 6 | C12: 106 | D12: اسم 103 | E12: 3/1 | H12: بنات | I12: انتظام | J12: صباحى | K12: 1 | L12: 1/3 | O12: 2 - الضغط على الزر ( فرز شامل )
B13: 7 | C13: 107 | D13: اسم 104 | E13: 3/1 | H13: بنات | I13: انتظام | J13: صباحى | K13: 1 | L13: 1/3 | O13: 3 - تسجيل البيانات الخاصة بجدول الفترات
B14: 8 | C14: 108 | D14: اسم 105 | E14: 3/1 | H14: بنات | I14: انتظام | J14: صباحى | K14: 1 | L14: 1/3 | O14: 4 - الضغط على زر ( توزيع الفترات )
B15: 9 | C15: 109 | D15: اسم 106 | E15: 3/1 | H15: بنات | I15: انتظام | J15: صباحى | K15: 1 | L15: 1/3 | O15: 5 - الضغط على زر (توليد ارقام الجلوس)
B16: 10 | C16: 110 | D16: اسم 107 | E16: 3/1 | H16: بنات | I16: انتظام | J16: صباحى | K16: 1 | L16: 1/3 | O16: 6 - الضغط على زر (ترحيل الاسماء الى الشيت )
B17: 11 | C17: 111 | D17: اسم 108 | E17: 3/1 | H17: بنات | I17: انتظام | J17: صباحى | K17: 1 | L17: 1/3 | O17: 7 - الذهاب الى ورقة لجان
B18: 12 | C18: 112 | D18: اسم 109 | E18: 4/1 | H18: بنات | I18: انتظام | J18: صباحى | K18: 1 | L18: 1/3 | O18: 8 - الضغط على زر ( توزيع الاعداد صباحى ) ثم الضغط على زر ( توزيع الاعداد مسائى )
B19: 13 | C19: 113 | D19: اسم 11 | E19: 1/1 | H19: بنات | I19: انتظام | J19: صباحى | K19: 1 | L19: 1/3 | O19: 9 - العودة الى ورقة بيانات الطالبات ثم الضغط على زر (توزيع اللجان على الطالبات )
B20: 14 | C20: 114 | D20: اسم 110 | E20: 4/1 | H20: بنات | I20: انتظام | J20: صباحى | K20: 1 | L20: 1/3 | O20: و اخيرا لا يمكن عمل كشوف اللجان بورقة اللجان قبل اجراء الخطوات السابقة
B21: 15 | C21: 115 | D21: اسم 111 | E21: 4/1 | H21: بنات | I21: انتظام | J21: صباحى | K21: 1 | L21: 1/3
B22: 16 | C22: 116 | D22: اسم 112 | E22: 4/1 | H22: بنات | I22: انتظام | J22: صباحى | K22: 1 | L22: 1/3
B23: 17 | C23: 117 | D23: اسم 113 | E23: 4/1 | H23: بنات | I23: انتظام | J23: صباحى | K23: 1 | L23: 1/3
B24: 18 | C24: 118 | D24: اسم 114 | E24: 4/1 | H24: بنات | I24: انتظام | J24: صباحى | K24: 1 | L24: 1/3
B25: 19 | C25: 119 | D25: اسم 115 | E25: 4/1 | H25: بنات | I25: انتظام | J25: صباحى | K25: 1 | L25: 1/3
B26: 20 | C26: 120 | D26: اسم 116 | E26: 4/1 | H26: بنات | I26: انتظام | J26: صباحى | K26: 1 | L26: 1/3
B27: 21 | C27: 121 | D27: اسم 117 | E27: 4/1 | H27: بنات | I27: انتظام | J27: صباحى | K27: 1 | L27: 1/3
B28: 22 | C28: 122 | D28: اسم 118 | E28: 4/1 | H28: بنات | I28: انتظام | J28: صباحى | K28: 1 | L28: 1/3
B29: 23 | C29: 123 | D29: اسم 119 | E29: 4/1 | H29: بنات | I29: انتظام | J29: صباحى | K29: 2 | L29: 2/3
B30: 24 | C30: 124 | D30: اسم 12 | E30: 1/1 | H30: بنات | I30: انتظام | J30: صباحى | K30: 2 | L30: 2/3
B31: 25 | C31: 125 | D31: اسم 120 | E31: 4/1 | H31: بنات | I31: انتظام | J31: صباحى | K31: 2 | L31: 2/3
B32: 26 | C32: 126 | D32: اسم 121 | E32: 4/1 | H32: بنات | I32: انتظام | J32: صباحى | K32: 2 | L32: 2/3
B33: 27 | C33: 127 | D33: اسم 122 | E33: 4/1 | H33: بنات | I33: انتظام | J33: صباحى | K33: 2 | L33: 2/3
B34: 28 | C34: 128 | D34: اسم 123 | E34: 4/1 | H34: بنات | I34: انتظام | J34: صباحى | K34: 2 | L34: 2/3
B35: 29 | C35: 129 | D35: اسم 124 | E35: 4/1 | H35: بنات | I35: انتظام | J35: صباحى | K35: 2 | L35: 2/3
B36: 30 | C36: 130 | D36: اسم 125 | E36: 4/1 | H36: بنات | I36: انتظام | J36: صباحى | K36: 2 | L36: 2/3
B37: 31 | C37: 131 | D37: اسم 126 | E37: 4/1 | H37: بنات | I37: انتظام | J37: صباحى | K37: 2 | L37: 2/3
B38: 32 | C38: 132 | D38: اسم 127 | E38: 4/1 | H38: بنات | I38: انتظام | J38: صباحى | K38: 2 | L38: 2/3
B39: 33 | C39: 133 | D39: اسم 128 | E39: 4/1 | H39: بنات | I39: انتظام | J39: صباحى | K39: 2 | L39: 2/3
B40: 34 | C40: 134 | D40: اسم 129 | E40: 4/1 | H40: بنات | I40: انتظام | J40: صباحى | K40: 2 | L40: 2/3
B41: 35 | C41: 135 | D41: اسم 13 | E41: 1/1 | H41: بنات | I41: انتظام | J41: صباحى | K41: 2 | L41: 2/3
B42: 36 | C42: 136 | D42: اسم 130 | E42: 4/1 | H42: بنات | I42: انتظام | J42: صباحى | K42: 2 | L42: 2/3
B43: 37 | C43: 137 | D43: اسم 131 | E43: 4/1 | H43: بنات | I43: انتظام | J43: صباحى | K43: 2 | L43: 2/3
B44: 38 | C44: 138 | D44: اسم 132 | E44: 4/1 | H44: بنات | I44: انتظام | J44: صباحى | K44: 2 | L44: 2/3
B45: 39 | C45: 139 | D45: اسم 133 | E45: 4/1 | H45: بنات | I45: انتظام | J45: صباحى | K45: 2 | L45: 2/3
B46: 40 | C46: 140 | D46: اسم 134 | E46: 4/1 | H46: بنات | I46: انتظام | J46: صباحى | K46: 2 | L46: 2/3
B47: 41 | C47: 141 | D47: اسم 135 | E47: 4/1 | H47: بنات | I47: انتظام | J47: صباحى | K47: 2 | L47: 2/3
B48: 42 | C48: 142 | D48: اسم 136 | E48: 4/1 | H48: بنات | I48: انتظام | J48: صباحى | K48: 2 | L48: 2/3
B49: 43 | C49: 143 | D49: اسم 137 | E49: 4/1 | H49: بنات | I49: انتظام | J49: صباحى | K49: 2 | L49: 2/3
B50: 44 | C50: 144 | D50: اسم 138 | E50: 4/1 | H50: بنات | I50: انتظام | J50: صباحى | K50: 2 | L50: 2/3
B51: 45 | C51: 145 | D51: اسم 139 | E51: 4/1 | H51: بنات | I51: انتظام | J51: صباحى | K51: 3 | L51: 3/3
B52: 46 | C52: 146 | D52: اسم 14 | E52: 1/1 | H52: بنات | I52: انتظام | J52: صباحى | K52: 3 | L52: 3/3
B53: 47 | C53: 147 | D53: اسم 140 | E53: 4/1 | H53: بنات | I53: انتظام | J53: صباحى | K53: 3 | L53: 3/3
B54: 48 | C54: 148 | D54: اسم 141 | E54: 4/1 | H54: بنات | I54: انتظام | J54: صباحى | K54: 3 | L54: 3/3
B55: 49 | C55: 149 | D55: اسم 142 | E55: - | H55: بنات | I55: انتظام | J55: صباحى | K55: 3 | L55: 3/3
B56: 50 | C56: 150 | D56: اسم 143 | E56: 4/1 | H56: بنات | I56: انتظام | J56: صباحى | K56: 3 | L56: 3/3
B57: 51 | C57: 151 | D57: اسم 144 | E57: 4/1 | H57: بنات | I57: انتظام | J57: صباحى | K57: 3 | L57: 3/3
B58: 52 | C58: 152 | D58: اسم 145 | E58: 4/1 | H58: بنات | I58: انتظام | J58: صباحى | K58: 3 | L58: 3/3
B59: 53 | C59: 153 | D59: اسم 146 | E59: 4/1 | H59: بنات | I59: انتظام | J59: صباحى | K59: 3 | L59: 3/3
B60: 54 | C60: 154 | D60: اسم 147 | E60: 4/1 | H60: بنات | I60: انتظام | J60: صباحى | K60: 3 | L60: 3/3
B61: 55 | C61: 155 | D61: اسم 148 | E61: 4/1 | H61: بنات | I61: انتظام | J61: صباحى | K61: 3 | L61: 3/3
B62: 56 | C62: 156 | D62: اسم 149 | E62: 5/1 | H62: بنات | I62: انتظام | J62: صباحى | K62: 3 | L62: 3/3
B63: 57 | C63: 157 | D63: اسم 15 | E63: 1/1 | H63: بنات | I63: انتظام | J63: صباحى | K63: 3 | L63: 3/3
B64: 58 | C64: 158 | D64: اسم 150 | E64: 5/1 | H64: بنات | I64: انتظام | J64: صباحى | K64: 3 | L64: 3/3
B65: 59 | C65: 159 | D65: اسم 151 | E65: 5/1 | H65: بنات | I65: انتظام | J65: صباحى | K65: 3 | L65: 3/3
B66: 60 | C66: 160 | D66: اسم 152 | E66: 5/1 | H66: بنات | I66: انتظام | J66: صباحى | K66: 3 | L66: 3/3
B67: 61 | C67: 161 | D67: اسم 153 | E67: 5/1 | H67: بنات | I67: انتظام | J67: صباحى | K67: 3 | L67: 3/3
B68: 62 | C68: 162 | D68: اسم 154 | E68: 5/1 | H68: بنات | I68: انتظام | J68: صباحى | K68: 3 | L68: 3/3
B69: 63 | C69: 163 | D69: اسم 155 | E69: 5/1 | H69: بنات | I69: انتظام | J69: صباحى | K69: 3 | L69: 3/3
B70: 64 | C70: 164 | D70: اسم 156 | E70: 5/1 | H70: بنات | I70: انتظام | J70: صباحى | K70: 3 | L70: 3/3
B71: 65 | C71: 165 | D71: اسم 157 | E71: 5/1 | H71: بنات | I71: انتظام | J71: صباحى | K71: 3 | L71: 3/3
B72: 66 | C72: 166 | D72: اسم 158 | E72: 5/1 | H72: بنات | I72: انتظام | J72: صباحى | K72: 3 | L72: 3/3
B73: 67 | C73: 167 | D73: اسم 159 | E73: 5/1 | H73: بنات | I73: انتظام | J73: صباحى | K73: 4 | L73: 4/3
B74: 68 | C74: 168 | D74: اسم 16 | E74: 1/1 | H74: بنات | I74: انتظام | J74: صباحى | K74: 4 | L74: 4/3
B75: 69 | C75: 169 | D75: اسم 160 | E75: 5/1 | H75: بنات | I75: انتظام | J75: صباحى | K75: 4 | L75: 4/3
B76: 70 | C76: 170 | D76: اسم 161 | E76: 5/1 | H76: بنات | I76: انتظام | J76: صباحى | K76: 4 | L76: 4/3
B77: 71 | C77: 171 | D77: اسم 162 | E77: 5/1 | H77: بنات | I77: انتظام | J77: صباحى | K77: 4 | L77: 4/3
B78: 72 | C78: 172 | D78: اسم 163 | E78: 5/1 | H78: بنات | I78: انتظام | J78: صباحى | K78: 4 | L78: 4/3
B79: 73 | C79: 173 | D79: اسم 164 | E79: 5/1 | H79: بنات | I79: انتظام | J79: صباحى | K79: 4 | L79: 4/3
B80: 74 | C80: 174 | D80: اسم 165 | E80: 5/1 | H80: بنات | I80: انتظام | J80: صباحى | K80: 4 | L80: 4/3
B81: 75 | C81: 175 | D81: اسم 166 | E81: 1/1 | G81: مسيحية | H81: بنات | I81: انتظام | J81: صباحى | K81: 4 | L81: 4/3
B82: 76 | C82: 176 | D82: اسم 167 | E82: 5/1 | H82: بنات | I82: انتظام | J82: صباحى | K82: 4 | L82: 4/3
B83: 77 | C83: 177 | D83: اسم 168 | E83: 5/1 | H83: بنات | I83: انتظام | J83: صباحى | K83: 4 | L83: 4/3
B84: 78 | C84: 178 | D84: اسم 169 | E84: 5/1 | H84: بنات | I84: انتظام | J84: صباحى | K84: 4 | L84: 4/3
B85: 79 | C85: 179 | D85: اسم 17 | E85: 1/1 | H85: بنات | I85: انتظام | J85: صباحى | K85: 4 | L85: 4/3
B86: 80 | C86: 180 | D86: اسم 170 | E86: 5/1 | H86: بنات | I86: انتظام | J86: صباحى | K86: 4 | L86: 4/3
B87: 81 | C87: 181 | D87: اسم 171 | E87: 5/1 | H87: بنات | I87: انتظام | J87: صباحى | K87: 4 | L87: 4/3
B88: 82 | C88: 182 | D88: اسم 172 | E88: 5/1 | H88: بنات | I88: انتظام | J88: صباحى | K88: 4 | L88: 4/3
B89: 83 | C89: 183 | D89: اسم 173 | E89: 5/1 | H89: بنات | I89: انتظام | J89: صباحى | K89: 4 | L89: 4/3
B90: 84 | C90: 184 | D90: اسم 174 | E90: 5/1 | H90: بنات | I90: انتظام | J90: صباحى | K90: 4 | L90: 4/3
B91: 85 | C91: 185 | D91: اسم 175 | E91: 5/1 | H91: بنات | I91: انتظام | J91: صباحى | K91: 4 | L91: 4/3
B92: 86 | C92: 186 | D92: اسم 176 | E92: 5/1 | H92: بنات | I92: انتظام | J92: صباحى | K92: 4 | L92: 4/3
B93: 87 | C93: 187 | D93: اسم 177 | E93: 6/1 | H93: بنات | I93: انتظام | J93: صباحى | K93: 4 | L93: 4/3
B94: 88 | C94: 188 | D94: اسم 178 | E94: 6/1 | H94: بنات | I94: انتظام | J94: صباحى | K94: 4 | L94: 4/3
B95: 89 | C95: 189 | D95: اسم 179 | E95: 6/1 | H95: بنات | I95: انتظام | J95: صباحى | K95: 5 | L95: 5/3
B96: 90 | C96: 190 | D96: اسم 18 | E96: 1/1 | H96: بنات | I96: انتظام | J96: صباحى | K96: 5 | L96: 5/3
B97: 91 | C97: 191 | D97: اسم 180 | E97: 6/1 | H97: بنات | I97: انتظام | J97: صباحى | K97: 5 | L97: 5/3
B98: 92 | C98: 192 | D98: اسم 181 | E98: 6/1 | H98: بنات | I98: انتظام | J98: صباحى | K98: 5 | L98: 5/3
B99: 93 | C99: 193 | D99: اسم 182 | E99: 6/1 | H99: بنات | I99: انتظام | J99: صباحى | K99: 5 | L99: 5/3
B100: 94 | C100: 194 | D100: اسم 183 | E100: 6/1 | H100: بنات | I100: انتظام | J100: صباحى | K100: 5 | L100: 5/3
B101: 95 | C101: 195 | D101: اسم 184 | E101: 6/1 | H101: بنات | I101: انتظام | J101: صباحى | K101: 5 | L101: 5/3
B102: 96 | C102: 196 | D102: اسم 185 | E102: 6/1 | H102: بنات | I102: انتظام | J102: صباحى | K102: 5 | L102: 5/3
B103: 97 | C103: 197 | D103: اسم 186 | E103: 6/1 | H103: بنات | I103: انتظام | J103: صباحى | K103: 5 | L103: 5/3
B104: 98 | C104: 198 | D104: اسم 187 | E104: 6/1 | H104: بنات | I104: انتظام | J104: صباحى | K104: 5 | L104: 5/3
B105: 99 | C105: 199 | D105: اسم 188 | E105: 6/1 | H105: بنات | I105: انتظام | J105: صباحى | K105: 5 | L105: 5/3
B106: 100 | C106: 200 | D106: اسم 189 | E106: 6/1 | H106: بنات | I106: انتظام | J106: صباحى | K106: 5 | L106: 5/3
B107: 101 | C107: 201 | D107: اسم 19 | E107: 1/1 | H107: بنات | I107: انتظام | J107: صباحى | K107: 5 | L107: 5/3
B108: 102 | C108: 202 | D108: اسم 190 | E108: 6/1 | H108: بنات | I108: انتظام | J108: صباحى | K108: 5 | L108: 5/3
B109: 103 | C109: 203 | D109: اسم 191 | E109: 6/1 | H109: بنات | I109: انتظام | J109: صباحى | K109: 5 | L109: 5/3
B110: 104 | C110: 204 | D110: اسم 192 | E110: 6/1 | H110: بنات | I110: انتظام | J110: صباحى | K110: 5 | L110: 5/3
B111: 105 | C111: 205 | D111: اسم 193 | E111: 6/1 | H111: بنات | I111: انتظام | J111: صباحى | K111: 5 | L111: 5/3
B112: 106 | C112: 206 | D112: اسم 194 | E112: 6/1 | H112: بنات | I112: انتظام | J112: صباحى | K112: 5 | L112: 5/3
B113: 107 | C113: 207 | D113: اسم 195 | E113: 6/1 | H113: بنات | I113: انتظام | J113: صباحى | K113: 5 | L113: 5/3
B114: 108 | C114: 208 | D114: اسم 196 | E114: 6/1 | H114: بنات | I114: انتظام | J114: صباحى | K114: 5 | L114: 5/3
B115: 109 | C115: 209 | D115: اسم 197 | E115: 6/1 | H115: بنات | I115: انتظام | J115: صباحى | K115: 5 | L115: 5/3
B116: 110 | C116: 210 | D116: اسم 198 | E116: 6/1 | H116: بنات | I116: انتظام | J116: صباحى | K116: 5 | L116: 5/3
B117: 111 | C117: 211 | D117: اسم 199 | E117: 6/1 | H117: بنات | I117: انتظام | J117: صباحى | K117: 6 | L117: 1/2
B118: 112 | C118: 212 | D118: اسم 2 | E118: 1/1 | H118: بنات | I118: انتظام | J118: صباحى | K118: 6 | L118: 1/2
B119: 113 | C119: 213 | D119: اسم 20 | E119: 1/1 | H119: بنات | I119: انتظام | J119: صباحى | K119: 6 | L119: 1/2
B120: 114 | C120: 214 | D120: اسم 200 | E120: 6/1 | H120: بنات | I120: انتظام | J120: صباحى | K120: 6 | L120: 1/2
B121: 115 | C121: 215 | D121: اسم 201 | E121: 6/1 | H121: بنات | I121: انتظام | J121: صباحى | K121: 6 | L121: 1/2
B122: 116 | C122: 216 | D122: اسم 202 | E122: 6/1 | H122: بنات | I122: انتظام | J122: صباحى | K122: 6 | L122: 1/2
B123: 117 | C123: 217 | D123: اسم 203 | E123: 6/1 | H123: بنات | I123: انتظام | J123: صباحى | K123: 6 | L123: 1/2
B124: 118 | C124: 218 | D124: اسم 204 | E124: 6/1 | H124: بنات | I124: انتظام | J124: صباحى | K124: 6 | L124: 1/2
B125: 119 | C125: 219 | D125: اسم 205 | E125: 6/1 | H125: بنات | I125: انتظام | J125: صباحى | K125: 6 | L125: 1/2
B126: 120 | C126: 220 | D126: اسم 206 | E126: 6/1 | H126: بنات | I126: انتظام | J126: صباحى | K126: 6 | L126: 1/2
B127: 121 | C127: 221 | D127: اسم 207 | E127: 6/1 | H127: بنات | I127: انتظام | J127: صباحى | K127: 6 | L127: 1/2
B128: 122 | C128: 222 | D128: اسم 208 | E128: 6/1 | H128: بنات | I128: انتظام | J128: صباحى | K128: 6 | L128: 1/2
B129: 123 | C129: 223 | D129: اسم 209 | E129: 6/1 | H129: بنات | I129: انتظام | J129: صباحى | K129: 6 | L129: 1/2
B130: 124 | C130: 224 | D130: اسم 21 | E130: 1/1 | H130: بنات | I130: انتظام | J130: صباحى | K130: 6 | L130: 1/2
B131: 125 | C131: 225 | D131: اسم 210 | E131: 6/1 | H131: بنات | I131: انتظام | J131: صباحى | K131: 6 | L131: 1/2
B132: 126 | C132: 226 | D132: اسم 211 | E132: 6/1 | H132: بنات | I132: انتظام | J132: صباحى | K132: 6 | L132: 1/2
B133: 127 | C133: 227 | D133: اسم 212 | E133: 6/1 | H133: بنات | I133: انتظام | J133: صباحى | K133: 6 | L133: 1/2
B134: 128 | C134: 228 | D134: اسم 213 | E134: 6/1 | H134: بنات | I134: انتظام | J134: صباحى | K134: 6 | L134: 1/2
B135: 129 | C135: 229 | D135: اسم 214 | E135: 6/1 | H135: بنات | I135: انتظام | J135: صباحى | K135: 6 | L135: 1/2
B136: 130 | C136: 230 | D136: اسم 215 | E136: 6/1 | H136: بنات | I136: انتظام | J136: صباحى | K136: 6 | L136: 1/2
B137: 131 | C137: 231 | D137: اسم 216 | E137: 6/1 | H137: بنات | I137: انتظام | J137: صباحى | K137: 6 | L137: 1/2
B138: 132 | C138: 232 | D138: اسم 217 | E138: 7/1 | H138: بنات | I138: انتظام | J138: صباحى | K138: 6 | L138: 1/2
B139: 133 | C139: 233 | D139: اسم 218 | E139: 7/1 | H139: بنات | I139: انتظام | J139: صباحى | K139: 7 | L139: 2/2
B140: 134 | C140: 234 | D140: اسم 219 | E140: 7/1 | H140: بنات | I140: انتظام | J140: صباحى | K140: 7 | L140: 2/2
B141: 135 | C141: 235 | D141: اسم 22 | E141: 1/1 | H141: بنات | I141: انتظام | J141: صباحى | K141: 7 | L141: 2/2
B142: 136 | C142: 236 | D142: اسم 220 | E142: 7/1 | H142: بنات | I142: انتظام | J142: صباحى | K142: 7 | L142: 2/2
B143: 137 | C143: 237 | D143: اسم 221 | E143: 7/1 | H143: بنات | I143: انتظام | J143: صباحى | K143: 7 | L143: 2/2
B144: 138 | C144: 238 | D144: اسم 222 | E144: 7/1 | H144: بنات | I144: انتظام | J144: صباحى | K144: 7 | L144: 2/2
B145: 139 | C145: 239 | D145: اسم 223 | E145: 7/1 | H145: بنات | I145: انتظام | J145: صباحى | K145: 7 | L145: 2/2
B146: 140 | C146: 240 | D146: اسم 224 | E146: 7/1 | H146: بنات | I146: انتظام | J146: صباحى | K146: 7 | L146: 2/2
B147: 141 | C147: 241 | D147: اسم 225 | E147: 7/1 | H147: بنات | I147: انتظام | J147: صباحى | K147: 7 | L147: 2/2
B148: 142 | C148: 242 | D148: اسم 226 | E148: 7/1 | H148: بنات | I148: انتظام | J148: صباحى | K148: 7 | L148: 2/2
B149: 143 | C149: 243 | D149: اسم 227 | E149: 7/1 | H149: بنات | I149: انتظام | J149: صباحى | K149: 7 | L149: 2/2
B150: 144 | C150: 244 | D150: اسم 228 | E150: 7/1 | H150: بنات | I150: انتظام | J150: صباحى | K150: 7 | L150: 2/2
B151: 145 | C151: 245 | D151: اسم 229 | E151: 7/1 | H151: بنات | I151: انتظام | J151: صباحى | K151: 7 | L151: 2/2
B152: 146 | C152: 246 | D152: اسم 23 | E152: 1/1 | H152: بنات | I152: انتظام | J152: صباحى | K152: 7 | L152: 2/2
B153: 147 | C153: 247 | D153: اسم 230 | E153: 7/1 | H153: بنات | I153: انتظام | J153: صباحى | K153: 7 | L153: 2/2
B154: 148 | C154: 248 | D154: اسم 231 | E154: 7/1 | H154: بنات | I154: انتظام | J154: صباحى | K154: 7 | L154: 2/2
B155: 149 | C155: 249 | D155: اسم 232 | E155: 7/1 | H155: بنات | I155: انتظام | J155: صباحى | K155: 7 | L155: 2/2
B156: 150 | C156: 250 | D156: اسم 233 | E156: 7/1 | H156: بنات | I156: انتظام | J156: صباحى | K156: 7 | L156: 2/2
B157: 151 | C157: 251 | D157: اسم 234 | E157: 7/1 | H157: بنات | I157: انتظام | J157: صباحى | K157: 7 | L157: 2/2
B158: 152 | C158: 252 | D158: اسم 235 | E158: 7/1 | H158: بنات | I158: انتظام | J158: صباحى | K158: 7 | L158: 2/2
B159: 153 | C159: 253 | D159: اسم 236 | E159: 7/1 | H159: بنات | I159: انتظام | J159: صباحى | K159: 7 | L159: 2/2
B160: 154 | C160: 254 | D160: اسم 237 | E160: 7/1 | H160: بنات | I160: انتظام | J160: صباحى | K160: 8 | L160: 3/2
B161: 155 | C161: 255 | D161: اسم 238 | E161: 7/1 | H161: بنات | I161: انتظام | J161: صباحى | K161: 8 | L161: 3/2
B162: 156 | C162: 256 | D162: اسم 239 | E162: 7/1 | H162: بنات | I162: انتظام | J162: صباحى | K162: 8 | L162: 3/2
B163: 157 | C163: 257 | D163: اسم 24 | E163: 1/1 | H163: بنات | I163: انتظام | J163: صباحى | K163: 8 | L163: 3/2
B164: 158 | C164: 258 | D164: اسم 240 | E164: 7/1 | H164: بنات | I164: انتظام | J164: صباحى | K164: 8 | L164: 3/2
B165: 159 | C165: 259 | D165: اسم 241 | E165: 7/1 | H165: بنات | I165: انتظام | J165: صباحى | K165: 8 | L165: 3/2
B166: 160 | C166: 260 | D166: اسم 242 | E166: 7/1 | H166: بنات | I166: انتظام | J166: صباحى | K166: 8 | L166: 3/2
B167: 161 | C167: 261 | D167: اسم 243 | E167: 7/1 | H167: بنات | I167: انتظام | J167: صباحى | K167: 8 | L167: 3/2
B168: 162 | C168: 262 | D168: اسم 244 | E168: 7/1 | H168: بنات | I168: انتظام | J168: صباحى | K168: 8 | L168: 3/2
B169: 163 | C169: 263 | D169: اسم 245 | E169: 7/1 | H169: بنات | I169: انتظام | J169: صباحى | K169: 8 | L169: 3/2
B170: 164 | C170: 264 | D170: اسم 246 | E170: 1/1 | G170: مسيحية | H170: بنات | I170: انتظام | J170: صباحى | K170: 8 | L170: 3/2
B171: 165 | C171: 265 | D171: اسم 247 | E171: 7/1 | H171: بنات | I171: انتظام | J171: صباحى | K171: 8 | L171: 3/2
B172: 166 | C172: 266 | D172: اسم 248 | E172: 7/1 | H172: بنات | I172: انتظام | J172: صباحى | K172: 8 | L172: 3/2
B173: 167 | C173: 267 | D173: اسم 249 | E173: 7/1 | H173: بنات | I173: انتظام | J173: صباحى | K173: 8 | L173: 3/2
B174: 168 | C174: 268 | D174: اسم 25 | E174: 1/1 | H174: بنات | I174: انتظام | J174: صباحى | K174: 8 | L174: 3/2
B175: 169 | C175: 269 | D175: اسم 250 | E175: 7/1 | H175: بنات | I175: انتظام | J175: صباحى | K175: 8 | L175: 3/2
B176: 170 | C176: 270 | D176: اسم 251 | E176: 7/1 | H176: بنات | I176: انتظام | J176: صباحى | K176: 8 | L176: 3/2
B177: 171 | C177: 271 | D177: اسم 252 | E177: 1/1 | G177: مسيحية | H177: بنات | I177: انتظام | J177: صباحى | K177: 8 | L177: 3/2
B178: 172 | C178: 272 | D178: اسم 253 | E178: 1/1 | G178: مسيحية | H178: بنات | I178: انتظام | J178: صباحى | K178: 8 | L178: 3/2
B179: 173 | C179: 273 | D179: اسم 254 | E179: 1/1 | G179: مسيحية | H179: بنات | I179: انتظام | J179: صباحى | K179: 8 | L179: 3/2
B180: 174 | C180: 274 | D180: اسم 255 | E180: 1/1 | G180: مسيحية | H180: بنات | I180: انتظام | J180: صباحى | K180: 8 | L180: 3/2
B181: 175 | C181: 275 | D181: اسم 256 | E181: 7/1 | H181: بنات | I181: انتظام | J181: صباحى | K181: 9 | L181: 4/2
B182: 176 | C182: 276 | D182: اسم 257 | E182: 7/1 | H182: بنات | I182: انتظام | J182: صباحى | K182: 9 | L182: 4/2
B183: 177 | C183: 277 | D183: اسم 258 | E183: 7/1 | H183: بنات | I183: انتظام | J183: صباحى | K183: 9 | L183: 4/2
B184: 178 | C184: 278 | D184: اسم 259 | E184: 7/1 | H184: بنات | I184: انتظام | J184: صباحى | K184: 9 | L184: 4/2
B185: 179 | C185: 279 | D185: اسم 26 | E185: 1/1 | H185: بنات | I185: انتظام | J185: صباحى | K185: 9 | L185: 4/2
B186: 180 | C186: 280 | D186: اسم 260 | E186: 1/1 | G186: مسيحية | H186: بنات | I186: انتظام | J186: صباحى | K186: 9 | L186: 4/2
B187: 181 | C187: 281 | D187: اسم 261 | E187: 7/1 | H187: بنات | I187: انتظام | J187: صباحى | K187: 9 | L187: 4/2
B188: 182 | C188: 282 | D188: اسم 262 | E188: 7/1 | H188: بنات | I188: انتظام | J188: صباحى | K188: 9 | L188: 4/2
B189: 183 | C189: 283 | D189: اسم 263 | E189: 8/1 | H189: بنات | I189: انتظام | J189: صباحى | K189: 9 | L189: 4/2
B190: 184 | C190: 284 | D190: اسم 264 | E190: 5/1 | G190: مسيحية | H190: بنات | I190: انتظام | J190: صباحى | K190: 9 | L190: 4/2
B191: 185 | C191: 285 | D191: اسم 265 | E191: 8/1 | H191: بنات | I191: انتظام | J191: صباحى | K191: 9 | L191: 4/2
B192: 186 | C192: 286 | D192: اسم 266 | E192: 8/1 | H192: بنات | I192: انتظام | J192: صباحى | K192: 9 | L192: 4/2
B193: 187 | C193: 287 | D193: اسم 267 | E193: 8/1 | H193: بنات | I193: انتظام | J193: صباحى | K193: 9 | L193: 4/2
B194: 188 | C194: 288 | D194: اسم 268 | E194: 8/1 | H194: بنات | I194: انتظام | J194: صباحى | K194: 9 | L194: 4/2
B195: 189 | C195: 289 | D195: اسم 269 | E195: 8/1 | H195: بنات | I195: انتظام | J195: صباحى | K195: 9 | L195: 4/2
B196: 190 | C196: 290 | D196: اسم 27 | E196: 1/1 | H196: بنات | I196: انتظام | J196: صباحى | K196: 9 | L196: 4/2
B197: 191 | C197: 291 | D197: اسم 270 | E197: 8/1 | H197: بنات | I197: انتظام | J197: صباحى | K197: 9 | L197: 4/2
B198: 192 | C198: 292 | D198: اسم 271 | E198: 8/1 | H198: بنات | I198: انتظام | J198: صباحى | K198: 9 | L198: 4/2
B199: 193 | C199: 293 | D199: اسم 272 | E199: 1/1 | G199: مسيحية | H199: بنات | I199: انتظام | J199: صباحى | K199: 9 | L199: 4/2
B200: 194 | C200: 294 | D200: اسم 273 | E200: 1/1 | G200: مسيحية | H200: بنات | I200: انتظام | J200: صباحى | K200: 9 | L200: 4/2
... 293 more rows

Sheet لجان
C1: ادارة كوم امبو التعليمية | F1: لجنة : | G1: 1 | I1: ادارة كوم امبو التعليمية | L1: لجنة : | M1: 2 | AL1: اعداد و توزيع اللجان على الفترتين آليا
C2: مدرسة كوم امبو التجارية | F2: المقر : | G2: 1/1 | I2: مدرسة كوم امبو التجارية | L2: المقر : | M2: 2/1
C3: الصف الاول | E3: الفترة : | F3: مسائى - انتظام | K3: الفترة : | L3: مسائى - انتظام | P3: الفترة
D4: من : | E4: 401 | F4: الى : | G4: 418 | J4: من : | K4: 419 | L4: الى : | M4: 435 | P4: مسائى | AJ4: لجان الفترة الصباحية | AR4: لجان الفترة المسائية
C5: م | D5: جلوس | E5: اسم الطالبة | F5: الفصل | G5: ملاحظات | I5: م | J5: جلوس | K5: اسم الطالبة | L5: الفصل | M5: ملاحظات | S5: اول رقم جلوس وعدد صباحى | AI5: لجنة | AJ5: من | AK5: الى | AL5: العدد | AM5: الصفة | AN5: المقر | AQ5: لجنة | AR5: من | AS5: الى | AT5: العدد | AU5: الصفة | AV5: المقر
C6: 1 | D6: 401 | E6: اسم 52 | F6: 2/1 | I6: 1 | J6: 419 | K6: اسم 69 | L6: 3/1 | S6: الصفة و النوع / الفترة | U6: صباحى | W6: العدد | X6: عدد اللجان | AI6: 1 | AJ6: 101 | AK6: 122 | AL6: 22 | AM6: انتظام | AN6: 1/3 | AQ6: 1 | AR6: 401 | AS6: 418 | AT6: 18 | AU6: انتظام | AV6: 1/1
C7: 2 | D7: 402 | E7: اسم 53 | F7: 2/1 | I7: 2 | J7: 420 | K7: اسم 7 | L7: 1/1 | U7: من | V7: الى | AI7: 2 | AJ7: 123 | AK7: 144 | AL7: 22 | AM7: انتظام | AN7: 2/3 | AQ7: 2 | AR7: 419 | AS7: 435 | AT7: 17 | AU7: انتظام | AV7: 2/1
C8: 3 | D8: 403 | E8: اسم 54 | F8: 2/1 | I8: 3 | J8: 421 | K8: اسم 70 | L8: 3/1 | S8: بنات | T8: انتظام | U8: 101 | V8: 400 | W8: 300 | X8: 14 | AI8: 3 | AJ8: 145 | AK8: 166 | AL8: 22 | AM8: انتظام | AN8: 3/3 | AQ8: 3 | AR8: 436 | AS8: 452 | AT8: 17 | AU8: انتظام | AV8: 3/1
C9: 4 | D9: 404 | E9: اسم 55 | F9: 2/1 | I9: 4 | J9: 422 | K9: اسم 71 | L9: 3/1 | S9: بنات | T9: خدمات | U9: 0 | AI9: 4 | AJ9: 167 | AK9: 188 | AL9: 22 | AM9: انتظام | AN9: 4/3 | AQ9: 4 | AR9: 501 | AS9: 521 | AT9: 21 | AU9: خدمات | AV9: 4/1
C10: 5 | D10: 405 | E10: اسم 56 | F10: 2/1 | I10: 5 | J10: 423 | K10: اسم 72 | L10: 3/1 | S10: بنين | T10: انتظام | U10: 0 | AI10: 5 | AJ10: 189 | AK10: 210 | AL10: 22 | AM10: انتظام | AN10: 5/3 | AQ10: 5 | AR10: 522 | AS10: 542 | AT10: 21 | AU10: خدمات | AV10: 5/1
C11: 6 | D11: 406 | E11: اسم 57 | F11: 2/1 | I11: 6 | J11: 424 | K11: اسم 73 | L11: 3/1 | S11: بنين | T11: خدمات | U11: 0 | AI11: 6 | AJ11: 211 | AK11: 232 | AL11: 22 | AM11: انتظام | AN11: 1/2 | AQ11: 6 | AR11: 543 | AS11: 563 | AT11: 21 | AU11: خدمات | AV11: 6/1
C12: 7 | D12: 407 | E12: اسم 58 | F12: 1/1 | G12: مسيحية | I12: 7 | J12: 425 | K12: اسم 74 | L12: 3/1 | U12: اجمالى صباحى | W12: =SUM(W8:W11) -> 300 | X12: =SUM(X8:X11) -> 14 | AI12: 7 | AJ12: 233 | AK12: 253 | AL12: 21 | AM12: انتظام | AN12: 2/2 | AQ12: 7 | AR12: 564 | AS12: 584 | AT12: 21 | AU12: خدمات | AV12: 7/1
C13: 8 | D13: 408 | E13: اسم 59 | F13: 2/1 | I13: 8 | J13: 426 | K13: اسم 75 | L13: 3/1 | S13: اول رقم جلوس وعدد مسائى | AI13: 8 | AJ13: 254 | AK13: 274 | AL13: 21 | AM13: انتظام | AN13: 3/2 | AQ13: 8 | AR13: 585 | AS13: 604 | AT13: 20 | AU13: خدمات | AV13: 8/1
C14: 9 | D14: 409 | E14: اسم 6 | F14: 1/1 | I14: 9 | J14: 427 | K14: اسم 76 | L14: 3/1 | S14: الصفة و النوع / الفترة | U14: مسائى | W14: العدد | X14: عدد اللجان | AI14: 9 | AJ14: 275 | AK14: 295 | AL14: 21 | AM14: انتظام | AN14: 4/2 | AQ14: 9 | AR14: 651 | AS14: 666 | AT14: 16 | AU14: انتظام | AV14: 9/1
C15: 10 | D15: 410 | E15: اسم 60 | F15: 2/1 | I15: 10 | J15: 428 | K15: اسم 77 | L15: 1/1 | M15: مسيحية | U15: من | V15: الى | AI15: 10 | AJ15: 296 | AK15: 316 | AL15: 21 | AM15: انتظام | AN15: 5/2 | AQ15: 10 | AR15: 667 | AS15: 681 | AT15: 15 | AU15: انتظام | AV15: 10/1
C16: 11 | D16: 411 | E16: اسم 61 | F16: 2/1 | I16: 11 | J16: 429 | K16: اسم 78 | L16: 3/1 | S16: بنات | T16: انتظام | U16: 401 | V16: 452 | W16: 52 | X16: 3 | AI16: 11 | AJ16: 317 | AK16: 337 | AL16: 21 | AM16: انتظام | AN16: 6/2 | AQ16: 11
C17: 12 | D17: 412 | E17: اسم 62 | F17: 2/1 | I17: 12 | J17: 430 | K17: اسم 79 | L17: 3/1 | S17: بنات | T17: خدمات | U17: 501 | V17: 604 | W17: 104 | X17: 5 | AI17: 12 | AJ17: 338 | AK17: 358 | AL17: 21 | AM17: انتظام | AN17: 7/2 | AQ17: 12
C18: 13 | D18: 413 | E18: اسم 63 | F18: 2/1 | I18: 13 | J18: 431 | K18: اسم 8 | L18: 1/1 | S18: بنين | T18: انتظام | U18: 651 | V18: 681 | W18: 31 | X18: 2 | AI18: 13 | AJ18: 359 | AK18: 379 | AL18: 21 | AM18: انتظام | AN18: 8/2 | AQ18: 13
C19: 14 | D19: 414 | E19: اسم 64 | F19: 2/1 | I19: 14 | J19: 432 | K19: اسم 80 | L19: 3/1 | S19: بنين | T19: خدمات | U19: 0 | AI19: 14 | AJ19: 380 | AK19: 400 | AL19: 21 | AM19: انتظام | AN19: 9/2 | AQ19: 14
C20: 15 | D20: 415 | E20: اسم 65 | F20: 2/1 | I20: 15 | J20: 433 | K20: اسم 81 | L20: 3/1 | U20: اجمالى مسائى | W20: =SUM(W16:W19) -> 187 | X20: =SUM(X16:X19) -> 10 | AI20: 15 | AQ20: 15
C21: 16 | D21: 416 | E21: اسم 66 | F21: 2/1 | I21: 16 | J21: 434 | K21: اسم 82 | L21: 3/1 | AI21: 16 | AQ21: 16
C22: 17 | D22: 417 | E22: اسم 67 | F22: 3/1 | I22: 17 | J22: 435 | K22: اسم 83 | L22: 3/1 | AI22: 17 | AQ22: 17
C23: 18 | D23: 418 | E23: اسم 68 | F23: 3/1 | AI23: 18 | AQ23: 18
AI24: 19 | AQ24: 19
AI25: 20 | AQ25: 20
AI26: 21 | AQ26: 21
AI27: 22 | AQ27: 22
AI28: 23 | AQ28: 23
AI29: 24 | AQ29: 24
AI30: 25 | AQ30: 25
C31: كنترول الصف الاول | F31: ادارة المدرسة | I31: كنترول الصف الاول | L31: ادارة المدرسة | AI31: 26 | AQ31: 26
AI32: 27 | AQ32: 27
AI33: 28 | AQ33: 28
AI34: 29 | AQ34: 29
AI35: 30 | AQ35: 30
AI36: 31 | AQ36: 31
AI37: 32 | AQ37: 32
AI38: 33 | AQ38: 33
AI39: 34 | AQ39: 34
AI40: 35 | AQ40: 35
AI41: 36 | AQ41: 36
AI42: 37 | AQ42: 37
AI43: 38 | AQ43: 38
AI44: 39 | AQ44: 39
AI45: 40 | AQ45: 40
AI46: 41 | AQ46: 41
AI47: 42 | AQ47: 42
AI48: 43 | AQ48: 43
AI49: 44 | AQ49: 44
AI50: 45 | AQ50: 45
AI51: 46 | AQ51: 46
AI52: 47 | AQ52: 47
AI53: 48 | AQ53: 48
AI54: 49 | AQ54: 49
AI55: 50 | AQ55: 50

Sheet جلوس
B1: مدرسة كوم امبو التجارية بنات | M1: 51 | O1: الورقة رقم | Q1: 1
E2: ارقام جلوس الصف الاول 2017 / 2018
B5: اخطار رقم جلوس | F5: الفترة : | G5: صباحى | I5: اخطار رقم جلوس | M5: الفترة : | N5: صباحى
B6: مدرسة كوم امبو التجارية | F6: رقم الجلوس / | G6: 101 | I6: مدرسة كوم امبو التجارية | M6: رقم الجلوس / | N6: 107 | Y6: =($M$1-1)*12+1 -> 601 | Z6: =$Y$6+6 -> 607
B7: الاسم / | C7: اسم 1 | F7: رقم اللجنة / | G7: 1 | I7: الاسم / | J7: اسم 104 | M7: رقم اللجنة / | N7: 1
B8: الفصل / | C8: 1/1 | F8: مقر اللجنة / | G8: 1/3 | I8: الفصل / | J8: 3/1 | M8: مقر اللجنة / | N8: 1/3
B10: اخطار رقم جلوس | F10: الفترة : | G10: صباحى | I10: اخطار رقم جلوس | M10: الفترة : | N10: صباحى
B11: مدرسة كوم امبو التجارية | F11: رقم الجلوس / | G11: 102 | I11: مدرسة كوم امبو التجارية | M11: رقم الجلوس / | N11: 108 | Y11: =$Y$6+1 -> 602 | Z11: =$Y$11+6 -> 608
B12: الاسم / | C12: اسم 10 | F12: رقم اللجنة / | G12: 1 | I12: الاسم / | J12: اسم 105 | M12: رقم اللجنة / | N12: 1
B13: الفصل / | C13: 1/1 | F13: مقر اللجنة / | G13: 1/3 | I13: الفصل / | J13: 3/1 | M13: مقر اللجنة / | N13: 1/3
B15: اخطار رقم جلوس | F15: الفترة : | G15: صباحى | I15: اخطار رقم جلوس | M15: الفترة : | N15: صباحى
B16: مدرسة كوم امبو التجارية | F16: رقم الجلوس / | G16: 103 | I16: مدرسة كوم امبو التجارية | M16: رقم الجلوس / | N16: 109 | Y16: =$Y$6+2 -> 603 | Z16: =$Y$16+6 -> 609
B17: الاسم / | C17: اسم 100 | F17: رقم اللجنة / | G17: 1 | I17: الاسم / | J17: اسم 106 | M17: رقم اللجنة / | N17: 1
B18: الفصل / | C18: 3/1 | F18: مقر اللجنة / | G18: 1/3 | I18: الفصل / | J18: 3/1 | M18: مقر اللجنة / | N18: 1/3
B20: اخطار رقم جلوس | F20: الفترة : | G20: صباحى | I20: اخطار رقم جلوس | M20: الفترة : | N20: صباحى
B21: مدرسة كوم امبو التجارية | F21: رقم الجلوس / | G21: 104 | I21: مدرسة كوم امبو التجارية | M21: رقم الجلوس / | N21: 110 | Y21: =$Y$6+3 -> 604 | Z21: =$Y$21+6 -> 610
B22: الاسم / | C22: اسم 101 | F22: رقم اللجنة / | G22: 1 | I22: الاسم / | J22: اسم 107 | M22: رقم اللجنة / | N22: 1
B23: الفصل / | C23: 3/1 | F23: مقر اللجنة / | G23: 1/3 | I23: الفصل / | J23: 3/1 | M23: مقر اللجنة / | N23: 1/3
B25: اخطار رقم جلوس | F25: الفترة : | G25: صباحى | I25: اخطار رقم جلوس | M25: الفترة : | N25: صباحى
B26: مدرسة كوم امبو التجارية | F26: رقم الجلوس / | G26: 105 | I26: مدرسة كوم امبو التجارية | M26: رقم الجلوس / | N26: 111 | Y26: =$Y$6+4 -> 605 | Z26: =$Y$26+6 -> 611
B27: الاسم / | C27: اسم 102 | F27: رقم اللجنة / | G27: 1 | I27: الاسم / | J27: اسم 108 | M27: رقم اللجنة / | N27: 1
B28: الفصل / | C28: 3/1 | F28: مقر اللجنة / | G28: 1/3 | I28: الفصل / | J28: 3/1 | M28: مقر اللجنة / | N28: 1/3
B30: اخطار رقم جلوس | F30: الفترة : | G30: صباحى | I30: اخطار رقم جلوس | M30: الفترة : | N30: صباحى
B31: مدرسة كوم امبو التجارية | F31: رقم الجلوس / | G31: 106 | I31: مدرسة كوم امبو التجارية | M31: رقم الجلوس / | N31: 112 | Y31: =$Y$6+5 -> 606 | Z31: =Y31+6 -> 612
B32: الاسم / | C32: اسم 103 | F32: رقم اللجنة / | G32: 1 | I32: الاسم / | J32: اسم 109 | M32: رقم اللجنة / | N32: 1
B33: الفصل / | C33: 3/1 | F33: مقر اللجنة / | G33: 1/3 | I33: الفصل / | J33: 4/1 | M33: مقر اللجنة / | N33: 1/3

Sheet شهادات نصف العام
H1: مدرسة كوم امبو التجارية بنات | V1: ورقة رقم : | Y1: 1 | AB1: الورقة الحالية
V2: الى ورقة : | Y2: 2
H3: شهادات نصف العام 2017 / 2018 | AB3: =$Y$1 -> 1
F5: مدرسة كوم امبو التجارية بنات | M5: شهادة درجات نصف العام 2017 / 2018
F6: الاسم / | G6: اسم 1 | O6: الفصل / | Q6: 1/1 | S6: جلوس / | V6: 101
F7: المادة | G7: لغة عربية | H7: لغة انجليزية | I7: لغة فرنسية | J7: محاسبة مالية | K7: سكرتارية عربية | L7: سكرتارية اجنبية | M7: اقتصاد | N7: تسويق | O7: ادارة اعمال | P7: قانون تجارى | Q7: رياضة عامة | R7: جغرافيا | S7: حاسب ألى عملى | T7: حاسب ألى تحريرى | U7: مجموع | V7: تربية قومية | W7: تربية دينية
F8: العظمى | G8: 20 | H8: 20 | I8: 12 | J8: 20 | K8: 20 | L8: 20 | M8: 20 | N8: 20 | O8: 20 | P8: 20 | Q8: 12 | R8: 16 | S8: 8 | T8: 12 | U8: 240 | V8: 8 | W8: 8
F9: الدرجة | G9: 9 | H9: 9 | I9: 6 | J9: 7 | K9: 19 | L9: 15 | M9: 18 | N9: 11 | O9: 12 | P9: 15 | Q9: 11 | R9: 7 | S9: 7 | T9: 7 | U9: 153 | V9: 4 | W9: 6
F11: رئيس الكــــنترول ذ / احمد شفيق نائب مدير المدرسة ذ / ياسرعبده مدير المدرسة ذ / نظمى بولس
F13: مدرسة كوم امبو التجارية بنات | M13: شهادة درجات نصف العام 2017 / 2018
F14: الاسم / | G14: اسم 10 | O14: الفصل / | Q14: 1/1 | S14: جلوس / | V14: 102
F15: المادة | G15: لغة عربية | H15: لغة انجليزية | I15: لغة فرنسية | J15: محاسبة مالية | K15: سكرتارية عربية | L15: سكرتارية اجنبية | M15: اقتصاد | N15: تسويق | O15: ادارة اعمال | P15: قانون تجارى | Q15: رياضة عامة | R15: جغرافيا | S15: حاسب ألى عملى | T15: حاسب ألى تحريرى | U15: مجموع | V15: تربية قومية | W15: تربية دينية
F16: العظمى | G16: 20 | H16: 20 | I16: 12 | J16: 20 | K16: 20 | L16: 20 | M16: 20 | N16: 20 | O16: 20 | P16: 20 | Q16: 12 | R16: 16 | S16: 8 | T16: 12 | U16: 240 | V16: 8 | W16: 8
F17: الدرجة | G17: 7 | H17: 8 | I17: 7 | J17: 16 | K17: 17 | L17: 14 | M17: 19 | N17: 16 | O17: 14 | P17: 16 | Q17: 8 | R17: 6 | S17: 7 | T17: 6 | U17: 161 | V17: 6 | W17: 7
F19: رئيس الكــــنترول ذ / احمد شفيق نائب مدير المدرسة ذ / ياسرعبده مدير المدرسة ذ / نظمى بولس
F21: مدرسة كوم امبو التجارية بنات | M21: شهادة درجات نصف العام 2017 / 2018
F22: الاسم / | G22: اسم 100 | O22: الفصل / | Q22: 3/1 | S22: جلوس / | V22: 103
F23: المادة | G23: لغة عربية | H23: لغة انجليزية | I23: لغة فرنسية | J23: محاسبة مالية | K23: سكرتارية عربية | L23: سكرتارية اجنبية | M23: اقتصاد | N23: تسويق | O23: ادارة اعمال | P23: قانون تجارى | Q23: رياضة عامة | R23: جغرافيا | S23: حاسب ألى عملى | T23: حاسب ألى تحريرى | U23: مجموع | V23: تربية قومية | W23: تربية دينية
F24: العظمى | G24: 20 | H24: 20 | I24: 12 | J24: 20 | K24: 20 | L24: 20 | M24: 20 | N24: 20 | O24: 20 | P24: 20 | Q24: 12 | R24: 16 | S24: 8 | T24: 12 | U24: 240 | V24: 8 | W24: 8
F25: الدرجة | G25: 6 | H25: 6 | I25: 7 | J25: 9 | K25: 12 | L25: 13 | M25: 15 | N25: 6 | O25: 11 | P25: 12 | Q25: 6 | R25: 10 | S25: 7 | T25: 9 | U25: 129 | V25: 3 | W25: 6
Z26: =(Z22+2)/8 -> 0.25
F27: رئيس الكــــنترول ذ / احمد شفيق نائب مدير المدرسة ذ / ياسرعبده مدير المدرسة ذ / نظمى بولس
F29: مدرسة كوم امبو التجارية بنات | M29: شهادة درجات نصف العام 2017 / 2018
F30: الاسم / | G30: اسم 101 | O30: الفصل / | Q30: 3/1 | S30: جلوس / | V30: 104
F31: المادة | G31: لغة عربية | H31: لغة انجليزية | I31: لغة فرنسية | J31: محاسبة مالية | K31: سكرتارية عربية | L31: سكرتارية اجنبية | M31: اقتصاد | N31: تسويق | O31: ادارة اعمال | P31: قانون تجارى | Q31: رياضة عامة | R31: جغرافيا | S31: حاسب ألى عملى | T31: حاسب ألى تحريرى | U31: مجموع | V31: تربية قومية | W31: تربية دينية
F32: العظمى | G32: 20 | H32: 20 | I32: 12 | J32: 20 | K32: 20 | L32: 20 | M32: 20 | N32: 20 | O32: 20 | P32: 20 | Q32: 12 | R32: 16 | S32: 8 | T32: 12 | U32: 240 | V32: 8 | W32: 8
F33: الدرجة | G33: 7 | H33: 5 | I33: 6 | J33: 5 | K33: 14 | L33: 14 | M33: 13 | N33: 9 | O33: 11 | P33: 12 | Q33: 5 | R33: 13 | S33: 7 | T33: 7 | U33: 128 | V33: 5 | W33: 6
F35: رئيس الكــــنترول ذ / احمد شفيق نائب مدير المدرسة ذ / ياسرعبده مدير المدرسة ذ / نظمى بولس

Sheet شيت الناجحات
C1: الناجحات | H1: ادارة كوم امبو التعليمية | AE1: شيت كنترول الصف الاول | AR1: الناجحات
H2: مدرسة كوم امبو التجارية | AE2: للعام الدراسى 2017 / 2018
A3: مسلسل | B3: جلوس | C3: الاسم | D3: الفصل | E3: الحــــالة | F3: سرى | G3: لغة عربية | K3: لغة انجليزية | O3: لغة فرنسية | S3: محاسبة مالية | W3: سكرتارية عربية | AA3: سكرتارية اجنبية | AE3: اقتصاد | AI3: تسويق | AM3: ادارة اعمال | AQ3: قانون تجارى | AU3: رياضة عامة | AY3: جغرافيا | BC3: حاسب آألى | BL3: مجموع كلى | BM3: تربية قومية | BQ3: تربية دينية | BU3: النتيجة | BV3: الترتيب
G4: اعمال السنة | H4: نصف العام | I4: آخر العام | J4: المجموع | K4: اعمال السنة | L4: نصف العام | M4: آخر العام | N4: المجموع | O4: اعمال السنة | P4: نصف العام | Q4: آخر العام | R4: المجموع | S4: اعمال السنة | T4: نصف العام | U4: آخر العام | V4: المجموع | W4: اعمال السنة | X4: نصف العام | Y4: آخر العام | Z4: المجموع | AA4: اعمال السنة | AB4: نصف العام | AC4: آخر العام | AD4: المجموع | AE4: اعمال السنة | AF4: نصف العام | AG4: آخر العام | AH4: المجموع | AI4: اعمال السنة | AJ4: نصف العام | AK4: آخر العام | AL4: المجموع | AM4: اعمال السنة | AN4: نصف العام | AO4: آخر العام | AP4: المجموع | AQ4: اعمال السنة | AR4: نصف العام | AS4: آخر العام | AT4: المجموع | AU4: اعمال السنة | AV4: نصف العام | AW4: آخر العام | AX4: المجموع | AY4: اعمال السنة | AZ4: نصف العام | BA4: آخر العام | BB4: المجموع | BC4: اعمال السنة | BE4: نصف العام | BG4: آخر العام | BI4: مج عملى | BJ4: مج تحريرى | BK4: مج حاسب | BM4: اعمال السنة | BN4: نصف العام | BO4: آخر العام | BP4: المجموع | BQ4: اعمال السنة | BR4: نصف العام | BS4: آخر العام | BT4: المجموع
BC5: عملى | BD5: تحريرى | BE5: عملى | BF5: تحريرى | BG5: عملى | BH5: تحريرى
F6: عظمى | G6: 10 | H6: 20 | I6: 20 | J6: 50 | K6: 10 | L6: 20 | M6: 20 | N6: 50 | O6: 6 | P6: 12 | Q6: 12 | R6: 30 | S6: 10 | T6: 20 | U6: 20 | V6: 50 | W6: 10 | X6: 20 | Y6: 20 | Z6: 50 | AA6: 10 | AB6: 20 | AC6: 20 | AD6: 50 | AE6: 10 | AF6: 20 | AG6: 20 | AH6: 50 | AI6: 10 | AJ6: 20 | AK6: 20 | AL6: 50 | AM6: 10 | AN6: 20 | AO6: 20 | AP6: 50 | AQ6: 10 | AR6: 20 | AS6: 20 | AT6: 50 | AU6: 6 | AV6: 12 | AW6: 12 | AX6: 30 | AY6: 8 | AZ6: 16 | BA6: 16 | BB6: 40 | BC6: 4 | BD6: 6 | BE6: 8 | BF6: 12 | BG6: 8 | BH6: 12 | BI6: 20 | BJ6: 30 | BK6: 50 | BL6: 600 | BM6: 4 | BN6: 8 | BO6: 8 | BP6: 20 | BQ6: 4 | BR6: 8 | BS6: 8 | BT6: 20
F7: صغرى | G7: 0 | H7: 0 | I7: 5 | J7: 25 | K7: 0 | L7: 0 | M7: 5 | N7: 20 | O7: 0 | P7: 0 | Q7: 3 | R7: 9 | S7: 0 | T7: 0 | U7: 5 | V7: 25 | W7: 0 | X7: 0 | Y7: 5 | Z7: 25 | AA7: 0 | AB7: 0 | AC7: 5 | AD7: 20 | AE7: 0 | AF7: 0 | AG7: 5 | AH7: 25 | AI7: 0 | AJ7: 0 | AK7: 5 | AL7: 25 | AM7: 0 | AN7: 0 | AO7: 5 | AP7: 25 | AQ7: 0 | AR7: 0 | AS7: 5 | AT7: 25 | AU7: 0 | AV7: 0 | AW7: 3 | AX7: 15 | AY7: 0 | AZ7: 0 | BA7: 4 | BB7: 20 | BC7: 0 | BD7: 0 | BE7: 0 | BF7: 0 | BG7: 2 | BH7: 3 | BI7: 10 | BJ7: 15 | BK7: 25 | BL7: 300 | BM7: 0 | BN7: 0 | BO7: 2 | BP7: 10 | BQ7: 0 | BR7: 0 | BS7: 2 | BT7: 10
A8: 1 | B8: 101 | C8: اسم 1 | D8: 1/1 | F8: 1221 | G8: 8 | H8: 9 | I8: 14 | J8: 31 | K8: 8 | L8: 9 | M8: 13 | N8: 30 | O8: 5 | P8: 6 | Q8: 7 | R8: 18 | S8: 8 | T8: 7 | U8: 11 | V8: 26 | W8: 8 | X8: 19 | Y8: 15 | Z8: 42 | AA8: 9 | AB8: 15 | AC8: 12 | AD8: 36 | AE8: 9 | AF8: 18 | AG8: 19 | AH8: 46 | AI8: 9 | AJ8: 11 | AK8: 17 | AL8: 37 | AM8: 9 | AN8: 12 | AO8: 16 | AP8: 37 | AQ8: 9 | AR8: 15 | AS8: 18 | AT8: 42 | AU8: 5 | AV8: 11 | AW8: 10 | AX8: 26 | AY8: 7 | AZ8: 7 | BA8: 7 | BB8: 21 | BC8: 3 | BD8: 5 | BE8: 7 | BF8: 7 | BG8: 7 | BH8: 7 | BI8: 17 | BJ8: 19 | BK8: 36 | BL8: 428 | BM8: 4 | BN8: 4 | BO8: 6 | BP8: 14 | BQ8: 4 | BR8: 6 | BS8: 6 | BT8: 16 | BU8: ناجحة | BV8: 127 | BW8: 127
A9: 2 | B9: 102 | C9: اسم 10 | D9: 1/1 | F9: 1222 | G9: 8 | H9: 7 | I9: 16 | J9: 31 | K9: 8 | L9: 8 | M9: 12 | N9: 28 | O9: 5 | P9: 7 | Q9: 7 | R9: 19 | S9: 8 | T9: 16 | U9: 20 | V9: 44 | W9: 8 | X9: 17 | Y9: 19 | Z9: 44 | AA9: 9 | AB9: 14 | AC9: 14 | AD9: 37 | AE9: 9 | AF9: 19 | AG9: 19 | AH9: 47 | AI9: 9 | AJ9: 16 | AK9: 15 | AL9: 40 | AM9: 9 | AN9: 14 | AO9: 16 | AP9: 39 | AQ9: 9 | AR9: 16 | AS9: 18 | AT9: 43 | AU9: 5 | AV9: 8 | AW9: 11 | AX9: 24 | AY9: 7 | AZ9: 6 | BA9: 9 | BB9: 22 | BC9: 3 | BD9: 5 | BE9: 7 | BF9: 6 | BG9: 7 | BH9: 6 | BI9: 17 | BJ9: 17 | BK9: 34 | BL9: 452 | BM9: 4 | BN9: 6 | BO9: 6 | BP9: 16 | BQ9: 4 | BR9: 7 | BS9: 7 | BT9: 18 | BU9: ناجحة | BV9: 53 | BW9: 53
A10: 3 | B10: 103 | C10: اسم 100 | D10: 3/1 | F10: 1223 | G10: 8 | H10: 6 | I10: 12 | J10: 26 | K10: 8 | L10: 6 | M10: 8 | N10: 22 | O10: 5 | P10: 7 | Q10: 7 | R10: 19 | S10: 8 | T10: 9 | U10: 13 | V10: 30 | W10: 8 | X10: 12 | Y10: 11 | Z10: 31 | AA10: 9 | AB10: 13 | AC10: 18 | AD10: 40 | AE10: 9 | AF10: 15 | AG10: 17 | AH10: 41 | AI10: 9 | AJ10: 6 | AK10: 20 | AL10: 35 | AM10: 9 | AN10: 11 | AO10: 16 | AP10: 36 | AQ10: 9 | AR10: 12 | AS10: 19 | AT10: 40 | AU10: 5 | AV10: 6 | AW10: 4 | AX10: 15 | AY10: 7 | AZ10: 10 | BA10: 10 | BB10: 27 | BC10: 3 | BD10: 5 | BE10: 7 | BF10: 9 | BG10: 7 | BH10: 9 | BI10: 17 | BJ10: 23 | BK10: 40 | BL10: 402 | BM10: 4 | BN10: 3 | BO10: 6 | BP10: 13 | BQ10: 4 | BR10: 6 | BS10: 6 | BT10: 16 | BU10: ناجحة | BV10: 215 | BW10: 215
A11: 4 | B11: 104 | C11: اسم 101 | D11: 3/1 | F11: 1224 | G11: 8 | H11: 7 | I11: 12 | J11: 27 | K11: 8 | L11: 5 | M11: 7 | N11: 20 | O11: 5 | P11: 6 | Q11: 7 | R11: 18 | S11: 8 | T11: 5 | U11: 12 | V11: 25 | W11: 8 | X11: 14 | Y11: 17 | Z11: 39 | AA11: 9 | AB11: 14 | AC11: 17 | AD11: 40 | AE11: 9 | AF11: 13 | AG11: 16 | AH11: 38 | AI11: 9 | AJ11: 9 | AK11: 20 | AL11: 38 | AM11: 9 | AN11: 11 | AO11: 16 | AP11: 36 | AQ11: 9 | AR11: 12 | AS11: 19 | AT11: 40 | AU11: 5 | AV11: 5 | AW11: 5 | AX11: 15 | AY11: 7 | AZ11: 13 | BA11: 13 | BB11: 33 | BC11: 3 | BD11: 5 | BE11: 7 | BF11: 7 | BG11: 7 | BH11: 7 | BI11: 17 | BJ11: 19 | BK11: 36 | BL11: 405 | BM11: 4 | BN11: 5 | BO11: 6 | BP11: 15 | BQ11: 4 | BR11: 6 | BS11: 6 | BT11: 16 | BU11: ناجحة | BV11: 204 | BW11: 204
A12: 5 | B12: 105 | C12: اسم 102 | D12: 3/1 | F12: 1225 | G12: 8 | H12: 8 | I12: 12 | J12: 28 | K12: 8 | L12: 6 | M12: 6 | N12: 20 | O12: 5 | P12: 6 | Q12: 7 | R12: 18 | S12: 8 | T12: 5 | U12: 16 | V12: 29 | W12: 8 | X12: 15 | Y12: 16 | Z12: 39 | AA12: 9 | AB12: 13 | AC12: 11 | AD12: 33 | AE12: 9 | AF12: 20 | AG12: 20 | AH12: 49 | AI12: 9 | AJ12: 15 | AK12: 19 | AL12: 43 | AM12: 9 | AN12: 10 | AO12: 16 | AP12: 35 | AQ12: 9 | AR12: 19 | AS12: 19 | AT12: 47 | AU12: 5 | AV12: 6 | AW12: 4 | AX12: 15 | AY12: 7 | AZ12: 14 | BA12: 14 | BB12: 35 | BC12: 3 | BD12: 5 | BE12: 7 | BF12: 7 | BG12: 7 | BH12: 7 | BI12: 17 | BJ12: 19 | BK12: 36 | BL12: 427 | BM12: 4 | BN12: 6 | BO12: 6 | BP12: 16 | BQ12: 4 | BR12: 7 | BS12: 7 | BT12: 18 | BU12: ناجحة | BV12: 132 | BW12: 132
A13: 6 | B13: 107 | C13: اسم 104 | D13: 3/1 | F13: 1227 | G13: 8 | H13: 7 | I13: 10 | J13: 25 | K13: 8 | L13: 5 | M13: 7 | N13: 20 | O13: 5 | P13: 5 | Q13: 6 | R13: 16 | S13: 8 | T13: 11 | U13: 17 | V13: 36 | W13: 8 | X13: 16 | Y13: 13 | Z13: 37 | AA13: 9 | AB13: 16 | AC13: 12 | AD13: 37 | AE13: 9 | AF13: 7 | AG13: 17 | AH13: 33 | AI13: 9 | AJ13: 16 | AK13: 18 | AL13: 43 | AM13: 9 | AN13: 16 | AO13: 15 | AP13: 40 | AQ13: 9 | AR13: 10 | AS13: 19 | AT13: 38 | AU13: 5 | AV13: 7 | AW13: 3 | AX13: 15 | AY13: 7 | AZ13: 7 | BA13: 7 | BB13: 21 | BC13: 3 | BD13: 5 | BE13: 7 | BF13: 7 | BG13: 7 | BH13: 7 | BI13: 17 | BJ13: 19 | BK13: 36 | BL13: 397 | BM13: 4 | BN13: 4 | BO13: 6 | BP13: 14 | BQ13: 4 | BR13: 6 | BS13: 6 | BT13: 16 | BU13: ناجحة | BV13: 233 | BW13: 233
A14: 7 | B14: 109 | C14: اسم 106 | D14: 3/1 | F14: 1229 | G14: 8 | H14: 7 | I14: 11 | J14: 26 | K14: 8 | L14: 9 | M14: 12 | N14: 29 | O14: 5 | P14: 5 | Q14: 6 | R14: 16 | S14: 8 | T14: 15 | U14: 15 | V14: 38 | W14: 8 | X14: 15 | Y14: 18 | Z14: 41 | AA14: 9 | AB14: 15 | AC14: 13 | AD14: 37 | AE14: 9 | AF14: 16 | AG14: 13 | AH14: 38 | AI14: 9 | AJ14: 17 | AK14: 18 | AL14: 44 | AM14: 9 | AN14: 17 | AO14: 17 | AP14: 43 | AQ14: 9 | AR14: 17 | AS14: 19 | AT14: 45 | AU14: 5 | AV14: 8 | AW14: 8 | AX14: 21 | AY14: 7 | AZ14: 9 | BA14: 9 | BB14: 25 | BC14: 3 | BD14: 5 | BE14: 7 | BF14: 7 | BG14: 7 | BH14: 7 | BI14: 17 | BJ14: 19 | BK14: 36 | BL14: 439 | BM14: 4 | BN14: 7 | BO14: 6 | BP14: 17 | BQ14: 4 | BR14: 7 | BS14: 7 | BT14: 18 | BU14: ناجحة | BV14: 86 | BW14: 86
A15: 8 | B15: 110 | C15: اسم 107 | D15: 3/1 | F15: 1230 | G15: 8 | H15: 7 | I15: 12 | J15: 27 | K15: 8 | L15: 13 | M15: 17 | N15: 38 | O15: 5 | P15: 8 | Q15: 6 | R15: 19 | S15: 8 | T15: 9 | U15: 18 | V15: 35 | W15: 8 | X15: 17 | Y15: 19 | Z15: 44 | AA15: 9 | AB15: 13 | AC15: 14 | AD15: 36 | AE15: 9 | AF15: 17 | AG15: 18 | AH15: 44 | AI15: 9 | AJ15: 15 | AK15: 18 | AL15: 42 | AM15: 9 | AN15: 16 | AO15: 17 | AP15: 42 | AQ15: 9 | AR15: 19 | AS15: 19 | AT15: 47 | AU15: 5 | AV15: 6 | AW15: 10 | AX15: 21 | AY15: 7 | AZ15: 10 | BA15: 10 | BB15: 27 | BC15: 3 | BD15: 5 | BE15: 6 | BF15: 5 | BG15: 6 | BH15: 5 | BI15: 15 | BJ15: 15 | BK15: 30 | BL15: 452 | BM15: 4 | BN15: 8 | BO15: 6 | BP15: 18 | BQ15: 4 | BR15: 6 | BS15: 6 | BT15: 16 | BU15: ناجحة | BV15: 53 | BW15: 53
A16: 9 | B16: 111 | C16: اسم 108 | D16: 3/1 | F16: 1231 | G16: 8 | H16: 10 | I16: 12 | J16: 30 | K16: 8 | L16: 9 | M16: 18 | N16: 35 | O16: 5 | P16: 10 | Q16: 6 | R16: 21 | S16: 8 | T16: 17 | U16: 20 | V16: 45 | W16: 8 | X16: 17 | Y16: 19 | Z16: 44 | AA16: 9 | AB16: 14 | AC16: 13 | AD16: 36 | AE16: 9 | AF16: 16 | AG16: 18 | AH16: 43 | AI16: 9 | AJ16: 15 | AK16: 19 | AL16: 43 | AM16: 9 | AN16: 17 | AO16: 16 | AP16: 42 | AQ16: 9 | AR16: 19 | AS16: 19 | AT16: 47 | AU16: 5 | AV16: 4 | AW16: 11 | AX16: 20 | AY16: 7 | AZ16: 8 | BA16: 8 | BB16: 23 | BC16: 3 | BD16: 5 | BE16: 7 | BF16: 10 | BG16: 7 | BH16: 10 | BI16: 17 | BJ16: 25 | BK16: 42 | BL16: 471 | BM16: 4 | BN16: 8 | BO16: 6 | BP16: 18 | BQ16: 4 | BR16: 8 | BS16: 8 | BT16: 20 | BU16: ناجحة | BV16: 16 | BW16: 16
A17: 10 | B17: 113 | C17: اسم 11 | D17: 1/1 | F17: 1233 | G17: 8 | H17: 8 | I17: 13 | J17: 29 | K17: 8 | L17: 12 | M17: 15 | N17: 35 | O17: 5 | P17: 5 | Q17: 5 | R17: 15 | S17: 8 | T17: 15 | U17: 18 | V17: 41 | W17: 8 | X17: 15 | Y17: 18 | Z17: 41 | AA17: 9 | AB17: 13 | AC17: 15 | AD17: 37 | AE17: 9 | AF17: 18 | AG17: 18 | AH17: 45 | AI17: 9 | AJ17: 16 | AK17: 19 | AL17: 44 | AM17: 9 | AN17: 16 | AO17: 17 | AP17: 42 | AQ17: 9 | AR17: 19 | AS17: 19 | AT17: 47 | AU17: 5 | AV17: 10 | AW17: 10 | AX17: 25 | AY17: 7 | AZ17: 13 | BA17: 13 | BB17: 33 | BC17: 3 | BD17: 5 | BE17: 5 | BF17: 7 | BG17: 5 | BH17: 7 | BI17: 13 | BJ17: 19 | BK17: 32 | BL17: 466 | BM17: 4 | BN17: 7 | BO17: 6 | BP17: 17 | BQ17: 4 | BR17: 6 | BS17: 6 | BT17: 16 | BU17: ناجحة | BV17: 22 | BW17: 22
A18: 11 | B18: 114 | C18: اسم 110 | D18: 4/1 | F18: 1234 | G18: 8 | H18: 9 | I18: 10 | J18: 27 | K18: 8 | L18: 3 | M18: 9 | N18: 20 | O18: 5 | P18: 4 | Q18: 4 | R18: 13 | S18: 8 | T18: 10 | U18: 7 | V18: 25 | W18: 8 | X18: 14 | Y18: 18 | Z18: 40 | AA18: 9 | AB18: 17 | AC18: 15 | AD18: 41 | AE18: 9 | AF18: 15 | AG18: 20 | AH18: 44 | AI18: 9 | AJ18: 10 | AK18: 19 | AL18: 38 | AM18: 9 | AN18: 12 | AO18: 17 | AP18: 38 | AQ18: 9 | AR18: 14 | AS18: 19 | AT18: 42 | AU18: 5 | AV18: 7 | AW18: 3 | AX18: 15 | AY18: 7 | AZ18: 9 | BA18: 9 | BB18: 25 | BC18: 3 | BD18: 5 | BE18: 5 | BF18: 5 | BG18: 5 | BH18: 5 | BI18: 13 | BJ18: 15 | BK18: 28 | BL18: 396 | BM18: 4 | BN18: 4 | BO18: 6 | BP18: 14 | BQ18: 4 | BR18: 7 | BS18: 7 | BT18: 18 | BU18: ناجحة | BV18: 238 | BW18: 238
A19: 12 | B19: 115 | C19: اسم 111 | D19: 4/1 | F19: 1235 | G19: 8 | H19: 7 | I19: 14 | J19: 29 | K19: 8 | L19: 7 | M19: 10 | N19: 25 | O19: 5 | P19: 6 | Q19: 6 | R19: 17 | S19: 8 | T19: 12 | U19: 5 | V19: 25 | W19: 8 | X19: 10 | Y19: 17 | Z19: 35 | AA19: 9 | AB19: 15 | AC19: 14 | AD19: 38 | AE19: 9 | AF19: 16 | AG19: 17 | AH19: 42 | AI19: 9 | AJ19: 14 | AK19: 19 | AL19: 42 | AM19: 9 | AN19: 12 | AO19: 17 | AP19: 38 | AQ19: 9 | AR19: 11 | AS19: 19 | AT19: 39 | AU19: 5 | AV19: 5 | AW19: 6 | AX19: 16 | AY19: 7 | AZ19: 10 | BA19: 10 | BB19: 27 | BC19: 3 | BD19: 5 | BE19: 5 | BF19: 6 | BG19: 5 | BH19: 6 | BI19: 13 | BJ19: 17 | BK19: 30 | BL19: 403 | BM19: 4 | BN19: 3 | BO19: 6 | BP19: 13 | BQ19: 4 | BR19: 4 | BS19: 4 | BT19: 12 | BU19: ناجحة | BV19: 212 | BW19: 212
A20: 13 | B20: 116 | C20: اسم 112 | D20: 4/1 | F20: 1236 | G20: 8 | H20: 5 | I20: 12 | J20: 25 | K20: 8 | L20: 6 | M20: 12 | N20: 26 | O20: 5 | P20: 6 | Q20: 7 | R20: 18 | S20: 8 | T20: 10 | U20: 7 | V20: 25 | W20: 8 | X20: 12 | Y20: 12 | Z20: 32 | AA20: 9 | AB20: 17 | AC20: 16 | AD20: 42 | AE20: 9 | AF20: 15 | AG20: 19 | AH20: 43 | AI20: 9 | AJ20: 12 | AK20: 18 | AL20: 39 | AM20: 9 | AN20: 13 | AO20: 17 | AP20: 39 | AQ20: 9 | AR20: 11 | AS20: 19 | AT20: 39 | AU20: 5 | AV20: 3 | AW20: 7 | AX20: 15 | AY20: 7 | AZ20: 8 | BA20: 8 | BB20: 23 | BC20: 3 | BD20: 5 | BE20: 5 | BF20: 8 | BG20: 5 | BH20: 8 | BI20: 13 | BJ20: 21 | BK20: 34 | BL20: 400 | BM20: 4 | BN20: 3 | BO20: 6 | BP20: 13 | BQ20: 4 | BR20: 4 | BS20: 4 | BT20: 12 | BU20: ناجحة | BV20: 224 | BW20: 224
A21: 14 | B21: 117 | C21: اسم 113 | D21: 4/1 | F21: 1237 | G21: 8 | H21: 9 | I21: 10 | J21: 27 | K21: 8 | L21: 8 | M21: 6 | N21: 22 | O21: 5 | P21: 8 | Q21: 4 | R21: 17 | S21: 8 | T21: 12 | U21: 17 | V21: 37 | W21: 8 | X21: 17 | Y21: 19 | Z21: 44 | AA21: 9 | AB21: 12 | AC21: 17 | AD21: 38 | AE21: 9 | AF21: 16 | AG21: 19 | AH21: 44 | AI21: 9 | AJ21: 12 | AK21: 18 | AL21: 39 | AM21: 9 | AN21: 14 | AO21: 17 | AP21: 40 | AQ21: 9 | AR21: 10 | AS21: 18 | AT21: 37 | AU21: 5 | AV21: 4 | AW21: 6 | AX21: 15 | AY21: 7 | AZ21: 5 | BA21: 9 | BB21: 21 | BC21: 3 | BD21: 5 | BE21: 6 | BF21: 9 | BG21: 6 | BH21: 9 | BI21: 15 | BJ21: 23 | BK21: 38 | BL21: 419 | BM21: 4 | BN21: 4 | BO21: 6 | BP21: 14 | BQ21: 4 | BR21: 6 | BS21: 6 | BT21: 16 | BU21: ناجحة | BV21: 156 | BW21: 156
A22: 15 | B22: 118 | C22: اسم 114 | D22: 4/1 | F22: 1238 | G22: 8 | H22: 6 | I22: 11 | J22: 25 | K22: 8 | L22: 12 | M22: 14 | N22: 34 | O22: 5 | P22: 6 | Q22: 8 | R22: 19 | S22: 8 | T22: 10 | U22: 17 | V22: 35 | W22: 8 | X22: 15 | Y22: 18 | Z22: 41 | AA22: 9 | AB22: 15 | AC22: 13 | AD22: 37 | AE22: 9 | AF22: 16 | AG22: 17 | AH22: 42 | AI22: 9 | AJ22: 9 | AK22: 19 | AL22: 37 | AM22: 9 | AN22: 17 | AO22: 17 | AP22: 43 | AQ22: 9 | AR22: 12 | AS22: 19 | AT22: 40 | AU22: 5 | AV22: 5 | AW22: 8 | AX22: 18 | AY22: 7 | AZ22: 5 | BA22: 9 | BB22: 21 | BC22: 3 | BD22: 5 | BE22: 5 | BF22: 7 | BG22: 5 | BH22: 7 | BI22: 13 | BJ22: 19 | BK22: 32 | BL22: 424 | BM22: 4 | BN22: 4 | BO22: 6 | BP22: 14 | BQ22: 4 | BR22: 4 | BS22: 4 | BT22: 12 | BU22: ناجحة | BV22: 140 | BW22: 140
A23: 16 | B23: 119 | C23: اسم 115 | D23: 4/1 | F23: 1239 | G23: 8 | H23: 10 | I23: 14 | J23: 32 | K23: 8 | L23: 12 | M23: 12 | N23: 32 | O23: 5 | P23: 6 | Q23: 6 | R23: 17 | S23: 8 | T23: 11 | U23: 10 | V23: 29 | W23: 8 | X23: 11 | Y23: 17 | Z23: 36 | AA23: 9 | AB23: 16 | AC23: 17 | AD23: 42 | AE23: 9 | AF23: 17 | AG23: 18 | AH23: 44 | AI23: 9 | AJ23: 10 | AK23: 19 | AL23: 38 | AM23: 9 | AN23: 17 | AO23: 17 | AP23: 43 | AQ23: 9 | AR23: 11 | AS23: 19 | AT23: 39 | AU23: 5 | AV23: 4 | AW23: 6 | AX23: 15 | AY23: 7 | AZ23: 9 | BA23: 9 | BB23: 25 | BC23: 3 | BD23: 5 | BE23: 5 | BF23: 6 | BG23: 5 | BH23: 6 | BI23: 13 | BJ23: 17 | BK23: 30 | BL23: 422 | BM23: 4 | BN23: 5 | BO23: 6 | BP23: 15 | BQ23: 4 | BR23: 6 | BS23: 6 | BT23: 16 | BU23: ناجحة | BV23: 146 | BW23: 146
A24: 17 | B24: 120 | C24: اسم 116 | D24: 4/1 | F24: 1240 | G24: 8 | H24: 7 | I24: 10 | J24: 25 | K24: 8 | L24: 10 | M24: 5 | N24: 23 | O24: 5 | P24: 5 | Q24: 5 | R24: 15 | S24: 8 | T24: 7 | U24: 10 | V24: 25 | W24: 8 | X24: 11 | Y24: 17 | Z24: 36 | AA24: 9 | AB24: 17 | AC24: 18 | AD24: 44 | AE24: 9 | AF24: 17 | AG24: 19 | AH24: 45 | AI24: 9 | AJ24: 6 | AK24: 17 | AL24: 32 | AM24: 9 | AN24: 17 | AO24: 15 | AP24: 41 | AQ24: 9 | AR24: 10 | AS24: 18 | AT24: 37 | AU24: 5 | AV24: 5 | AW24: 5 | AX24: 15 | AY24: 7 | AZ24: 6 | BA24: 9 | BB24: 22 | BC24: 3 | BD24: 5 | BE24: 5 | BF24: 6 | BG24: 5 | BH24: 6 | BI24: 13 | BJ24: 17 | BK24: 30 | BL24: 390 | BM24: 4 | BN24: 5 | BO24: 6 | BP24: 15 | BQ24: 4 | BR24: 6 | BS24: 6 | BT24: 16 | BU24: ناجحة | BV24: 261 | BW24: 261
A25: 18 | B25: 121 | C25: اسم 117 | D25: 4/1 | F25: 1241 | G25: 8 | H25: 9 | I25: 11 | J25: 28 | K25: 8 | L25: 8 | M25: 8 | N25: 24 | O25: 5 | P25: 7 | Q25: 5 | R25: 17 | S25: 8 | T25: 17 | U25: 18 | V25: 43 | W25: 8 | X25: 16 | Y25: 19 | Z25: 43 | AA25: 9 | AB25: 14 | AC25: 15 | AD25: 38 | AE25: 9 | AF25: 16 | AG25: 19 | AH25: 44 | AI25: 9 | AJ25: 16 | AK25: 19 | AL25: 44 | AM25: 9 | AN25: 16 | AO25: 17 | AP25: 42 | AQ25: 9 | AR25: 14 | AS25: 19 | AT25: 42 | AU25: 5 | AV25: 8 | AW25: 5 | AX25: 18 | AY25: 7 | AZ25: 9 | BA25: 9 | BB25: 25 | BC25: 3 | BD25: 5 | BE25: 5 | BF25: 6 | BG25: 5 | BH25: 6 | BI25: 13 | BJ25: 17 | BK25: 30 | BL25: 438 | BM25: 4 | BN25: 7 | BO25: 6 | BP25: 17 | BQ25: 4 | BR25: 7 | BS25: 7 | BT25: 18 | BU25: ناجحة | BV25: 88 | BW25: 88
A26: 19 | B26: 123 | C26: اسم 119 | D26: 4/1 | F26: 1243 | G26: 8 | H26: 12 | I26: 15 | J26: 35 | K26: 8 | L26: 12 | M26: 16 | N26: 36 | O26: 5 | P26: 8 | Q26: 5 | R26: 18 | S26: 8 | T26: 8 | U26: 15 | V26: 31 | W26: 8 | X26: 14 | Y26: 15 | Z26: 37 | AA26: 9 | AB26: 16 | AC26: 13 | AD26: 38 | AE26: 9 | AF26: 18 | AG26: 18 | AH26: 45 | AI26: 9 | AJ26: 18 | AK26: 15 | AL26: 42 | AM26: 9 | AN26: 15 | AO26: 20 | AP26: 44 | AQ26: 9 | AR26: 17 | AS26: 18 | AT26: 44 | AU26: 5 | AV26: 6 | AW26: 5 | AX26: 16 | AY26: 7 | AZ26: 13 | BA26: 13 | BB26: 33 | BC26: 3 | BD26: 5 | BE26: 5 | BF26: 8 | BG26: 5 | BH26: 8 | BI26: 13 | BJ26: 21 | BK26: 34 | BL26: 453 | BM26: 4 | BN26: 6 | BO26: 6 | BP26: 16 | BQ26: 4 | BR26: 8 | BS26: 8 | BT26: 20 | BU26: ناجحة | BV26: 52 | BW26: 52
A27: 20 | B27: 124 | C27: اسم 12 | D27: 1/1 | F27: 1244 | G27: 8 | H27: 8 | I27: 9 | J27: 25 | K27: 8 | L27: 12 | M27: 14 | N27: 34 | O27: 5 | P27: 6 | Q27: 5 | R27: 16 | S27: 8 | T27: 11 | U27: 11 | V27: 30 | W27: 8 | X27: 14 | Y27: 15 | Z27: 37 | AA27: 9 | AB27: 16 | AC27: 13 | AD27: 38 | AE27: 9 | AF27: 18 | AG27: 19 | AH27: 46 | AI27: 9 | AJ27: 19 | AK27: 17 | AL27: 45 | AM27: 9 | AN27: 15 | AO27: 20 | AP27: 44 | AQ27: 9 | AR27: 17 | AS27: 17 | AT27: 43 | AU27: 5 | AV27: 4 | AW27: 6 | AX27: 15 | AY27: 7 | AZ27: 8 | BA27: 8 | BB27: 23 | BC27: 3 | BD27: 5 | BE27: 6 | BF27: 9 | BG27: 6 | BH27: 9 | BI27: 15 | BJ27: 23 | BK27: 38 | BL27: 434 | BM27: 4 | BN27: 5 | BO27: 6 | BP27: 15 | BQ27: 4 | BR27: 6 | BS27: 6 | BT27: 16 | BU27: ناجحة | BV27: 100 | BW27: 100
A28: 21 | B28: 125 | C28: اسم 120 | D28: 4/1 | F28: 1245 | G28: 8 | H28: 10 | I28: 11 | J28: 29 | K28: 8 | L28: 9 | M28: 15 | N28: 32 | O28: 5 | P28: 4 | Q28: 5 | R28: 14 | S28: 8 | T28: 8 | U28: 9 | V28: 25 | W28: 8 | X28: 11 | Y28: 12 | Z28: 31 | AA28: 9 | AB28: 15 | AC28: 15 | AD28: 39 | AE28: 9 | AF28: 17 | AG28: 18 | AH28: 44 | AI28: 9 | AJ28: 16 | AK28: 18 | AL28: 43 | AM28: 9 | AN28: 14 | AO28: 18 | AP28: 41 | AQ28: 9 | AR28: 18 | AS28: 19 | AT28: 46 | AU28: 5 | AV28: 4 | AW28: 6 | AX28: 15 | AY28: 7 | AZ28: 9 | BA28: 9 | BB28: 25 | BC28: 3 | BD28: 5 | BE28: 5 | BF28: 8 | BG28: 5 | BH28: 8 | BI28: 13 | BJ28: 21 | BK28: 34 | BL28: 418 | BM28: 4 | BN28: 6 | BO28: 6 | BP28: 16 | BQ28: 4 | BR28: 6 | BS28: 6 | BT28: 16 | BU28: ناجحة | BV28: 162 | BW28: 162
A29: 22 | B29: 127 | C29: اسم 122 | D29: 4/1 | F29: 1247 | G29: 8 | H29: 8 | I29: 10 | J29: 26 | K29: 8 | L29: 11 | M29: 14 | N29: 33 | O29: 5 | P29: 4 | Q29: 4 | R29: 13 | S29: 8 | T29: 17 | U29: 13 | V29: 38 | W29: 8 | X29: 16 | Y29: 15 | Z29: 39 | AA29: 9 | AB29: 13 | AC29: 17 | AD29: 39 | AE29: 9 | AF29: 12 | AG29: 18 | AH29: 39 | AI29: 9 | AJ29: 12 | AK29: 18 | AL29: 39 | AM29: 9 | AN29: 7 | AO29: 18 | AP29: 34 | AQ29: 9 | AR29: 15 | AS29: 17 | AT29: 41 | AU29: 5 | AV29: 6 | AW29: 5 | AX29: 16 | AY29: 7 | AZ29: 6 | BA29: 9 | BB29: 22 | BC29: 3 | BD29: 5 | BE29: 5 | BF29: 5 | BG29: 5 | BH29: 5 | BI29: 13 | BJ29: 15 | BK29: 28 | BL29: 407 | BM29: 4 | BN29: 5 | BO29: 6 | BP29: 15 | BQ29: 4 | BR29: 7 | BS29: 7 | BT29: 18 | BU29: ناجحة | BV29: 199 | BW29: 199
A30: 23 | B30: 128 | C30: اسم 123 | D30: 4/1 | F30: 1248 | G30: 8 | H30: 8 | I30: 9 | J30: 25 | K30: 8 | L30: 4 | M30: 9 | N30: 21 | O30: 5 | P30: 5 | Q30: 5 | R30: 15 | S30: 8 | T30: 12 | U30: 12 | V30: 32 | W30: 8 | X30: 13 | Y30: 14 | Z30: 35 | AA30: 9 | AB30: 13 | AC30: 16 | AD30: 38 | AE30: 9 | AF30: 12 | AG30: 16 | AH30: 37 | AI30: 9 | AJ30: 9 | AK30: 14 | AL30: 32 | AM30: 9 | AN30: 6 | AO30: 18 | AP30: 33 | AQ30: 9 | AR30: 15 | AS30: 18 | AT30: 42 | AU30: 5 | AV30: 7 | AW30: 3 | AX30: 15 | AY30: 7 | AZ30: 6 | BA30: 9 | BB30: 22 | BC30: 3 | BD30: 5 | BE30: 5 | BF30: 7 | BG30: 5 | BH30: 7 | BI30: 13 | BJ30: 19 | BK30: 32 | BL30: 379 | BM30: 4 | BN30: 6 | BO30: 6 | BP30: 16 | BQ30: 4 | BR30: 5 | BS30: 5 | BT30: 14 | BU30: ناجحة | BV30: 291 | BW30: 291
A31: 24 | B31: 129 | C31: اسم 124 | D31: 4/1 | F31: 1249 | G31: 8 | H31: 8 | I31: 10 | J31: 26 | K31: 8 | L31: 4 | M31: 9 | N31: 21 | O31: 5 | P31: 4 | Q31: 6 | R31: 15 | S31: 8 | T31: 6 | U31: 11 | V31: 25 | W31: 8 | X31: 12 | Y31: 12 | Z31: 32 | AA31: 9 | AB31: 10 | AC31: 16 | AD31: 35 | AE31: 9 | AF31: 12 | AG31: 17 | AH31: 38 | AI31: 9 | AJ31: 9 | AK31: 16 | AL31: 34 | AM31: 9 | AN31: 7 | AO31: 18 | AP31: 34 | AQ31: 9 | AR31: 16 | AS31: 18 | AT31: 43 | AU31: 5 | AV31: 7 | AW31: 3 | AX31: 15 | AY31: 7 | AZ31: 6 | BA31: 9 | BB31: 22 | BC31: 3 | BD31: 5 | BE31: 5 | BF31: 8 | BG31: 5 | BH31: 8 | BI31: 13 | BJ31: 21 | BK31: 34 | BL31: 374 | BM31: 4 | BN31: 5 | BO31: 6 | BP31: 15 | BQ31: 4 | BR31: 7 | BS31: 7 | BT31: 18 | BU31: ناجحة | BV31: 297 | BW31: 297
A32: 25 | B32: 130 | C32: اسم 125 | D32: 4/1 | F32: 1250 | G32: 8 | H32: 8 | I32: 9 | J32: 25 | K32: 8 | L32: 4 | M32: 12 | N32: 24 | O32: 5 | P32: 4 | Q32: 6 | R32: 15 | S32: 8 | T32: 16 | U32: 16 | V32: 40 | W32: 8 | X32: 14 | Y32: 13 | Z32: 35 | AA32: 9 | AB32: 15 | AC32: 15 | AD32: 39 | AE32: 9 | AF32: 9 | AG32: 16 | AH32: 34 | AI32: 9 | AJ32: 9 | AK32: 12 | AL32: 30 | AM32: 9 | AN32: 9 | AO32: 18 | AP32: 36 | AQ32: 9 | AR32: 13 | AS32: 18 | AT32: 40 | AU32: 5 | AV32: 7 | AW32: 5 | AX32: 17 | AY32: 7 | AZ32: 6 | BA32: 9 | BB32: 22 | BC32: 3 | BD32: 5 | BE32: 6 | BF32: 9 | BG32: 6 | BH32: 9 | BI32: 15 | BJ32: 23 | BK32: 38 | BL32: 395 | BM32: 4 | BN32: 4 | BO32: 6 | BP32: 14 | BQ32: 4 | BR32: 5 | BS32: 5 | BT32: 14 | BU32: ناجحة | BV32: 242 | BW32: 242
A33: 26 | B33: 131 | C33: اسم 126 | D33: 4/1 | F33: 1251 | G33: 8 | H33: 9 | I33: 16 | J33: 33 | K33: 8 | L33: 8 | M33: 15 | N33: 31 | O33: 5 | P33: 6 | Q33: 6 | R33: 17 | S33: 8 | T33: 14 | U33: 15 | V33: 37 | W33: 8 | X33: 16 | Y33: 13 | Z33: 37 | AA33: 9 | AB33: 18 | AC33: 14 | AD33: 41 | AE33: 9 | AF33: 11 | AG33: 14 | AH33: 34 | AI33: 9 | AJ33: 12 | AK33: 18 | AL33: 39 | AM33: 9 | AN33: 10 | AO33: 18 | AP33: 37 | AQ33: 9 | AR33: 16 | AS33: 18 | AT33: 43 | AU33: 5 | AV33: 5 | AW33: 7 | AX33: 17 | AY33: 7 | AZ33: 9 | BA33: 9 | BB33: 25 | BC33: 3 | BD33: 5 | BE33: 6 | BF33: 10 | BG33: 6 | BH33: 10 | BI33: 15 | BJ33: 25 | BK33: 40 | BL33: 431 | BM33: 4 | BN33: 7 | BO33: 6 | BP33: 17 | BQ33: 4 | BR33: 7 | BS33: 7 | BT33: 18 | BU33: ناجحة | BV33: 109 | BW33: 109
A34: 27 | B34: 132 | C34: اسم 127 | D34: 4/1 | F34: 1252 | G34: 8 | H34: 8 | I34: 10 | J34: 26 | K34: 8 | L34: 4 | M34: 14 | N34: 26 | O34: 5 | P34: 4 | Q34: 6 | R34: 15 | S34: 8 | T34: 8 | U34: 12 | V34: 28 | W34: 8 | X34: 11 | Y34: 13 | Z34: 32 | AA34: 9 | AB34: 11 | AC34: 16 | AD34: 36 | AE34: 9 | AF34: 13 | AG34: 15 | AH34: 37 | AI34: 9 | AJ34: 2 | AK34: 17 | AL34: 28 | AM34: 9 | AN34: 8 | AO34: 18 | AP34: 35 | AQ34: 9 | AR34: 15 | AS34: 18 | AT34: 42 | AU34: 5 | AV34: 6 | AW34: 4 | AX34: 15 | AY34: 7 | AZ34: 9 | BA34: 9 | BB34: 25 | BC34: 3 | BD34: 5 | BE34: 5 | BF34: 5 | BG34: 5 | BH34: 5 | BI34: 13 | BJ34: 15 | BK34: 28 | BL34: 373 | BM34: 4 | BN34: 3 | BO34: 6 | BP34: 13 | BQ34: 4 | BR34: 6 | BS34: 6 | BT34: 16 | BU34: ناجحة | BV34: 302 | BW34: 302
A35: 28 | B35: 133 | C35: اسم 128 | D35: 4/1 | F35: 1253 | G35: 8 | H35: 11 | I35: 12 | J35: 31 | K35: 8 | L35: 13 | M35: 15 | N35: 36 | O35: 5 | P35: 6 | Q35: 6 | R35: 17 | S35: 8 | T35: 10 | U35: 12 | V35: 30 | W35: 8 | X35: 15 | Y35: 8 | Z35: 31 | AA35: 9 | AB35: 13 | AC35: 10 | AD35: 32 | AE35: 9 | AF35: 15 | AG35: 11 | AH35: 35 | AI35: 9 | AJ35: 8 | AK35: 16 | AL35: 33 | AM35: 9 | AN35: 10 | AO35: 18 | AP35: 37 | AQ35: 9 | AR35: 9 | AS35: 18 | AT35: 36 | AU35: 5 | AV35: 3 | AW35: 8 | AX35: 16 | AY35: 7 | AZ35: 5 | BA35: 9 | BB35: 21 | BC35: 3 | BD35: 5 | BE35: 5 | BF35: 7 | BG35: 5 | BH35: 7 | BI35: 13 | BJ35: 19 | BK35: 32 | BL35: 387 | BM35: 4 | BN35: 4 | BO35: 6 | BP35: 14 | BQ35: 4 | BR35: 6 | BS35: 6 | BT35: 16 | BU35: ناجحة | BV35: 273 | BW35: 273
A36: 29 | B36: 134 | C36: اسم 129 | D36: 4/1 | F36: 1254 | G36: 8 | H36: 7 | I36: 16 | J36: 31 | K36: 8 | L36: 11 | M36: 19 | N36: 38 | O36: 5 | P36: 6 | Q36: 6 | R36: 17 | S36: 8 | T36: 18 | U36: 17 | V36: 43 | W36: 8 | X36: 15 | Y36: 14 | Z36: 37 | AA36: 9 | AB36: 18 | AC36: 14 | AD36: 41 | AE36: 9 | AF36: 17 | AG36: 18 | AH36: 44 | AI36: 9 | AJ36: 17 | AK36: 19 | AL36: 45 | AM36: 9 | AN36: 16 | AO36: 18 | AP36: 43 | AQ36: 9 | AR36: 16 | AS36: 18 | AT36: 43 | AU36: 5 | AV36: 10 | AW36: 11 | AX36: 26 | AY36: 7 | AZ36: 8 | BA36: 8 | BB36: 23 | BC36: 3 | BD36: 5 | BE36: 5 | BF36: 7 | BG36: 5 | BH36: 7 | BI36: 13 | BJ36: 19 | BK36: 32 | BL36: 463 | BM36: 4 | BN36: 5 | BO36: 6 | BP36: 15 | BQ36: 4 | BR36: 8 | BS36: 8 | BT36: 20 | BU36: ناجحة | BV36: 28 | BW36: 28
A37: 30 | B37: 135 | C37: اسم 13 | D37: 1/1 | F37: 1255 | G37: 8 | H37: 7 | I37: 14 | J37: 29 | K37: 8 | L37: 5 | M37: 11 | N37: 24 | O37: 5 | P37: 6 | Q37: 6 | R37: 17 | S37: 8 | T37: 19 | U37: 16 | V37: 43 | W37: 8 | X37: 19 | Y37: 15 | Z37: 42 | AA37: 9 | AB37: 14 | AC37: 15 | AD37: 38 | AE37: 9 | AF37: 17 | AG37: 18 | AH37: 44 | AI37: 9 | AJ37: 17 | AK37: 18 | AL37: 44 | AM37: 9 | AN37: 10 | AO37: 18 | AP37: 37 | AQ37: 9 | AR37: 15 | AS37: 18 | AT37: 42 | AU37: 5 | AV37: 5 | AW37: 6 | AX37: 16 | AY37: 7 | AZ37: 5 | BA37: 9 | BB37: 21 | BC37: 3 | BD37: 5 | BE37: 5 | BF37: 7 | BG37: 5 | BH37: 7 | BI37: 13 | BJ37: 19 | BK37: 32 | BL37: 429 | BM37: 4 | BN37: 7 | BO37: 6 | BP37: 17 | BQ37: 4 | BR37: 6 | BS37: 6 | BT37: 16 | BU37: ناجحة | BV37: 118 | BW37: 118
A38: 31 | B38: 136 | C38: اسم 130 | D38: 4/1 | F38: 1256 | G38: 8 | H38: 8 | I38: 15 | J38: 31 | K38: 8 | L38: 13 | M38: 17 | N38: 38 | O38: 5 | P38: 6 | Q38: 6 | R38: 17 | S38: 8 | T38: 14 | U38: 15 | V38: 37 | W38: 8 | X38: 18 | Y38: 12 | Z38: 38 | AA38: 9 | AB38: 18 | AC38: 12 | AD38: 39 | AE38: 9 | AF38: 17 | AG38: 19 | AH38: 45 | AI38: 9 | AJ38: 16 | AK38: 15 | AL38: 40 | AM38: 9 | AN38: 17 | AO38: 18 | AP38: 44 | AQ38: 9 | AR38: 16 | AS38: 18 | AT38: 43 | AU38: 5 | AV38: 12 | AW38: 11 | AX38: 28 | AY38: 7 | AZ38: 10 | BA38: 10 | BB38: 27 | BC38: 3 | BD38: 5 | BE38: 7 | BF38: 11 | BG38: 7 | BH38: 11 | BI38: 17 | BJ38: 27 | BK38: 44 | BL38: 471 | BM38: 4 | BN38: 7 | BO38: 6 | BP38: 17 | BQ38: 4 | BR38: 8 | BS38: 8 | BT38: 20 | BU38: ناجحة | BV38: 16 | BW38: 16
A39: 32 | B39: 137 | C39: اسم 131 | D39: 4/1 | F39: 1257 | G39: 8 | H39: 8 | I39: 14 | J39: 30 | K39: 8 | L39: 12 | M39: 15 | N39: 35 | O39: 5 | P39: 6 | Q39: 6 | R39: 17 | S39: 8 | T39: 14 | U39: 14 | V39: 36 | W39: 8 | X39: 18 | Y39: 15 | Z39: 41 | AA39: 9 | AB39: 17 | AC39: 18 | AD39: 44 | AE39: 9 | AF39: 17 | AG39: 20 | AH39: 46 | AI39: 9 | AJ39: 17 | AK39: 19 | AL39: 45 | AM39: 9 | AN39: 14 | AO39: 19 | AP39: 42 | AQ39: 9 | AR39: 20 | AS39: 18 | AT39: 47 | AU39: 5 | AV39: 6 | AW39: 12 | AX39: 23 | AY39: 7 | AZ39: 10 | BA39: 10 | BB39: 27 | BC39: 3 | BD39: 5 | BE39: 5 | BF39: 6 | BG39: 5 | BH39: 6 | BI39: 13 | BJ39: 17 | BK39: 30 | BL39: 463 | BM39: 4 | BN39: 7 | BO39: 6 | BP39: 17 | BQ39: 4 | BR39: 8 | BS39: 8 | BT39: 20 | BU39: ناجحة | BV39: 28 | BW39: 28
A40: 33 | B40: 140 | C40: اسم 134 | D40: 4/1 | F40: 1260 | G40: 8 | H40: 9 | I40: 11 | J40: 28 | K40: 8 | L40: 10 | M40: 15 | N40: 33 | O40: 5 | P40: 5 | Q40: 6 | R40: 16 | S40: 8 | T40: 10 | U40: 14 | V40: 32 | W40: 8 | X40: 15 | Y40: 16 | Z40: 39 | AA40: 9 | AB40: 14 | AC40: 15 | AD40: 38 | AE40: 9 | AF40: 19 | AG40: 20 | AH40: 48 | AI40: 9 | AJ40: 13 | AK40: 18 | AL40: 40 | AM40: 9 | AN40: 9 | AO40: 18 | AP40: 36 | AQ40: 9 | AR40: 18 | AS40: 18 | AT40: 45 | AU40: 5 | AV40: 8 | AW40: 10 | AX40: 23 | AY40: 7 | AZ40: 7 | BA40: 7 | BB40: 21 | BC40: 3 | BD40: 5 | BE40: 5 | BF40: 8 | BG40: 5 | BH40: 8 | BI40: 13 | BJ40: 21 | BK40: 34 | BL40: 433 | BM40: 4 | BN40: 5 | BO40: 6 | BP40: 15 | BQ40: 4 | BR40: 6 | BS40: 6 | BT40: 16 | BU40: ناجحة | BV40: 103 | BW40: 103
A41: 34 | B41: 141 | C41: اسم 135 | D41: 4/1 | F41: 1261 | G41: 8 | H41: 8 | I41: 13 | J41: 29 | K41: 8 | L41: 7 | M41: 14 | N41: 29 | O41: 5 | P41: 6 | Q41: 6 | R41: 17 | S41: 8 | T41: 10 | U41: 12 | V41: 30 | W41: 8 | X41: 14 | Y41: 17 | Z41: 39 | AA41: 9 | AB41: 10 | AC41: 14 | AD41: 33 | AE41: 9 | AF41: 19 | AG41: 18 | AH41: 46 | AI41: 9 | AJ41: 17 | AK41: 15 | AL41: 41 | AM41: 9 | AN41: 8 | AO41: 18 | AP41: 35 | AQ41: 9 | AR41: 19 | AS41: 18 | AT41: 46 | AU41: 5 | AV41: 9 | AW41: 9 | AX41: 23 | AY41: 7 | AZ41: 7 | BA41: 7 | BB41: 21 | BC41: 3 | BD41: 5 | BE41: 5 | BF41: 5 | BG41: 5 | BH41: 5 | BI41: 13 | BJ41: 15 | BK41: 28 | BL41: 417 | BM41: 4 | BN41: 5 | BO41: 6 | BP41: 15 | BQ41: 4 | BR41: 6 | BS41: 6 | BT41: 16 | BU41: ناجحة | BV41: 168 | BW41: 168
A42: 35 | B42: 142 | C42: اسم 136 | D42: 4/1 | F42: 1262 | G42: 8 | H42: 6 | I42: 11 | J42: 25 | K42: 8 | L42: 11 | M42: 15 | N42: 34 | O42: 5 | P42: 5 | Q42: 6 | R42: 16 | S42: 8 | T42: 10 | U42: 7 | V42: 25 | W42: 8 | X42: 15 | Y42: 14 | Z42: 37 | AA42: 9 | AB42: 13 | AC42: 13 | AD42: 35 | AE42: 9 | AF42: 13 | AG42: 19 | AH42: 41 | AI42: 9 | AJ42: 16 | AK42: 18 | AL42: 43 | AM42: 9 | AN42: 8 | AO42: 18 | AP42: 35 | AQ42: 9 | AR42: 14 | AS42: 18 | AT42: 41 | AU42: 5 | AV42: 8 | AW42: 3 | AX42: 16 | AY42: 7 | AZ42: 4 | BA42: 9 | BB42: 20 | BC42: 3 | BD42: 5 | BE42: 7 | BF42: 11 | BG42: 7 | BH42: 11 | BI42: 17 | BJ42: 27 | BK42: 44 | BL42: 412 | BM42: 4 | BN42: 11 | BO42: 6 | BP42: 21 | BQ42: 4 | BR42: 8 | BS42: 8 | BT42: 20 | BU42: ناجحة | BV42: 182 | BW42: 182
A43: 36 | B43: 143 | C43: اسم 137 | D43: 4/1 | F43: 1263 | G43: 8 | H43: 9 | I43: 12 | J43: 29 | K43: 8 | L43: 17 | M43: 19 | N43: 44 | O43: 5 | P43: 8 | Q43: 8 | R43: 21 | S43: 8 | T43: 17 | U43: 20 | V43: 45 | W43: 8 | X43: 13 | Y43: 17 | Z43: 38 | AA43: 9 | AB43: 13 | AC43: 16 | AD43: 38 | AE43: 9 | AF43: 16 | AG43: 19 | AH43: 44 | AI43: 9 | AJ43: 17 | AK43: 19 | AL43: 45 | AM43: 9 | AN43: 17 | AO43: 18 | AP43: 44 | AQ43: 9 | AR43: 19 | AS43: 18 | AT43: 46 | AU43: 5 | AV43: 9 | AW43: 10 | AX43: 24 | AY43: 7 | AZ43: 10 | BA43: 10 | BB43: 27 | BC43: 3 | BD43: 5 | BE43: 5 | BF43: 8 | BG43: 5 | BH43: 8 | BI43: 13 | BJ43: 21 | BK43: 34 | BL43: 479 | BM43: 4 | BN43: 7 | BO43: 6 | BP43: 17 | BQ43: 4 | BR43: 8 | BS43: 8 | BT43: 20 | BU43: ناجحة | BV43: 9 | BW43: 9
A44: 37 | B44: 144 | C44: اسم 138 | D44: 4/1 | F44: 1264 | G44: 8 | H44: 9 | I44: 15 | J44: 32 | K44: 8 | L44: 14 | M44: 14 | N44: 36 | O44: 5 | P44: 7 | Q44: 8 | R44: 20 | S44: 8 | T44: 14 | U44: 19 | V44: 41 | W44: 8 | X44: 15 | Y44: 19 | Z44: 42 | AA44: 9 | AB44: 17 | AC44: 17 | AD44: 43 | AE44: 9 | AF44: 14 | AG44: 20 | AH44: 43 | AI44: 9 | AJ44: 18 | AK44: 19 | AL44: 46 | AM44: 9 | AN44: 16 | AO44: 18 | AP44: 43 | AQ44: 9 | AR44: 17 | AS44: 18 | AT44: 44 | AU44: 5 | AV44: 6 | AW44: 9 | AX44: 20 | AY44: 7 | AZ44: 9 | BA44: 9 | BB44: 25 | BC44: 3 | BD44: 5 | BE44: 7 | BF44: 11 | BG44: 7 | BH44: 11 | BI44: 17 | BJ44: 27 | BK44: 44 | BL44: 479 | BM44: 4 | BN44: 7 | BO44: 6 | BP44: 17 | BQ44: 4 | BR44: 6 | BS44: 6 | BT44: 16 | BU44: ناجحة | BV44: 9 | BW44: 9
A45: 38 | B45: 145 | C45: اسم 139 | D45: 4/1 | F45: 1265 | G45: 8 | H45: 7 | I45: 11 | J45: 26 | K45: 8 | L45: 8 | M45: 11 | N45: 27 | O45: 5 | P45: 4 | Q45: 6 | R45: 15 | S45: 8 | T45: 15 | U45: 18 | V45: 41 | W45: 8 | X45: 10 | Y45: 16 | Z45: 34 | AA45: 9 | AB45: 13 | AC45: 18 | AD45: 40 | AE45: 9 | AF45: 10 | AG45: 19 | AH45: 38 | AI45: 9 | AJ45: 8 | AK45: 18 | AL45: 35 | AM45: 9 | AN45: 11 | AO45: 18 | AP45: 38 | AQ45: 9 | AR45: 18 | AS45: 18 | AT45: 45 | AU45: 5 | AV45: 7 | AW45: 6 | AX45: 18 | AY45: 7 | AZ45: 12 | BA45: 12 | BB45: 31 | BC45: 3 | BD45: 5 | BE45: 5 | BF45: 7 | BG45: 5 | BH45: 7 | BI45: 13 | BJ45: 19 | BK45: 32 | BL45: 420 | BM45: 4 | BN45: 5 | BO45: 6 | BP45: 15 | BQ45: 4 | BR45: 6 | BS45: 6 | BT45: 16 | BU45: ناجحة | BV45: 152 | BW45: 152
A46: 39 | B46: 146 | C46: اسم 14 | D46: 1/1 | F46: 1266 | G46: 8 | H46: 9 | I46: 12 | J46: 29 | K46: 8 | L46: 10 | M46: 13 | N46: 31 | O46: 5 | P46: 6 | Q46: 6 | R46: 17 | S46: 8 | T46: 18 | U46: 15 | V46: 41 | W46: 8 | X46: 12 | Y46: 17 | Z46: 37 | AA46: 9 | AB46: 18 | AC46: 18 | AD46: 45 | AE46: 9 | AF46: 6 | AG46: 19 | AH46: 34 | AI46: 9 | AJ46: 12 | AK46: 12 | AL46: 33 | AM46: 9 | AN46: 14 | AO46: 18 | AP46: 41 | AQ46: 9 | AR46: 19 | AS46: 18 | AT46: 46 | AU46: 5 | AV46: 8 | AW46: 10 | AX46: 23 | AY46: 7 | AZ46: 10 | BA46: 10 | BB46: 27 | BC46: 3 | BD46: 5 | BE46: 5 | BF46: 9 | BG46: 5 | BH46: 9 | BI46: 13 | BJ46: 23 | BK46: 36 | BL46: 440 | BM46: 4 | BN46: 6 | BO46: 6 | BP46: 16 | BQ46: 4 | BR46: 8 | BS46: 8 | BT46: 20 | BU46: ناجحة | BV46: 81 | BW46: 81
A47: 40 | B47: 147 | C47: اسم 140 | D47: 4/1 | F47: 1267 | G47: 8 | H47: 10 | I47: 15 | J47: 33 | K47: 8 | L47: 5 | M47: 9 | N47: 22 | O47: 5 | P47: 6 | Q47: 6 | R47: 17 | S47: 8 | T47: 20 | U47: 15 | V47: 43 | W47: 8 | X47: 18 | Y47: 18 | Z47: 44 | AA47: 9 | AB47: 16 | AC47: 15 | AD47: 40 | AE47: 9 | AF47: 19 | AG47: 20 | AH47: 48 | AI47: 9 | AJ47: 15 | AK47: 20 | AL47: 44 | AM47: 9 | AN47: 19 | AO47: 18 | AP47: 46 | AQ47: 9 | AR47: 20 | AS47: 18 | AT47: 47 | AU47: 5 | AV47: 8 | AW47: 6 | AX47: 19 | AY47: 7 | AZ47: 13 | BA47: 13 | BB47: 33 | BC47: 3 | BD47: 5 | BE47: 5 | BF47: 9 | BG47: 5 | BH47: 9 | BI47: 13 | BJ47: 23 | BK47: 36 | BL47: 472 | BM47: 4 | BN47: 7 | BO47: 6 | BP47: 17 | BQ47: 4 | BR47: 8 | BS47: 8 | BT47: 20 | BU47: ناجحة | BV47: 14 | BW47: 14
A48: 41 | B48: 148 | C48: اسم 141 | D48: 4/1 | F48: 1268 | G48: 8 | H48: 8 | I48: 10 | J48: 26 | K48: 8 | L48: 5 | M48: 8 | N48: 21 | O48: 5 | P48: 5 | Q48: 6 | R48: 16 | S48: 8 | T48: 16 | U48: 17 | V48: 41 | W48: 8 | X48: 14 | Y48: 15 | Z48: 37 | AA48: 9 | AB48: 19 | AC48: 16 | AD48: 44 | AE48: 9 | AF48: 9 | AG48: 19 | AH48: 37 | AI48: 9 | AJ48: 10 | AK48: 20 | AL48: 39 | AM48: 9 | AN48: 16 | AO48: 18 | AP48: 43 | AQ48: 9 | AR48: 20 | AS48: 18 | AT48: 47 | AU48: 5 | AV48: 3 | AW48: 8 | AX48: 16 | AY48: 7 | AZ48: 10 | BA48: 10 | BB48: 27 | BC48: 3 | BD48: 5 | BE48: 5 | BF48: 8 | BG48: 5 | BH48: 8 | BI48: 13 | BJ48: 21 | BK48: 34 | BL48: 428 | BM48: 4 | BN48: 6 | BO48: 6 | BP48: 16 | BQ48: 4 | BR48: 6 | BS48: 6 | BT48: 16 | BU48: ناجحة | BV48: 127 | BW48: 127
A49: 42 | B49: 149 | C49: اسم 142 | D49: - | F49: 1269 | G49: 8 | H49: 8 | I49: 11 | J49: 27 | K49: 8 | L49: 9 | M49: 15 | N49: 32 | O49: 5 | P49: 6 | Q49: 6 | R49: 17 | S49: 8 | T49: 16 | U49: 17 | V49: 41 | W49: 8 | X49: 16 | Y49: 15 | Z49: 39 | AA49: 9 | AB49: 17 | AC49: 16 | AD49: 42 | AE49: 9 | AF49: 14 | AG49: 20 | AH49: 43 | AI49: 9 | AJ49: 17 | AK49: 20 | AL49: 46 | AM49: 9 | AN49: 14 | AO49: 18 | AP49: 41 | AQ49: 9 | AR49: 18 | AS49: 18 | AT49: 45 | AU49: 5 | AV49: 4 | AW49: 8 | AX49: 17 | AY49: 7 | AZ49: 11 | BA49: 11 | BB49: 29 | BC49: 3 | BD49: 5 | BE49: 5 | BF49: 7 | BG49: 5 | BH49: 7 | BI49: 13 | BJ49: 19 | BK49: 32 | BL49: 451 | BM49: 4 | BN49: 6 | BO49: 6 | BP49: 16 | BQ49: 4 | BR49: 7 | BS49: 7 | BT49: 18 | BU49: ناجحة | BV49: 56 | BW49: 56
A50: 43 | B50: 150 | C50: اسم 143 | D50: 4/1 | F50: 1270 | G50: 8 | H50: 6 | I50: 11 | J50: 25 | K50: 8 | L50: 5 | M50: 15 | N50: 28 | O50: 5 | P50: 6 | Q50: 6 | R50: 17 | S50: 8 | T50: 9 | U50: 8 | V50: 25 | W50: 8 | X50: 11 | Y50: 11 | Z50: 30 | AA50: 9 | AB50: 12 | AC50: 14 | AD50: 35 | AE50: 9 | AF50: 8 | AG50: 20 | AH50: 37 | AI50: 9 | AJ50: 10 | AK50: 12 | AL50: 31 | AM50: 9 | AN50: 11 | AO50: 18 | AP50: 38 | AQ50: 9 | AR50: 11 | AS50: 18 | AT50: 38 | AU50: 5 | AV50: 5 | AW50: 5 | AX50: 15 | AY50: 7 | AZ50: 7 | BA50: 7 | BB50: 21 | BC50: 3 | BD50: 5 | BE50: 5 | BF50: 8 | BG50: 5 | BH50: 8 | BI50: 13 | BJ50: 21 | BK50: 34 | BL50: 374 | BM50: 4 | BN50: 4 | BO50: 6 | BP50: 14 | BQ50: 4 | BR50: 6 | BS50: 6 | BT50: 16 | BU50: ناجحة | BV50: 297 | BW50: 297
A51: 44 | B51: 151 | C51: اسم 144 | D51: 4/1 | F51: 1271 | G51: 8 | H51: 8 | I51: 10 | J51: 26 | K51: 8 | L51: 3 | M51: 9 | N51: 20 | O51: 5 | P51: 5 | Q51: 6 | R51: 16 | S51: 8 | T51: 15 | U51: 19 | V51: 42 | W51: 8 | X51: 16 | Y51: 17 | Z51: 41 | AA51: 9 | AB51: 17 | AC51: 11 | AD51: 37 | AE51: 9 | AF51: 15 | AG51: 20 | AH51: 44 | AI51: 9 | AJ51: 17 | AK51: 14 | AL51: 40 | AM51: 9 | AN51: 13 | AO51: 18 | AP51: 40 | AQ51: 9 | AR51: 15 | AS51: 18 | AT51: 42 | AU51: 5 | AV51: 5 | AW51: 5 | AX51: 15 | AY51: 7 | AZ51: 11 | BA51: 11 | BB51: 29 | BC51: 3 | BD51: 5 | BE51: 6 | BF51: 9 | BG51: 6 | BH51: 9 | BI51: 15 | BJ51: 23 | BK51: 38 | BL51: 430 | BM51: 4 | BN51: 7 | BO51: 6 | BP51: 17 | BQ51: 4 | BR51: 5 | BS51: 5 | BT51: 14 | BU51: ناجحة | BV51: 114 | BW51: 114
A52: 45 | B52: 152 | C52: اسم 145 | D52: 4/1 | F52: 1272 | G52: 8 | H52: 8 | I52: 9 | J52: 25 | K52: 8 | L52: 4 | M52: 8 | N52: 20 | O52: 5 | P52: 6 | Q52: 6 | R52: 17 | S52: 8 | T52: 16 | U52: 18 | V52: 42 | W52: 8 | X52: 12 | Y52: 18 | Z52: 38 | AA52: 9 | AB52: 15 | AC52: 15 | AD52: 39 | AE52: 9 | AF52: 11 | AG52: 20 | AH52: 40 | AI52: 9 | AJ52: 12 | AK52: 18 | AL52: 39 | AM52: 9 | AN52: 15 | AO52: 18 | AP52: 42 | AQ52: 9 | AR52: 16 | AS52: 18 | AT52: 43 | AU52: 5 | AV52: 7 | AW52: 3 | AX52: 15 | AY52: 7 | AZ52: 12 | BA52: 12 | BB52: 31 | BC52: 3 | BD52: 5 | BE52: 6 | BF52: 9 | BG52: 6 | BH52: 9 | BI52: 15 | BJ52: 23 | BK52: 38 | BL52: 429 | BM52: 4 | BN52: 3 | BO52: 6 | BP52: 13 | BQ52: 4 | BR52: 7 | BS52: 7 | BT52: 18 | BU52: ناجحة | BV52: 118 | BW52: 118
A53: 46 | B53: 153 | C53: اسم 146 | D53: 4/1 | F53: 1273 | G53: 8 | H53: 8 | I53: 9 | J53: 25 | K53: 8 | L53: 6 | M53: 6 | N53: 20 | O53: 5 | P53: 7 | Q53: 6 | R53: 18 | S53: 8 | T53: 9 | U53: 8 | V53: 25 | W53: 8 | X53: 9 | Y53: 12 | Z53: 29 | AA53: 9 | AB53: 13 | AC53: 13 | AD53: 35 | AE53: 9 | AF53: 8 | AG53: 13 | AH53: 30 | AI53: 9 | AJ53: 9 | AK53: 14 | AL53: 32 | AM53: 9 | AN53: 11 | AO53: 18 | AP53: 38 | AQ53: 9 | AR53: 10 | AS53: 18 | AT53: 37 | AU53: 5 | AV53: 6 | AW53: 4 | AX53: 15 | AY53: 7 | AZ53: 5 | BA53: 9 | BB53: 21 | BC53: 3 | BD53: 5 | BE53: 5 | BF53: 5 | BG53: 5 | BH53: 5 | BI53: 13 | BJ53: 15 | BK53: 28 | BL53: 353 | BM53: 4 | BN53: 4 | BO53: 6 | BP53: 14 | BQ53: 4 | BR53: 6 | BS53: 6 | BT53: 16 | BU53: ناجحة | BV53: 319 | BW53: 319
A54: 47 | B54: 154 | C54: اسم 147 | D54: 4/1 | F54: 1274 | G54: 8 | H54: 7 | I54: 13 | J54: 28 | K54: 8 | L54: 7 | M54: 6 | N54: 21 | O54: 5 | P54: 7 | Q54: 6 | R54: 18 | S54: 8 | T54: 17 | U54: 18 | V54: 43 | W54: 8 | X54: 12 | Y54: 20 | Z54: 40 | AA54: 9 | AB54: 20 | AC54: 14 | AD54: 43 | AE54: 9 | AF54: 11 | AG54: 18 | AH54: 38 | AI54: 9 | AJ54: 12 | AK54: 19 | AL54: 40 | AM54: 9 | AN54: 11 | AO54: 18 | AP54: 38 | AQ54: 9 | AR54: 20 | AS54: 18 | AT54: 47 | AU54: 5 | AV54: 6 | AW54: 6 | AX54: 17 | AY54: 7 | AZ54: 9 | BA54: 9 | BB54: 25 | BC54: 3 | BD54: 5 | BE54: 6 | BF54: 9 | BG54: 6 | BH54: 9 | BI54: 15 | BJ54: 23 | BK54: 38 | BL54: 436 | BM54: 4 | BN54: 6 | BO54: 6 | BP54: 16 | BQ54: 4 | BR54: 7 | BS54: 7 | BT54: 18 | BU54: ناجحة | BV54: 93 | BW54: 93
A55: 48 | B55: 155 | C55: اسم 148 | D55: 4/1 | F55: 1275 | G55: 8 | H55: 7 | I55: 13 | J55: 28 | K55: 8 | L55: 5 | M55: 9 | N55: 22 | O55: 5 | P55: 5 | Q55: 4 | R55: 14 | S55: 8 | T55: 8 | U55: 9 | V55: 25 | W55: 8 | X55: 11 | Y55: 19 | Z55: 38 | AA55: 9 | AB55: 6 | AC55: 14 | AD55: 29 | AE55: 9 | AF55: 10 | AG55: 18 | AH55: 37 | AI55: 9 | AJ55: 9 | AK55: 10 | AL55: 28 | AM55: 9 | AN55: 8 | AO55: 14 | AP55: 31 | AQ55: 9 | AR55: 12 | AS55: 18 | AT55: 39 | AU55: 5 | AV55: 7 | AW55: 3 | AX55: 15 | AY55: 7 | AZ55: 7 | BA55: 7 | BB55: 21 | BC55: 3 | BD55: 5 | BE55: 6 | BF55: 10 | BG55: 6 | BH55: 10 | BI55: 15 | BJ55: 25 | BK55: 40 | BL55: 367 | BM55: 4 | BN55: 3 | BO55: 6 | BP55: 13 | BQ55: 4 | BR55: 8 | BS55: 8 | BT55: 20 | BU55: ناجحة | BV55: 311 | BW55: 311
A56: 49 | B56: 156 | C56: اسم 149 | D56: 5/1 | F56: 1276 | G56: 8 | H56: 8 | I56: 9 | J56: 25 | K56: 8 | L56: 7 | M56: 8 | N56: 23 | O56: 5 | P56: 5 | Q56: 4 | R56: 14 | S56: 8 | T56: 12 | U56: 14 | V56: 34 | W56: 8 | X56: 9 | Y56: 17 | Z56: 34 | AA56: 9 | AB56: 11 | AC56: 13 | AD56: 33 | AE56: 9 | AF56: 10 | AG56: 17 | AH56: 36 | AI56: 9 | AJ56: 9 | AK56: 15 | AL56: 33 | AM56: 9 | AN56: 9 | AO56: 13 | AP56: 31 | AQ56: 9 | AR56: 15 | AS56: 18 | AT56: 42 | AU56: 5 | AV56: 2 | AW56: 9 | AX56: 16 | AY56: 7 | AZ56: 8 | BA56: 8 | BB56: 23 | BC56: 3 | BD56: 5 | BE56: 5 | BF56: 6 | BG56: 5 | BH56: 6 | BI56: 13 | BJ56: 17 | BK56: 30 | BL56: 374 | BM56: 4 | BN56: 4 | BO56: 6 | BP56: 14 | BQ56: 4 | BR56: 6 | BS56: 6 | BT56: 16 | BU56: ناجحة | BV56: 297 | BW56: 297
A57: 50 | B57: 157 | C57: اسم 15 | D57: 1/1 | F57: 1277 | G57: 8 | H57: 9 | I57: 11 | J57: 28 | K57: 8 | L57: 5 | M57: 11 | N57: 24 | O57: 5 | P57: 6 | Q57: 6 | R57: 17 | S57: 8 | T57: 7 | U57: 11 | V57: 26 | W57: 8 | X57: 12 | Y57: 20 | Z57: 40 | AA57: 9 | AB57: 15 | AC57: 14 | AD57: 38 | AE57: 9 | AF57: 12 | AG57: 18 | AH57: 39 | AI57: 9 | AJ57: 14 | AK57: 13 | AL57: 36 | AM57: 9 | AN57: 13 | AO57: 16 | AP57: 38 | AQ57: 9 | AR57: 19 | AS57: 15 | AT57: 43 | AU57: 5 | AV57: 6 | AW57: 4 | AX57: 15 | AY57: 7 | AZ57: 6 | BA57: 9 | BB57: 22 | BC57: 3 | BD57: 5 | BE57: 6 | BF57: 9 | BG57: 6 | BH57: 9 | BI57: 15 | BJ57: 23 | BK57: 38 | BL57: 404 | BM57: 4 | BN57: 5 | BO57: 6 | BP57: 15 | BQ57: 4 | BR57: 7 | BS57: 7 | BT57: 18 | BU57: ناجحة | BV57: 208 | BW57: 208
A58: 51 | B58: 158 | C58: اسم 150 | D58: 5/1 | F58: 1278 | G58: 8 | H58: 7 | I58: 10 | J58: 25 | K58: 8 | L58: 8 | M58: 12 | N58: 28 | O58: 5 | P58: 6 | Q58: 4 | R58: 15 | S58: 8 | T58: 13 | U58: 17 | V58: 38 | W58: 8 | X58: 12 | Y58: 16 | Z58: 36 | AA58: 9 | AB58: 15 | AC58: 17 | AD58: 41 | AE58: 9 | AF58: 10 | AG58: 19 | AH58: 38 | AI58: 9 | AJ58: 11 | AK58: 15 | AL58: 35 | AM58: 9 | AN58: 10 | AO58: 16 | AP58: 35 | AQ58: 9 | AR58: 17 | AS58: 15 | AT58: 41 | AU58: 5 | AV58: 5 | AW58: 5 | AX58: 15 | AY58: 7 | AZ58: 7 | BA58: 7 | BB58: 21 | BC58: 3 | BD58: 5 | BE58: 6 | BF58: 10 | BG58: 6 | BH58: 10 | BI58: 15 | BJ58: 25 | BK58: 40 | BL58: 408 | BM58: 4 | BN58: 5 | BO58: 6 | BP58: 15 | BQ58: 4 | BR58: 6 | BS58: 6 | BT58: 16 | BU58: ناجحة | BV58: 192 | BW58: 192
A59: 52 | B59: 161 | C59: اسم 153 | D59: 5/1 | F59: 1341 | G59: 8 | H59: 9 | I59: 11 | J59: 28 | K59: 8 | L59: 8 | M59: 8 | N59: 24 | O59: 5 | P59: 5 | Q59: 6 | R59: 16 | S59: 8 | T59: 16 | U59: 19 | V59: 43 | W59: 8 | X59: 14 | Y59: 15 | Z59: 37 | AA59: 9 | AB59: 16 | AC59: 18 | AD59: 43 | AE59: 9 | AF59: 7 | AG59: 19 | AH59: 35 | AI59: 9 | AJ59: 11 | AK59: 12 | AL59: 32 | AM59: 9 | AN59: 8 | AO59: 16 | AP59: 33 | AQ59: 9 | AR59: 12 | AS59: 15 | AT59: 36 | AU59: 5 | AV59: 7 | AW59: 3 | AX59: 15 | AY59: 7 | AZ59: 7 | BA59: 7 | BB59: 21 | BC59: 3 | BD59: 5 | BE59: 7 | BF59: 11 | BG59: 7 | BH59: 11 | BI59: 17 | BJ59: 27 | BK59: 44 | BL59: 407 | BM59: 4 | BN59: 5 | BO59: 6 | BP59: 15 | BQ59: 4 | BR59: 5 | BS59: 5 | BT59: 14 | BU59: ناجحة | BV59: 199 | BW59: 199
A60: 53 | B60: 162 | C60: اسم 154 | D60: 5/1 | F60: 1342 | G60: 8 | H60: 9 | I60: 11 | J60: 28 | K60: 8 | L60: 6 | M60: 6 | N60: 20 | O60: 5 | P60: 6 | Q60: 4 | R60: 15 | S60: 8 | T60: 6 | U60: 12 | V60: 26 | W60: 8 | X60: 9 | Y60: 16 | Z60: 33 | AA60: 9 | AB60: 17 | AC60: 13 | AD60: 39 | AE60: 9 | AF60: 8 | AG60: 19 | AH60: 36 | AI60: 9 | AJ60: 10 | AK60: 17 | AL60: 36 | AM60: 9 | AN60: 10 | AO60: 16 | AP60: 35 | AQ60: 9 | AR60: 14 | AS60: 15 | AT60: 38 | AU60: 5 | AV60: 7 | AW60: 3 | AX60: 15 | AY60: 7 | AZ60: 8 | BA60: 8 | BB60: 23 | BC60: 3 | BD60: 5 | BE60: 7 | BF60: 11 | BG60: 7 | BH60: 11 | BI60: 17 | BJ60: 27 | BK60: 44 | BL60: 388 | BM60: 4 | BN60: 7 | BO60: 6 | BP60: 17 | BQ60: 4 | BR60: 5 | BS60: 5 | BT60: 14 | BU60: ناجحة | BV60: 267 | BW60: 267
A61: 54 | B61: 163 | C61: اسم 155 | D61: 5/1 | F61: 1343 | G61: 8 | H61: 8 | I61: 10 | J61: 26 | K61: 8 | L61: 9 | M61: 7 | N61: 24 | O61: 5 | P61: 6 | Q61: 4 | R61: 15 | S61: 8 | T61: 14 | U61: 18 | V61: 40 | W61: 8 | X61: 12 | Y61: 16 | Z61: 36 | AA61: 9 | AB61: 15 | AC61: 14 | AD61: 38 | AE61: 9 | AF61: 10 | AG61: 19 | AH61: 38 | AI61: 9 | AJ61: 13 | AK61: 17 | AL61: 39 | AM61: 9 | AN61: 12 | AO61: 16 | AP61: 37 | AQ61: 9 | AR61: 16 | AS61: 16 | AT61: 41 | AU61: 5 | AV61: 7 | AW61: 3 | AX61: 15 | AY61: 7 | AZ61: 10 | BA61: 10 | BB61: 27 | BC61: 3 | BD61: 5 | BE61: 7 | BF61: 11 | BG61: 7 | BH61: 11 | BI61: 17 | BJ61: 27 | BK61: 44 | BL61: 420 | BM61: 4 | BN61: 5 | BO61: 6 | BP61: 15 | BQ61: 4 | BR61: 7 | BS61: 7 | BT61: 18 | BU61: ناجحة | BV61: 152 | BW61: 152
A62: 55 | B62: 165 | C62: اسم 157 | D62: 5/1 | F62: 1345 | G62: 8 | H62: 8 | I62: 9 | J62: 25 | K62: 8 | L62: 7 | M62: 5 | N62: 20 | O62: 5 | P62: 6 | Q62: 3 | R62: 14 | S62: 8 | T62: 13 | U62: 7 | V62: 28 | W62: 8 | X62: 17 | Y62: 10 | Z62: 35 | AA62: 9 | AB62: 16 | AC62: 13 | AD62: 38 | AE62: 9 | AF62: 10 | AG62: 20 | AH62: 39 | AI62: 9 | AJ62: 11 | AK62: 18 | AL62: 38 | AM62: 9 | AN62: 8 | AO62: 16 | AP62: 33 | AQ62: 9 | AR62: 16 | AS62: 16 | AT62: 41 | AU62: 5 | AV62: 3 | AW62: 11 | AX62: 19 | AY62: 7 | AZ62: 7 | BA62: 7 | BB62: 21 | BC62: 3 | BD62: 5 | BE62: 6 | BF62: 9 | BG62: 6 | BH62: 9 | BI62: 15 | BJ62: 23 | BK62: 38 | BL62: 389 | BM62: 4 | BN62: 4 | BO62: 6 | BP62: 14 | BQ62: 4 | BR62: 6 | BS62: 6 | BT62: 16 | BU62: ناجحة | BV62: 263 | BW62: 263
A63: 56 | B63: 166 | C63: اسم 158 | D63: 5/1 | F63: 1346 | G63: 8 | H63: 9 | I63: 8 | J63: 25 | K63: 8 | L63: 7 | M63: 5 | N63: 20 | O63: 5 | P63: 5 | Q63: 6 | R63: 16 | S63: 8 | T63: 10 | U63: 12 | V63: 30 | W63: 8 | X63: 11 | Y63: 13 | Z63: 32 | AA63: 9 | AB63: 14 | AC63: 19 | AD63: 42 | AE63: 9 | AF63: 1 | AG63: 20 | AH63: 30 | AI63: 9 | AJ63: 11 | AK63: 14 | AL63: 34 | AM63: 9 | AN63: 13 | AO63: 16 | AP63: 38 | AQ63: 9 | AR63: 8 | AS63: 16 | AT63: 33 | AU63: 5 | AV63: 4 | AW63: 8 | AX63: 17 | AY63: 7 | AZ63: 6 | BA63: 9 | BB63: 22 | BC63: 3 | BD63: 5 | BE63: 5 | BF63: 7 | BG63: 5 | BH63: 7 | BI63: 13 | BJ63: 19 | BK63: 32 | BL63: 371 | BM63: 4 | BN63: 1 | BO63: 6 | BP63: 11 | BQ63: 4 | BR63: 5 | BS63: 5 | BT63: 14 | BU63: ناجحة | BV63: 304 | BW63: 304
A64: 57 | B64: 169 | C64: اسم 160 | D64: 5/1 | F64: 1349 | G64: 8 | H64: 8 | I64: 9 | J64: 25 | K64: 8 | L64: 7 | M64: 6 | N64: 21 | O64: 5 | P64: 4 | Q64: 5 | R64: 14 | S64: 8 | T64: 12 | U64: 5 | V64: 25 | W64: 8 | X64: 16 | Y64: 14 | Z64: 38 | AA64: 9 | AB64: 11 | AC64: 14 | AD64: 34 | AE64: 9 | AF64: 15 | AG64: 18 | AH64: 42 | AI64: 9 | AJ64: 13 | AK64: 16 | AL64: 38 | AM64: 9 | AN64: 16 | AO64: 16 | AP64: 41 | AQ64: 9 | AR64: 20 | AS64: 20 | AT64: 49 | AU64: 5 | AV64: 4 | AW64: 6 | AX64: 15 | AY64: 7 | AZ64: 6 | BA64: 9 | BB64: 22 | BC64: 3 | BD64: 5 | BE64: 6 | BF64: 9 | BG64: 6 | BH64: 9 | BI64: 15 | BJ64: 23 | BK64: 38 | BL64: 402 | BM64: 4 | BN64: 2 | BO64: 6 | BP64: 12 | BQ64: 4 | BR64: 8 | BS64: 8 | BT64: 20 | BU64: ناجحة | BV64: 215 | BW64: 215
A65: 58 | B65: 170 | C65: اسم 161 | D65: 5/1 | F65: 1350 | G65: 8 | H65: 8 | I65: 9 | J65: 25 | K65: 8 | L65: 9 | M65: 6 | N65: 23 | O65: 5 | P65: 6 | Q65: 5 | R65: 16 | S65: 8 | T65: 13 | U65: 16 | V65: 37 | W65: 8 | X65: 16 | Y65: 16 | Z65: 40 | AA65: 9 | AB65: 11 | AC65: 16 | AD65: 36 | AE65: 9 | AF65: 15 | AG65: 18 | AH65: 42 | AI65: 9 | AJ65: 11 | AK65: 16 | AL65: 36 | AM65: 9 | AN65: 17 | AO65: 16 | AP65: 42 | AQ65: 9 | AR65: 20 | AS65: 18 | AT65: 47 | AU65: 5 | AV65: 7 | AW65: 3 | AX65: 15 | AY65: 7 | AZ65: 5 | BA65: 9 | BB65: 21 | BC65: 3 | BD65: 5 | BE65: 6 | BF65: 9 | BG65: 6 | BH65: 9 | BI65: 15 | BJ65: 23 | BK65: 38 | BL65: 418 | BM65: 4 | BN65: 3 | BO65: 6 | BP65: 13 | BQ65: 4 | BR65: 8 | BS65: 8 | BT65: 20 | BU65: ناجحة | BV65: 162 | BW65: 162
A66: 59 | B66: 171 | C66: اسم 162 | D66: 5/1 | F66: 1351 | G66: 8 | H66: 8 | I66: 14 | J66: 30 | K66: 8 | L66: 18 | M66: 12 | N66: 38 | O66: 5 | P66: 5 | Q66: 5 | R66: 15 | S66: 8 | T66: 7 | U66: 10 | V66: 25 | W66: 8 | X66: 9 | Y66: 8 | Z66: 25 | AA66: 9 | AB66: 10 | AC66: 15 | AD66: 34 | AE66: 9 | AF66: 13 | AG66: 18 | AH66: 40 | AI66: 9 | AJ66: 4 | AK66: 18 | AL66: 31 | AM66: 9 | AN66: 12 | AO66: 16 | AP66: 37 | AQ66: 9 | AR66: 19 | AS66: 19 | AT66: 47 | AU66: 5 | AV66: 3 | AW66: 11 | AX66: 19 | AY66: 7 | AZ66: 7 | BA66: 7 | BB66: 21 | BC66: 3 | BD66: 5 | BE66: 6 | BF66: 10 | BG66: 6 | BH66: 10 | BI66: 15 | BJ66: 25 | BK66: 40 | BL66: 402 | BM66: 4 | BN66: 4 | BO66: 6 | BP66: 14 | BQ66: 4 | BR66: 6 | BS66: 6 | BT66: 16 | BU66: ناجحة | BV66: 215 | BW66: 215
A67: 60 | B67: 172 | C67: اسم 163 | D67: 5/1 | F67: 1352 | G67: 8 | H67: 8 | I67: 13 | J67: 29 | K67: 8 | L67: 10 | M67: 14 | N67: 32 | O67: 5 | P67: 8 | Q67: 5 | R67: 18 | S67: 8 | T67: 16 | U67: 17 | V67: 41 | W67: 8 | X67: 20 | Y67: 17 | Z67: 45 | AA67: 9 | AB67: 12 | AC67: 18 | AD67: 39 | AE67: 9 | AF67: 17 | AG67: 19 | AH67: 45 | AI67: 9 | AJ67: 18 | AK67: 14 | AL67: 41 | AM67: 9 | AN67: 14 | AO67: 16 | AP67: 39 | AQ67: 9 | AR67: 17 | AS67: 17 | AT67: 43 | AU67: 5 | AV67: 11 | AW67: 12 | AX67: 28 | AY67: 7 | AZ67: 8 | BA67: 8 | BB67: 23 | BC67: 3 | BD67: 5 | BE67: 8 | BF67: 12 | BG67: 8 | BH67: 12 | BI67: 19 | BJ67: 29 | BK67: 48 | BL67: 471 | BM67: 4 | BN67: 7 | BO67: 6 | BP67: 17 | BQ67: 4 | BR67: 7 | BS67: 7 | BT67: 18 | BU67: ناجحة | BV67: 16 | BW67: 16
A68: 61 | B68: 173 | C68: اسم 164 | D68: 5/1 | F68: 1353 | G68: 8 | H68: 8 | I68: 14 | J68: 30 | K68: 8 | L68: 14 | M68: 6 | N68: 28 | O68: 5 | P68: 7 | Q68: 5 | R68: 17 | S68: 8 | T68: 16 | U68: 18 | V68: 42 | W68: 8 | X68: 19 | Y68: 17 | Z68: 44 | AA68: 9 | AB68: 15 | AC68: 18 | AD68: 42 | AE68: 9 | AF68: 17 | AG68: 20 | AH68: 46 | AI68: 9 | AJ68: 20 | AK68: 17 | AL68: 46 | AM68: 9 | AN68: 14 | AO68: 16 | AP68: 39 | AQ68: 9 | AR68: 17 | AS68: 19 | AT68: 45 | AU68: 5 | AV68: 12 | AW68: 3 | AX68: 20 | AY68: 7 | AZ68: 10 | BA68: 10 | BB68: 27 | BC68: 3 | BD68: 5 | BE68: 8 | BF68: 12 | BG68: 8 | BH68: 12 | BI68: 19 | BJ68: 29 | BK68: 48 | BL68: 474 | BM68: 4 | BN68: 7 | BO68: 6 | BP68: 17 | BQ68: 4 | BR68: 6 | BS68: 6 | BT68: 16 | BU68: ناجحة | BV68: 13 | BW68: 13
A69: 62 | B69: 174 | C69: اسم 165 | D69: 5/1 | F69: 1354 | G69: 8 | H69: 9 | I69: 13 | J69: 30 | K69: 8 | L69: 10 | M69: 9 | N69: 27 | O69: 5 | P69: 3 | Q69: 5 | R69: 13 | S69: 8 | T69: 12 | U69: 15 | V69: 35 | W69: 8 | X69: 14 | Y69: 10 | Z69: 32 | AA69: 9 | AB69: 17 | AC69: 19 | AD69: 45 | AE69: 9 | AF69: 18 | AG69: 20 | AH69: 47 | AI69: 9 | AJ69: 17 | AK69: 12 | AL69: 38 | AM69: 9 | AN69: 13 | AO69: 16 | AP69: 38 | AQ69: 9 | AR69: 16 | AS69: 19 | AT69: 44 | AU69: 5 | AV69: 5 | AW69: 6 | AX69: 16 | AY69: 7 | AZ69: 5 | BA69: 9 | BB69: 21 | BC69: 3 | BD69: 5 | BE69: 7 | BF69: 11 | BG69: 7 | BH69: 11 | BI69: 17 | BJ69: 27 | BK69: 44 | BL69: 430 | BM69: 4 | BN69: 6 | BO69: 6 | BP69: 16 | BQ69: 4 | BR69: 6 | BS69: 6 | BT69: 16 | BU69: ناجحة | BV69: 114 | BW69: 114
A70: 63 | B70: 176 | C70: اسم 167 | D70: 5/1 | F70: 1356 | G70: 8 | H70: 9 | I70: 8 | J70: 25 | K70: 8 | L70: 7 | M70: 5 | N70: 20 | O70: 5 | P70: 6 | Q70: 5 | R70: 16 | S70: 8 | T70: 9 | U70: 8 | V70: 25 | W70: 8 | X70: 13 | Y70: 11 | Z70: 32 | AA70: 9 | AB70: 17 | AC70: 17 | AD70: 43 | AE70: 9 | AF70: 16 | AG70: 18 | AH70: 43 | AI70: 9 | AJ70: 14 | AK70: 17 | AL70: 40 | AM70: 9 | AN70: 8 | AO70: 16 | AP70: 33 | AQ70: 9 | AR70: 19 | AS70: 13 | AT70: 41 | AU70: 5 | AV70: 5 | AW70: 6 | AX70: 16 | AY70: 7 | AZ70: 5 | BA70: 9 | BB70: 21 | BC70: 3 | BD70: 5 | BE70: 6 | BF70: 10 | BG70: 6 | BH70: 10 | BI70: 15 | BJ70: 25 | BK70: 40 | BL70: 395 | BM70: 4 | BN70: 3 | BO70: 6 | BP70: 13 | BQ70: 4 | BR70: 6 | BS70: 6 | BT70: 16 | BU70: ناجحة | BV70: 242 | BW70: 242
A71: 64 | B71: 177 | C71: اسم 168 | D71: 5/1 | F71: 1357 | G71: 8 | H71: 8 | I71: 10 | J71: 26 | K71: 8 | L71: 6 | M71: 8 | N71: 22 | O71: 5 | P71: 6 | Q71: 5 | R71: 16 | S71: 8 | T71: 11 | U71: 16 | V71: 35 | W71: 8 | X71: 17 | Y71: 12 | Z71: 37 | AA71: 9 | AB71: 14 | AC71: 17 | AD71: 40 | AE71: 9 | AF71: 18 | AG71: 17 | AH71: 44 | AI71: 9 | AJ71: 16 | AK71: 20 | AL71: 45 | AM71: 9 | AN71: 13 | AO71: 16 | AP71: 38 | AQ71: 9 | AR71: 20 | AS71: 19 | AT71: 48 | AU71: 5 | AV71: 9 | AW71: 6 | AX71: 20 | AY71: 7 | AZ71: 7 | BA71: 7 | BB71: 21 | BC71: 3 | BD71: 5 | BE71: 6 | BF71: 10 | BG71: 6 | BH71: 10 | BI71: 15 | BJ71: 25 | BK71: 40 | BL71: 432 | BM71: 4 | BN71: 6 | BO71: 6 | BP71: 16 | BQ71: 4 | BR71: 6 | BS71: 6 | BT71: 16 | BU71: ناجحة | BV71: 106 | BW71: 106
A72: 65 | B72: 178 | C72: اسم 169 | D72: 5/1 | F72: 1358 | G72: 8 | H72: 7 | I72: 10 | J72: 25 | K72: 8 | L72: 6 | M72: 8 | N72: 22 | O72: 5 | P72: 7 | Q72: 5 | R72: 17 | S72: 8 | T72: 16 | U72: 17 | V72: 41 | W72: 8 | X72: 18 | Y72: 14 | Z72: 40 | AA72: 9 | AB72: 16 | AC72: 16 | AD72: 41 | AE72: 9 | AF72: 18 | AG72: 16 | AH72: 43 | AI72: 9 | AJ72: 12 | AK72: 20 | AL72: 41 | AM72: 9 | AN72: 14 | AO72: 16 | AP72: 39 | AQ72: 9 | AR72: 19 | AS72: 18 | AT72: 46 | AU72: 5 | AV72: 5 | AW72: 7 | AX72: 17 | AY72: 7 | AZ72: 7 | BA72: 7 | BB72: 21 | BC72: 3 | BD72: 5 | BE72: 6 | BF72: 10 | BG72: 6 | BH72: 10 | BI72: 15 | BJ72: 25 | BK72: 40 | BL72: 433 | BM72: 4 | BN72: 4 | BO72: 6 | BP72: 14 | BQ72: 4 | BR72: 8 | BS72: 8 | BT72: 20 | BU72: ناجحة | BV72: 103 | BW72: 103
A73: 66 | B73: 179 | C73: اسم 17 | D73: 1/1 | F73: 1359 | G73: 8 | H73: 7 | I73: 11 | J73: 26 | K73: 8 | L73: 4 | M73: 8 | N73: 20 | O73: 5 | P73: 6 | Q73: 5 | R73: 16 | S73: 8 | T73: 8 | U73: 9 | V73: 25 | W73: 8 | X73: 11 | Y73: 15 | Z73: 34 | AA73: 9 | AB73: 15 | AC73: 16 | AD73: 40 | AE73: 9 | AF73: 16 | AG73: 20 | AH73: 45 | AI73: 9 | AJ73: 15 | AK73: 12 | AL73: 36 | AM73: 9 | AN73: 16 | AO73: 16 | AP73: 41 | AQ73: 9 | AR73: 18 | AS73: 19 | AT73: 46 | AU73: 5 | AV73: 4 | AW73: 6 | AX73: 15 | AY73: 7 | AZ73: 4 | BA73: 9 | BB73: 20 | BC73: 3 | BD73: 5 | BE73: 6 | BF73: 9 | BG73: 6 | BH73: 9 | BI73: 15 | BJ73: 23 | BK73: 38 | BL73: 402 | BM73: 4 | BN73: 3 | BO73: 6 | BP73: 13 | BQ73: 4 | BR73: 8 | BS73: 8 | BT73: 20 | BU73: ناجحة | BV73: 215 | BW73: 215
A74: 67 | B74: 181 | C74: اسم 171 | D74: 5/1 | F74: 1361 | G74: 8 | H74: 8 | I74: 11 | J74: 27 | K74: 8 | L74: 4 | M74: 10 | N74: 22 | O74: 5 | P74: 6 | Q74: 5 | R74: 16 | S74: 8 | T74: 12 | U74: 8 | V74: 28 | W74: 8 | X74: 20 | Y74: 14 | Z74: 42 | AA74: 9 | AB74: 15 | AC74: 18 | AD74: 42 | AE74: 9 | AF74: 18 | AG74: 20 | AH74: 47 | AI74: 9 | AJ74: 17 | AK74: 16 | AL74: 42 | AM74: 9 | AN74: 15 | AO74: 16 | AP74: 40 | AQ74: 9 | AR74: 19 | AS74: 18 | AT74: 46 | AU74: 5 | AV74: 5 | AW74: 6 | AX74: 16 | AY74: 7 | AZ74: 7 | BA74: 7 | BB74: 21 | BC74: 3 | BD74: 5 | BE74: 6 | BF74: 9 | BG74: 6 | BH74: 9 | BI74: 15 | BJ74: 23 | BK74: 38 | BL74: 427 | BM74: 4 | BN74: 5 | BO74: 6 | BP74: 15 | BQ74: 4 | BR74: 8 | BS74: 8 | BT74: 20 | BU74: ناجحة | BV74: 132 | BW74: 132
A75: 68 | B75: 182 | C75: اسم 172 | D75: 5/1 | F75: 1362 | G75: 8 | H75: 9 | I75: 12 | J75: 29 | K75: 8 | L75: 5 | M75: 7 | N75: 20 | O75: 5 | P75: 5 | Q75: 5 | R75: 15 | S75: 8 | T75: 19 | U75: 20 | V75: 47 | W75: 8 | X75: 19 | Y75: 20 | Z75: 47 | AA75: 9 | AB75: 17 | AC75: 17 | AD75: 43 | AE75: 10 | AF75: 20 | AG75: 20 | AH75: 50 | AI75: 9 | AJ75: 18 | AK75: 15 | AL75: 42 | AM75: 9 | AN75: 18 | AO75: 16 | AP75: 43 | AQ75: 9 | AR75: 19 | AS75: 18 | AT75: 46 | AU75: 5 | AV75: 5 | AW75: 6 | AX75: 16 | AY75: 7 | AZ75: 7 | BA75: 7 | BB75: 21 | BC75: 3 | BD75: 5 | BE75: 6 | BF75: 9 | BG75: 6 | BH75: 9 | BI75: 15 | BJ75: 23 | BK75: 38 | BL75: 457 | BM75: 4 | BN75: 5 | BO75: 6 | BP75: 15 | BQ75: 4 | BR75: 8 | BS75: 8 | BT75: 20 | BU75: ناجحة | BV75: 45 | BW75: 45
A76: 69 | B76: 183 | C76: اسم 173 | D76: 5/1 | F76: 1363 | G76: 8 | H76: 6 | I76: 11 | J76: 25 | K76: 8 | L76: 8 | M76: 7 | N76: 23 | O76: 5 | P76: 4 | Q76: 5 | R76: 14 | S76: 8 | T76: 15 | U76: 11 | V76: 34 | W76: 8 | X76: 18 | Y76: 17 | Z76: 43 | AA76: 9 | AB76: 16 | AC76: 14 | AD76: 39 | AE76: 9 | AF76: 18 | AG76: 19 | AH76: 46 | AI76: 9 | AJ76: 12 | AK76: 15 | AL76: 36 | AM76: 9 | AN76: 14 | AO76: 16 | AP76: 39 | AQ76: 9 | AR76: 16 | AS76: 18 | AT76: 43 | AU76: 5 | AV76: 12 | AW76: 9 | AX76: 26 | AY76: 7 | AZ76: 7 | BA76: 7 | BB76: 21 | BC76: 3 | BD76: 5 | BE76: 6 | BF76: 10 | BG76: 6 | BH76: 10 | BI76: 15 | BJ76: 25 | BK76: 40 | BL76: 429 | BM76: 4 | BN76: 4 | BO76: 6 | BP76: 14 | BQ76: 4 | BR76: 7 | BS76: 7 | BT76: 18 | BU76: ناجحة | BV76: 118 | BW76: 118
A77: 70 | B77: 184 | C77: اسم 174 | D77: 5/1 | F77: 1364 | G77: 8 | H77: 8 | I77: 10 | J77: 26 | K77: 8 | L77: 4 | M77: 8 | N77: 20 | O77: 5 | P77: 5 | Q77: 5 | R77: 15 | S77: 8 | T77: 8 | U77: 11 | V77: 27 | W77: 8 | X77: 12 | Y77: 17 | Z77: 37 | AA77: 9 | AB77: 14 | AC77: 18 | AD77: 41 | AE77: 9 | AF77: 20 | AG77: 17 | AH77: 46 | AI77: 9 | AJ77: 10 | AK77: 13 | AL77: 32 | AM77: 9 | AN77: 18 | AO77: 16 | AP77: 43 | AQ77: 9 | AR77: 19 | AS77: 17 | AT77: 45 | AU77: 5 | AV77: 5 | AW77: 6 | AX77: 16 | AY77: 7 | AZ77: 7 | BA77: 7 | BB77: 21 | BC77: 3 | BD77: 5 | BE77: 8 | BF77: 12 | BG77: 8 | BH77: 12 | BI77: 19 | BJ77: 29 | BK77: 48 | BL77: 417 | BM77: 4 | BN77: 5 | BO77: 6 | BP77: 15 | BQ77: 4 | BR77: 5 | BS77: 5 | BT77: 14 | BU77: ناجحة | BV77: 168 | BW77: 168
A78: 71 | B78: 185 | C78: اسم 175 | D78: 5/1 | F78: 1365 | G78: 8 | H78: 8 | I78: 9 | J78: 25 | K78: 8 | L78: 4 | M78: 8 | N78: 20 | O78: 5 | P78: 6 | Q78: 5 | R78: 16 | S78: 8 | T78: 9 | U78: 10 | V78: 27 | W78: 8 | X78: 10 | Y78: 17 | Z78: 35 | AA78: 9 | AB78: 11 | AC78: 16 | AD78: 36 | AE78: 9 | AF78: 17 | AG78: 18 | AH78: 44 | AI78: 9 | AJ78: 18 | AK78: 11 | AL78: 38 | AM78: 9 | AN78: 16 | AO78: 13 | AP78: 38 | AQ78: 9 | AR78: 20 | AS78: 18 | AT78: 47 | AU78: 5 | AV78: 5 | AW78: 5 | AX78: 15 | AY78: 7 | AZ78: 6 | BA78: 9 | BB78: 22 | BC78: 3 | BD78: 5 | BE78: 5 | BF78: 6 | BG78: 5 | BH78: 6 | BI78: 13 | BJ78: 17 | BK78: 30 | BL78: 393 | BM78: 4 | BN78: 4 | BO78: 6 | BP78: 14 | BQ78: 4 | BR78: 8 | BS78: 8 | BT78: 20 | BU78: ناجحة | BV78: 251 | BW78: 251
A79: 72 | B79: 186 | C79: اسم 176 | D79: 5/1 | F79: 1366 | G79: 8 | H79: 10 | I79: 11 | J79: 29 | K79: 8 | L79: 4 | M79: 8 | N79: 20 | O79: 5 | P79: 6 | Q79: 5 | R79: 16 | S79: 8 | T79: 7 | U79: 14 | V79: 29 | W79: 8 | X79: 17 | Y79: 15 | Z79: 40 | AA79: 9 | AB79: 15 | AC79: 16 | AD79: 40 | AE79: 9 | AF79: 16 | AG79: 19 | AH79: 44 | AI79: 9 | AJ79: 16 | AK79: 14 | AL79: 39 | AM79: 9 | AN79: 13 | AO79: 16 | AP79: 38 | AQ79: 9 | AR79: 20 | AS79: 18 | AT79: 47 | AU79: 5 | AV79: 6 | AW79: 10 | AX79: 21 | AY79: 7 | AZ79: 4 | BA79: 9 | BB79: 20 | BC79: 3 | BD79: 5 | BE79: 7 | BF79: 11 | BG79: 7 | BH79: 11 | BI79: 17 | BJ79: 27 | BK79: 44 | BL79: 427 | BM79: 4 | BN79: 5 | BO79: 6 | BP79: 15 | BQ79: 4 | BR79: 7 | BS79: 7 | BT79: 18 | BU79: ناجحة | BV79: 132 | BW79: 132
A80: 73 | B80: 187 | C80: اسم 177 | D80: 6/1 | F80: 1367 | G80: 8 | H80: 5 | I80: 12 | J80: 25 | K80: 8 | L80: 5 | M80: 7 | N80: 20 | O80: 5 | P80: 5 | Q80: 5 | R80: 15 | S80: 8 | T80: 13 | U80: 19 | V80: 40 | W80: 8 | X80: 15 | Y80: 16 | Z80: 39 | AA80: 9 | AB80: 16 | AC80: 14 | AD80: 39 | AE80: 9 | AF80: 18 | AG80: 20 | AH80: 47 | AI80: 9 | AJ80: 15 | AK80: 17 | AL80: 41 | AM80: 9 | AN80: 15 | AO80: 17 | AP80: 41 | AQ80: 9 | AR80: 20 | AS80: 18 | AT80: 47 | AU80: 5 | AV80: 7 | AW80: 11 | AX80: 23 | AY80: 7 | AZ80: 5 | BA80: 9 | BB80: 21 | BC80: 3 | BD80: 5 | BE80: 7 | BF80: 7 | BG80: 7 | BH80: 7 | BI80: 17 | BJ80: 19 | BK80: 36 | BL80: 434 | BM80: 4 | BN80: 7 | BO80: 6 | BP80: 17 | BQ80: 4 | BR80: 5 | BS80: 5 | BT80: 14 | BU80: ناجحة | BV80: 100 | BW80: 100
A81: 74 | B81: 188 | C81: اسم 178 | D81: 6/1 | F81: 1368 | G81: 8 | H81: 8 | I81: 11 | J81: 27 | K81: 8 | L81: 7 | M81: 5 | N81: 20 | O81: 5 | P81: 6 | Q81: 5 | R81: 16 | S81: 8 | T81: 17 | U81: 19 | V81: 44 | W81: 8 | X81: 19 | Y81: 18 | Z81: 45 | AA81: 9 | AB81: 17 | AC81: 15 | AD81: 41 | AE81: 9 | AF81: 19 | AG81: 20 | AH81: 48 | AI81: 9 | AJ81: 13 | AK81: 16 | AL81: 38 | AM81: 9 | AN81: 14 | AO81: 19 | AP81: 42 | AQ81: 9 | AR81: 20 | AS81: 18 | AT81: 47 | AU81: 5 | AV81: 12 | AW81: 12 | AX81: 29 | AY81: 7 | AZ81: 9 | BA81: 9 | BB81: 25 | BC81: 3 | BD81: 5 | BE81: 5 | BF81: 7 | BG81: 5 | BH81: 7 | BI81: 13 | BJ81: 19 | BK81: 32 | BL81: 454 | BM81: 4 | BN81: 7 | BO81: 6 | BP81: 17 | BQ81: 4 | BR81: 7 | BS81: 7 | BT81: 18 | BU81: ناجحة | BV81: 50 | BW81: 50
A82: 75 | B82: 189 | C82: اسم 179 | D82: 6/1 | F82: 1369 | G82: 8 | H82: 7 | I82: 10 | J82: 25 | K82: 8 | L82: 8 | M82: 12 | N82: 28 | O82: 5 | P82: 7 | Q82: 5 | R82: 17 | S82: 8 | T82: 14 | U82: 18 | V82: 40 | W82: 8 | X82: 9 | Y82: 19 | Z82: 36 | AA82: 9 | AB82: 14 | AC82: 17 | AD82: 40 | AE82: 9 | AF82: 15 | AG82: 19 | AH82: 43 | AI82: 9 | AJ82: 15 | AK82: 19 | AL82: 43 | AM82: 9 | AN82: 18 | AO82: 14 | AP82: 41 | AQ82: 9 | AR82: 15 | AS82: 18 | AT82: 42 | AU82: 5 | AV82: 6 | AW82: 8 | AX82: 19 | AY82: 7 | AZ82: 9 | BA82: 9 | BB82: 25 | BC82: 3 | BD82: 5 | BE82: 7 | BF82: 11 | BG82: 7 | BH82: 11 | BI82: 17 | BJ82: 27 | BK82: 44 | BL82: 443 | BM82: 4 | BN82: 6 | BO82: 6 | BP82: 16 | BQ82: 4 | BR82: 5 | BS82: 5 | BT82: 14 | BU82: ناجحة | BV82: 74 | BW82: 74
A83: 76 | B83: 190 | C83: اسم 18 | D83: 1/1 | F83: 1370 | G83: 8 | H83: 5 | I83: 12 | J83: 25 | K83: 8 | L83: 6 | M83: 6 | N83: 20 | O83: 5 | P83: 7 | Q83: 5 | R83: 17 | S83: 8 | T83: 8 | U83: 9 | V83: 25 | W83: 8 | X83: 9 | Y83: 15 | Z83: 32 | AA83: 9 | AB83: 10 | AC83: 16 | AD83: 35 | AE83: 9 | AF83: 8 | AG83: 20 | AH83: 37 | AI83: 9 | AJ83: 16 | AK83: 19 | AL83: 44 | AM83: 9 | AN83: 16 | AO83: 15 | AP83: 40 | AQ83: 9 | AR83: 15 | AS83: 18 | AT83: 42 | AU83: 5 | AV83: 2 | AW83: 9 | AX83: 16 | AY83: 7 | AZ83: 9 | BA83: 9 | BB83: 25 | BC83: 3 | BD83: 5 | BE83: 7 | BF83: 11 | BG83: 7 | BH83: 11 | BI83: 17 | BJ83: 27 | BK83: 44 | BL83: 402 | BM83: 4 | BN83: 4 | BO83: 6 | BP83: 14 | BQ83: 4 | BR83: 5 | BS83: 5 | BT83: 14 | BU83: ناجحة | BV83: 215 | BW83: 215
A84: 77 | B84: 191 | C84: اسم 180 | D84: 6/1 | F84: 1371 | G84: 8 | H84: 10 | I84: 16 | J84: 34 | K84: 8 | L84: 12 | M84: 15 | N84: 35 | O84: 5 | P84: 6 | Q84: 5 | R84: 16 | S84: 8 | T84: 20 | U84: 19 | V84: 47 | W84: 8 | X84: 19 | Y84: 20 | Z84: 47 | AA84: 9 | AB84: 18 | AC84: 15 | AD84: 42 | AE84: 9 | AF84: 17 | AG84: 19 | AH84: 45 | AI84: 9 | AJ84: 19 | AK84: 20 | AL84: 48 | AM84: 9 | AN84: 19 | AO84: 19 | AP84: 47 | AQ84: 9 | AR84: 17 | AS84: 18 | AT84: 44 | AU84: 5 | AV84: 9 | AW84: 11 | AX84: 25 | AY84: 7 | AZ84: 12 | BA84: 12 | BB84: 31 | BC84: 3 | BD84: 5 | BE84: 8 | BF84: 12 | BG84: 8 | BH84: 12 | BI84: 19 | BJ84: 29 | BK84: 48 | BL84: 509 | BM84: 4 | BN84: 7 | BO84: 6 | BP84: 17 | BQ84: 4 | BR84: 6 | BS84: 6 | BT84: 16 | BU84: ناجحة | BV84: 1 | BW84: 1
A85: 78 | B85: 192 | C85: اسم 181 | D85: 6/1 | F85: 1372 | G85: 8 | H85: 12 | I85: 15 | J85: 35 | K85: 8 | L85: 12 | M85: 13 | N85: 33 | O85: 5 | P85: 7 | Q85: 5 | R85: 17 | S85: 8 | T85: 17 | U85: 17 | V85: 42 | W85: 8 | X85: 16 | Y85: 20 | Z85: 44 | AA85: 9 | AB85: 17 | AC85: 12 | AD85: 38 | AE85: 9 | AF85: 16 | AG85: 18 | AH85: 43 | AI85: 9 | AJ85: 14 | AK85: 19 | AL85: 42 | AM85: 9 | AN85: 18 | AO85: 18 | AP85: 45 | AQ85: 9 | AR85: 15 | AS85: 18 | AT85: 42 | AU85: 5 | AV85: 3 | AW85: 7 | AX85: 15 | AY85: 7 | AZ85: 8 | BA85: 8 | BB85: 23 | BC85: 3 | BD85: 5 | BE85: 7 | BF85: 11 | BG85: 7 | BH85: 11 | BI85: 17 | BJ85: 27 | BK85: 44 | BL85: 463 | BM85: 4 | BN85: 6 | BO85: 6 | BP85: 16 | BQ85: 4 | BR85: 8 | BS85: 8 | BT85: 20 | BU85: ناجحة | BV85: 28 | BW85: 28
A86: 79 | B86: 193 | C86: اسم 182 | D86: 6/1 | F86: 1373 | G86: 8 | H86: 7 | I86: 12 | J86: 27 | K86: 8 | L86: 5 | M86: 11 | N86: 24 | O86: 5 | P86: 5 | Q86: 5 | R86: 15 | S86: 8 | T86: 6 | U86: 13 | V86: 27 | W86: 8 | X86: 19 | Y86: 20 | Z86: 47 | AA86: 9 | AB86: 16 | AC86: 13 | AD86: 38 | AE86: 9 | AF86: 16 | AG86: 19 | AH86: 44 | AI86: 9 | AJ86: 14 | AK86: 19 | AL86: 42 | AM86: 9 | AN86: 17 | AO86: 17 | AP86: 43 | AQ86: 9 | AR86: 15 | AS86: 20 | AT86: 44 | AU86: 5 | AV86: 4 | AW86: 6 | AX86: 15 | AY86: 7 | AZ86: 6 | BA86: 9 | BB86: 22 | BC86: 3 | BD86: 5 | BE86: 5 | BF86: 8 | BG86: 5 | BH86: 8 | BI86: 13 | BJ86: 21 | BK86: 34 | BL86: 422 | BM86: 4 | BN86: 7 | BO86: 6 | BP86: 17 | BQ86: 4 | BR86: 8 | BS86: 8 | BT86: 20 | BU86: ناجحة | BV86: 146 | BW86: 146
A87: 80 | B87: 194 | C87: اسم 183 | D87: 6/1 | F87: 1374 | G87: 8 | H87: 9 | I87: 11 | J87: 28 | K87: 8 | L87: 12 | M87: 7 | N87: 27 | O87: 5 | P87: 4 | Q87: 5 | R87: 14 | S87: 8 | T87: 10 | U87: 17 | V87: 35 | W87: 8 | X87: 19 | Y87: 19 | Z87: 46 | AA87: 9 | AB87: 15 | AC87: 14 | AD87: 38 | AE87: 9 | AF87: 10 | AG87: 18 | AH87: 37 | AI87: 9 | AJ87: 10 | AK87: 20 | AL87: 39 | AM87: 9 | AN87: 17 | AO87: 18 | AP87: 44 | AQ87: 9 | AR87: 10 | AS87: 20 | AT87: 39 | AU87: 5 | AV87: 7 | AW87: 3 | AX87: 15 | AY87: 7 | AZ87: 7 | BA87: 7 | BB87: 21 | BC87: 3 | BD87: 5 | BE87: 6 | BF87: 10 | BG87: 6 | BH87: 10 | BI87: 15 | BJ87: 25 | BK87: 40 | BL87: 423 | BM87: 4 | BN87: 6 | BO87: 6 | BP87: 16 | BQ87: 4 | BR87: 6 | BS87: 6 | BT87: 16 | BU87: ناجحة | BV87: 143 | BW87: 143
A88: 81 | B88: 195 | C88: اسم 184 | D88: 6/1 | F88: 1375 | G88: 8 | H88: 8 | I88: 9 | J88: 25 | K88: 8 | L88: 6 | M88: 6 | N88: 20 | O88: 5 | P88: 6 | Q88: 5 | R88: 16 | S88: 8 | T88: 12 | U88: 16 | V88: 36 | W88: 8 | X88: 11 | Y88: 18 | Z88: 37 | AA88: 9 | AB88: 13 | AC88: 14 | AD88: 36 | AE88: 9 | AF88: 9 | AG88: 19 | AH88: 37 | AI88: 9 | AJ88: 15 | AK88: 20 | AL88: 44 | AM88: 9 | AN88: 15 | AO88: 17 | AP88: 41 | AQ88: 9 | AR88: 8 | AS88: 20 | AT88: 37 | AU88: 5 | AV88: 5 | AW88: 5 | AX88: 15 | AY88: 7 | AZ88: 6 | BA88: 9 | BB88: 22 | BC88: 3 | BD88: 5 | BE88: 5 | BF88: 5 | BG88: 5 | BH88: 5 | BI88: 13 | BJ88: 15 | BK88: 28 | BL88: 394 | BM88: 4 | BN88: 5 | BO88: 6 | BP88: 15 | BQ88: 4 | BR88: 4 | BS88: 4 | BT88: 12 | BU88: ناجحة | BV88: 244 | BW88: 244
A89: 82 | B89: 196 | C89: اسم 185 | D89: 6/1 | F89: 1376 | G89: 8 | H89: 6 | I89: 11 | J89: 25 | K89: 8 | L89: 5 | M89: 8 | N89: 21 | O89: 5 | P89: 6 | Q89: 5 | R89: 16 | S89: 8 | T89: 11 | U89: 6 | V89: 25 | W89: 8 | X89: 16 | Y89: 15 | Z89: 39 | AA89: 9 | AB89: 15 | AC89: 13 | AD89: 37 | AE89: 9 | AF89: 11 | AG89: 18 | AH89: 38 | AI89: 9 | AJ89: 14 | AK89: 17 | AL89: 40 | AM89: 9 | AN89: 13 | AO89: 18 | AP89: 40 | AQ89: 9 | AR89: 15 | AS89: 18 | AT89: 42 | AU89: 5 | AV89: 4 | AW89: 6 | AX89: 15 | AY89: 7 | AZ89: 4 | BA89: 9 | BB89: 20 | BC89: 3 | BD89: 5 | BE89: 6 | BF89: 9 | BG89: 6 | BH89: 9 | BI89: 15 | BJ89: 23 | BK89: 38 | BL89: 396 | BM89: 4 | BN89: 5 | BO89: 6 | BP89: 15 | BQ89: 4 | BR89: 5 | BS89: 5 | BT89: 14 | BU89: ناجحة | BV89: 238 | BW89: 238
A90: 83 | B90: 198 | C90: اسم 187 | D90: 6/1 | F90: 1378 | G90: 8 | H90: 7 | I90: 10 | J90: 25 | K90: 8 | L90: 4 | M90: 11 | N90: 23 | O90: 5 | P90: 7 | Q90: 5 | R90: 17 | S90: 8 | T90: 7 | U90: 11 | V90: 26 | W90: 8 | X90: 15 | Y90: 18 | Z90: 41 | AA90: 9 | AB90: 17 | AC90: 12 | AD90: 38 | AE90: 9 | AF90: 13 | AG90: 18 | AH90: 40 | AI90: 9 | AJ90: 11 | AK90: 20 | AL90: 40 | AM90: 9 | AN90: 18 | AO90: 20 | AP90: 47 | AQ90: 9 | AR90: 6 | AS90: 20 | AT90: 35 | AU90: 5 | AV90: 3 | AW90: 8 | AX90: 16 | AY90: 7 | AZ90: 5 | BA90: 9 | BB90: 21 | BC90: 3 | BD90: 5 | BE90: 5 | BF90: 6 | BG90: 5 | BH90: 6 | BI90: 13 | BJ90: 17 | BK90: 30 | BL90: 399 | BM90: 4 | BN90: 5 | BO90: 6 | BP90: 15 | BQ90: 4 | BR90: 6 | BS90: 6 | BT90: 16 | BU90: ناجحة | BV90: 227 | BW90: 227
A91: 84 | B91: 199 | C91: اسم 188 | D91: 6/1 | F91: 1379 | G91: 8 | H91: 6 | I91: 11 | J91: 25 | K91: 8 | L91: 11 | M91: 14 | N91: 33 | O91: 5 | P91: 6 | Q91: 4 | R91: 15 | S91: 8 | T91: 13 | U91: 18 | V91: 39 | W91: 8 | X91: 19 | Y91: 20 | Z91: 47 | AA91: 9 | AB91: 18 | AC91: 18 | AD91: 45 | AE91: 9 | AF91: 16 | AG91: 19 | AH91: 44 | AI91: 9 | AJ91: 13 | AK91: 20 | AL91: 42 | AM91: 9 | AN91: 18 | AO91: 20 | AP91: 47 | AQ91: 9 | AR91: 18 | AS91: 20 | AT91: 47 | AU91: 5 | AV91: 12 | AW91: 11 | AX91: 28 | AY91: 7 | AZ91: 8 | BA91: 8 | BB91: 23 | BC91: 3 | BD91: 5 | BE91: 7 | BF91: 11 | BG91: 7 | BH91: 11 | BI91: 17 | BJ91: 27 | BK91: 44 | BL91: 479 | BM91: 4 | BN91: 6 | BO91: 6 | BP91: 16 | BQ91: 4 | BR91: 7 | BS91: 7 | BT91: 18 | BU91: ناجحة | BV91: 9 | BW91: 9
A92: 85 | B92: 200 | C92: اسم 189 | D92: 6/1 | F92: 1380 | G92: 8 | H92: 7 | I92: 13 | J92: 28 | K92: 8 | L92: 12 | M92: 13 | N92: 33 | O92: 5 | P92: 8 | Q92: 4 | R92: 17 | S92: 8 | T92: 18 | U92: 18 | V92: 44 | W92: 8 | X92: 20 | Y92: 19 | Z92: 47 | AA92: 9 | AB92: 18 | AC92: 15 | AD92: 42 | AE92: 9 | AF92: 16 | AG92: 17 | AH92: 42 | AI92: 9 | AJ92: 15 | AK92: 20 | AL92: 44 | AM92: 9 | AN92: 19 | AO92: 20 | AP92: 48 | AQ92: 9 | AR92: 20 | AS92: 20 | AT92: 49 | AU92: 5 | AV92: 12 | AW92: 11 | AX92: 28 | AY92: 7 | AZ92: 8 | BA92: 8 | BB92: 23 | BC92: 3 | BD92: 5 | BE92: 7 | BF92: 11 | BG92: 7 | BH92: 11 | BI92: 17 | BJ92: 27 | BK92: 44 | BL92: 489 | BM92: 4 | BN92: 7 | BO92: 6 | BP92: 17 | BQ92: 4 | BR92: 8 | BS92: 8 | BT92: 20 | BU92: ناجحة | BV92: 3 | BW92: 3
A93: 86 | B93: 201 | C93: اسم 19 | D93: 1/1 | F93: 1381 | G93: 8 | H93: 9 | I93: 15 | J93: 32 | K93: 8 | L93: 10 | M93: 12 | N93: 30 | O93: 5 | P93: 7 | Q93: 5 | R93: 17 | S93: 8 | T93: 6 | U93: 16 | V93: 30 | W93: 8 | X93: 14 | Y93: 19 | Z93: 41 | AA93: 9 | AB93: 15 | AC93: 14 | AD93: 38 | AE93: 9 | AF93: 15 | AG93: 19 | AH93: 43 | AI93: 9 | AJ93: 16 | AK93: 20 | AL93: 45 | AM93: 9 | AN93: 18 | AO93: 15 | AP93: 42 | AQ93: 9 | AR93: 18 | AS93: 20 | AT93: 47 | AU93: 5 | AV93: 3 | AW93: 8 | AX93: 16 | AY93: 7 | AZ93: 10 | BA93: 10 | BB93: 27 | BC93: 3 | BD93: 5 | BE93: 5 | BF93: 7 | BG93: 5 | BH93: 7 | BI93: 13 | BJ93: 19 | BK93: 32 | BL93: 440 | BM93: 4 | BN93: 7 | BO93: 6 | BP93: 17 | BQ93: 4 | BR93: 8 | BS93: 8 | BT93: 20 | BU93: ناجحة | BV93: 81 | BW93: 81
A94: 87 | B94: 202 | C94: اسم 190 | D94: 6/1 | F94: 1382 | G94: 8 | H94: 9 | I94: 12 | J94: 29 | K94: 8 | L94: 14 | M94: 14 | N94: 36 | O94: 5 | P94: 7 | Q94: 5 | R94: 17 | S94: 8 | T94: 10 | U94: 15 | V94: 33 | W94: 8 | X94: 14 | Y94: 17 | Z94: 39 | AA94: 9 | AB94: 12 | AC94: 14 | AD94: 35 | AE94: 9 | AF94: 9 | AG94: 19 | AH94: 37 | AI94: 9 | AJ94: 16 | AK94: 20 | AL94: 45 | AM94: 9 | AN94: 17 | AO94: 16 | AP94: 42 | AQ94: 9 | AR94: 15 | AS94: 20 | AT94: 44 | AU94: 5 | AV94: 7 | AW94: 11 | AX94: 23 | AY94: 7 | AZ94: 9 | BA94: 9 | BB94: 25 | BC94: 3 | BD94: 5 | BE94: 7 | BF94: 11 | BG94: 7 | BH94: 11 | BI94: 17 | BJ94: 27 | BK94: 44 | BL94: 449 | BM94: 4 | BN94: 5 | BO94: 6 | BP94: 15 | BQ94: 4 | BR94: 7 | BS94: 7 | BT94: 18 | BU94: ناجحة | BV94: 63 | BW94: 63
A95: 88 | B95: 203 | C95: اسم 191 | D95: 6/1 | F95: 1383 | G95: 8 | H95: 7 | I95: 10 | J95: 25 | K95: 8 | L95: 8 | M95: 9 | N95: 25 | O95: 5 | P95: 6 | Q95: 5 | R95: 16 | S95: 8 | T95: 9 | U95: 8 | V95: 25 | W95: 8 | X95: 10 | Y95: 17 | Z95: 35 | AA95: 9 | AB95: 15 | AC95: 16 | AD95: 40 | AE95: 9 | AF95: 10 | AG95: 18 | AH95: 37 | AI95: 9 | AJ95: 12 | AK95: 20 | AL95: 41 | AM95: 9 | AN95: 18 | AO95: 15 | AP95: 42 | AQ95: 9 | AR95: 19 | AS95: 20 | AT95: 48 | AU95: 5 | AV95: 4 | AW95: 6 | AX95: 15 | AY95: 7 | AZ95: 9 | BA95: 9 | BB95: 25 | BC95: 3 | BD95: 5 | BE95: 6 | BF95: 10 | BG95: 6 | BH95: 10 | BI95: 15 | BJ95: 25 | BK95: 40 | BL95: 414 | BM95: 4 | BN95: 3 | BO95: 6 | BP95: 13 | BQ95: 4 | BR95: 6 | BS95: 6 | BT95: 16 | BU95: ناجحة | BV95: 174 | BW95: 174
A96: 89 | B96: 204 | C96: اسم 192 | D96: 6/1 | F96: 1384 | G96: 8 | H96: 7 | I96: 13 | J96: 28 | K96: 8 | L96: 5 | M96: 9 | N96: 22 | O96: 5 | P96: 5 | Q96: 5 | R96: 15 | S96: 8 | T96: 10 | U96: 17 | V96: 35 | W96: 8 | X96: 11 | Y96: 14 | Z96: 33 | AA96: 9 | AB96: 13 | AC96: 14 | AD96: 36 | AE96: 9 | AF96: 11 | AG96: 17 | AH96: 37 | AI96: 9 | AJ96: 14 | AK96: 20 | AL96: 43 | AM96: 9 | AN96: 16 | AO96: 15 | AP96: 40 | AQ96: 9 | AR96: 16 | AS96: 16 | AT96: 41 | AU96: 5 | AV96: 4 | AW96: 6 | AX96: 15 | AY96: 7 | AZ96: 9 | BA96: 9 | BB96: 25 | BC96: 3 | BD96: 5 | BE96: 7 | BF96: 11 | BG96: 7 | BH96: 11 | BI96: 17 | BJ96: 27 | BK96: 44 | BL96: 414 | BM96: 4 | BN96: 5 | BO96: 6 | BP96: 15 | BQ96: 4 | BR96: 7 | BS96: 7 | BT96: 18 | BU96: ناجحة | BV96: 174 | BW96: 174
A97: 90 | B97: 205 | C97: اسم 193 | D97: 6/1 | F97: 1385 | G97: 8 | H97: 8 | I97: 13 | J97: 29 | K97: 8 | L97: 5 | M97: 10 | N97: 23 | O97: 5 | P97: 7 | Q97: 5 | R97: 17 | S97: 8 | T97: 9 | U97: 8 | V97: 25 | W97: 8 | X97: 10 | Y97: 18 | Z97: 36 | AA97: 9 | AB97: 11 | AC97: 15 | AD97: 35 | AE97: 9 | AF97: 12 | AG97: 17 | AH97: 38 | AI97: 9 | AJ97: 15 | AK97: 20 | AL97: 44 | AM97: 9 | AN97: 17 | AO97: 18 | AP97: 44 | AQ97: 9 | AR97: 18 | AS97: 17 | AT97: 44 | AU97: 5 | AV97: 3 | AW97: 7 | AX97: 15 | AY97: 7 | AZ97: 9 | BA97: 9 | BB97: 25 | BC97: 3 | BD97: 5 | BE97: 5 | BF97: 8 | BG97: 5 | BH97: 8 | BI97: 13 | BJ97: 21 | BK97: 34 | BL97: 409 | BM97: 4 | BN97: 5 | BO97: 6 | BP97: 15 | BQ97: 4 | BR97: 8 | BS97: 8 | BT97: 20 | BU97: ناجحة | BV97: 188 | BW97: 188
A98: 91 | B98: 206 | C98: اسم 194 | D98: 6/1 | F98: 1386 | G98: 8 | H98: 9 | I98: 11 | J98: 28 | K98: 8 | L98: 10 | M98: 12 | N98: 30 | O98: 5 | P98: 7 | Q98: 5 | R98: 17 | S98: 8 | T98: 6 | U98: 12 | V98: 26 | W98: 8 | X98: 16 | Y98: 20 | Z98: 44 | AA98: 9 | AB98: 15 | AC98: 15 | AD98: 39 | AE98: 9 | AF98: 12 | AG98: 18 | AH98: 39 | AI98: 9 | AJ98: 14 | AK98: 20 | AL98: 43 | AM98: 9 | AN98: 18 | AO98: 18 | AP98: 45 | AQ98: 9 | AR98: 20 | AS98: 20 | AT98: 49 | AU98: 5 | AV98: 6 | AW98: 8 | AX98: 19 | AY98: 7 | AZ98: 10 | BA98: 10 | BB98: 27 | BC98: 3 | BD98: 5 | BE98: 5 | BF98: 8 | BG98: 5 | BH98: 8 | BI98: 13 | BJ98: 21 | BK98: 34 | BL98: 440 | BM98: 4 | BN98: 4 | BO98: 6 | BP98: 14 | BQ98: 4 | BR98: 7 | BS98: 7 | BT98: 18 | BU98: ناجحة | BV98: 81 | BW98: 81
A99: 92 | B99: 207 | C99: اسم 195 | D99: 6/1 | F99: 1387 | G99: 8 | H99: 5 | I99: 12 | J99: 25 | K99: 8 | L99: 3 | M99: 9 | N99: 20 | O99: 5 | P99: 6 | Q99: 5 | R99: 16 | S99: 8 | T99: 11 | U99: 6 | V99: 25 | W99: 8 | X99: 15 | Y99: 19 | Z99: 42 | AA99: 9 | AB99: 15 | AC99: 15 | AD99: 39 | AE99: 9 | AF99: 15 | AG99: 18 | AH99: 42 | AI99: 9 | AJ99: 14 | AK99: 20 | AL99: 43 | AM99: 9 | AN99: 15 | AO99: 18 | AP99: 42 | AQ99: 9 | AR99: 17 | AS99: 20 | AT99: 46 | AU99: 5 | AV99: 8 | AW99: 10 | AX99: 23 | AY99: 7 | AZ99: 9 | BA99: 9 | BB99: 25 | BC99: 3 | BD99: 5 | BE99: 5 | BF99: 8 | BG99: 5 | BH99: 8 | BI99: 13 | BJ99: 21 | BK99: 34 | BL99: 422 | BM99: 4 | BN99: 5 | BO99: 6 | BP99: 15 | BQ99: 4 | BR99: 6 | BS99: 6 | BT99: 16 | BU99: ناجحة | BV99: 146 | BW99: 146
A100: 93 | B100: 209 | C100: اسم 197 | D100: 6/1 | F100: 1389 | G100: 8 | H100: 6 | I100: 12 | J100: 26 | K100: 8 | L100: 8 | M100: 8 | N100: 24 | O100: 5 | P100: 7 | Q100: 5 | R100: 17 | S100: 8 | T100: 11 | U100: 16 | V100: 35 | W100: 8 | X100: 14 | Y100: 17 | Z100: 39 | AA100: 9 | AB100: 14 | AC100: 15 | AD100: 38 | AE100: 9 | AF100: 9 | AG100: 14 | AH100: 32 | AI100: 9 | AJ100: 13 | AK100: 13 | AL100: 35 | AM100: 9 | AN100: 12 | AO100: 18 | AP100: 39 | AQ100: 9 | AR100: 15 | AS100: 20 | AT100: 44 | AU100: 5 | AV100: 7 | AW100: 7 | AX100: 19 | AY100: 7 | AZ100: 5 | BA100: 9 | BB100: 21 | BC100: 3 | BD100: 5 | BE100: 5 | BF100: 5 | BG100: 5 | BH100: 5 | BI100: 13 | BJ100: 15 | BK100: 28 | BL100: 397 | BM100: 4 | BN100: 5 | BO100: 6 | BP100: 15 | BQ100: 4 | BR100: 6 | BS100: 6 | BT100: 16 | BU100: ناجحة | BV100: 233 | BW100: 233
A101: 94 | B101: 211 | C101: اسم 199 | D101: 6/1 | F101: 1391 | G101: 8 | H101: 7 | I101: 14 | J101: 29 | K101: 8 | L101: 13 | M101: 14 | N101: 35 | O101: 5 | P101: 6 | Q101: 5 | R101: 16 | S101: 8 | T101: 11 | U101: 18 | V101: 37 | W101: 8 | X101: 12 | Y101: 14 | Z101: 34 | AA101: 9 | AB101: 18 | AC101: 11 | AD101: 38 | AE101: 9 | AF101: 11 | AG101: 18 | AH101: 38 | AI101: 9 | AJ101: 11 | AK101: 18 | AL101: 38 | AM101: 9 | AN101: 18 | AO101: 13 | AP101: 40 | AQ101: 9 | AR101: 20 | AS101: 19 | AT101: 48 | AU101: 5 | AV101: 12 | AW101: 11 | AX101: 28 | AY101: 7 | AZ101: 5 | BA101: 9 | BB101: 21 | BC101: 3 | BD101: 5 | BE101: 6 | BF101: 10 | BG101: 6 | BH101: 10 | BI101: 15 | BJ101: 25 | BK101: 40 | BL101: 442 | BM101: 4 | BN101: 6 | BO101: 6 | BP101: 16 | BQ101: 4 | BR101: 6 | BS101: 6 | BT101: 16 | BU101: ناجحة | BV101: 77 | BW101: 77
A102: 95 | B102: 212 | C102: اسم 2 | D102: 1/1 | F102: 1392 | G102: 8 | H102: 10 | I102: 7 | J102: 25 | K102: 8 | L102: 7 | M102: 5 | N102: 20 | O102: 5 | P102: 5 | Q102: 5 | R102: 15 | S102: 8 | T102: 11 | U102: 17 | V102: 36 | W102: 8 | X102: 10 | Y102: 11 | Z102: 29 | AA102: 9 | AB102: 13 | AC102: 16 | AD102: 38 | AE102: 9 | AF102: 10 | AG102: 14 | AH102: 33 | AI102: 9 | AJ102: 12 | AK102: 18 | AL102: 39 | AM102: 9 | AN102: 11 | AO102: 10 | AP102: 30 | AQ102: 9 | AR102: 18 | AS102: 20 | AT102: 47 | AU102: 5 | AV102: 4 | AW102: 6 | AX102: 15 | AY102: 7 | AZ102: 6 | BA102: 9 | BB102: 22 | BC102: 3 | BD102: 5 | BE102: 6 | BF102: 9 | BG102: 6 | BH102: 9 | BI102: 15 | BJ102: 23 | BK102: 38 | BL102: 387 | BM102: 4 | BN102: 3 | BO102: 6 | BP102: 13 | BQ102: 4 | BR102: 6 | BS102: 6 | BT102: 16 | BU102: ناجحة | BV102: 273 | BW102: 273
A103: 96 | B103: 213 | C103: اسم 20 | D103: 1/1 | F103: 1393 | G103: 8 | H103: 8 | I103: 9 | J103: 25 | K103: 8 | L103: 6 | M103: 13 | N103: 27 | O103: 5 | P103: 7 | Q103: 3 | R103: 15 | S103: 8 | T103: 6 | U103: 18 | V103: 32 | W103: 8 | X103: 12 | Y103: 14 | Z103: 34 | AA103: 9 | AB103: 12 | AC103: 16 | AD103: 37 | AE103: 9 | AF103: 14 | AG103: 19 | AH103: 42 | AI103: 9 | AJ103: 14 | AK103: 18 | AL103: 41 | AM103: 9 | AN103: 17 | AO103: 18 | AP103: 44 | AQ103: 9 | AR103: 12 | AS103: 19 | AT103: 40 | AU103: 5 | AV103: 7 | AW103: 10 | AX103: 22 | AY103: 7 | AZ103: 6 | BA103: 9 | BB103: 22 | BC103: 3 | BD103: 5 | BE103: 6 | BF103: 10 | BG103: 6 | BH103: 10 | BI103: 15 | BJ103: 25 | BK103: 40 | BL103: 421 | BM103: 4 | BN103: 7 | BO103: 6 | BP103: 17 | BQ103: 4 | BR103: 7 | BS103: 7 | BT103: 18 | BU103: ناجحة | BV103: 149 | BW103: 149
A104: 97 | B104: 214 | C104: اسم 200 | D104: 6/1 | F104: 1394 | G104: 8 | H104: 11 | I104: 15 | J104: 34 | K104: 8 | L104: 18 | M104: 17 | N104: 43 | O104: 5 | P104: 7 | Q104: 4 | R104: 16 | S104: 8 | T104: 17 | U104: 16 | V104: 41 | W104: 8 | X104: 18 | Y104: 19 | Z104: 45 | AA104: 9 | AB104: 14 | AC104: 14 | AD104: 37 | AE104: 9 | AF104: 18 | AG104: 20 | AH104: 47 | AI104: 9 | AJ104: 18 | AK104: 19 | AL104: 46 | AM104: 9 | AN104: 18 | AO104: 18 | AP104: 45 | AQ104: 9 | AR104: 20 | AS104: 19 | AT104: 48 | AU104: 5 | AV104: 11 | AW104: 11 | AX104: 27 | AY104: 7 | AZ104: 13 | BA104: 13 | BB104: 33 | BC104: 3 | BD104: 5 | BE104: 6 | BF104: 10 | BG104: 6 | BH104: 10 | BI104: 15 | BJ104: 25 | BK104: 40 | BL104: 502 | BM104: 4 | BN104: 8 | BO104: 6 | BP104: 18 | BQ104: 4 | BR104: 8 | BS104: 8 | BT104: 20 | BU104: ناجحة | BV104: 2 | BW104: 2
A105: 98 | B105: 215 | C105: اسم 201 | D105: 6/1 | F105: 1395 | G105: 8 | H105: 7 | I105: 11 | J105: 26 | K105: 8 | L105: 7 | M105: 5 | N105: 20 | O105: 5 | P105: 8 | Q105: 5 | R105: 18 | S105: 8 | T105: 12 | U105: 5 | V105: 25 | W105: 8 | X105: 9 | Y105: 13 | Z105: 30 | AA105: 9 | AB105: 12 | AC105: 15 | AD105: 36 | AE105: 9 | AF105: 16 | AG105: 19 | AH105: 44 | AI105: 9 | AJ105: 12 | AK105: 18 | AL105: 39 | AM105: 9 | AN105: 16 | AO105: 18 | AP105: 43 | AQ105: 9 | AR105: 20 | AS105: 17 | AT105: 46 | AU105: 5 | AV105: 4 | AW105: 7 | AX105: 16 | AY105: 7 | AZ105: 7 | BA105: 7 | BB105: 21 | BC105: 3 | BD105: 5 | BE105: 5 | BF105: 7 | BG105: 5 | BH105: 7 | BI105: 13 | BJ105: 19 | BK105: 32 | BL105: 396 | BM105: 4 | BN105: 6 | BO105: 6 | BP105: 16 | BQ105: 4 | BR105: 7 | BS105: 7 | BT105: 18 | BU105: ناجحة | BV105: 238 | BW105: 238
A106: 99 | B106: 216 | C106: اسم 202 | D106: 6/1 | F106: 1396 | G106: 8 | H106: 7 | I106: 10 | J106: 25 | K106: 8 | L106: 7 | M106: 5 | N106: 20 | O106: 5 | P106: 4 | Q106: 6 | R106: 15 | S106: 8 | T106: 11 | U106: 6 | V106: 25 | W106: 8 | X106: 7 | Y106: 12 | Z106: 27 | AA106: 9 | AB106: 11 | AC106: 18 | AD106: 38 | AE106: 9 | AF106: 10 | AG106: 18 | AH106: 37 | AI106: 9 | AJ106: 15 | AK106: 19 | AL106: 43 | AM106: 9 | AN106: 16 | AO106: 17 | AP106: 42 | AQ106: 9 | AR106: 15 | AS106: 17 | AT106: 41 | AU106: 5 | AV106: 2 | AW106: 9 | AX106: 16 | AY106: 7 | AZ106: 4 | BA106: 9 | BB106: 20 | BC106: 3 | BD106: 5 | BE106: 5 | BF106: 7 | BG106: 5 | BH106: 7 | BI106: 13 | BJ106: 19 | BK106: 32 | BL106: 381 | BM106: 4 | BN106: 3 | BO106: 6 | BP106: 13 | BQ106: 4 | BR106: 4 | BS106: 4 | BT106: 12 | BU106: ناجحة | BV106: 288 | BW106: 288
A107: 100 | B107: 218 | C107: اسم 204 | D107: 6/1 | F107: 1398 | G107: 8 | H107: 8 | I107: 9 | J107: 25 | K107: 8 | L107: 5 | M107: 8 | N107: 21 | O107: 5 | P107: 5 | Q107: 7 | R107: 17 | S107: 8 | T107: 11 | U107: 6 | V107: 25 | W107: 8 | X107: 6 | Y107: 12 | Z107: 26 | AA107: 9 | AB107: 10 | AC107: 17 | AD107: 36 | AE107: 9 | AF107: 10 | AG107: 18 | AH107: 37 | AI107: 9 | AJ107: 6 | AK107: 17 | AL107: 32 | AM107: 9 | AN107: 17 | AO107: 19 | AP107: 45 | AQ107: 9 | AR107: 14 | AS107: 18 | AT107: 41 | AU107: 5 | AV107: 3 | AW107: 8 | AX107: 16 | AY107: 7 | AZ107: 3 | BA107: 11 | BB107: 21 | BC107: 3 | BD107: 5 | BE107: 6 | BF107: 10 | BG107: 6 | BH107: 10 | BI107: 15 | BJ107: 25 | BK107: 40 | BL107: 382 | BM107: 4 | BN107: 2 | BO107: 6 | BP107: 12 | BQ107: 4 | BR107: 5 | BS107: 5 | BT107: 14 | BU107: ناجحة | BV107: 286 | BW107: 286
A108: 101 | B108: 219 | C108: اسم 205 | D108: 6/1 | F108: 1399 | G108: 8 | H108: 9 | I108: 8 | J108: 25 | K108: 8 | L108: 5 | M108: 10 | N108: 23 | O108: 5 | P108: 4 | Q108: 5 | R108: 14 | S108: 8 | T108: 17 | U108: 15 | V108: 40 | W108: 8 | X108: 15 | Y108: 13 | Z108: 36 | AA108: 9 | AB108: 15 | AC108: 17 | AD108: 41 | AE108: 9 | AF108: 13 | AG108: 19 | AH108: 41 | AI108: 9 | AJ108: 13 | AK108: 20 | AL108: 42 | AM108: 9 | AN108: 17 | AO108: 19 | AP108: 45 | AQ108: 9 | AR108: 18 | AS108: 18 | AT108: 45 | AU108: 5 | AV108: 5 | AW108: 6 | AX108: 16 | AY108: 7 | AZ108: 11 | BA108: 11 | BB108: 29 | BC108: 3 | BD108: 5 | BE108: 5 | BF108: 7 | BG108: 5 | BH108: 7 | BI108: 13 | BJ108: 19 | BK108: 32 | BL108: 429 | BM108: 4 | BN108: 6 | BO108: 6 | BP108: 16 | BQ108: 4 | BR108: 7 | BS108: 7 | BT108: 18 | BU108: ناجحة | BV108: 118 | BW108: 118
A109: 102 | B109: 220 | C109: اسم 206 | D109: 6/1 | F109: 1400 | G109: 8 | H109: 11 | I109: 11 | J109: 30 | K109: 8 | L109: 4 | M109: 8 | N109: 20 | O109: 5 | P109: 4 | Q109: 5 | R109: 14 | S109: 8 | T109: 11 | U109: 14 | V109: 33 | W109: 8 | X109: 18 | Y109: 15 | Z109: 41 | AA109: 9 | AB109: 15 | AC109: 17 | AD109: 41 | AE109: 9 | AF109: 14 | AG109: 20 | AH109: 43 | AI109: 9 | AJ109: 11 | AK109: 19 | AL109: 39 | AM109: 9 | AN109: 17 | AO109: 18 | AP109: 44 | AQ109: 9 | AR109: 18 | AS109: 19 | AT109: 46 | AU109: 5 | AV109: 4 | AW109: 9 | AX109: 18 | AY109: 7 | AZ109: 7 | BA109: 7 | BB109: 21 | BC109: 3 | BD109: 5 | BE109: 5 | BF109: 5 | BG109: 5 | BH109: 5 | BI109: 13 | BJ109: 15 | BK109: 28 | BL109: 418 | BM109: 4 | BN109: 5 | BO109: 6 | BP109: 15 | BQ109: 4 | BR109: 7 | BS109: 7 | BT109: 18 | BU109: ناجحة | BV109: 162 | BW109: 162
A110: 103 | B110: 221 | C110: اسم 207 | D110: 6/1 | F110: 1101 | G110: 8 | H110: 8 | I110: 14 | J110: 30 | K110: 8 | L110: 13 | M110: 16 | N110: 37 | O110: 5 | P110: 4 | Q110: 5 | R110: 14 | S110: 8 | T110: 15 | U110: 18 | V110: 41 | W110: 8 | X110: 18 | Y110: 16 | Z110: 42 | AA110: 9 | AB110: 18 | AC110: 17 | AD110: 44 | AE110: 9 | AF110: 12 | AG110: 18 | AH110: 39 | AI110: 9 | AJ110: 13 | AK110: 18 | AL110: 40 | AM110: 9 | AN110: 19 | AO110: 18 | AP110: 46 | AQ110: 9 | AR110: 19 | AS110: 18 | AT110: 46 | AU110: 5 | AV110: 9 | AW110: 11 | AX110: 25 | AY110: 7 | AZ110: 13 | BA110: 13 | BB110: 33 | BC110: 3 | BD110: 5 | BE110: 7 | BF110: 11 | BG110: 7 | BH110: 11 | BI110: 17 | BJ110: 27 | BK110: 44 | BL110: 481 | BM110: 4 | BN110: 8 | BO110: 6 | BP110: 18 | BQ110: 4 | BR110: 7 | BS110: 7 | BT110: 18 | BU110: ناجحة | BV110: 6 | BW110: 6
A111: 104 | B111: 222 | C111: اسم 208 | D111: 6/1 | F111: 1102 | G111: 8 | H111: 11 | I111: 11 | J111: 30 | K111: 8 | L111: 6 | M111: 9 | N111: 23 | O111: 5 | P111: 6 | Q111: 5 | R111: 16 | S111: 8 | T111: 11 | U111: 14 | V111: 33 | W111: 8 | X111: 18 | Y111: 10 | Z111: 36 | AA111: 9 | AB111: 15 | AC111: 14 | AD111: 38 | AE111: 9 | AF111: 14 | AG111: 16 | AH111: 39 | AI111: 9 | AJ111: 11 | AK111: 19 | AL111: 39 | AM111: 9 | AN111: 18 | AO111: 18 | AP111: 45 | AQ111: 9 | AR111: 18 | AS111: 14 | AT111: 41 | AU111: 5 | AV111: 10 | AW111: 11 | AX111: 26 | AY111: 7 | AZ111: 9 | BA111: 9 | BB111: 25 | BC111: 3 | BD111: 5 | BE111: 5 | BF111: 8 | BG111: 5 | BH111: 8 | BI111: 13 | BJ111: 21 | BK111: 34 | BL111: 425 | BM111: 4 | BN111: 7 | BO111: 6 | BP111: 17 | BQ111: 4 | BR111: 7 | BS111: 7 | BT111: 18 | BU111: ناجحة | BV111: 137 | BW111: 137
A112: 105 | B112: 223 | C112: اسم 209 | D112: 6/1 | F112: 1103 | G112: 8 | H112: 10 | I112: 12 | J112: 30 | K112: 8 | L112: 8 | M112: 12 | N112: 28 | O112: 5 | P112: 7 | Q112: 5 | R112: 17 | S112: 8 | T112: 13 | U112: 13 | V112: 34 | W112: 8 | X112: 16 | Y112: 19 | Z112: 43 | AA112: 9 | AB112: 15 | AC112: 14 | AD112: 38 | AE112: 9 | AF112: 17 | AG112: 19 | AH112: 45 | AI112: 9 | AJ112: 18 | AK112: 18 | AL112: 45 | AM112: 9 | AN112: 16 | AO112: 18 | AP112: 43 | AQ112: 9 | AR112: 17 | AS112: 19 | AT112: 45 | AU112: 5 | AV112: 5 | AW112: 9 | AX112: 19 | AY112: 7 | AZ112: 8 | BA112: 8 | BB112: 23 | BC112: 3 | BD112: 5 | BE112: 6 | BF112: 10 | BG112: 6 | BH112: 10 | BI112: 15 | BJ112: 25 | BK112: 40 | BL112: 450 | BM112: 4 | BN112: 6 | BO112: 6 | BP112: 16 | BQ112: 4 | BR112: 6 | BS112: 6 | BT112: 16 | BU112: ناجحة | BV112: 60 | BW112: 60
A113: 106 | B113: 226 | C113: اسم 211 | D113: 6/1 | F113: 1106 | G113: 8 | H113: 9 | I113: 10 | J113: 27 | K113: 8 | L113: 12 | M113: 12 | N113: 32 | O113: 5 | P113: 6 | Q113: 6 | R113: 17 | S113: 8 | T113: 13 | U113: 18 | V113: 39 | W113: 8 | X113: 19 | Y113: 14 | Z113: 41 | AA113: 9 | AB113: 15 | AC113: 12 | AD113: 36 | AE113: 9 | AF113: 10 | AG113: 18 | AH113: 37 | AI113: 9 | AJ113: 11 | AK113: 18 | AL113: 38 | AM113: 9 | AN113: 16 | AO113: 12 | AP113: 37 | AQ113: 9 | AR113: 17 | AS113: 19 | AT113: 45 | AU113: 5 | AV113: 5 | AW113: 8 | AX113: 18 | AY113: 7 | AZ113: 3 | BA113: 11 | BB113: 21 | BC113: 3 | BD113: 5 | BE113: 6 | BF113: 10 | BG113: 6 | BH113: 10 | BI113: 15 | BJ113: 25 | BK113: 40 | BL113: 428 | BM113: 4 | BN113: 7 | BO113: 6 | BP113: 17 | BQ113: 4 | BR113: 6 | BS113: 6 | BT113: 16 | BU113: ناجحة | BV113: 127 | BW113: 127
A114: 107 | B114: 227 | C114: اسم 212 | D114: 6/1 | F114: 1107 | G114: 8 | H114: 8 | I114: 11 | J114: 27 | K114: 8 | L114: 4 | M114: 8 | N114: 20 | O114: 5 | P114: 11 | Q114: 8 | R114: 24 | S114: 8 | T114: 17 | U114: 16 | V114: 41 | W114: 8 | X114: 18 | Y114: 15 | Z114: 41 | AA114: 9 | AB114: 18 | AC114: 13 | AD114: 40 | AE114: 9 | AF114: 14 | AG114: 19 | AH114: 42 | AI114: 9 | AJ114: 16 | AK114: 17 | AL114: 42 | AM114: 9 | AN114: 17 | AO114: 19 | AP114: 45 | AQ114: 9 | AR114: 17 | AS114: 20 | AT114: 46 | AU114: 5 | AV114: 11 | AW114: 11 | AX114: 27 | AY114: 7 | AZ114: 11 | BA114: 11 | BB114: 29 | BC114: 3 | BD114: 5 | BE114: 5 | BF114: 6 | BG114: 5 | BH114: 6 | BI114: 13 | BJ114: 17 | BK114: 30 | BL114: 454 | BM114: 4 | BN114: 7 | BO114: 6 | BP114: 17 | BQ114: 4 | BR114: 7 | BS114: 7 | BT114: 18 | BU114: ناجحة | BV114: 50 | BW114: 50
A115: 108 | B115: 228 | C115: اسم 213 | D115: 6/1 | F115: 1108 | G115: 8 | H115: 10 | I115: 10 | J115: 28 | K115: 8 | L115: 7 | M115: 9 | N115: 24 | O115: 5 | P115: 5 | Q115: 6 | R115: 16 | S115: 8 | T115: 13 | U115: 13 | V115: 34 | W115: 8 | X115: 12 | Y115: 13 | Z115: 33 | AA115: 9 | AB115: 12 | AC115: 19 | AD115: 40 | AE115: 9 | AF115: 13 | AG115: 18 | AH115: 40 | AI115: 9 | AJ115: 15 | AK115: 12 | AL115: 36 | AM115: 9 | AN115: 18 | AO115: 19 | AP115: 46 | AQ115: 9 | AR115: 16 | AS115: 7 | AT115: 32 | AU115: 5 | AV115: 3 | AW115: 8 | AX115: 16 | AY115: 7 | AZ115: 12 | BA115: 12 | BB115: 31 | BC115: 3 | BD115: 5 | BE115: 5 | BF115: 7 | BG115: 5 | BH115: 7 | BI115: 13 | BJ115: 19 | BK115: 32 | BL115: 408 | BM115: 4 | BN115: 7 | BO115: 6 | BP115: 17 | BQ115: 4 | BR115: 6 | BS115: 6 | BT115: 16 | BU115: ناجحة | BV115: 192 | BW115: 192
A116: 109 | B116: 229 | C116: اسم 214 | D116: 6/1 | F116: 1109 | G116: 8 | H116: 8 | I116: 11 | J116: 27 | K116: 8 | L116: 8 | M116: 9 | N116: 25 | O116: 5 | P116: 6 | Q116: 6 | R116: 17 | S116: 8 | T116: 10 | U116: 8 | V116: 26 | W116: 8 | X116: 13 | Y116: 10 | Z116: 31 | AA116: 9 | AB116: 13 | AC116: 11 | AD116: 33 | AE116: 9 | AF116: 10 | AG116: 19 | AH116: 38 | AI116: 9 | AJ116: 10 | AK116: 13 | AL116: 32 | AM116: 9 | AN116: 18 | AO116: 19 | AP116: 46 | AQ116: 9 | AR116: 13 | AS116: 19 | AT116: 41 | AU116: 5 | AV116: 4 | AW116: 6 | AX116: 15 | AY116: 7 | AZ116: 6 | BA116: 9 | BB116: 22 | BC116: 3 | BD116: 5 | BE116: 5 | BF116: 6 | BG116: 5 | BH116: 6 | BI116: 13 | BJ116: 17 | BK116: 30 | BL116: 383 | BM116: 4 | BN116: 7 | BO116: 6 | BP116: 17 | BQ116: 4 | BR116: 5 | BS116: 5 | BT116: 14 | BU116: ناجحة | BV116: 283 | BW116: 283
A117: 110 | B117: 230 | C117: اسم 215 | D117: 6/1 | F117: 1110 | G117: 8 | H117: 10 | I117: 12 | J117: 30 | K117: 8 | L117: 9 | M117: 13 | N117: 30 | O117: 5 | P117: 7 | Q117: 5 | R117: 17 | S117: 8 | T117: 13 | U117: 16 | V117: 37 | W117: 8 | X117: 16 | Y117: 13 | Z117: 37 | AA117: 9 | AB117: 16 | AC117: 12 | AD117: 37 | AE117: 9 | AF117: 15 | AG117: 18 | AH117: 42 | AI117: 9 | AJ117: 13 | AK117: 19 | AL117: 41 | AM117: 9 | AN117: 18 | AO117: 19 | AP117: 46 | AQ117: 9 | AR117: 19 | AS117: 19 | AT117: 47 | AU117: 5 | AV117: 12 | AW117: 11 | AX117: 28 | AY117: 7 | AZ117: 6 | BA117: 9 | BB117: 22 | BC117: 3 | BD117: 5 | BE117: 5 | BF117: 8 | BG117: 5 | BH117: 8 | BI117: 13 | BJ117: 21 | BK117: 34 | BL117: 448 | BM117: 4 | BN117: 8 | BO117: 6 | BP117: 18 | BQ117: 4 | BR117: 6 | BS117: 6 | BT117: 16 | BU117: ناجحة | BV117: 67 | BW117: 67
A118: 111 | B118: 231 | C118: اسم 216 | D118: 6/1 | F118: 1111 | G118: 8 | H118: 8 | I118: 9 | J118: 25 | K118: 8 | L118: 7 | M118: 5 | N118: 20 | O118: 5 | P118: 4 | Q118: 7 | R118: 16 | S118: 8 | T118: 12 | U118: 17 | V118: 37 | W118: 8 | X118: 11 | Y118: 8 | Z118: 27 | AA118: 9 | AB118: 11 | AC118: 13 | AD118: 33 | AE118: 9 | AF118: 10 | AG118: 18 | AH118: 37 | AI118: 9 | AJ118: 10 | AK118: 14 | AL118: 33 | AM118: 9 | AN118: 18 | AO118: 19 | AP118: 46 | AQ118: 9 | AR118: 20 | AS118: 19 | AT118: 48 | AU118: 5 | AV118: 2 | AW118: 8 | AX118: 15 | AY118: 7 | AZ118: 5 | BA118: 9 | BB118: 21 | BC118: 3 | BD118: 5 | BE118: 5 | BF118: 6 | BG118: 5 | BH118: 6 | BI118: 13 | BJ118: 17 | BK118: 30 | BL118: 388 | BM118: 4 | BN118: 5 | BO118: 6 | BP118: 15 | BQ118: 4 | BR118: 5 | BS118: 5 | BT118: 14 | BU118: ناجحة | BV118: 267 | BW118: 267
A119: 112 | B119: 232 | C119: اسم 217 | D119: 7/1 | F119: 1112 | G119: 8 | H119: 7 | I119: 14 | J119: 29 | K119: 8 | L119: 4 | M119: 8 | N119: 20 | O119: 5 | P119: 6 | Q119: 7 | R119: 18 | S119: 8 | T119: 9 | U119: 15 | V119: 32 | W119: 8 | X119: 15 | Y119: 14 | Z119: 37 | AA119: 9 | AB119: 15 | AC119: 15 | AD119: 39 | AE119: 9 | AF119: 9 | AG119: 16 | AH119: 34 | AI119: 9 | AJ119: 12 | AK119: 18 | AL119: 39 | AM119: 9 | AN119: 17 | AO119: 19 | AP119: 45 | AQ119: 9 | AR119: 18 | AS119: 16 | AT119: 43 | AU119: 5 | AV119: 4 | AW119: 7 | AX119: 16 | AY119: 7 | AZ119: 7 | BA119: 7 | BB119: 21 | BC119: 3 | BD119: 5 | BE119: 5 | BF119: 7 | BG119: 5 | BH119: 3 | BI119: 13 | BJ119: 15 | BK119: 28 | BL119: 401 | BM119: 4 | BN119: 6 | BO119: 6 | BP119: 16 | BQ119: 4 | BR119: 7 | BS119: 7 | BT119: 18 | BU119: ناجحة | BV119: 222 | BW119: 222
A120: 113 | B120: 233 | C120: اسم 218 | D120: 7/1 | F120: 1113 | G120: 8 | H120: 9 | I120: 8 | J120: 25 | K120: 8 | L120: 7 | M120: 10 | N120: 25 | O120: 5 | P120: 6 | Q120: 7 | R120: 18 | S120: 8 | T120: 7 | U120: 17 | V120: 32 | W120: 8 | X120: 14 | Y120: 9 | Z120: 31 | AA120: 9 | AB120: 14 | AC120: 15 | AD120: 38 | AE120: 9 | AF120: 10 | AG120: 20 | AH120: 39 | AI120: 9 | AJ120: 9 | AK120: 19 | AL120: 37 | AM120: 9 | AN120: 17 | AO120: 19 | AP120: 45 | AQ120: 9 | AR120: 19 | AS120: 15 | AT120: 43 | AU120: 5 | AV120: 8 | AW120: 8 | AX120: 21 | AY120: 7 | AZ120: 9 | BA120: 9 | BB120: 25 | BC120: 3 | BD120: 5 | BE120: 6 | BF120: 10 | BG120: 6 | BH120: 10 | BI120: 15 | BJ120: 25 | BK120: 40 | BL120: 419 | BM120: 4 | BN120: 3 | BO120: 6 | BP120: 13 | BQ120: 4 | BR120: 6 | BS120: 6 | BT120: 16 | BU120: ناجحة | BV120: 156 | BW120: 156
A121: 114 | B121: 234 | C121: اسم 219 | D121: 7/1 | F121: 1114 | G121: 8 | H121: 11 | I121: 6 | J121: 25 | K121: 8 | L121: 6 | M121: 8 | N121: 22 | O121: 5 | P121: 6 | Q121: 7 | R121: 18 | S121: 8 | T121: 5 | U121: 13 | V121: 26 | W121: 8 | X121: 14 | Y121: 12 | Z121: 34 | AA121: 9 | AB121: 14 | AC121: 14 | AD121: 37 | AE121: 9 | AF121: 10 | AG121: 20 | AH121: 39 | AI121: 9 | AJ121: 7 | AK121: 19 | AL121: 35 | AM121: 9 | AN121: 14 | AO121: 8 | AP121: 31 | AQ121: 9 | AR121: 17 | AS121: 16 | AT121: 42 | AU121: 5 | AV121: 6 | AW121: 7 | AX121: 18 | AY121: 7 | AZ121: 6 | BA121: 9 | BB121: 22 | BC121: 3 | BD121: 5 | BE121: 6 | BF121: 10 | BG121: 6 | BH121: 10 | BI121: 15 | BJ121: 25 | BK121: 40 | BL121: 389 | BM121: 4 | BN121: 2 | BO121: 6 | BP121: 12 | BQ121: 4 | BR121: 5 | BS121: 5 | BT121: 14 | BU121: ناجحة | BV121: 263 | BW121: 263
A122: 115 | B122: 235 | C122: اسم 22 | D122: 1/1 | F122: 1115 | G122: 8 | H122: 10 | I122: 7 | J122: 25 | K122: 8 | L122: 7 | M122: 5 | N122: 20 | O122: 5 | P122: 6 | Q122: 7 | R122: 18 | S122: 8 | T122: 13 | U122: 15 | V122: 36 | W122: 8 | X122: 10 | Y122: 9 | Z122: 27 | AA122: 9 | AB122: 10 | AC122: 14 | AD122: 33 | AE122: 9 | AF122: 9 | AG122: 17 | AH122: 35 | AI122: 9 | AJ122: 8 | AK122: 18 | AL122: 35 | AM122: 9 | AN122: 9 | AO122: 12 | AP122: 30 | AQ122: 9 | AR122: 8 | AS122: 14 | AT122: 31 | AU122: 5 | AV122: 2 | AW122: 8 | AX122: 15 | AY122: 7 | AZ122: 6 | BA122: 9 | BB122: 22 | BC122: 3 | BD122: 5 | BE122: 5 | BF122: 8 | BG122: 5 | BH122: 8 | BI122: 13 | BJ122: 21 | BK122: 34 | BL122: 361 | BM122: 4 | BN122: 2 | BO122: 6 | BP122: 12 | BQ122: 4 | BR122: 5 | BS122: 5 | BT122: 14 | BU122: ناجحة | BV122: 314 | BW122: 314
A123: 116 | B123: 236 | C123: اسم 220 | D123: 7/1 | F123: 1116 | G123: 8 | H123: 9 | I123: 8 | J123: 25 | K123: 8 | L123: 7 | M123: 5 | N123: 20 | O123: 5 | P123: 6 | Q123: 7 | R123: 18 | S123: 8 | T123: 14 | U123: 16 | V123: 38 | W123: 8 | X123: 17 | Y123: 16 | Z123: 41 | AA123: 9 | AB123: 17 | AC123: 15 | AD123: 41 | AE123: 9 | AF123: 13 | AG123: 19 | AH123: 41 | AI123: 9 | AJ123: 12 | AK123: 19 | AL123: 40 | AM123: 9 | AN123: 13 | AO123: 8 | AP123: 30 | AQ123: 9 | AR123: 18 | AS123: 16 | AT123: 43 | AU123: 5 | AV123: 9 | AW123: 5 | AX123: 19 | AY123: 7 | AZ123: 11 | BA123: 11 | BB123: 29 | BC123: 3 | BD123: 5 | BE123: 5 | BF123: 6 | BG123: 5 | BH123: 6 | BI123: 13 | BJ123: 17 | BK123: 30 | BL123: 415 | BM123: 4 | BN123: 5 | BO123: 6 | BP123: 15 | BQ123: 4 | BR123: 5 | BS123: 5 | BT123: 14 | BU123: ناجحة | BV123: 171 | BW123: 171
A124: 117 | B124: 237 | C124: اسم 221 | D124: 7/1 | F124: 1117 | G124: 8 | H124: 5 | I124: 12 | J124: 25 | K124: 8 | L124: 5 | M124: 10 | N124: 23 | O124: 5 | P124: 7 | Q124: 7 | R124: 19 | S124: 8 | T124: 12 | U124: 15 | V124: 35 | W124: 8 | X124: 16 | Y124: 15 | Z124: 39 | AA124: 9 | AB124: 16 | AC124: 16 | AD124: 41 | AE124: 9 | AF124: 12 | AG124: 18 | AH124: 39 | AI124: 9 | AJ124: 16 | AK124: 19 | AL124: 44 | AM124: 9 | AN124: 14 | AO124: 9 | AP124: 32 | AQ124: 9 | AR124: 20 | AS124: 18 | AT124: 47 | AU124: 5 | AV124: 5 | AW124: 10 | AX124: 20 | AY124: 7 | AZ124: 10 | BA124: 10 | BB124: 27 | BC124: 3 | BD124: 5 | BE124: 5 | BF124: 8 | BG124: 5 | BH124: 8 | BI124: 13 | BJ124: 21 | BK124: 34 | BL124: 425 | BM124: 4 | BN124: 3 | BO124: 6 | BP124: 13 | BQ124: 4 | BR124: 6 | BS124: 6 | BT124: 16 | BU124: ناجحة | BV124: 137 | BW124: 137
A125: 118 | B125: 238 | C125: اسم 222 | D125: 7/1 | F125: 1118 | G125: 8 | H125: 6 | I125: 11 | J125: 25 | K125: 8 | L125: 3 | M125: 12 | N125: 23 | O125: 5 | P125: 6 | Q125: 7 | R125: 18 | S125: 8 | T125: 9 | U125: 13 | V125: 30 | W125: 8 | X125: 11 | Y125: 14 | Z125: 33 | AA125: 9 | AB125: 11 | AC125: 18 | AD125: 38 | AE125: 9 | AF125: 12 | AG125: 19 | AH125: 40 | AI125: 9 | AJ125: 12 | AK125: 20 | AL125: 41 | AM125: 9 | AN125: 14 | AO125: 9 | AP125: 32 | AQ125: 9 | AR125: 17 | AS125: 18 | AT125: 44 | AU125: 5 | AV125: 4 | AW125: 9 | AX125: 18 | AY125: 7 | AZ125: 11 | BA125: 11 | BB125: 29 | BC125: 3 | BD125: 5 | BE125: 5 | BF125: 8 | BG125: 5 | BH125: 8 | BI125: 13 | BJ125: 21 | BK125: 34 | BL125: 405 | BM125: 4 | BN125: 5 | BO125: 6 | BP125: 15 | BQ125: 4 | BR125: 6 | BS125: 6 | BT125: 16 | BU125: ناجحة | BV125: 204 | BW125: 204
A126: 119 | B126: 239 | C126: اسم 223 | D126: 7/1 | F126: 1119 | G126: 8 | H126: 8 | I126: 9 | J126: 25 | K126: 8 | L126: 7 | M126: 8 | N126: 23 | O126: 5 | P126: 7 | Q126: 7 | R126: 19 | S126: 8 | T126: 17 | U126: 18 | V126: 43 | W126: 8 | X126: 15 | Y126: 17 | Z126: 40 | AA126: 9 | AB126: 15 | AC126: 15 | AD126: 39 | AE126: 9 | AF126: 12 | AG126: 18 | AH126: 39 | AI126: 9 | AJ126: 16 | AK126: 19 | AL126: 44 | AM126: 9 | AN126: 14 | AO126: 13 | AP126: 36 | AQ126: 9 | AR126: 16 | AS126: 18 | AT126: 43 | AU126: 5 | AV126: 3 | AW126: 8 | AX126: 16 | AY126: 7 | AZ126: 5 | BA126: 9 | BB126: 21 | BC126: 3 | BD126: 5 | BE126: 5 | BF126: 7 | BG126: 5 | BH126: 7 | BI126: 13 | BJ126: 19 | BK126: 32 | BL126: 420 | BM126: 4 | BN126: 3 | BO126: 6 | BP126: 13 | BQ126: 4 | BR126: 7 | BS126: 7 | BT126: 18 | BU126: ناجحة | BV126: 152 | BW126: 152
A127: 120 | B127: 240 | C127: اسم 224 | D127: 7/1 | F127: 1120 | G127: 8 | H127: 11 | I127: 7 | J127: 26 | K127: 8 | L127: 7 | M127: 5 | N127: 20 | O127: 5 | P127: 7 | Q127: 7 | R127: 19 | S127: 8 | T127: 7 | U127: 17 | V127: 32 | W127: 8 | X127: 13 | Y127: 14 | Z127: 35 | AA127: 9 | AB127: 13 | AC127: 17 | AD127: 39 | AE127: 9 | AF127: 5 | AG127: 17 | AH127: 31 | AI127: 9 | AJ127: 12 | AK127: 18 | AL127: 39 | AM127: 9 | AN127: 14 | AO127: 15 | AP127: 38 | AQ127: 9 | AR127: 15 | AS127: 18 | AT127: 42 | AU127: 5 | AV127: 2 | AW127: 8 | AX127: 15 | AY127: 7 | AZ127: 5 | BA127: 9 | BB127: 21 | BC127: 3 | BD127: 5 | BE127: 5 | BF127: 8 | BG127: 5 | BH127: 8 | BI127: 13 | BJ127: 21 | BK127: 34 | BL127: 391 | BM127: 4 | BN127: 3 | BO127: 6 | BP127: 13 | BQ127: 4 | BR127: 6 | BS127: 6 | BT127: 16 | BU127: ناجحة | BV127: 259 | BW127: 259
A128: 121 | B128: 242 | C128: اسم 226 | D128: 7/1 | F128: 1122 | G128: 8 | H128: 7 | I128: 10 | J128: 25 | K128: 8 | L128: 4 | M128: 8 | N128: 20 | O128: 5 | P128: 10 | Q128: 6 | R128: 21 | S128: 8 | T128: 17 | U128: 17 | V128: 42 | W128: 8 | X128: 19 | Y128: 15 | Z128: 42 | AA128: 9 | AB128: 18 | AC128: 15 | AD128: 42 | AE128: 9 | AF128: 14 | AG128: 20 | AH128: 43 | AI128: 9 | AJ128: 16 | AK128: 19 | AL128: 44 | AM128: 9 | AN128: 13 | AO128: 17 | AP128: 39 | AQ128: 9 | AR128: 20 | AS128: 20 | AT128: 49 | AU128: 5 | AV128: 9 | AW128: 9 | AX128: 23 | AY128: 7 | AZ128: 8 | BA128: 8 | BB128: 23 | BC128: 3 | BD128: 5 | BE128: 5 | BF128: 7 | BG128: 5 | BH128: 7 | BI128: 13 | BJ128: 19 | BK128: 32 | BL128: 445 | BM128: 4 | BN128: 5 | BO128: 6 | BP128: 15 | BQ128: 4 | BR128: 6 | BS128: 6 | BT128: 16 | BU128: ناجحة | BV128: 69 | BW128: 69
A129: 122 | B129: 243 | C129: اسم 227 | D129: 7/1 | F129: 1123 | G129: 8 | H129: 8 | I129: 9 | J129: 25 | K129: 8 | L129: 8 | M129: 6 | N129: 22 | O129: 5 | P129: 5 | Q129: 6 | R129: 16 | S129: 8 | T129: 11 | U129: 12 | V129: 31 | W129: 8 | X129: 16 | Y129: 10 | Z129: 34 | AA129: 9 | AB129: 17 | AC129: 15 | AD129: 41 | AE129: 9 | AF129: 10 | AG129: 17 | AH129: 36 | AI129: 9 | AJ129: 12 | AK129: 17 | AL129: 38 | AM129: 9 | AN129: 13 | AO129: 13 | AP129: 35 | AQ129: 9 | AR129: 13 | AS129: 17 | AT129: 39 | AU129: 5 | AV129: 5 | AW129: 5 | AX129: 15 | AY129: 7 | AZ129: 8 | BA129: 8 | BB129: 23 | BC129: 3 | BD129: 5 | BE129: 5 | BF129: 8 | BG129: 5 | BH129: 8 | BI129: 13 | BJ129: 21 | BK129: 34 | BL129: 389 | BM129: 4 | BN129: 2 | BO129: 6 | BP129: 12 | BQ129: 4 | BR129: 4 | BS129: 4 | BT129: 12 | BU129: ناجحة | BV129: 263 | BW129: 263
A130: 123 | B130: 245 | C130: اسم 229 | D130: 7/1 | F130: 1125 | G130: 8 | H130: 8 | I130: 14 | J130: 30 | K130: 8 | L130: 7 | M130: 12 | N130: 27 | O130: 5 | P130: 6 | Q130: 4 | R130: 15 | S130: 8 | T130: 11 | U130: 6 | V130: 25 | W130: 8 | X130: 19 | Y130: 14 | Z130: 41 | AA130: 9 | AB130: 16 | AC130: 18 | AD130: 43 | AE130: 9 | AF130: 12 | AG130: 17 | AH130: 38 | AI130: 9 | AJ130: 16 | AK130: 17 | AL130: 42 | AM130: 9 | AN130: 18 | AO130: 15 | AP130: 42 | AQ130: 9 | AR130: 18 | AS130: 18 | AT130: 45 | AU130: 5 | AV130: 7 | AW130: 4 | AX130: 16 | AY130: 7 | AZ130: 8 | BA130: 8 | BB130: 23 | BC130: 3 | BD130: 5 | BE130: 5 | BF130: 8 | BG130: 5 | BH130: 8 | BI130: 13 | BJ130: 21 | BK130: 34 | BL130: 421 | BM130: 4 | BN130: 8 | BO130: 6 | BP130: 18 | BQ130: 4 | BR130: 8 | BS130: 8 | BT130: 20 | BU130: ناجحة | BV130: 149 | BW130: 149
A131: 124 | B131: 246 | C131: اسم 23 | D131: 1/1 | F131: 1126 | G131: 8 | H131: 7 | I131: 10 | J131: 25 | K131: 8 | L131: 6 | M131: 6 | N131: 20 | O131: 5 | P131: 7 | Q131: 6 | R131: 18 | S131: 8 | T131: 12 | U131: 16 | V131: 36 | W131: 8 | X131: 11 | Y131: 12 | Z131: 31 | AA131: 9 | AB131: 16 | AC131: 15 | AD131: 40 | AE131: 9 | AF131: 10 | AG131: 20 | AH131: 39 | AI131: 9 | AJ131: 9 | AK131: 10 | AL131: 28 | AM131: 9 | AN131: 13 | AO131: 15 | AP131: 37 | AQ131: 9 | AR131: 18 | AS131: 15 | AT131: 42 | AU131: 5 | AV131: 6 | AW131: 8 | AX131: 19 | AY131: 7 | AZ131: 7 | BA131: 7 | BB131: 21 | BC131: 3 | BD131: 5 | BE131: 5 | BF131: 8 | BG131: 5 | BH131: 8 | BI131: 13 | BJ131: 21 | BK131: 34 | BL131: 390 | BM131: 4 | BN131: 4 | BO131: 6 | BP131: 14 | BQ131: 4 | BR131: 5 | BS131: 5 | BT131: 14 | BU131: ناجحة | BV131: 261 | BW131: 261
A132: 125 | B132: 247 | C132: اسم 230 | D132: 7/1 | F132: 1127 | G132: 8 | H132: 5 | I132: 12 | J132: 25 | K132: 8 | L132: 7 | M132: 5 | N132: 20 | O132: 5 | P132: 4 | Q132: 4 | R132: 13 | S132: 8 | T132: 12 | U132: 19 | V132: 39 | W132: 8 | X132: 15 | Y132: 17 | Z132: 40 | AA132: 9 | AB132: 14 | AC132: 15 | AD132: 38 | AE132: 9 | AF132: 10 | AG132: 18 | AH132: 37 | AI132: 9 | AJ132: 11 | AK132: 18 | AL132: 38 | AM132: 9 | AN132: 9 | AO132: 15 | AP132: 33 | AQ132: 9 | AR132: 15 | AS132: 15 | AT132: 39 | AU132: 5 | AV132: 5 | AW132: 5 | AX132: 15 | AY132: 7 | AZ132: 9 | BA132: 9 | BB132: 25 | BC132: 3 | BD132: 5 | BE132: 5 | BF132: 8 | BG132: 5 | BH132: 8 | BI132: 13 | BJ132: 21 | BK132: 34 | BL132: 396 | BM132: 4 | BN132: 5 | BO132: 6 | BP132: 15 | BQ132: 4 | BR132: 5 | BS132: 5 | BT132: 14 | BU132: ناجحة | BV132: 238 | BW132: 238
A133: 126 | B133: 249 | C133: اسم 232 | D133: 7/1 | F133: 1129 | G133: 8 | H133: 7 | I133: 10 | J133: 25 | K133: 8 | L133: 5 | M133: 7 | N133: 20 | O133: 5 | P133: 8 | Q133: 7 | R133: 20 | S133: 8 | T133: 17 | U133: 18 | V133: 43 | W133: 8 | X133: 9 | Y133: 13 | Z133: 30 | AA133: 9 | AB133: 15 | AC133: 15 | AD133: 39 | AE133: 9 | AF133: 10 | AG133: 19 | AH133: 38 | AI133: 9 | AJ133: 11 | AK133: 19 | AL133: 39 | AM133: 9 | AN133: 13 | AO133: 18 | AP133: 40 | AQ133: 9 | AR133: 12 | AS133: 20 | AT133: 41 | AU133: 5 | AV133: 8 | AW133: 6 | AX133: 19 | AY133: 7 | AZ133: 4 | BA133: 9 | BB133: 20 | BC133: 3 | BD133: 5 | BE133: 5 | BF133: 8 | BG133: 5 | BH133: 8 | BI133: 13 | BJ133: 21 | BK133: 34 | BL133: 408 | BM133: 4 | BN133: 4 | BO133: 6 | BP133: 14 | BQ133: 4 | BR133: 4 | BS133: 4 | BT133: 12 | BU133: ناجحة | BV133: 192 | BW133: 192
A134: 127 | B134: 250 | C134: اسم 233 | D134: 7/1 | F134: 1130 | G134: 8 | H134: 7 | I134: 13 | J134: 28 | K134: 8 | L134: 5 | M134: 7 | N134: 20 | O134: 5 | P134: 5 | Q134: 6 | R134: 16 | S134: 8 | T134: 18 | U134: 18 | V134: 44 | W134: 8 | X134: 20 | Y134: 14 | Z134: 42 | AA134: 9 | AB134: 18 | AC134: 16 | AD134: 43 | AE134: 9 | AF134: 13 | AG134: 19 | AH134: 41 | AI134: 9 | AJ134: 19 | AK134: 11 | AL134: 39 | AM134: 9 | AN134: 15 | AO134: 19 | AP134: 43 | AQ134: 9 | AR134: 20 | AS134: 20 | AT134: 49 | AU134: 5 | AV134: 12 | AW134: 12 | AX134: 29 | AY134: 7 | AZ134: 7 | BA134: 7 | BB134: 21 | BC134: 3 | BD134: 5 | BE134: 5 | BF134: 8 | BG134: 5 | BH134: 8 | BI134: 13 | BJ134: 21 | BK134: 34 | BL134: 449 | BM134: 4 | BN134: 7 | BO134: 6 | BP134: 17 | BQ134: 4 | BR134: 7 | BS134: 7 | BT134: 18 | BU134: ناجحة | BV134: 63 | BW134: 63
A135: 128 | B135: 252 | C135: اسم 235 | D135: 7/1 | F135: 1132 | G135: 8 | H135: 6 | I135: 11 | J135: 25 | K135: 8 | L135: 4 | M135: 8 | N135: 20 | O135: 5 | P135: 6 | Q135: 4 | R135: 15 | S135: 8 | T135: 6 | U135: 15 | V135: 29 | W135: 8 | X135: 12 | Y135: 13 | Z135: 33 | AA135: 9 | AB135: 17 | AC135: 15 | AD135: 41 | AE135: 9 | AF135: 16 | AG135: 16 | AH135: 41 | AI135: 9 | AJ135: 10 | AK135: 9 | AL135: 28 | AM135: 9 | AN135: 13 | AO135: 14 | AP135: 36 | AQ135: 9 | AR135: 18 | AS135: 17 | AT135: 44 | AU135: 5 | AV135: 5 | AW135: 5 | AX135: 15 | AY135: 7 | AZ135: 5 | BA135: 9 | BB135: 21 | BC135: 3 | BD135: 5 | BE135: 6 | BF135: 10 | BG135: 6 | BH135: 10 | BI135: 15 | BJ135: 25 | BK135: 40 | BL135: 388 | BM135: 4 | BN135: 5 | BO135: 6 | BP135: 15 | BQ135: 4 | BR135: 5 | BS135: 5 | BT135: 14 | BU135: ناجحة | BV135: 267 | BW135: 267
A136: 129 | B136: 253 | C136: اسم 236 | D136: 7/1 | F136: 1133 | G136: 8 | H136: 8 | I136: 13 | J136: 29 | K136: 8 | L136: 7 | M136: 10 | N136: 25 | O136: 5 | P136: 8 | Q136: 5 | R136: 18 | S136: 8 | T136: 20 | U136: 18 | V136: 46 | W136: 8 | X136: 15 | Y136: 18 | Z136: 41 | AA136: 9 | AB136: 18 | AC136: 17 | AD136: 44 | AE136: 9 | AF136: 15 | AG136: 18 | AH136: 42 | AI136: 9 | AJ136: 17 | AK136: 17 | AL136: 43 | AM136: 9 | AN136: 15 | AO136: 18 | AP136: 42 | AQ136: 9 | AR136: 18 | AS136: 18 | AT136: 45 | AU136: 5 | AV136: 8 | AW136: 9 | AX136: 22 | AY136: 7 | AZ136: 7 | BA136: 7 | BB136: 21 | BC136: 3 | BD136: 5 | BE136: 6 | BF136: 10 | BG136: 6 | BH136: 10 | BI136: 15 | BJ136: 25 | BK136: 40 | BL136: 458 | BM136: 4 | BN136: 7 | BO136: 6 | BP136: 17 | BQ136: 4 | BR136: 7 | BS136: 7 | BT136: 18 | BU136: ناجحة | BV136: 43 | BW136: 43
A137: 130 | B137: 255 | C137: اسم 238 | D137: 7/1 | F137: 1135 | G137: 8 | H137: 9 | I137: 12 | J137: 29 | K137: 8 | L137: 4 | M137: 8 | N137: 20 | O137: 5 | P137: 4 | Q137: 6 | R137: 15 | S137: 8 | T137: 20 | U137: 19 | V137: 47 | W137: 8 | X137: 20 | Y137: 19 | Z137: 47 | AA137: 9 | AB137: 17 | AC137: 15 | AD137: 41 | AE137: 9 | AF137: 11 | AG137: 17 | AH137: 37 | AI137: 9 | AJ137: 13 | AK137: 10 | AL137: 32 | AM137: 9 | AN137: 11 | AO137: 19 | AP137: 39 | AQ137: 9 | AR137: 19 | AS137: 20 | AT137: 48 | AU137: 5 | AV137: 7 | AW137: 8 | AX137: 20 | AY137: 7 | AZ137: 10 | BA137: 10 | BB137: 27 | BC137: 3 | BD137: 5 | BE137: 5 | BF137: 8 | BG137: 5 | BH137: 8 | BI137: 13 | BJ137: 21 | BK137: 34 | BL137: 436 | BM137: 4 | BN137: 5 | BO137: 6 | BP137: 15 | BQ137: 4 | BR137: 8 | BS137: 8 | BT137: 20 | BU137: ناجحة | BV137: 93 | BW137: 93
A138: 131 | B138: 258 | C138: اسم 240 | D138: 7/1 | F138: 1138 | G138: 8 | H138: 11 | I138: 16 | J138: 35 | K138: 8 | L138: 3 | M138: 14 | N138: 25 | O138: 5 | P138: 7 | Q138: 6 | R138: 18 | S138: 8 | T138: 19 | U138: 17 | V138: 44 | W138: 8 | X138: 17 | Y138: 17 | Z138: 42 | AA138: 9 | AB138: 16 | AC138: 14 | AD138: 39 | AE138: 9 | AF138: 16 | AG138: 20 | AH138: 45 | AI138: 9 | AJ138: 19 | AK138: 19 | AL138: 47 | AM138: 9 | AN138: 19 | AO138: 19 | AP138: 47 | AQ138: 9 | AR138: 20 | AS138: 19 | AT138: 48 | AU138: 5 | AV138: 10 | AW138: 11 | AX138: 26 | AY138: 7 | AZ138: 12 | BA138: 12 | BB138: 31 | BC138: 3 | BD138: 5 | BE138: 6 | BF138: 10 | BG138: 6 | BH138: 10 | BI138: 15 | BJ138: 25 | BK138: 40 | BL138: 487 | BM138: 4 | BN138: 8 | BO138: 6 | BP138: 18 | BQ138: 4 | BR138: 5 | BS138: 5 | BT138: 14 | BU138: ناجحة | BV138: 5 | BW138: 5
A139: 132 | B139: 259 | C139: اسم 241 | D139: 7/1 | F139: 1139 | G139: 8 | H139: 7 | I139: 16 | J139: 31 | K139: 8 | L139: 8 | M139: 8 | N139: 24 | O139: 5 | P139: 7 | Q139: 6 | R139: 18 | S139: 8 | T139: 20 | U139: 16 | V139: 44 | W139: 8 | X139: 18 | Y139: 18 | Z139: 44 | AA139: 9 | AB139: 15 | AC139: 12 | AD139: 36 | AE139: 9 | AF139: 10 | AG139: 20 | AH139: 39 | AI139: 9 | AJ139: 17 | AK139: 18 | AL139: 44 | AM139: 9 | AN139: 13 | AO139: 19 | AP139: 41 | AQ139: 9 | AR139: 20 | AS139: 19 | AT139: 48 | AU139: 5 | AV139: 10 | AW139: 12 | AX139: 27 | AY139: 7 | AZ139: 12 | BA139: 12 | BB139: 31 | BC139: 3 | BD139: 5 | BE139: 5 | BF139: 8 | BG139: 5 | BH139: 8 | BI139: 13 | BJ139: 21 | BK139: 34 | BL139: 461 | BM139: 4 | BN139: 8 | BO139: 6 | BP139: 18 | BQ139: 4 | BR139: 7 | BS139: 7 | BT139: 18 | BU139: ناجحة | BV139: 35 | BW139: 35
A140: 133 | B140: 260 | C140: اسم 242 | D140: 7/1 | F140: 1140 | G140: 8 | H140: 9 | I140: 14 | J140: 31 | K140: 8 | L140: 6 | M140: 8 | N140: 22 | O140: 5 | P140: 6 | Q140: 6 | R140: 17 | S140: 8 | T140: 18 | U140: 18 | V140: 44 | W140: 8 | X140: 12 | Y140: 12 | Z140: 32 | AA140: 9 | AB140: 15 | AC140: 12 | AD140: 36 | AE140: 9 | AF140: 10 | AG140: 20 | AH140: 39 | AI140: 9 | AJ140: 11 | AK140: 18 | AL140: 38 | AM140: 9 | AN140: 15 | AO140: 19 | AP140: 43 | AQ140: 9 | AR140: 20 | AS140: 19 | AT140: 48 | AU140: 5 | AV140: 10 | AW140: 9 | AX140: 24 | AY140: 7 | AZ140: 11 | BA140: 11 | BB140: 29 | BC140: 3 | BD140: 5 | BE140: 5 | BF140: 8 | BG140: 5 | BH140: 8 | BI140: 13 | BJ140: 21 | BK140: 34 | BL140: 437 | BM140: 4 | BN140: 7 | BO140: 6 | BP140: 17 | BQ140: 4 | BR140: 6 | BS140: 6 | BT140: 16 | BU140: ناجحة | BV140: 90 | BW140: 90
A141: 134 | B141: 261 | C141: اسم 243 | D141: 7/1 | F141: 1141 | G141: 8 | H141: 7 | I141: 14 | J141: 29 | K141: 8 | L141: 6 | M141: 8 | N141: 22 | O141: 5 | P141: 7 | Q141: 6 | R141: 18 | S141: 8 | T141: 15 | U141: 16 | V141: 39 | W141: 8 | X141: 19 | Y141: 11 | Z141: 38 | AA141: 9 | AB141: 15 | AC141: 14 | AD141: 38 | AE141: 9 | AF141: 17 | AG141: 20 | AH141: 46 | AI141: 9 | AJ141: 18 | AK141: 18 | AL141: 45 | AM141: 9 | AN141: 19 | AO141: 19 | AP141: 47 | AQ141: 9 | AR141: 20 | AS141: 19 | AT141: 48 | AU141: 5 | AV141: 8 | AW141: 6 | AX141: 19 | AY141: 7 | AZ141: 13 | BA141: 13 | BB141: 33 | BC141: 3 | BD141: 5 | BE141: 5 | BF141: 6 | BG141: 5 | BH141: 6 | BI141: 13 | BJ141: 17 | BK141: 30 | BL141: 452 | BM141: 4 | BN141: 7 | BO141: 6 | BP141: 17 | BQ141: 4 | BR141: 7 | BS141: 7 | BT141: 18 | BU141: ناجحة | BV141: 53 | BW141: 53
A142: 135 | B142: 262 | C142: اسم 244 | D142: 7/1 | F142: 1142 | G142: 8 | H142: 6 | I142: 12 | J142: 26 | K142: 8 | L142: 7 | M142: 5 | N142: 20 | O142: 5 | P142: 7 | Q142: 6 | R142: 18 | S142: 8 | T142: 16 | U142: 17 | V142: 41 | W142: 8 | X142: 9 | Y142: 14 | Z142: 31 | AA142: 9 | AB142: 16 | AC142: 14 | AD142: 39 | AE142: 9 | AF142: 11 | AG142: 20 | AH142: 40 | AI142: 9 | AJ142: 11 | AK142: 14 | AL142: 34 | AM142: 9 | AN142: 12 | AO142: 19 | AP142: 40 | AQ142: 9 | AR142: 13 | AS142: 19 | AT142: 41 | AU142: 5 | AV142: 5 | AW142: 5 | AX142: 15 | AY142: 7 | AZ142: 11 | BA142: 11 | BB142: 29 | BC142: 3 | BD142: 5 | BE142: 5 | BF142: 8 | BG142: 5 | BH142: 8 | BI142: 13 | BJ142: 21 | BK142: 34 | BL142: 408 | BM142: 4 | BN142: 7 | BO142: 6 | BP142: 17 | BQ142: 4 | BR142: 6 | BS142: 6 | BT142: 16 | BU142: ناجحة | BV142: 192 | BW142: 192
A143: 136 | B143: 265 | C143: اسم 247 | D143: 7/1 | F143: 1145 | G143: 8 | H143: 9 | I143: 12 | J143: 29 | K143: 8 | L143: 12 | M143: 10 | N143: 30 | O143: 5 | P143: 8 | Q143: 6 | R143: 19 | S143: 8 | T143: 7 | U143: 12 | V143: 27 | W143: 8 | X143: 15 | Y143: 12 | Z143: 35 | AA143: 9 | AB143: 15 | AC143: 15 | AD143: 39 | AE143: 9 | AF143: 11 | AG143: 20 | AH143: 40 | AI143: 9 | AJ143: 11 | AK143: 18 | AL143: 38 | AM143: 9 | AN143: 10 | AO143: 19 | AP143: 38 | AQ143: 9 | AR143: 19 | AS143: 19 | AT143: 47 | AU143: 5 | AV143: 5 | AW143: 5 | AX143: 15 | AY143: 7 | AZ143: 8 | BA143: 8 | BB143: 23 | BC143: 3 | BD143: 5 | BE143: 6 | BF143: 9 | BG143: 6 | BH143: 9 | BI143: 15 | BJ143: 23 | BK143: 38 | BL143: 418 | BM143: 4 | BN143: 5 | BO143: 6 | BP143: 15 | BQ143: 4 | BR143: 7 | BS143: 7 | BT143: 18 | BU143: ناجحة | BV143: 162 | BW143: 162
A144: 137 | B144: 266 | C144: اسم 248 | D144: 7/1 | F144: 1146 | G144: 8 | H144: 7 | I144: 13 | J144: 28 | K144: 8 | L144: 9 | M144: 5 | N144: 22 | O144: 5 | P144: 5 | Q144: 6 | R144: 16 | S144: 8 | T144: 13 | U144: 16 | V144: 37 | W144: 8 | X144: 19 | Y144: 13 | Z144: 40 | AA144: 9 | AB144: 15 | AC144: 14 | AD144: 38 | AE144: 9 | AF144: 9 | AG144: 20 | AH144: 38 | AI144: 9 | AJ144: 12 | AK144: 19 | AL144: 40 | AM144: 9 | AN144: 11 | AO144: 19 | AP144: 39 | AQ144: 9 | AR144: 19 | AS144: 19 | AT144: 47 | AU144: 5 | AV144: 7 | AW144: 4 | AX144: 16 | AY144: 7 | AZ144: 9 | BA144: 9 | BB144: 25 | BC144: 3 | BD144: 5 | BE144: 6 | BF144: 9 | BG144: 6 | BH144: 9 | BI144: 15 | BJ144: 23 | BK144: 38 | BL144: 424 | BM144: 4 | BN144: 5 | BO144: 6 | BP144: 15 | BQ144: 4 | BR144: 4 | BS144: 4 | BT144: 12 | BU144: ناجحة | BV144: 140 | BW144: 140
A145: 138 | B145: 268 | C145: اسم 25 | D145: 1/1 | F145: 1148 | G145: 8 | H145: 6 | I145: 13 | J145: 27 | K145: 8 | L145: 9 | M145: 9 | N145: 26 | O145: 5 | P145: 8 | Q145: 6 | R145: 19 | S145: 8 | T145: 12 | U145: 13 | V145: 33 | W145: 8 | X145: 9 | Y145: 13 | Z145: 30 | AA145: 9 | AB145: 12 | AC145: 12 | AD145: 33 | AE145: 9 | AF145: 8 | AG145: 20 | AH145: 37 | AI145: 9 | AJ145: 16 | AK145: 12 | AL145: 37 | AM145: 9 | AN145: 17 | AO145: 19 | AP145: 45 | AQ145: 9 | AR145: 18 | AS145: 19 | AT145: 46 | AU145: 5 | AV145: 6 | AW145: 5 | AX145: 16 | AY145: 7 | AZ145: 7 | BA145: 7 | BB145: 21 | BC145: 3 | BD145: 5 | BE145: 6 | BF145: 6 | BG145: 6 | BH145: 6 | BI145: 15 | BJ145: 17 | BK145: 32 | BL145: 402 | BM145: 4 | BN145: 6 | BO145: 6 | BP145: 16 | BQ145: 4 | BR145: 5 | BS145: 5 | BT145: 14 | BU145: ناجحة | BV145: 215 | BW145: 215
A146: 139 | B146: 269 | C146: اسم 250 | D146: 7/1 | F146: 1149 | G146: 8 | H146: 5 | I146: 13 | J146: 26 | K146: 8 | L146: 7 | M146: 9 | N146: 24 | O146: 5 | P146: 6 | Q146: 4 | R146: 15 | S146: 8 | T146: 10 | U146: 12 | V146: 30 | W146: 8 | X146: 11 | Y146: 13 | Z146: 32 | AA146: 9 | AB146: 11 | AC146: 11 | AD146: 31 | AE146: 9 | AF146: 8 | AG146: 20 | AH146: 37 | AI146: 9 | AJ146: 12 | AK146: 15 | AL146: 36 | AM146: 9 | AN146: 14 | AO146: 19 | AP146: 42 | AQ146: 9 | AR146: 18 | AS146: 19 | AT146: 46 | AU146: 5 | AV146: 7 | AW146: 4 | AX146: 16 | AY146: 7 | AZ146: 9 | BA146: 9 | BB146: 25 | BC146: 3 | BD146: 5 | BE146: 5 | BF146: 7 | BG146: 5 | BH146: 7 | BI146: 13 | BJ146: 19 | BK146: 32 | BL146: 392 | BM146: 4 | BN146: 5 | BO146: 6 | BP146: 15 | BQ146: 4 | BR146: 7 | BS146: 7 | BT146: 18 | BU146: ناجحة | BV146: 256 | BW146: 256
A147: 140 | B147: 270 | C147: اسم 251 | D147: 7/1 | F147: 1150 | G147: 8 | H147: 8 | I147: 15 | J147: 31 | K147: 8 | L147: 4 | M147: 8 | N147: 20 | O147: 5 | P147: 4 | Q147: 6 | R147: 15 | S147: 8 | T147: 14 | U147: 16 | V147: 38 | W147: 8 | X147: 12 | Y147: 14 | Z147: 34 | AA147: 9 | AB147: 14 | AC147: 13 | AD147: 36 | AE147: 9 | AF147: 10 | AG147: 20 | AH147: 39 | AI147: 9 | AJ147: 13 | AK147: 18 | AL147: 40 | AM147: 9 | AN147: 14 | AO147: 19 | AP147: 42 | AQ147: 9 | AR147: 20 | AS147: 19 | AT147: 48 | AU147: 5 | AV147: 4 | AW147: 9 | AX147: 18 | AY147: 7 | AZ147: 9 | BA147: 9 | BB147: 25 | BC147: 3 | BD147: 5 | BE147: 5 | BF147: 8 | BG147: 5 | BH147: 8 | BI147: 13 | BJ147: 21 | BK147: 34 | BL147: 420 | BM147: 4 | BN147: 5 | BO147: 6 | BP147: 15 | BQ147: 4 | BR147: 5 | BS147: 5 | BT147: 14 | BU147: ناجحة | BV147: 152 | BW147: 152
A148: 141 | B148: 272 | C148: اسم 253 | D148: 1/1 | F148: 1152 | G148: 8 | H148: 6 | I148: 11 | J148: 25 | K148: 8 | L148: 4 | M148: 8 | N148: 20 | O148: 5 | P148: 4 | Q148: 6 | R148: 15 | S148: 8 | T148: 9 | U148: 15 | V148: 32 | W148: 8 | X148: 9 | Y148: 12 | Z148: 29 | AA148: 9 | AB148: 14 | AC148: 13 | AD148: 36 | AE148: 9 | AF148: 8 | AG148: 19 | AH148: 36 | AI148: 9 | AJ148: 10 | AK148: 12 | AL148: 31 | AM148: 9 | AN148: 7 | AO148: 19 | AP148: 35 | AQ148: 9 | AR148: 19 | AS148: 19 | AT148: 47 | AU148: 5 | AV148: 5 | AW148: 5 | AX148: 15 | AY148: 7 | AZ148: 9 | BA148: 9 | BB148: 25 | BC148: 3 | BD148: 5 | BE148: 6 | BF148: 9 | BG148: 6 | BH148: 9 | BI148: 15 | BJ148: 23 | BK148: 38 | BL148: 384 | BM148: 4 | BN148: 5 | BO148: 6 | BP148: 15 | BQ148: 4 | BR148: 5 | BS148: 5 | BT148: 14 | BU148: ناجحة | BV148: 280 | BW148: 280
A149: 142 | B149: 275 | C149: اسم 256 | D149: 7/1 | F149: 1155 | G149: 8 | H149: 7 | I149: 15 | J149: 30 | K149: 8 | L149: 8 | M149: 6 | N149: 22 | O149: 5 | P149: 4 | Q149: 4 | R149: 13 | S149: 8 | T149: 12 | U149: 14 | V149: 34 | W149: 8 | X149: 20 | Y149: 11 | Z149: 39 | AA149: 9 | AB149: 16 | AC149: 15 | AD149: 40 | AE149: 9 | AF149: 11 | AG149: 12 | AH149: 32 | AI149: 9 | AJ149: 9 | AK149: 15 | AL149: 33 | AM149: 9 | AN149: 15 | AO149: 16 | AP149: 40 | AQ149: 9 | AR149: 16 | AS149: 19 | AT149: 44 | AU149: 5 | AV149: 8 | AW149: 10 | AX149: 23 | AY149: 7 | AZ149: 10 | BA149: 10 | BB149: 27 | BC149: 3 | BD149: 5 | BE149: 5 | BF149: 7 | BG149: 5 | BH149: 7 | BI149: 13 | BJ149: 19 | BK149: 32 | BL149: 409 | BM149: 4 | BN149: 3 | BO149: 6 | BP149: 13 | BQ149: 4 | BR149: 8 | BS149: 8 | BT149: 20 | BU149: ناجحة | BV149: 188 | BW149: 188
A150: 143 | B150: 277 | C150: اسم 258 | D150: 7/1 | F150: 1157 | G150: 8 | H150: 8 | I150: 15 | J150: 31 | K150: 8 | L150: 7 | M150: 9 | N150: 24 | O150: 5 | P150: 2 | Q150: 4 | R150: 11 | S150: 8 | T150: 18 | U150: 17 | V150: 43 | W150: 8 | X150: 12 | Y150: 17 | Z150: 37 | AA150: 9 | AB150: 14 | AC150: 13 | AD150: 36 | AE150: 9 | AF150: 13 | AG150: 20 | AH150: 42 | AI150: 9 | AJ150: 17 | AK150: 17 | AL150: 43 | AM150: 9 | AN150: 18 | AO150: 17 | AP150: 44 | AQ150: 9 | AR150: 18 | AS150: 20 | AT150: 47 | AU150: 5 | AV150: 10 | AW150: 11 | AX150: 26 | AY150: 7 | AZ150: 10 | BA150: 10 | BB150: 27 | BC150: 3 | BD150: 5 | BE150: 6 | BF150: 10 | BG150: 6 | BH150: 10 | BI150: 15 | BJ150: 25 | BK150: 40 | BL150: 451 | BM150: 4 | BN150: 6 | BO150: 6 | BP150: 16 | BQ150: 4 | BR150: 8 | BS150: 8 | BT150: 20 | BU150: ناجحة | BV150: 56 | BW150: 56
A151: 144 | B151: 278 | C151: اسم 259 | D151: 7/1 | F151: 1158 | G151: 8 | H151: 7 | I151: 10 | J151: 25 | K151: 8 | L151: 6 | M151: 6 | N151: 20 | O151: 5 | P151: 3 | Q151: 4 | R151: 12 | S151: 8 | T151: 17 | U151: 17 | V151: 42 | W151: 8 | X151: 7 | Y151: 13 | Z151: 28 | AA151: 9 | AB151: 14 | AC151: 12 | AD151: 35 | AE151: 9 | AF151: 11 | AG151: 18 | AH151: 38 | AI151: 9 | AJ151: 15 | AK151: 10 | AL151: 34 | AM151: 9 | AN151: 18 | AO151: 17 | AP151: 44 | AQ151: 9 | AR151: 13 | AS151: 20 | AT151: 42 | AU151: 5 | AV151: 7 | AW151: 3 | AX151: 15 | AY151: 7 | AZ151: 4 | BA151: 9 | BB151: 20 | BC151: 3 | BD151: 5 | BE151: 6 | BF151: 9 | BG151: 6 | BH151: 9 | BI151: 15 | BJ151: 23 | BK151: 38 | BL151: 393 | BM151: 4 | BN151: 5 | BO151: 6 | BP151: 15 | BQ151: 4 | BR151: 5 | BS151: 5 | BT151: 14 | BU151: ناجحة | BV151: 251 | BW151: 251
A152: 145 | B152: 280 | C152: اسم 260 | D152: 1/1 | F152: 1160 | G152: 8 | H152: 8 | I152: 15 | J152: 31 | K152: 8 | L152: 6 | M152: 6 | N152: 20 | O152: 5 | P152: 5 | Q152: 6 | R152: 16 | S152: 8 | T152: 14 | U152: 19 | V152: 41 | W152: 8 | X152: 12 | Y152: 13 | Z152: 33 | AA152: 9 | AB152: 13 | AC152: 13 | AD152: 35 | AE152: 9 | AF152: 14 | AG152: 20 | AH152: 43 | AI152: 9 | AJ152: 18 | AK152: 17 | AL152: 44 | AM152: 9 | AN152: 18 | AO152: 17 | AP152: 44 | AQ152: 9 | AR152: 20 | AS152: 20 | AT152: 49 | AU152: 5 | AV152: 3 | AW152: 8 | AX152: 16 | AY152: 7 | AZ152: 13 | BA152: 13 | BB152: 33 | BC152: 3 | BD152: 5 | BE152: 6 | BF152: 9 | BG152: 6 | BH152: 9 | BI152: 15 | BJ152: 23 | BK152: 38 | BL152: 443 | BM152: 4 | BN152: 8 | BO152: 6 | BP152: 18 | BQ152: 4 | BR152: 7 | BS152: 7 | BT152: 18 | BU152: ناجحة | BV152: 74 | BW152: 74
A153: 146 | B153: 281 | C153: اسم 261 | D153: 7/1 | F153: 1281 | G153: 8 | H153: 6 | I153: 11 | J153: 25 | K153: 8 | L153: 11 | M153: 11 | N153: 30 | O153: 5 | P153: 4 | Q153: 4 | R153: 13 | S153: 8 | T153: 14 | U153: 19 | V153: 41 | W153: 8 | X153: 17 | Y153: 12 | Z153: 37 | AA153: 9 | AB153: 15 | AC153: 15 | AD153: 39 | AE153: 9 | AF153: 14 | AG153: 19 | AH153: 42 | AI153: 9 | AJ153: 16 | AK153: 17 | AL153: 42 | AM153: 9 | AN153: 18 | AO153: 17 | AP153: 44 | AQ153: 9 | AR153: 19 | AS153: 20 | AT153: 48 | AU153: 5 | AV153: 7 | AW153: 11 | AX153: 23 | AY153: 7 | AZ153: 14 | BA153: 14 | BB153: 35 | BC153: 3 | BD153: 5 | BE153: 5 | BF153: 6 | BG153: 5 | BH153: 6 | BI153: 13 | BJ153: 17 | BK153: 30 | BL153: 449 | BM153: 4 | BN153: 5 | BO153: 6 | BP153: 15 | BQ153: 4 | BR153: 7 | BS153: 7 | BT153: 18 | BU153: ناجحة | BV153: 63 | BW153: 63
A154: 147 | B154: 282 | C154: اسم 262 | D154: 7/1 | F154: 1282 | G154: 8 | H154: 7 | I154: 10 | J154: 25 | K154: 8 | L154: 10 | M154: 8 | N154: 26 | O154: 5 | P154: 5 | Q154: 4 | R154: 14 | S154: 8 | T154: 13 | U154: 9 | V154: 30 | W154: 8 | X154: 17 | Y154: 13 | Z154: 38 | AA154: 9 | AB154: 13 | AC154: 13 | AD154: 35 | AE154: 9 | AF154: 12 | AG154: 16 | AH154: 37 | AI154: 9 | AJ154: 17 | AK154: 16 | AL154: 42 | AM154: 9 | AN154: 18 | AO154: 17 | AP154: 44 | AQ154: 9 | AR154: 20 | AS154: 20 | AT154: 49 | AU154: 5 | AV154: 2 | AW154: 11 | AX154: 18 | AY154: 7 | AZ154: 9 | BA154: 9 | BB154: 25 | BC154: 3 | BD154: 5 | BE154: 5 | BF154: 6 | BG154: 5 | BH154: 6 | BI154: 13 | BJ154: 17 | BK154: 30 | BL154: 413 | BM154: 4 | BN154: 5 | BO154: 6 | BP154: 15 | BQ154: 4 | BR154: 7 | BS154: 7 | BT154: 18 | BU154: ناجحة | BV154: 179 | BW154: 179
A155: 148 | B155: 283 | C155: اسم 263 | D155: 8/1 | F155: 1283 | G155: 8 | H155: 7 | I155: 13 | J155: 28 | K155: 8 | L155: 6 | M155: 6 | N155: 20 | O155: 5 | P155: 7 | Q155: 4 | R155: 16 | S155: 8 | T155: 5 | U155: 19 | V155: 32 | W155: 8 | X155: 10 | Y155: 12 | Z155: 30 | AA155: 9 | AB155: 16 | AC155: 14 | AD155: 39 | AE155: 9 | AF155: 14 | AG155: 16 | AH155: 39 | AI155: 9 | AJ155: 18 | AK155: 10 | AL155: 37 | AM155: 9 | AN155: 16 | AO155: 17 | AP155: 42 | AQ155: 9 | AR155: 18 | AS155: 20 | AT155: 47 | AU155: 5 | AV155: 5 | AW155: 5 | AX155: 15 | AY155: 7 | AZ155: 13 | BA155: 13 | BB155: 33 | BC155: 3 | BD155: 5 | BE155: 6 | BF155: 10 | BG155: 6 | BH155: 10 | BI155: 15 | BJ155: 25 | BK155: 40 | BL155: 418 | BM155: 4 | BN155: 6 | BO155: 6 | BP155: 16 | BQ155: 4 | BR155: 5 | BS155: 5 | BT155: 14 | BU155: ناجحة | BV155: 162 | BW155: 162
A156: 149 | B156: 286 | C156: اسم 266 | D156: 8/1 | F156: 1286 | G156: 8 | H156: 8 | I156: 11 | J156: 27 | K156: 8 | L156: 8 | M156: 5 | N156: 21 | O156: 5 | P156: 5 | Q156: 5 | R156: 15 | S156: 8 | T156: 10 | U156: 7 | V156: 25 | W156: 8 | X156: 9 | Y156: 14 | Z156: 31 | AA156: 9 | AB156: 16 | AC156: 14 | AD156: 39 | AE156: 9 | AF156: 13 | AG156: 18 | AH156: 40 | AI156: 9 | AJ156: 18 | AK156: 14 | AL156: 41 | AM156: 9 | AN156: 16 | AO156: 17 | AP156: 42 | AQ156: 9 | AR156: 19 | AS156: 20 | AT156: 48 | AU156: 5 | AV156: 5 | AW156: 5 | AX156: 15 | AY156: 7 | AZ156: 8 | BA156: 8 | BB156: 23 | BC156: 3 | BD156: 5 | BE156: 6 | BF156: 9 | BG156: 6 | BH156: 9 | BI156: 15 | BJ156: 23 | BK156: 38 | BL156: 405 | BM156: 4 | BN156: 4 | BO156: 6 | BP156: 14 | BQ156: 4 | BR156: 7 | BS156: 7 | BT156: 18 | BU156: ناجحة | BV156: 204 | BW156: 204
A157: 150 | B157: 287 | C157: اسم 267 | D157: 8/1 | F157: 1287 | G157: 8 | H157: 7 | I157: 11 | J157: 26 | K157: 8 | L157: 6 | M157: 9 | N157: 23 | O157: 5 | P157: 6 | Q157: 6 | R157: 17 | S157: 8 | T157: 14 | U157: 19 | V157: 41 | W157: 8 | X157: 18 | Y157: 12 | Z157: 38 | AA157: 9 | AB157: 15 | AC157: 14 | AD157: 38 | AE157: 9 | AF157: 16 | AG157: 15 | AH157: 40 | AI157: 9 | AJ157: 18 | AK157: 13 | AL157: 40 | AM157: 9 | AN157: 18 | AO157: 17 | AP157: 44 | AQ157: 9 | AR157: 17 | AS157: 20 | AT157: 46 | AU157: 5 | AV157: 9 | AW157: 9 | AX157: 23 | AY157: 7 | AZ157: 7 | BA157: 7 | BB157: 21 | BC157: 3 | BD157: 5 | BE157: 6 | BF157: 10 | BG157: 6 | BH157: 10 | BI157: 15 | BJ157: 25 | BK157: 40 | BL157: 437 | BM157: 4 | BN157: 6 | BO157: 6 | BP157: 16 | BQ157: 4 | BR157: 7 | BS157: 7 | BT157: 18 | BU157: ناجحة | BV157: 90 | BW157: 90
A158: 151 | B158: 288 | C158: اسم 268 | D158: 8/1 | F158: 1288 | G158: 8 | H158: 7 | I158: 12 | J158: 27 | K158: 8 | L158: 7 | M158: 8 | N158: 23 | O158: 5 | P158: 5 | Q158: 4 | R158: 14 | S158: 8 | T158: 11 | U158: 14 | V158: 33 | W158: 8 | X158: 19 | Y158: 15 | Z158: 42 | AA158: 9 | AB158: 16 | AC158: 14 | AD158: 39 | AE158: 9 | AF158: 13 | AG158: 13 | AH158: 35 | AI158: 9 | AJ158: 17 | AK158: 8 | AL158: 34 | AM158: 9 | AN158: 18 | AO158: 17 | AP158: 44 | AQ158: 9 | AR158: 13 | AS158: 20 | AT158: 42 | AU158: 5 | AV158: 2 | AW158: 9 | AX158: 16 | AY158: 7 | AZ158: 9 | BA158: 9 | BB158: 25 | BC158: 3 | BD158: 5 | BE158: 5 | BF158: 6 | BG158: 5 | BH158: 6 | BI158: 13 | BJ158: 17 | BK158: 30 | BL158: 404 | BM158: 4 | BN158: 5 | BO158: 6 | BP158: 15 | BQ158: 4 | BR158: 6 | BS158: 6 | BT158: 16 | BU158: ناجحة | BV158: 208 | BW158: 208
A159: 152 | B159: 290 | C159: اسم 27 | D159: 1/1 | F159: 1290 | G159: 8 | H159: 6 | I159: 11 | J159: 25 | K159: 8 | L159: 6 | M159: 7 | N159: 21 | O159: 5 | P159: 6 | Q159: 6 | R159: 17 | S159: 8 | T159: 13 | U159: 15 | V159: 36 | W159: 8 | X159: 17 | Y159: 13 | Z159: 38 | AA159: 9 | AB159: 12 | AC159: 12 | AD159: 33 | AE159: 9 | AF159: 17 | AG159: 11 | AH159: 37 | AI159: 9 | AJ159: 15 | AK159: 14 | AL159: 38 | AM159: 9 | AN159: 18 | AO159: 16 | AP159: 43 | AQ159: 9 | AR159: 19 | AS159: 19 | AT159: 47 | AU159: 5 | AV159: 8 | AW159: 7 | AX159: 20 | AY159: 7 | AZ159: 9 | BA159: 9 | BB159: 25 | BC159: 3 | BD159: 5 | BE159: 5 | BF159: 8 | BG159: 5 | BH159: 8 | BI159: 13 | BJ159: 21 | BK159: 34 | BL159: 414 | BM159: 4 | BN159: 5 | BO159: 6 | BP159: 15 | BQ159: 4 | BR159: 6 | BS159: 6 | BT159: 16 | BU159: ناجحة | BV159: 174 | BW159: 174
A160: 153 | B160: 291 | C160: اسم 270 | D160: 8/1 | F160: 1291 | G160: 8 | H160: 9 | I160: 14 | J160: 31 | K160: 8 | L160: 13 | M160: 13 | N160: 34 | O160: 5 | P160: 6 | Q160: 6 | R160: 17 | S160: 8 | T160: 18 | U160: 18 | V160: 44 | W160: 8 | X160: 17 | Y160: 16 | Z160: 41 | AA160: 9 | AB160: 16 | AC160: 14 | AD160: 39 | AE160: 9 | AF160: 16 | AG160: 14 | AH160: 39 | AI160: 9 | AJ160: 18 | AK160: 17 | AL160: 44 | AM160: 9 | AN160: 19 | AO160: 16 | AP160: 44 | AQ160: 9 | AR160: 19 | AS160: 19 | AT160: 47 | AU160: 5 | AV160: 5 | AW160: 5 | AX160: 15 | AY160: 7 | AZ160: 9 | BA160: 9 | BB160: 25 | BC160: 3 | BD160: 5 | BE160: 6 | BF160: 9 | BG160: 6 | BH160: 9 | BI160: 15 | BJ160: 23 | BK160: 38 | BL160: 458 | BM160: 4 | BN160: 7 | BO160: 6 | BP160: 17 | BQ160: 4 | BR160: 7 | BS160: 7 | BT160: 18 | BU160: ناجحة | BV160: 43 | BW160: 43
A161: 154 | B161: 292 | C161: اسم 271 | D161: 8/1 | F161: 1292 | G161: 8 | H161: 6 | I161: 13 | J161: 27 | K161: 8 | L161: 8 | M161: 9 | N161: 25 | O161: 5 | P161: 6 | Q161: 6 | R161: 17 | S161: 8 | T161: 14 | U161: 15 | V161: 37 | W161: 8 | X161: 20 | Y161: 15 | Z161: 43 | AA161: 9 | AB161: 12 | AC161: 15 | AD161: 36 | AE161: 9 | AF161: 17 | AG161: 18 | AH161: 44 | AI161: 9 | AJ161: 18 | AK161: 18 | AL161: 45 | AM161: 9 | AN161: 19 | AO161: 16 | AP161: 44 | AQ161: 9 | AR161: 19 | AS161: 19 | AT161: 47 | AU161: 5 | AV161: 8 | AW161: 6 | AX161: 19 | AY161: 7 | AZ161: 10 | BA161: 10 | BB161: 27 | BC161: 3 | BD161: 5 | BE161: 6 | BF161: 10 | BG161: 6 | BH161: 10 | BI161: 15 | BJ161: 25 | BK161: 40 | BL161: 451 | BM161: 4 | BN161: 5 | BO161: 6 | BP161: 15 | BQ161: 4 | BR161: 7 | BS161: 7 | BT161: 18 | BU161: ناجحة | BV161: 56 | BW161: 56
A162: 155 | B162: 293 | C162: اسم 272 | D162: 1/1 | F162: 1293 | G162: 8 | H162: 8 | I162: 10 | J162: 26 | K162: 8 | L162: 7 | M162: 5 | N162: 20 | O162: 5 | P162: 6 | Q162: 6 | R162: 17 | S162: 8 | T162: 8 | U162: 9 | V162: 25 | W162: 8 | X162: 15 | Y162: 9 | Z162: 32 | AA162: 9 | AB162: 14 | AC162: 15 | AD162: 38 | AE162: 9 | AF162: 15 | AG162: 12 | AH162: 36 | AI162: 9 | AJ162: 16 | AK162: 17 | AL162: 42 | AM162: 9 | AN162: 15 | AO162: 16 | AP162: 40 | AQ162: 9 | AR162: 19 | AS162: 19 | AT162: 47 | AU162: 5 | AV162: 3 | AW162: 11 | AX162: 19 | AY162: 7 | AZ162: 5 | BA162: 9 | BB162: 21 | BC162: 3 | BD162: 5 | BE162: 6 | BF162: 10 | BG162: 6 | BH162: 10 | BI162: 15 | BJ162: 25 | BK162: 40 | BL162: 403 | BM162: 4 | BN162: 2 | BO162: 6 | BP162: 12 | BQ162: 4 | BR162: 8 | BS162: 8 | BT162: 20 | BU162: ناجحة | BV162: 212 | BW162: 212
A163: 156 | B163: 294 | C163: اسم 273 | D163: 1/1 | F163: 1294 | G163: 8 | H163: 7 | I163: 13 | J163: 28 | K163: 8 | L163: 7 | M163: 8 | N163: 23 | O163: 5 | P163: 5 | Q163: 6 | R163: 16 | S163: 8 | T163: 18 | U163: 20 | V163: 46 | W163: 8 | X163: 20 | Y163: 16 | Z163: 44 | AA163: 9 | AB163: 16 | AC163: 15 | AD163: 40 | AE163: 9 | AF163: 7 | AG163: 19 | AH163: 35 | AI163: 9 | AJ163: 16 | AK163: 16 | AL163: 41 | AM163: 9 | AN163: 19 | AO163: 16 | AP163: 44 | AQ163: 9 | AR163: 20 | AS163: 19 | AT163: 48 | AU163: 5 | AV163: 6 | AW163: 9 | AX163: 20 | AY163: 7 | AZ163: 13 | BA163: 13 | BB163: 33 | BC163: 3 | BD163: 5 | BE163: 8 | BF163: 12 | BG163: 8 | BH163: 12 | BI163: 19 | BJ163: 29 | BK163: 48 | BL163: 466 | BM163: 4 | BN163: 7 | BO163: 6 | BP163: 17 | BQ163: 4 | BR163: 8 | BS163: 8 | BT163: 20 | BU163: ناجحة | BV163: 22 | BW163: 22
A164: 157 | B164: 295 | C164: اسم 274 | D164: 8/1 | F164: 1295 | G164: 8 | H164: 8 | I164: 11 | J164: 27 | K164: 8 | L164: 7 | M164: 5 | N164: 20 | O164: 5 | P164: 5 | Q164: 6 | R164: 16 | S164: 8 | T164: 19 | U164: 18 | V164: 45 | W164: 8 | X164: 20 | Y164: 18 | Z164: 46 | AA164: 9 | AB164: 14 | AC164: 15 | AD164: 38 | AE164: 9 | AF164: 10 | AG164: 18 | AH164: 37 | AI164: 9 | AJ164: 18 | AK164: 14 | AL164: 41 | AM164: 9 | AN164: 19 | AO164: 16 | AP164: 44 | AQ164: 9 | AR164: 19 | AS164: 19 | AT164: 47 | AU164: 5 | AV164: 12 | AW164: 11 | AX164: 28 | AY164: 7 | AZ164: 13 | BA164: 13 | BB164: 33 | BC164: 3 | BD164: 5 | BE164: 8 | BF164: 12 | BG164: 8 | BH164: 12 | BI164: 19 | BJ164: 29 | BK164: 48 | BL164: 470 | BM164: 4 | BN164: 5 | BO164: 6 | BP164: 15 | BQ164: 4 | BR164: 8 | BS164: 8 | BT164: 20 | BU164: ناجحة | BV164: 19 | BW164: 19
A165: 158 | B165: 296 | C165: اسم 275 | D165: 8/1 | F165: 1296 | G165: 8 | H165: 11 | I165: 6 | J165: 25 | K165: 8 | L165: 5 | M165: 7 | N165: 20 | O165: 5 | P165: 5 | Q165: 6 | R165: 16 | S165: 8 | T165: 14 | U165: 12 | V165: 34 | W165: 8 | X165: 9 | Y165: 15 | Z165: 32 | AA165: 9 | AB165: 15 | AC165: 17 | AD165: 41 | AE165: 9 | AF165: 6 | AG165: 16 | AH165: 31 | AI165: 9 | AJ165: 15 | AK165: 18 | AL165: 42 | AM165: 9 | AN165: 15 | AO165: 16 | AP165: 40 | AQ165: 9 | AR165: 14 | AS165: 19 | AT165: 42 | AU165: 5 | AV165: 3 | AW165: 10 | AX165: 18 | AY165: 7 | AZ165: 4 | BA165: 9 | BB165: 20 | BC165: 3 | BD165: 5 | BE165: 6 | BF165: 9 | BG165: 6 | BH165: 9 | BI165: 15 | BJ165: 23 | BK165: 38 | BL165: 399 | BM165: 4 | BN165: 4 | BO165: 6 | BP165: 14 | BQ165: 4 | BR165: 5 | BS165: 5 | BT165: 14 | BU165: ناجحة | BV165: 227 | BW165: 227
A166: 159 | B166: 297 | C166: اسم 276 | D166: 8/1 | F166: 1297 | G166: 8 | H166: 7 | I166: 11 | J166: 26 | K166: 8 | L166: 9 | M166: 8 | N166: 25 | O166: 5 | P166: 6 | Q166: 4 | R166: 15 | S166: 8 | T166: 5 | U166: 17 | V166: 30 | W166: 8 | X166: 12 | Y166: 17 | Z166: 37 | AA166: 9 | AB166: 17 | AC166: 16 | AD166: 42 | AE166: 9 | AF166: 8 | AG166: 17 | AH166: 34 | AI166: 9 | AJ166: 12 | AK166: 14 | AL166: 35 | AM166: 9 | AN166: 17 | AO166: 18 | AP166: 44 | AQ166: 9 | AR166: 17 | AS166: 19 | AT166: 45 | AU166: 5 | AV166: 2 | AW166: 11 | AX166: 18 | AY166: 7 | AZ166: 6 | BA166: 9 | BB166: 22 | BC166: 3 | BD166: 5 | BE166: 5 | BF166: 8 | BG166: 5 | BH166: 8 | BI166: 13 | BJ166: 21 | BK166: 34 | BL166: 407 | BM166: 4 | BN166: 5 | BO166: 5 | BP166: 14 | BQ166: 4 | BR166: 6 | BS166: 6 | BT166: 16 | BU166: ناجحة | BV166: 199 | BW166: 199
A167: 160 | B167: 298 | C167: اسم 277 | D167: 8/1 | F167: 1298 | G167: 8 | H167: 8 | I167: 12 | J167: 28 | K167: 8 | L167: 9 | M167: 8 | N167: 25 | O167: 5 | P167: 6 | Q167: 4 | R167: 15 | S167: 8 | T167: 12 | U167: 17 | V167: 37 | W167: 8 | X167: 11 | Y167: 18 | Z167: 37 | AA167: 9 | AB167: 18 | AC167: 17 | AD167: 44 | AE167: 9 | AF167: 10 | AG167: 17 | AH167: 36 | AI167: 9 | AJ167: 18 | AK167: 7 | AL167: 34 | AM167: 9 | AN167: 15 | AO167: 18 | AP167: 42 | AQ167: 9 | AR167: 19 | AS167: 19 | AT167: 47 | AU167: 5 | AV167: 3 | AW167: 12 | AX167: 20 | AY167: 7 | AZ167: 9 | BA167: 9 | BB167: 25 | BC167: 3 | BD167: 5 | BE167: 6 | BF167: 9 | BG167: 6 | BH167: 9 | BI167: 15 | BJ167: 23 | BK167: 38 | BL167: 428 | BM167: 4 | BN167: 6 | BO167: 6 | BP167: 16 | BQ167: 4 | BR167: 6 | BS167: 6 | BT167: 16 | BU167: ناجحة | BV167: 127 | BW167: 127
A168: 161 | B168: 301 | C168: اسم 28 | D168: 2/1 | F168: 1301 | G168: 8 | H168: 8 | I168: 13 | J168: 29 | K168: 8 | L168: 10 | M168: 12 | N168: 30 | O168: 5 | P168: 6 | Q168: 6 | R168: 17 | S168: 8 | T168: 20 | U168: 18 | V168: 46 | W168: 8 | X168: 20 | Y168: 17 | Z168: 45 | AA168: 9 | AB168: 18 | AC168: 15 | AD168: 42 | AE168: 9 | AF168: 11 | AG168: 16 | AH168: 36 | AI168: 9 | AJ168: 12 | AK168: 14 | AL168: 35 | AM168: 9 | AN168: 16 | AO168: 18 | AP168: 43 | AQ168: 9 | AR168: 15 | AS168: 19 | AT168: 43 | AU168: 5 | AV168: 3 | AW168: 7 | AX168: 15 | AY168: 7 | AZ168: 13 | BA168: 13 | BB168: 33 | BC168: 3 | BD168: 5 | BE168: 5 | BF168: 6 | BG168: 5 | BH168: 6 | BI168: 13 | BJ168: 17 | BK168: 30 | BL168: 444 | BM168: 4 | BN168: 4 | BO168: 6 | BP168: 14 | BQ168: 4 | BR168: 6 | BS168: 6 | BT168: 16 | BU168: ناجحة | BV168: 70 | BW168: 70
A169: 162 | B169: 302 | C169: اسم 280 | D169: 8/1 | F169: 1302 | G169: 8 | H169: 8 | I169: 14 | J169: 30 | K169: 8 | L169: 8 | M169: 9 | N169: 25 | O169: 5 | P169: 4 | Q169: 6 | R169: 15 | S169: 8 | T169: 5 | U169: 13 | V169: 26 | W169: 8 | X169: 17 | Y169: 17 | Z169: 42 | AA169: 9 | AB169: 15 | AC169: 13 | AD169: 37 | AE169: 9 | AF169: 11 | AG169: 17 | AH169: 37 | AI169: 9 | AJ169: 11 | AK169: 12 | AL169: 32 | AM169: 9 | AN169: 17 | AO169: 18 | AP169: 44 | AQ169: 9 | AR169: 11 | AS169: 19 | AT169: 39 | AU169: 5 | AV169: 2 | AW169: 8 | AX169: 15 | AY169: 7 | AZ169: 7 | BA169: 7 | BB169: 21 | BC169: 3 | BD169: 5 | BE169: 5 | BF169: 8 | BG169: 5 | BH169: 8 | BI169: 13 | BJ169: 21 | BK169: 34 | BL169: 397 | BM169: 4 | BN169: 6 | BO169: 6 | BP169: 16 | BQ169: 4 | BR169: 6 | BS169: 6 | BT169: 16 | BU169: ناجحة | BV169: 233 | BW169: 233
A170: 163 | B170: 303 | C170: اسم 281 | D170: 8/1 | F170: 1303 | G170: 8 | H170: 8 | I170: 10 | J170: 26 | K170: 8 | L170: 7 | M170: 5 | N170: 20 | O170: 5 | P170: 5 | Q170: 5 | R170: 15 | S170: 8 | T170: 10 | U170: 16 | V170: 34 | W170: 8 | X170: 11 | Y170: 15 | Z170: 34 | AA170: 9 | AB170: 17 | AC170: 12 | AD170: 38 | AE170: 9 | AF170: 11 | AG170: 15 | AH170: 35 | AI170: 9 | AJ170: 9 | AK170: 13 | AL170: 31 | AM170: 9 | AN170: 17 | AO170: 18 | AP170: 44 | AQ170: 9 | AR170: 11 | AS170: 19 | AT170: 39 | AU170: 5 | AV170: 10 | AW170: 9 | AX170: 24 | AY170: 7 | AZ170: 7 | BA170: 7 | BB170: 21 | BC170: 3 | BD170: 5 | BE170: 5 | BF170: 7 | BG170: 5 | BH170: 7 | BI170: 13 | BJ170: 19 | BK170: 32 | BL170: 393 | BM170: 4 | BN170: 3 | BO170: 6 | BP170: 13 | BQ170: 4 | BR170: 5 | BS170: 5 | BT170: 14 | BU170: ناجحة | BV170: 251 | BW170: 251
A171: 164 | B171: 304 | C171: اسم 282 | D171: 8/1 | F171: 1304 | G171: 8 | H171: 7 | I171: 14 | J171: 29 | K171: 8 | L171: 18 | M171: 17 | N171: 43 | O171: 5 | P171: 9 | Q171: 6 | R171: 20 | S171: 8 | T171: 15 | U171: 17 | V171: 40 | W171: 8 | X171: 14 | Y171: 18 | Z171: 40 | AA171: 9 | AB171: 16 | AC171: 12 | AD171: 37 | AE171: 9 | AF171: 9 | AG171: 15 | AH171: 33 | AI171: 9 | AJ171: 11 | AK171: 10 | AL171: 30 | AM171: 9 | AN171: 14 | AO171: 18 | AP171: 41 | AQ171: 9 | AR171: 11 | AS171: 19 | AT171: 39 | AU171: 5 | AV171: 7 | AW171: 10 | AX171: 22 | AY171: 7 | AZ171: 8 | BA171: 8 | BB171: 23 | BC171: 3 | BD171: 5 | BE171: 5 | BF171: 8 | BG171: 5 | BH171: 8 | BI171: 13 | BJ171: 21 | BK171: 34 | BL171: 431 | BM171: 4 | BN171: 6 | BO171: 6 | BP171: 16 | BQ171: 4 | BR171: 4 | BS171: 4 | BT171: 12 | BU171: ناجحة | BV171: 109 | BW171: 109
A172: 165 | B172: 305 | C172: اسم 283 | D172: 8/1 | F172: 1305 | G172: 8 | H172: 9 | I172: 11 | J172: 28 | K172: 8 | L172: 6 | M172: 7 | N172: 21 | O172: 5 | P172: 5 | Q172: 6 | R172: 16 | S172: 8 | T172: 14 | U172: 17 | V172: 39 | W172: 8 | X172: 13 | Y172: 18 | Z172: 39 | AA172: 9 | AB172: 16 | AC172: 11 | AD172: 36 | AE172: 9 | AF172: 9 | AG172: 18 | AH172: 36 | AI172: 9 | AJ172: 10 | AK172: 14 | AL172: 33 | AM172: 9 | AN172: 17 | AO172: 18 | AP172: 44 | AQ172: 9 | AR172: 11 | AS172: 20 | AT172: 40 | AU172: 5 | AV172: 3 | AW172: 8 | AX172: 16 | AY172: 7 | AZ172: 9 | BA172: 9 | BB172: 25 | BC172: 3 | BD172: 5 | BE172: 5 | BF172: 7 | BG172: 5 | BH172: 7 | BI172: 13 | BJ172: 19 | BK172: 32 | BL172: 405 | BM172: 4 | BN172: 5 | BO172: 6 | BP172: 15 | BQ172: 4 | BR172: 7 | BS172: 7 | BT172: 18 | BU172: ناجحة | BV172: 204 | BW172: 204
A173: 166 | B173: 306 | C173: اسم 284 | D173: 8/1 | F173: 1306 | G173: 8 | H173: 11 | I173: 6 | J173: 25 | K173: 8 | L173: 4 | M173: 8 | N173: 20 | O173: 5 | P173: 5 | Q173: 5 | R173: 15 | S173: 8 | T173: 16 | U173: 18 | V173: 42 | W173: 8 | X173: 15 | Y173: 18 | Z173: 41 | AA173: 9 | AB173: 16 | AC173: 15 | AD173: 40 | AE173: 9 | AF173: 10 | AG173: 17 | AH173: 36 | AI173: 9 | AJ173: 8 | AK173: 14 | AL173: 31 | AM173: 9 | AN173: 18 | AO173: 18 | AP173: 45 | AQ173: 9 | AR173: 18 | AS173: 15 | AT173: 42 | AU173: 5 | AV173: 3 | AW173: 11 | AX173: 19 | AY173: 7 | AZ173: 15 | BA173: 15 | BB173: 37 | BC173: 3 | BD173: 5 | BE173: 5 | BF173: 6 | BG173: 5 | BH173: 6 | BI173: 13 | BJ173: 17 | BK173: 30 | BL173: 423 | BM173: 4 | BN173: 6 | BO173: 6 | BP173: 16 | BQ173: 4 | BR173: 7 | BS173: 7 | BT173: 18 | BU173: ناجحة | BV173: 143 | BW173: 143
A174: 167 | B174: 307 | C174: اسم 285 | D174: 8/1 | F174: 1307 | G174: 8 | H174: 6 | I174: 12 | J174: 26 | K174: 8 | L174: 5 | M174: 7 | N174: 20 | O174: 5 | P174: 3 | Q174: 4 | R174: 12 | S174: 8 | T174: 11 | U174: 16 | V174: 35 | W174: 8 | X174: 10 | Y174: 17 | Z174: 35 | AA174: 9 | AB174: 16 | AC174: 16 | AD174: 41 | AE174: 9 | AF174: 8 | AG174: 17 | AH174: 34 | AI174: 9 | AJ174: 11 | AK174: 16 | AL174: 36 | AM174: 9 | AN174: 17 | AO174: 18 | AP174: 44 | AQ174: 9 | AR174: 12 | AS174: 19 | AT174: 40 | AU174: 5 | AV174: 6 | AW174: 10 | AX174: 21 | AY174: 7 | AZ174: 5 | BA174: 9 | BB174: 21 | BC174: 3 | BD174: 5 | BE174: 5 | BF174: 7 | BG174: 5 | BH174: 7 | BI174: 13 | BJ174: 19 | BK174: 32 | BL174: 397 | BM174: 4 | BN174: 6 | BO174: 6 | BP174: 16 | BQ174: 4 | BR174: 6 | BS174: 6 | BT174: 16 | BU174: ناجحة | BV174: 233 | BW174: 233
A175: 168 | B175: 308 | C175: اسم 286 | D175: 8/1 | F175: 1308 | G175: 8 | H175: 7 | I175: 14 | J175: 29 | K175: 8 | L175: 10 | M175: 10 | N175: 28 | O175: 5 | P175: 6 | Q175: 5 | R175: 16 | S175: 8 | T175: 18 | U175: 19 | V175: 45 | W175: 8 | X175: 20 | Y175: 18 | Z175: 46 | AA175: 9 | AB175: 16 | AC175: 14 | AD175: 39 | AE175: 9 | AF175: 11 | AG175: 17 | AH175: 37 | AI175: 9 | AJ175: 16 | AK175: 17 | AL175: 42 | AM175: 9 | AN175: 17 | AO175: 18 | AP175: 44 | AQ175: 9 | AR175: 20 | AS175: 20 | AT175: 49 | AU175: 5 | AV175: 7 | AW175: 11 | AX175: 23 | AY175: 7 | AZ175: 9 | BA175: 9 | BB175: 25 | BC175: 3 | BD175: 5 | BE175: 5 | BF175: 7 | BG175: 5 | BH175: 7 | BI175: 13 | BJ175: 19 | BK175: 32 | BL175: 455 | BM175: 4 | BN175: 6 | BO175: 6 | BP175: 16 | BQ175: 4 | BR175: 7 | BS175: 7 | BT175: 18 | BU175: ناجحة | BV175: 49 | BW175: 49
A176: 169 | B176: 309 | C176: اسم 287 | D176: 5/1 | F176: 1309 | G176: 8 | H176: 6 | I176: 14 | J176: 28 | K176: 8 | L176: 7 | M176: 11 | N176: 26 | O176: 5 | P176: 6 | Q176: 5 | R176: 16 | S176: 8 | T176: 15 | U176: 19 | V176: 42 | W176: 8 | X176: 18 | Y176: 16 | Z176: 42 | AA176: 9 | AB176: 17 | AC176: 15 | AD176: 41 | AE176: 9 | AF176: 15 | AG176: 16 | AH176: 40 | AI176: 9 | AJ176: 18 | AK176: 17 | AL176: 44 | AM176: 9 | AN176: 18 | AO176: 18 | AP176: 45 | AQ176: 9 | AR176: 16 | AS176: 19 | AT176: 44 | AU176: 5 | AV176: 11 | AW176: 10 | AX176: 26 | AY176: 7 | AZ176: 9 | BA176: 9 | BB176: 25 | BC176: 3 | BD176: 5 | BE176: 6 | BF176: 9 | BG176: 6 | BH176: 9 | BI176: 15 | BJ176: 23 | BK176: 38 | BL176: 457 | BM176: 4 | BN176: 7 | BO176: 6 | BP176: 17 | BQ176: 4 | BR176: 7 | BS176: 7 | BT176: 18 | BU176: ناجحة | BV176: 45 | BW176: 45
A177: 170 | B177: 310 | C177: اسم 288 | D177: 5/1 | F177: 1310 | G177: 8 | H177: 6 | I177: 14 | J177: 28 | K177: 8 | L177: 7 | M177: 11 | N177: 26 | O177: 5 | P177: 7 | Q177: 6 | R177: 18 | S177: 8 | T177: 18 | U177: 17 | V177: 43 | W177: 8 | X177: 13 | Y177: 18 | Z177: 39 | AA177: 9 | AB177: 16 | AC177: 16 | AD177: 41 | AE177: 9 | AF177: 11 | AG177: 16 | AH177: 36 | AI177: 9 | AJ177: 18 | AK177: 14 | AL177: 41 | AM177: 9 | AN177: 15 | AO177: 18 | AP177: 42 | AQ177: 9 | AR177: 18 | AS177: 20 | AT177: 47 | AU177: 5 | AV177: 9 | AW177: 11 | AX177: 25 | AY177: 7 | AZ177: 5 | BA177: 9 | BB177: 21 | BC177: 3 | BD177: 5 | BE177: 5 | BF177: 8 | BG177: 5 | BH177: 8 | BI177: 13 | BJ177: 21 | BK177: 34 | BL177: 441 | BM177: 4 | BN177: 8 | BO177: 6 | BP177: 18 | BQ177: 4 | BR177: 8 | BS177: 8 | BT177: 20 | BU177: ناجحة | BV177: 78 | BW177: 78
A178: 171 | B178: 311 | C178: اسم 289 | D178: 5/1 | F178: 1311 | G178: 8 | H178: 8 | I178: 12 | J178: 28 | K178: 8 | L178: 7 | M178: 10 | N178: 25 | O178: 5 | P178: 6 | Q178: 6 | R178: 17 | S178: 8 | T178: 18 | U178: 17 | V178: 43 | W178: 8 | X178: 20 | Y178: 19 | Z178: 47 | AA178: 9 | AB178: 16 | AC178: 15 | AD178: 40 | AE178: 9 | AF178: 11 | AG178: 15 | AH178: 35 | AI178: 9 | AJ178: 18 | AK178: 14 | AL178: 41 | AM178: 9 | AN178: 17 | AO178: 18 | AP178: 44 | AQ178: 9 | AR178: 12 | AS178: 20 | AT178: 41 | AU178: 5 | AV178: 5 | AW178: 10 | AX178: 20 | AY178: 7 | AZ178: 8 | BA178: 8 | BB178: 23 | BC178: 3 | BD178: 5 | BE178: 6 | BF178: 10 | BG178: 6 | BH178: 10 | BI178: 15 | BJ178: 25 | BK178: 40 | BL178: 444 | BM178: 4 | BN178: 6 | BO178: 6 | BP178: 16 | BQ178: 4 | BR178: 6 | BS178: 6 | BT178: 16 | BU178: ناجحة | BV178: 70 | BW178: 70
A179: 172 | B179: 312 | C179: اسم 29 | D179: 2/1 | F179: 1312 | G179: 8 | H179: 7 | I179: 11 | J179: 26 | K179: 8 | L179: 8 | M179: 5 | N179: 21 | O179: 5 | P179: 5 | Q179: 4 | R179: 14 | S179: 8 | T179: 12 | U179: 13 | V179: 33 | W179: 8 | X179: 12 | Y179: 15 | Z179: 35 | AA179: 9 | AB179: 10 | AC179: 15 | AD179: 34 | AE179: 9 | AF179: 10 | AG179: 15 | AH179: 34 | AI179: 9 | AJ179: 18 | AK179: 14 | AL179: 41 | AM179: 9 | AN179: 16 | AO179: 18 | AP179: 43 | AQ179: 9 | AR179: 15 | AS179: 17 | AT179: 41 | AU179: 5 | AV179: 2 | AW179: 8 | AX179: 15 | AY179: 7 | AZ179: 15 | BA179: 15 | BB179: 37 | BC179: 3 | BD179: 5 | BE179: 6 | BF179: 10 | BG179: 6 | BH179: 10 | BI179: 15 | BJ179: 25 | BK179: 40 | BL179: 414 | BM179: 4 | BN179: 5 | BO179: 6 | BP179: 15 | BQ179: 4 | BR179: 6 | BS179: 6 | BT179: 16 | BU179: ناجحة | BV179: 174 | BW179: 174
A180: 173 | B180: 313 | C180: اسم 290 | D180: 8/1 | F180: 1313 | G180: 8 | H180: 8 | I180: 9 | J180: 25 | K180: 8 | L180: 7 | M180: 5 | N180: 20 | O180: 5 | P180: 5 | Q180: 5 | R180: 15 | S180: 8 | T180: 9 | U180: 11 | V180: 28 | W180: 8 | X180: 14 | Y180: 11 | Z180: 33 | AA180: 9 | AB180: 11 | AC180: 15 | AD180: 35 | AE180: 9 | AF180: 7 | AG180: 12 | AH180: 28 | AI180: 9 | AJ180: 13 | AK180: 18 | AL180: 40 | AM180: 9 | AN180: 16 | AO180: 18 | AP180: 43 | AQ180: 9 | AR180: 11 | AS180: 19 | AT180: 39 | AU180: 5 | AV180: 4 | AW180: 6 | AX180: 15 | AY180: 7 | AZ180: 6 | BA180: 9 | BB180: 22 | BC180: 3 | BD180: 5 | BE180: 6 | BF180: 10 | BG180: 6 | BH180: 10 | BI180: 15 | BJ180: 25 | BK180: 40 | BL180: 383 | BM180: 4 | BN180: 5 | BO180: 6 | BP180: 15 | BQ180: 4 | BR180: 8 | BS180: 8 | BT180: 20 | BU180: ناجحة | BV180: 283 | BW180: 283
A181: 174 | B181: 314 | C181: اسم 291 | D181: 8/1 | F181: 1314 | G181: 8 | H181: 9 | I181: 15 | J181: 32 | K181: 8 | L181: 9 | M181: 11 | N181: 28 | O181: 5 | P181: 6 | Q181: 5 | R181: 16 | S181: 8 | T181: 16 | U181: 19 | V181: 43 | W181: 8 | X181: 20 | Y181: 19 | Z181: 47 | AA181: 9 | AB181: 15 | AC181: 16 | AD181: 40 | AE181: 9 | AF181: 16 | AG181: 16 | AH181: 41 | AI181: 9 | AJ181: 19 | AK181: 16 | AL181: 44 | AM181: 9 | AN181: 17 | AO181: 18 | AP181: 44 | AQ181: 9 | AR181: 19 | AS181: 20 | AT181: 48 | AU181: 5 | AV181: 12 | AW181: 10 | AX181: 27 | AY181: 7 | AZ181: 13 | BA181: 13 | BB181: 33 | BC181: 3 | BD181: 5 | BE181: 5 | BF181: 7 | BG181: 5 | BH181: 7 | BI181: 13 | BJ181: 19 | BK181: 32 | BL181: 475 | BM181: 4 | BN181: 7 | BO181: 6 | BP181: 17 | BQ181: 4 | BR181: 7 | BS181: 7 | BT181: 18 | BU181: ناجحة | BV181: 12 | BW181: 12
A182: 175 | B182: 315 | C182: اسم 292 | D182: 8/1 | F182: 1315 | G182: 8 | H182: 7 | I182: 10 | J182: 25 | K182: 8 | L182: 7 | M182: 5 | N182: 20 | O182: 5 | P182: 6 | Q182: 5 | R182: 16 | S182: 8 | T182: 13 | U182: 16 | V182: 37 | W182: 8 | X182: 18 | Y182: 16 | Z182: 42 | AA182: 9 | AB182: 14 | AC182: 18 | AD182: 41 | AE182: 9 | AF182: 13 | AG182: 14 | AH182: 36 | AI182: 9 | AJ182: 19 | AK182: 17 | AL182: 45 | AM182: 9 | AN182: 18 | AO182: 18 | AP182: 45 | AQ182: 9 | AR182: 17 | AS182: 19 | AT182: 45 | AU182: 5 | AV182: 10 | AW182: 8 | AX182: 23 | AY182: 7 | AZ182: 10 | BA182: 10 | BB182: 27 | BC182: 3 | BD182: 5 | BE182: 5 | BF182: 5 | BG182: 5 | BH182: 5 | BI182: 13 | BJ182: 15 | BK182: 28 | BL182: 430 | BM182: 4 | BN182: 7 | BO182: 6 | BP182: 17 | BQ182: 4 | BR182: 7 | BS182: 7 | BT182: 18 | BU182: ناجحة | BV182: 114 | BW182: 114
A183: 176 | B183: 317 | C183: اسم 294 | D183: 8/1 | F183: 1317 | G183: 8 | H183: 8 | I183: 9 | J183: 25 | K183: 8 | L183: 5 | M183: 7 | N183: 20 | O183: 5 | P183: 6 | Q183: 5 | R183: 16 | S183: 8 | T183: 9 | U183: 12 | V183: 29 | W183: 8 | X183: 10 | Y183: 12 | Z183: 30 | AA183: 9 | AB183: 17 | AC183: 15 | AD183: 41 | AE183: 9 | AF183: 12 | AG183: 15 | AH183: 36 | AI183: 9 | AJ183: 15 | AK183: 13 | AL183: 37 | AM183: 9 | AN183: 15 | AO183: 18 | AP183: 42 | AQ183: 9 | AR183: 17 | AS183: 17 | AT183: 43 | AU183: 5 | AV183: 6 | AW183: 6 | AX183: 17 | AY183: 7 | AZ183: 9 | BA183: 9 | BB183: 25 | BC183: 3 | BD183: 5 | BE183: 6 | BF183: 8 | BG183: 6 | BH183: 8 | BI183: 15 | BJ183: 21 | BK183: 36 | BL183: 397 | BM183: 4 | BN183: 4 | BO183: 6 | BP183: 14 | BQ183: 4 | BR183: 6 | BS183: 6 | BT183: 16 | BU183: ناجحة | BV183: 233 | BW183: 233
A184: 177 | B184: 318 | C184: اسم 295 | D184: 8/1 | F184: 1318 | G184: 8 | H184: 8 | I184: 9 | J184: 25 | K184: 8 | L184: 6 | M184: 13 | N184: 27 | O184: 5 | P184: 8 | Q184: 5 | R184: 18 | S184: 8 | T184: 11 | U184: 14 | V184: 33 | W184: 8 | X184: 13 | Y184: 15 | Z184: 36 | AA184: 9 | AB184: 12 | AC184: 15 | AD184: 36 | AE184: 9 | AF184: 11 | AG184: 16 | AH184: 36 | AI184: 9 | AJ184: 17 | AK184: 16 | AL184: 42 | AM184: 9 | AN184: 16 | AO184: 18 | AP184: 43 | AQ184: 9 | AR184: 18 | AS184: 19 | AT184: 46 | AU184: 5 | AV184: 8 | AW184: 8 | AX184: 21 | AY184: 7 | AZ184: 11 | BA184: 11 | BB184: 29 | BC184: 3 | BD184: 5 | BE184: 6 | BF184: 8 | BG184: 6 | BH184: 8 | BI184: 15 | BJ184: 21 | BK184: 36 | BL184: 428 | BM184: 4 | BN184: 5 | BO184: 6 | BP184: 15 | BQ184: 4 | BR184: 7 | BS184: 7 | BT184: 18 | BU184: ناجحة | BV184: 127 | BW184: 127
A185: 178 | B185: 319 | C185: اسم 296 | D185: 8/1 | F185: 1319 | G185: 8 | H185: 10 | I185: 7 | J185: 25 | K185: 8 | L185: 6 | M185: 6 | N185: 20 | O185: 5 | P185: 5 | Q185: 3 | R185: 13 | S185: 8 | T185: 13 | U185: 9 | V185: 30 | W185: 8 | X185: 9 | Y185: 18 | Z185: 35 | AA185: 9 | AB185: 17 | AC185: 17 | AD185: 43 | AE185: 9 | AF185: 9 | AG185: 16 | AH185: 34 | AI185: 9 | AJ185: 17 | AK185: 16 | AL185: 42 | AM185: 9 | AN185: 16 | AO185: 18 | AP185: 43 | AQ185: 9 | AR185: 17 | AS185: 20 | AT185: 46 | AU185: 5 | AV185: 4 | AW185: 8 | AX185: 17 | AY185: 7 | AZ185: 10 | BA185: 10 | BB185: 27 | BC185: 3 | BD185: 5 | BE185: 7 | BF185: 11 | BG185: 7 | BH185: 11 | BI185: 17 | BJ185: 27 | BK185: 44 | BL185: 419 | BM185: 4 | BN185: 5 | BO185: 6 | BP185: 15 | BQ185: 4 | BR185: 7 | BS185: 7 | BT185: 18 | BU185: ناجحة | BV185: 156 | BW185: 156
A186: 179 | B186: 320 | C186: اسم 297 | D186: 8/1 | F186: 1320 | G186: 8 | H186: 6 | I186: 11 | J186: 25 | K186: 8 | L186: 6 | M186: 6 | N186: 20 | O186: 5 | P186: 6 | Q186: 6 | R186: 17 | S186: 8 | T186: 17 | U186: 18 | V186: 43 | W186: 8 | X186: 11 | Y186: 15 | Z186: 34 | AA186: 9 | AB186: 17 | AC186: 18 | AD186: 44 | AE186: 9 | AF186: 9 | AG186: 19 | AH186: 37 | AI186: 9 | AJ186: 19 | AK186: 10 | AL186: 38 | AM186: 9 | AN186: 16 | AO186: 18 | AP186: 43 | AQ186: 9 | AR186: 18 | AS186: 16 | AT186: 43 | AU186: 5 | AV186: 9 | AW186: 11 | AX186: 25 | AY186: 7 | AZ186: 10 | BA186: 10 | BB186: 27 | BC186: 3 | BD186: 5 | BE186: 6 | BF186: 9 | BG186: 6 | BH186: 9 | BI186: 15 | BJ186: 23 | BK186: 38 | BL186: 434 | BM186: 4 | BN186: 5 | BO186: 6 | BP186: 15 | BQ186: 4 | BR186: 7 | BS186: 7 | BT186: 18 | BU186: ناجحة | BV186: 100 | BW186: 100
A187: 180 | B187: 321 | C187: اسم 298 | D187: 8/1 | F187: 1321 | G187: 8 | H187: 6 | I187: 11 | J187: 25 | K187: 8 | L187: 8 | M187: 10 | N187: 26 | O187: 5 | P187: 6 | Q187: 5 | R187: 16 | S187: 8 | T187: 13 | U187: 13 | V187: 34 | W187: 8 | X187: 14 | Y187: 11 | Z187: 33 | AA187: 9 | AB187: 18 | AC187: 14 | AD187: 41 | AE187: 9 | AF187: 15 | AG187: 19 | AH187: 43 | AI187: 9 | AJ187: 19 | AK187: 12 | AL187: 40 | AM187: 9 | AN187: 14 | AO187: 18 | AP187: 41 | AQ187: 9 | AR187: 18 | AS187: 16 | AT187: 43 | AU187: 5 | AV187: 8 | AW187: 8 | AX187: 21 | AY187: 7 | AZ187: 11 | BA187: 11 | BB187: 29 | BC187: 3 | BD187: 5 | BE187: 6 | BF187: 9 | BG187: 6 | BH187: 9 | BI187: 15 | BJ187: 23 | BK187: 38 | BL187: 430 | BM187: 4 | BN187: 5 | BO187: 6 | BP187: 15 | BQ187: 4 | BR187: 7 | BS187: 7 | BT187: 18 | BU187: ناجحة | BV187: 114 | BW187: 114
A188: 181 | B188: 322 | C188: اسم 299 | D188: 8/1 | F188: 1322 | G188: 8 | H188: 6 | I188: 13 | J188: 27 | K188: 8 | L188: 7 | M188: 5 | N188: 20 | O188: 5 | P188: 5 | Q188: 6 | R188: 16 | S188: 8 | T188: 5 | U188: 18 | V188: 31 | W188: 8 | X188: 15 | Y188: 15 | Z188: 38 | AA188: 9 | AB188: 18 | AC188: 18 | AD188: 45 | AE188: 9 | AF188: 10 | AG188: 19 | AH188: 38 | AI188: 9 | AJ188: 12 | AK188: 19 | AL188: 40 | AM188: 9 | AN188: 17 | AO188: 18 | AP188: 44 | AQ188: 9 | AR188: 16 | AS188: 20 | AT188: 45 | AU188: 5 | AV188: 6 | AW188: 9 | AX188: 20 | AY188: 7 | AZ188: 14 | BA188: 14 | BB188: 35 | BC188: 3 | BD188: 5 | BE188: 5 | BF188: 8 | BG188: 5 | BH188: 8 | BI188: 13 | BJ188: 21 | BK188: 34 | BL188: 433 | BM188: 4 | BN188: 6 | BO188: 6 | BP188: 16 | BQ188: 4 | BR188: 7 | BS188: 7 | BT188: 18 | BU188: ناجحة | BV188: 103 | BW188: 103
A189: 182 | B189: 323 | C189: اسم 3 | D189: 1/1 | F189: 1323 | G189: 8 | H189: 9 | I189: 15 | J189: 32 | K189: 8 | L189: 6 | M189: 6 | N189: 20 | O189: 5 | P189: 6 | Q189: 4 | R189: 15 | S189: 8 | T189: 19 | U189: 17 | V189: 44 | W189: 8 | X189: 20 | Y189: 19 | Z189: 47 | AA189: 9 | AB189: 18 | AC189: 15 | AD189: 42 | AE189: 9 | AF189: 15 | AG189: 19 | AH189: 43 | AI189: 9 | AJ189: 20 | AK189: 11 | AL189: 40 | AM189: 9 | AN189: 17 | AO189: 18 | AP189: 44 | AQ189: 9 | AR189: 20 | AS189: 19 | AT189: 48 | AU189: 5 | AV189: 8 | AW189: 6 | AX189: 19 | AY189: 7 | AZ189: 14 | BA189: 14 | BB189: 35 | BC189: 3 | BD189: 5 | BE189: 5 | BF189: 8 | BG189: 5 | BH189: 8 | BI189: 13 | BJ189: 21 | BK189: 34 | BL189: 463 | BM189: 4 | BN189: 6 | BO189: 6 | BP189: 16 | BQ189: 4 | BR189: 8 | BS189: 8 | BT189: 20 | BU189: ناجحة | BV189: 28 | BW189: 28
A190: 183 | B190: 326 | C190: اسم 301 | D190: 8/1 | F190: 1326 | G190: 8 | H190: 8 | I190: 9 | J190: 25 | K190: 8 | L190: 5 | M190: 7 | N190: 20 | O190: 5 | P190: 5 | Q190: 5 | R190: 15 | S190: 8 | T190: 5 | U190: 13 | V190: 26 | W190: 8 | X190: 11 | Y190: 18 | Z190: 37 | AA190: 9 | AB190: 13 | AC190: 15 | AD190: 37 | AE190: 9 | AF190: 14 | AG190: 20 | AH190: 43 | AI190: 9 | AJ190: 15 | AK190: 11 | AL190: 35 | AM190: 9 | AN190: 16 | AO190: 16 | AP190: 41 | AQ190: 9 | AR190: 17 | AS190: 19 | AT190: 45 | AU190: 5 | AV190: 2 | AW190: 10 | AX190: 17 | AY190: 7 | AZ190: 11 | BA190: 11 | BB190: 29 | BC190: 3 | BD190: 5 | BE190: 6 | BF190: 9 | BG190: 6 | BH190: 9 | BI190: 15 | BJ190: 23 | BK190: 38 | BL190: 408 | BM190: 4 | BN190: 6 | BO190: 6 | BP190: 16 | BQ190: 4 | BR190: 5 | BS190: 5 | BT190: 14 | BU190: ناجحة | BV190: 192 | BW190: 192
A191: 184 | B191: 327 | C191: اسم 302 | D191: 5/1 | F191: 1327 | G191: 8 | H191: 10 | I191: 15 | J191: 33 | K191: 8 | L191: 4 | M191: 8 | N191: 20 | O191: 5 | P191: 6 | Q191: 5 | R191: 16 | S191: 8 | T191: 16 | U191: 20 | V191: 44 | W191: 8 | X191: 18 | Y191: 16 | Z191: 42 | AA191: 9 | AB191: 16 | AC191: 14 | AD191: 39 | AE191: 9 | AF191: 15 | AG191: 20 | AH191: 44 | AI191: 9 | AJ191: 19 | AK191: 13 | AL191: 41 | AM191: 9 | AN191: 12 | AO191: 16 | AP191: 37 | AQ191: 9 | AR191: 20 | AS191: 19 | AT191: 48 | AU191: 5 | AV191: 12 | AW191: 9 | AX191: 26 | AY191: 7 | AZ191: 11 | BA191: 11 | BB191: 29 | BC191: 3 | BD191: 5 | BE191: 6 | BF191: 10 | BG191: 6 | BH191: 10 | BI191: 15 | BJ191: 25 | BK191: 40 | BL191: 459 | BM191: 4 | BN191: 7 | BO191: 6 | BP191: 17 | BQ191: 4 | BR191: 7 | BS191: 7 | BT191: 18 | BU191: ناجحة | BV191: 39 | BW191: 39
A192: 185 | B192: 329 | C192: اسم 304 | D192: 8/1 | F192: 1329 | G192: 8 | H192: 6 | I192: 12 | J192: 26 | K192: 8 | L192: 7 | M192: 5 | N192: 20 | O192: 5 | P192: 5 | Q192: 6 | R192: 16 | S192: 8 | T192: 16 | U192: 14 | V192: 38 | W192: 8 | X192: 12 | Y192: 11 | Z192: 31 | AA192: 9 | AB192: 14 | AC192: 14 | AD192: 37 | AE192: 9 | AF192: 6 | AG192: 15 | AH192: 30 | AI192: 9 | AJ192: 11 | AK192: 14 | AL192: 34 | AM192: 9 | AN192: 13 | AO192: 16 | AP192: 38 | AQ192: 9 | AR192: 20 | AS192: 19 | AT192: 48 | AU192: 5 | AV192: 9 | AW192: 11 | AX192: 25 | AY192: 7 | AZ192: 11 | BA192: 11 | BB192: 29 | BC192: 3 | BD192: 5 | BE192: 5 | BF192: 8 | BG192: 5 | BH192: 8 | BI192: 13 | BJ192: 21 | BK192: 34 | BL192: 406 | BM192: 4 | BN192: 5 | BO192: 6 | BP192: 15 | BQ192: 4 | BR192: 7 | BS192: 7 | BT192: 18 | BU192: ناجحة | BV192: 203 | BW192: 203
A193: 186 | B193: 330 | C193: اسم 305 | D193: 8/1 | F193: 1330 | G193: 8 | H193: 7 | I193: 13 | J193: 28 | K193: 8 | L193: 5 | M193: 8 | N193: 21 | O193: 5 | P193: 7 | Q193: 7 | R193: 19 | S193: 8 | T193: 18 | U193: 20 | V193: 46 | W193: 8 | X193: 14 | Y193: 13 | Z193: 35 | AA193: 9 | AB193: 16 | AC193: 15 | AD193: 40 | AE193: 9 | AF193: 9 | AG193: 19 | AH193: 37 | AI193: 9 | AJ193: 19 | AK193: 19 | AL193: 47 | AM193: 9 | AN193: 16 | AO193: 16 | AP193: 41 | AQ193: 9 | AR193: 20 | AS193: 19 | AT193: 48 | AU193: 5 | AV193: 12 | AW193: 7 | AX193: 24 | AY193: 7 | AZ193: 14 | BA193: 14 | BB193: 35 | BC193: 3 | BD193: 5 | BE193: 6 | BF193: 10 | BG193: 6 | BH193: 10 | BI193: 15 | BJ193: 25 | BK193: 40 | BL193: 461 | BM193: 4 | BN193: 6 | BO193: 6 | BP193: 16 | BQ193: 4 | BR193: 7 | BS193: 7 | BT193: 18 | BU193: ناجحة | BV193: 35 | BW193: 35
A194: 187 | B194: 331 | C194: اسم 306 | D194: 8/1 | F194: 1331 | G194: 8 | H194: 8 | I194: 12 | J194: 28 | K194: 8 | L194: 7 | M194: 8 | N194: 23 | O194: 5 | P194: 6 | Q194: 5 | R194: 16 | S194: 8 | T194: 8 | U194: 12 | V194: 28 | W194: 8 | X194: 17 | Y194: 15 | Z194: 40 | AA194: 9 | AB194: 15 | AC194: 16 | AD194: 40 | AE194: 9 | AF194: 9 | AG194: 19 | AH194: 37 | AI194: 9 | AJ194: 19 | AK194: 16 | AL194: 44 | AM194: 9 | AN194: 17 | AO194: 16 | AP194: 42 | AQ194: 9 | AR194: 20 | AS194: 19 | AT194: 48 | AU194: 5 | AV194: 3 | AW194: 7 | AX194: 15 | AY194: 7 | AZ194: 15 | BA194: 15 | BB194: 37 | BC194: 3 | BD194: 5 | BE194: 6 | BF194: 9 | BG194: 6 | BH194: 9 | BI194: 15 | BJ194: 23 | BK194: 38 | BL194: 436 | BM194: 4 | BN194: 5 | BO194: 6 | BP194: 15 | BQ194: 4 | BR194: 8 | BS194: 8 | BT194: 20 | BU194: ناجحة | BV194: 93 | BW194: 93
A195: 188 | B195: 332 | C195: اسم 307 | D195: 8/1 | F195: 1332 | G195: 8 | H195: 8 | I195: 12 | J195: 28 | K195: 8 | L195: 5 | M195: 13 | N195: 26 | O195: 5 | P195: 6 | Q195: 6 | R195: 17 | S195: 8 | T195: 17 | U195: 20 | V195: 45 | W195: 8 | X195: 15 | Y195: 14 | Z195: 37 | AA195: 9 | AB195: 16 | AC195: 16 | AD195: 41 | AE195: 9 | AF195: 10 | AG195: 17 | AH195: 36 | AI195: 9 | AJ195: 17 | AK195: 17 | AL195: 43 | AM195: 9 | AN195: 17 | AO195: 16 | AP195: 42 | AQ195: 9 | AR195: 20 | AS195: 19 | AT195: 48 | AU195: 5 | AV195: 12 | AW195: 11 | AX195: 28 | AY195: 7 | AZ195: 15 | BA195: 15 | BB195: 37 | BC195: 3 | BD195: 5 | BE195: 5 | BF195: 8 | BG195: 5 | BH195: 8 | BI195: 13 | BJ195: 21 | BK195: 34 | BL195: 462 | BM195: 4 | BN195: 5 | BO195: 6 | BP195: 15 | BQ195: 4 | BR195: 8 | BS195: 8 | BT195: 20 | BU195: ناجحة | BV195: 33 | BW195: 33
A196: 189 | B196: 333 | C196: اسم 308 | D196: 8/1 | F196: 1333 | G196: 8 | H196: 5 | I196: 12 | J196: 25 | K196: 8 | L196: 8 | M196: 9 | N196: 25 | O196: 5 | P196: 7 | Q196: 6 | R196: 18 | S196: 8 | T196: 14 | U196: 15 | V196: 37 | W196: 8 | X196: 17 | Y196: 12 | Z196: 37 | AA196: 9 | AB196: 12 | AC196: 14 | AD196: 35 | AE196: 9 | AF196: 12 | AG196: 17 | AH196: 38 | AI196: 9 | AJ196: 16 | AK196: 17 | AL196: 42 | AM196: 9 | AN196: 16 | AO196: 16 | AP196: 41 | AQ196: 9 | AR196: 18 | AS196: 19 | AT196: 46 | AU196: 5 | AV196: 9 | AW196: 11 | AX196: 25 | AY196: 7 | AZ196: 15 | BA196: 15 | BB196: 37 | BC196: 3 | BD196: 5 | BE196: 6 | BF196: 9 | BG196: 6 | BH196: 9 | BI196: 15 | BJ196: 23 | BK196: 38 | BL196: 444 | BM196: 4 | BN196: 6 | BO196: 6 | BP196: 16 | BQ196: 4 | BR196: 8 | BS196: 8 | BT196: 20 | BU196: ناجحة | BV196: 70 | BW196: 70
A197: 190 | B197: 334 | C197: اسم 309 | D197: 8/1 | F197: 1334 | G197: 8 | H197: 5 | I197: 13 | J197: 26 | K197: 8 | L197: 7 | M197: 8 | N197: 23 | O197: 5 | P197: 8 | Q197: 6 | R197: 19 | S197: 8 | T197: 15 | U197: 15 | V197: 38 | W197: 8 | X197: 14 | Y197: 14 | Z197: 36 | AA197: 9 | AB197: 13 | AC197: 15 | AD197: 37 | AE197: 9 | AF197: 12 | AG197: 17 | AH197: 38 | AI197: 9 | AJ197: 14 | AK197: 19 | AL197: 42 | AM197: 9 | AN197: 16 | AO197: 16 | AP197: 41 | AQ197: 9 | AR197: 19 | AS197: 19 | AT197: 47 | AU197: 5 | AV197: 7 | AW197: 7 | AX197: 19 | AY197: 7 | AZ197: 13 | BA197: 13 | BB197: 33 | BC197: 3 | BD197: 5 | BE197: 6 | BF197: 9 | BG197: 6 | BH197: 9 | BI197: 15 | BJ197: 23 | BK197: 38 | BL197: 437 | BM197: 4 | BN197: 6 | BO197: 6 | BP197: 16 | BQ197: 4 | BR197: 8 | BS197: 8 | BT197: 20 | BU197: ناجحة | BV197: 90 | BW197: 90
A198: 191 | B198: 335 | C198: اسم 31 | D198: 2/1 | F198: 1335 | G198: 8 | H198: 12 | I198: 5 | J198: 25 | K198: 8 | L198: 7 | M198: 5 | N198: 20 | O198: 5 | P198: 6 | Q198: 5 | R198: 16 | S198: 8 | T198: 12 | U198: 16 | V198: 36 | W198: 8 | X198: 11 | Y198: 18 | Z198: 37 | AA198: 9 | AB198: 15 | AC198: 15 | AD198: 39 | AE198: 9 | AF198: 11 | AG198: 15 | AH198: 35 | AI198: 9 | AJ198: 16 | AK198: 18 | AL198: 43 | AM198: 9 | AN198: 15 | AO198: 16 | AP198: 40 | AQ198: 9 | AR198: 19 | AS198: 19 | AT198: 47 | AU198: 5 | AV198: 11 | AW198: 11 | AX198: 27 | AY198: 7 | AZ198: 12 | BA198: 12 | BB198: 31 | BC198: 3 | BD198: 5 | BE198: 6 | BF198: 10 | BG198: 6 | BH198: 10 | BI198: 15 | BJ198: 25 | BK198: 40 | BL198: 436 | BM198: 4 | BN198: 6 | BO198: 6 | BP198: 16 | BQ198: 4 | BR198: 7 | BS198: 7 | BT198: 18 | BU198: ناجحة | BV198: 93 | BW198: 93
A199: 192 | B199: 336 | C199: اسم 310 | D199: 9/1 | F199: 1336 | G199: 8 | H199: 10 | I199: 16 | J199: 34 | K199: 8 | L199: 10 | M199: 10 | N199: 28 | O199: 5 | P199: 7 | Q199: 6 | R199: 18 | S199: 8 | T199: 11 | U199: 16 | V199: 35 | W199: 8 | X199: 18 | Y199: 17 | Z199: 43 | AA199: 9 | AB199: 13 | AC199: 17 | AD199: 39 | AE199: 9 | AF199: 13 | AG199: 18 | AH199: 40 | AI199: 9 | AJ199: 19 | AK199: 18 | AL199: 46 | AM199: 9 | AN199: 13 | AO199: 16 | AP199: 38 | AQ199: 9 | AR199: 20 | AS199: 19 | AT199: 48 | AU199: 5 | AV199: 9 | AW199: 12 | AX199: 26 | AY199: 7 | AZ199: 12 | BA199: 12 | BB199: 31 | BC199: 3 | BD199: 5 | BE199: 6 | BF199: 9 | BG199: 6 | BH199: 9 | BI199: 15 | BJ199: 23 | BK199: 38 | BL199: 464 | BM199: 4 | BN199: 5 | BO199: 6 | BP199: 15 | BQ199: 4 | BR199: 8 | BS199: 8 | BT199: 20 | BU199: ناجحة | BV199: 27 | BW199: 27
A200: 193 | B200: 337 | C200: اسم 311 | D200: 9/1 | F200: 1337 | G200: 8 | H200: 8 | I200: 9 | J200: 25 | K200: 8 | L200: 6 | M200: 6 | N200: 20 | O200: 5 | P200: 6 | Q200: 6 | R200: 17 | S200: 8 | T200: 13 | U200: 16 | V200: 37 | W200: 8 | X200: 19 | Y200: 18 | Z200: 45 | AA200: 9 | AB200: 16 | AC200: 17 | AD200: 42 | AE200: 9 | AF200: 7 | AG200: 19 | AH200: 35 | AI200: 9 | AJ200: 13 | AK200: 17 | AL200: 39 | AM200: 9 | AN200: 15 | AO200: 16 | AP200: 40 | AQ200: 9 | AR200: 19 | AS200: 19 | AT200: 47 | AU200: 5 | AV200: 10 | AW200: 11 | AX200: 26 | AY200: 7 | AZ200: 11 | BA200: 11 | BB200: 29 | BC200: 3 | BD200: 5 | BE200: 6 | BF200: 9 | BG200: 6 | BH200: 9 | BI200: 15 | BJ200: 23 | BK200: 38 | BL200: 440 | BM200: 4 | BN200: 5 | BO200: 6 | BP200: 15 | BQ200: 4 | BR200: 8 | BS200: 8 | BT200: 20 | BU200: ناجحة | BV200: 81 | BW200: 81
... 142 more rows

Sheet شيت دور ثانى
C1: الدور الثانى | H1: ادارة كوم امبو التعليمية | V1: الدور الثانى | AE1: شيت كنترول الصف الاول | AR1: الدور الثانى | CG1: درجات النجاج لمواد الصف الاول
H2: مدرسة كوم امبو التجارية | AE2: للعام الدراسى 2017 / 2018 | BZ2: مواد ودرجات الملاحق لامتحان الدور الثانى
A3: مسلسل | B3: جلوس | C3: الاسم | D3: الفصل | E3: الحــــالة | F3: سرى | G3: لغة عربية | K3: لغة انجليزية | O3: لغة فرنسية | S3: محاسبة مالية | W3: سكرتارية عربية | AA3: سكرتارية اجنبية | AE3: اقتصاد | AI3: تسويق | AM3: ادارة اعمال | AQ3: قانون تجارى | AU3: رياضة عامة | AY3: جغرافيا | BC3: حاسب آلى | BL3: مجموع كلى | BM3: تربية قومية | BQ3: تربية دينية | BU3: النتيجة | BV3: مواد الرسوب | BW3: عدد المواد | BX3: النتيجة | BZ3: المادة الاولى | CA3: درجة الملحق | CB3: المادة الثانية | CC3: درجة الملحق | CG3: المــــــــــــــــــادة | CH3: درجة النجاح
G4: اعمال السنة | H4: نصف العام | I4: آخر العام | J4: المجموع | K4: اعمال السنة | L4: نصف العام | M4: آخر العام | N4: المجموع | O4: اعمال السنة | P4: نصف العام | Q4: آخر العام | R4: المجموع | S4: اعمال السنة | T4: نصف العام | U4: آخر العام | V4: المجموع | W4: اعمال السنة | X4: نصف العام | Y4: آخر العام | Z4: المجموع | AA4: اعمال السنة | AB4: نصف العام | AC4: آخر العام | AD4: المجموع | AE4: اعمال السنة | AF4: نصف العام | AG4: آخر العام | AH4: المجموع | AI4: اعمال السنة | AJ4: نصف العام | AK4: آخر العام | AL4: المجموع | AM4: اعمال السنة | AN4: نصف العام | AO4: آخر العام | AP4: المجموع | AQ4: اعمال السنة | AR4: نصف العام | AS4: آخر العام | AT4: المجموع | AU4: اعمال السنة | AV4: نصف العام | AW4: آخر العام | AX4: المجموع | AY4: اعمال السنة | AZ4: نصف العام | BA4: آخر العام | BB4: المجموع | BC4: اعمال السنة | BE4: نصف العام | BG4: آخر العام | BI4: مج عملى | BJ4: مج تحريرى | BK4: المجموع | BM4: اعمال السنة | BN4: نصف العام | BO4: آخر العام | BP4: المجموع | BQ4: اعمال السنة | BR4: نصف العام | BS4: آخر العام | BT4: المجموع
BC5: عملى | BD5: تحريرى | BE5: عملى | BF5: تحريرى | BG5: عملى | BH5: تحريرى
F6: عظمى | G6: 10 | H6: 20 | I6: 20 | J6: 50 | K6: 10 | L6: 20 | M6: 20 | N6: 50 | O6: 6 | P6: 12 | Q6: 12 | R6: 30 | S6: 10 | T6: 20 | U6: 20 | V6: 50 | W6: 10 | X6: 20 | Y6: 20 | Z6: 50 | AA6: 10 | AB6: 20 | AC6: 20 | AD6: 50 | AE6: 10 | AF6: 20 | AG6: 20 | AH6: 50 | AI6: 10 | AJ6: 20 | AK6: 20 | AL6: 50 | AM6: 10 | AN6: 20 | AO6: 20 | AP6: 50 | AQ6: 10 | AR6: 20 | AS6: 20 | AT6: 50 | AU6: 6 | AV6: 12 | AW6: 12 | AX6: 30 | AY6: 8 | AZ6: 16 | BA6: 16 | BB6: 40 | BC6: 4 | BD6: 6 | BE6: 8 | BF6: 12 | BG6: 8 | BH6: 12 | BI6: 20 | BJ6: 30 | BK6: 50 | BL6: 600 | BM6: 4 | BN6: 8 | BO6: 8 | BP6: 20 | BQ6: 4 | BR6: 8 | BS6: 8 | BT6: 20
F7: صغرى | G7: 0 | H7: 0 | I7: 5 | J7: 25 | K7: 0 | L7: 0 | M7: 5 | N7: 20 | O7: 0 | P7: 0 | Q7: 3 | R7: 9 | S7: 0 | T7: 0 | U7: 5 | V7: 25 | W7: 0 | X7: 0 | Y7: 5 | Z7: 25 | AA7: 0 | AB7: 0 | AC7: 5 | AD7: 20 | AE7: 0 | AF7: 0 | AG7: 5 | AH7: 25 | AI7: 0 | AJ7: 0 | AK7: 5 | AL7: 25 | AM7: 0 | AN7: 0 | AO7: 5 | AP7: 25 | AQ7: 0 | AR7: 0 | AS7: 5 | AT7: 25 | AU7: 0 | AV7: 0 | AW7: 3 | AX7: 15 | AY7: 0 | AZ7: 0 | BA7: 4 | BB7: 20 | BC7: 0 | BD7: 0 | BE7: 0 | BF7: 0 | BG7: 2 | BH7: 3 | BI7: 10 | BJ7: 15 | BK7: 25 | BL7: 300 | BM7: 0 | BN7: 0 | BO7: 2 | BP7: 10 | BQ7: 0 | BR7: 0 | BS7: 2 | BT7: 10
A8: 1 | B8: 122 | C8: اسم 118 | D8: 4/1 | F8: 1242 | G8: 8 | H8: 7 | I8: 10 | J8: 25 | K8: 8 | L8: 8 | M8: 8 | N8: 24 | O8: 5 | P8: 6 | Q8: 4 | R8: 15 | S8: 8 | T8: 11 | U8: 4 | V8: 23 | W8: 8 | X8: 10 | Y8: 19 | Z8: 37 | AA8: 9 | AB8: 15 | AC8: 15 | AD8: 39 | AE8: 9 | AF8: 16 | AG8: 19 | AH8: 44 | AI8: 9 | AJ8: 10 | AK8: 16 | AL8: 35 | AM8: 9 | AN8: 15 | AO8: 17 | AP8: 41 | AQ8: 9 | AR8: 10 | AS8: 19 | AT8: 38 | AU8: 5 | AV8: 4 | AW8: 6 | AX8: 15 | AY8: 7 | AZ8: 7 | BA8: 7 | BB8: 21 | BC8: 3 | BD8: 5 | BE8: 5 | BF8: 5 | BG8: 5 | BH8: 5 | BI8: 13 | BJ8: 15 | BK8: 28 | BL8: 385 | BM8: 4 | BN8: 5 | BO8: 6 | BP8: 15 | BQ8: 4 | BR8: 5 | BS8: 5 | BT8: 14 | BU8: دورثان | BV8: فى : محاسبة مالية - | BW8: 1 | BX8: ناجحة و منقولة للصف الثانى | BZ8: محاسبة مالية | CA8: 25 | CG8: لغة عربية | CH8: 25
A9: 2 | B9: 138 | C9: اسم 132 | D9: 4/1 | F9: 1258 | G9: 8 | H9: 8 | I9: 10 | J9: 26 | K9: 8 | L9: 6 | M9: 12 | N9: 26 | O9: 5 | P9: 5 | Q9: 6 | R9: 16 | S9: 8 | T9: 5 | U9: 2 | V9: 15 | W9: 8 | X9: 10 | Y9: 13 | Z9: 31 | AA9: 9 | AB9: 14 | AC9: 14 | AD9: 37 | AE9: 9 | AF9: 11 | AG9: 19 | AH9: 39 | AI9: 9 | AJ9: 17 | AK9: 17 | AL9: 43 | AM9: 9 | AN9: 12 | AO9: 18 | AP9: 39 | AQ9: 9 | AR9: 13 | AS9: 18 | AT9: 40 | AU9: 5 | AV9: 6 | AW9: 4 | AX9: 15 | AY9: 7 | AZ9: 6 | BA9: 9 | BB9: 22 | BC9: 3 | BD9: 5 | BE9: 6 | BF9: 9 | BG9: 6 | BH9: 9 | BI9: 15 | BJ9: 23 | BK9: 38 | BL9: 387 | BM9: 4 | BN9: 4 | BO9: 6 | BP9: 14 | BQ9: 4 | BR9: 6 | BS9: 6 | BT9: 16 | BU9: دورثان | BV9: فى : محاسبة مالية - | BW9: 1 | BX9: راسبة و لها حق الاعادة | BZ9: محاسبة مالية | CG9: لغة انجليزية | CH9: 20
A10: 3 | B10: 160 | C10: اسم 152 | D10: 5/1 | F10: 1280 | G10: 8 | H10: 13 | I10: 11 | J10: 32 | K10: 8 | L10: 6 | M10: 6 | N10: 20 | O10: 5 | P10: 5 | Q10: 6 | R10: 16 | S10: 8 | T10: 6 | U10: 6 | V10: 20 | W10: 8 | X10: 15 | Y10: 14 | Z10: 37 | AA10: 9 | AB10: 15 | AC10: 18 | AD10: 42 | AE10: 9 | AF10: 7 | AG10: 19 | AH10: 35 | AI10: 9 | AJ10: 15 | AK10: 17 | AL10: 41 | AM10: 9 | AN10: 8 | AO10: 16 | AP10: 33 | AQ10: 9 | AR10: 16 | AS10: 15 | AT10: 40 | AU10: 5 | AV10: 3 | AW10: 1 | AX10: 9 | AY10: 7 | AZ10: 7 | BA10: 7 | BB10: 21 | BC10: 3 | BD10: 5 | BE10: 7 | BF10: 11 | BG10: 7 | BH10: 11 | BI10: 17 | BJ10: 27 | BK10: 44 | BL10: 390 | BM10: 4 | BN10: 2 | BO10: 6 | BP10: 12 | BQ10: 4 | BR10: 5 | BS10: 5 | BT10: 14 | BU10: دورثان | BV10: فى : محاسبة مالية - رياضة عامة - | BW10: 2 | BX10: راسبة و لها حق الاعادة | BZ10: محاسبة مالية | CA10: 20 | CB10: رياضة عامة | CC10: 15 | CG10: لغة فرنسية | CH10: 9
A11: 4 | B11: 167 | C11: اسم 159 | D11: 5/1 | F11: 1347 | G11: 8 | H11: 7 | I11: 10 | J11: 25 | K11: 8 | L11: 6 | M11: 6 | N11: 20 | O11: 5 | P11: 5 | Q11: 5 | R11: 15 | S11: 8 | T11: 6 | U11: 3 | V11: 17 | W11: 8 | X11: 13 | Y11: 12 | Z11: 33 | AA11: 9 | AB11: 17 | AC11: 15 | AD11: 41 | AE11: 9 | AF11: 14 | AG11: 18 | AH11: 41 | AI11: 9 | AJ11: 13 | AK11: 16 | AL11: 38 | AM11: 9 | AN11: 18 | AO11: 16 | AP11: 43 | AQ11: 9 | AR11: 19 | AS11: 16 | AT11: 44 | AU11: 5 | AV11: 2 | AW11: 3 | AX11: 10 | AY11: 7 | AZ11: 4 | BA11: 11 | BB11: 22 | BC11: 3 | BD11: 5 | BE11: 5 | BF11: 9 | BG11: 5 | BH11: 9 | BI11: 13 | BJ11: 23 | BK11: 36 | BL11: 385 | BM11: 4 | BN11: 3 | BO11: 6 | BP11: 13 | BQ11: 4 | BR11: 6 | BS11: 6 | BT11: 16 | BU11: دورثان | BV11: فى : محاسبة مالية - رياضة عامة - | BW11: 2 | BX11: ناجحة و منقولة للصف الثانى | BZ11: محاسبة مالية | CA11: 25 | CB11: رياضة عامة | CC11: 15 | CG11: محاسبة مالية | CH11: 25
A12: 5 | B12: 168 | C12: اسم 16 | D12: 1/1 | F12: 1348 | G12: 8 | H12: 6 | I12: 11 | J12: 25 | K12: 8 | L12: 3 | M12: 2 | N12: 13 | O12: 5 | P12: 4 | Q12: 5 | R12: 14 | S12: 8 | T12: 7 | U12: 1 | V12: 16 | W12: 8 | X12: 15 | Y12: 11 | Z12: 34 | AA12: 9 | AB12: 12 | AC12: 16 | AD12: 37 | AE12: 9 | AF12: 18 | AG12: 17 | AH12: 44 | AI12: 9 | AJ12: 8 | AK12: 9 | AL12: 26 | AM12: 9 | AN12: 15 | AO12: 16 | AP12: 40 | AQ12: 9 | AR12: 19 | AS12: 17 | AT12: 45 | AU12: 5 | AV12: 6 | AW12: 4 | AX12: 15 | AY12: 7 | AZ12: 5 | BA12: 12 | BB12: 24 | BC12: 3 | BD12: 5 | BE12: 5 | BF12: 7 | BG12: 5 | BH12: 7 | BI12: 13 | BJ12: 19 | BK12: 32 | BL12: 365 | BM12: 4 | BN12: 2 | BO12: 6 | BP12: 12 | BQ12: 4 | BR12: 6 | BS12: 6 | BT12: 16 | BU12: دورثان | BV12: فى : لغة انجليزية - محاسبة مالية - | BW12: 2 | BX12: راسبة و ليس لها حق الاعادة | BZ12: لغة انجليزية | CA12: 18 | CB12: محاسبة مالية | CC12: 25 | CG12: سكرتارية عربية | CH12: 25
A13: 6 | B13: 175 | C13: اسم 166 | D13: 1/1 | F13: 1355 | G13: 8 | H13: 7 | I13: 10 | J13: 25 | K13: 8 | L13: 7 | M13: 10 | N13: 25 | O13: 5 | P13: 5 | Q13: 5 | R13: 15 | S13: 8 | T13: 5 | U13: 1 | V13: 14 | W13: 8 | X13: 14 | Y13: 13 | Z13: 35 | AA13: 9 | AB13: 16 | AC13: 16 | AD13: 41 | AE13: 9 | AF13: 17 | AG13: 20 | AH13: 46 | AI13: 9 | AJ13: 14 | AK13: 19 | AL13: 42 | AM13: 9 | AN13: 11 | AO13: 16 | AP13: 36 | AQ13: 9 | AR13: 16 | AS13: 12 | AT13: 37 | AU13: 5 | AV13: 8 | AW13: 4 | AX13: 17 | AY13: 7 | AZ13: 5 | BA13: 9 | BB13: 21 | BC13: 3 | BD13: 5 | BE13: 5 | BF13: 7 | BG13: 5 | BH13: 3 | BI13: 13 | BJ13: 15 | BK13: 28 | BL13: 382 | BM13: 4 | BN13: 2 | BO13: 6 | BP13: 12 | BQ13: 4 | BR13: 6 | BS13: 6 | BT13: 16 | BU13: دورثان | BV13: فى : محاسبة مالية - | BW13: 1 | BX13: راسبة و لها حق الاعادة | BZ13: محاسبة مالية | CG13: سكرتارية اجنبية | CH13: 20
A14: 7 | B14: 180 | C14: اسم 170 | D14: 5/1 | F14: 1360 | G14: 8 | H14: 10 | I14: 7 | J14: 25 | K14: 8 | L14: 1 | M14: 6 | N14: 15 | O14: 5 | P14: 8 | Q14: 5 | R14: 18 | S14: 8 | T14: 9 | U14: 8 | V14: 25 | W14: 8 | X14: 17 | Y14: 14 | Z14: 39 | AA14: 9 | AB14: 10 | AC14: 17 | AD14: 36 | AE14: 9 | AF14: 16 | AG14: 17 | AH14: 42 | AI14: 9 | AJ14: 12 | AK14: 13 | AL14: 34 | AM14: 9 | AN14: 16 | AO14: 16 | AP14: 41 | AQ14: 9 | AR14: 18 | AS14: 13 | AT14: 40 | AU14: 5 | AV14: 2 | AW14: 3 | AX14: 10 | AY14: 7 | AZ14: 5 | BA14: 9 | BB14: 21 | BC14: 3 | BD14: 5 | BE14: 5 | BF14: 8 | BG14: 5 | BH14: 8 | BI14: 13 | BJ14: 21 | BK14: 34 | BL14: 380 | BM14: 4 | BN14: 6 | BO14: 6 | BP14: 16 | BQ14: 4 | BR14: 7 | BS14: 7 | BT14: 18 | BU14: دورثان | BV14: فى : لغة انجليزية - رياضة عامة - | BW14: 2 | BX14: راسبة و لها حق الاعادة | BZ14: لغة انجليزية | CB14: رياضة عامة | CG14: اقتصاد | CH14: 25
A15: 8 | B15: 197 | C15: اسم 186 | D15: 6/1 | F15: 1377 | G15: 8 | H15: 12 | I15: 7 | J15: 27 | K15: 8 | L15: 6 | M15: 6 | N15: 20 | O15: 5 | P15: 4 | Q15: 5 | R15: 14 | S15: 8 | T15: 4 | U15: 3 | V15: 15 | W15: 8 | X15: 16 | Y15: 13 | Z15: 37 | AA15: 9 | AB15: 16 | AC15: 14 | AD15: 39 | AE15: 9 | AF15: 12 | AG15: 19 | AH15: 40 | AI15: 9 | AJ15: 7 | AK15: 20 | AL15: 36 | AM15: 9 | AN15: 15 | AO15: 14 | AP15: 38 | AQ15: 9 | AR15: 6 | AS15: 20 | AT15: 35 | AU15: 5 | AV15: 2 | AW15: 1 | AX15: 8 | AY15: 7 | AZ15: 9 | BA15: 9 | BB15: 25 | BC15: 3 | BD15: 5 | BE15: 5 | BF15: 8 | BG15: 5 | BH15: 8 | BI15: 13 | BJ15: 21 | BK15: 34 | BL15: 368 | BM15: 4 | BN15: 5 | BO15: 6 | BP15: 15 | BQ15: 4 | BR15: 6 | BS15: 6 | BT15: 16 | BU15: دورثان | BV15: فى : محاسبة مالية - رياضة عامة - | BW15: 2 | BX15: راسبة و لها حق الاعادة | BZ15: محاسبة مالية | CB15: رياضة عامة | CG15: تسويق | CH15: 25
A16: 9 | B16: 208 | C16: اسم 196 | D16: 6/1 | F16: 1388 | G16: 8 | H16: 8 | I16: 12 | J16: 28 | K16: 8 | L16: 7 | M16: 11 | N16: 26 | O16: 5 | P16: 5 | Q16: 5 | R16: 15 | S16: 8 | T16: 6 | U16: 3 | V16: 17 | W16: 8 | X16: 14 | Y16: 19 | Z16: 41 | AA16: 9 | AB16: 17 | AC16: 17 | AD16: 43 | AE16: 9 | AF16: 7 | AG16: 18 | AH16: 34 | AI16: 9 | AJ16: 12 | AK16: 20 | AL16: 41 | AM16: 9 | AN16: 14 | AO16: 20 | AP16: 43 | AQ16: 9 | AR16: 13 | AS16: 20 | AT16: 42 | AU16: 5 | AV16: 3 | AW16: 8 | AX16: 16 | AY16: 7 | AZ16: 8 | BA16: 8 | BB16: 23 | BC16: 3 | BD16: 5 | BE16: 6 | BF16: 9 | BG16: 6 | BH16: 9 | BI16: 15 | BJ16: 23 | BK16: 38 | BL16: 407 | BM16: 4 | BN16: 6 | BO16: 6 | BP16: 16 | BQ16: 4 | BR16: 7 | BS16: 7 | BT16: 18 | BU16: دورثان | BV16: فى : محاسبة مالية - | BW16: 1 | BX16: راسبة و لها حق الاعادة | BZ16: محاسبة مالية | CG16: ادارة اعمال | CH16: 25
A17: 10 | B17: 210 | C17: اسم 198 | D17: 6/1 | F17: 1390 | G17: 8 | H17: 7 | I17: 10 | J17: 25 | K17: 8 | L17: 7 | M17: 11 | N17: 26 | O17: 5 | P17: 3 | Q17: 5 | R17: 13 | S17: 8 | T17: 5 | U17: 3 | V17: 16 | W17: 8 | X17: 9 | Y17: 14 | Z17: 31 | AA17: 9 | AB17: 11 | AC17: 19 | AD17: 39 | AE17: 9 | AF17: 9 | AG17: 20 | AH17: 38 | AI17: 9 | AJ17: 8 | AK17: 15 | AL17: 32 | AM17: 9 | AN17: 12 | AO17: 14 | AP17: 35 | AQ17: 9 | AR17: 8 | AS17: 20 | AT17: 37 | AU17: 5 | AV17: 5 | AW17: 5 | AX17: 15 | AY17: 7 | AZ17: 8 | BA17: 8 | BB17: 23 | BC17: 3 | BD17: 5 | BE17: 5 | BF17: 5 | BG17: 5 | BH17: 5 | BI17: 13 | BJ17: 15 | BK17: 28 | BL17: 358 | BM17: 4 | BN17: 5 | BO17: 6 | BP17: 15 | BQ17: 4 | BR17: 6 | BS17: 6 | BT17: 16 | BU17: دورثان | BV17: فى : محاسبة مالية - | BW17: 1 | BX17: راسبة و ليس لها حق الاعادة | BZ17: محاسبة مالية | CG17: قانون تجارى | CH17: 25
A18: 11 | B18: 217 | C18: اسم 203 | D18: 6/1 | F18: 1397 | G18: 8 | H18: 4 | I18: 5 | J18: 17 | K18: 8 | L18: 7 | M18: 5 | N18: 20 | O18: 5 | P18: 4 | Q18: 4 | R18: 13 | S18: 8 | T18: 3 | U18: 2 | V18: 13 | W18: 8 | X18: 10 | Y18: 8 | Z18: 26 | AA18: 9 | AB18: 10 | AC18: 17 | AD18: 36 | AE18: 9 | AF18: 8 | AG18: 8 | AH18: 25 | AI18: 9 | AJ18: 7 | AK18: 17 | AL18: 33 | AM18: 9 | AN18: 15 | AO18: 9 | AP18: 33 | AQ18: 9 | AR18: 6 | AS18: 12 | AT18: 27 | AU18: 5 | AV18: 5 | AW18: 5 | AX18: 15 | AY18: 7 | AZ18: 3 | BA18: 11 | BB18: 21 | BC18: 3 | BD18: 5 | BE18: 5 | BF18: 6 | BG18: 5 | BH18: 6 | BI18: 13 | BJ18: 17 | BK18: 30 | BL18: 309 | BM18: 4 | BN18: 2 | BO18: 6 | BP18: 12 | BQ18: 4 | BR18: 4 | BS18: 4 | BT18: 12 | BU18: دورثان | BV18: فى : لغة عربية - محاسبة مالية - | BW18: 2 | BX18: راسبة و لها حق الاعادة | BZ18: لغة عربية | CB18: محاسبة مالية | CG18: رياضة عامة | CH18: 15
A19: 12 | B19: 224 | C19: اسم 21 | D19: 1/1 | F19: 1104 | G19: 8 | H19: 5 | I19: 13 | J19: 26 | K19: 8 | L19: 5 | M19: 8 | N19: 21 | O19: 5 | P19: 5 | Q19: 5 | R19: 15 | S19: 8 | T19: 6 | U19: 4 | V19: 18 | W19: 8 | X19: 15 | Y19: 10 | Z19: 33 | AA19: 9 | AB19: 12 | AC19: 18 | AD19: 39 | AE19: 9 | AF19: 9 | AG19: 19 | AH19: 37 | AI19: 9 | AJ19: 18 | AK19: 17 | AL19: 44 | AM19: 9 | AN19: 15 | AO19: 18 | AP19: 42 | AQ19: 9 | AR19: 8 | AS19: 12 | AT19: 29 | AU19: 5 | AV19: 2 | AW19: 9 | AX19: 16 | AY19: 7 | AZ19: 11 | BA19: 11 | BB19: 29 | BC19: 3 | BD19: 5 | BE19: 7 | BF19: 11 | BG19: 7 | BH19: 11 | BI19: 17 | BJ19: 27 | BK19: 44 | BL19: 393 | BM19: 4 | BN19: 7 | BO19: 6 | BP19: 17 | BQ19: 4 | BR19: 5 | BS19: 5 | BT19: 14 | BU19: دورثان | BV19: فى : محاسبة مالية - | BW19: 1 | BX19: راسبة و لها حق الاعادة | BZ19: محاسبة مالية | CG19: جغرافيا | CH19: 20
A20: 13 | B20: 241 | C20: اسم 225 | D20: 7/1 | F20: 1121 | G20: 8 | H20: 4 | I20: 7 | J20: 19 | K20: 8 | L20: 1 | M20: 3 | N20: 12 | O20: 5 | P20: 7 | Q20: 4 | R20: 16 | S20: 8 | T20: 12 | U20: 5 | V20: 25 | W20: 8 | X20: 10 | Y20: 10 | Z20: 28 | AA20: 9 | AB20: 16 | AC20: 15 | AD20: 40 | AE20: 9 | AF20: 5 | AG20: 13 | AH20: 27 | AI20: 9 | AJ20: 17 | AK20: 12 | AL20: 38 | AM20: 9 | AN20: 8 | AO20: 18 | AP20: 35 | AQ20: 9 | AR20: 17 | AS20: 15 | AT20: 41 | AU20: 5 | AV20: 4 | AW20: 6 | AX20: 15 | AY20: 7 | AZ20: 5 | BA20: 9 | BB20: 21 | BC20: 3 | BD20: 5 | BE20: 5 | BF20: 8 | BG20: 5 | BH20: 8 | BI20: 13 | BJ20: 21 | BK20: 34 | BL20: 351 | BM20: 4 | BN20: 5 | BO20: 6 | BP20: 15 | BQ20: 4 | BR20: 6 | BS20: 6 | BT20: 16 | BU20: دورثان | BV20: فى : لغة عربية - لغة انجليزية - | BW20: 2 | BX20: راسبة و لها حق الاعادة | BZ20: لغة عربية | CB20: لغة انجليزية | CG20: حاسب آلى | CH20: 25
A21: 14 | B21: 244 | C21: اسم 228 | D21: 7/1 | F21: 1124 | G21: 8 | H21: 5 | I21: 6 | J21: 19 | K21: 8 | L21: 7 | M21: 5 | N21: 20 | O21: 5 | P21: 5 | Q21: 7 | R21: 17 | S21: 8 | T21: 6 | U21: 3 | V21: 17 | W21: 8 | X21: 15 | Y21: 5 | Z21: 28 | AA21: 9 | AB21: 17 | AC21: 13 | AD21: 39 | AE21: 9 | AF21: 10 | AG21: 16 | AH21: 35 | AI21: 9 | AJ21: 11 | AK21: 12 | AL21: 32 | AM21: 9 | AN21: 12 | AO21: 12 | AP21: 33 | AQ21: 9 | AR21: 15 | AS21: 12 | AT21: 36 | AU21: 5 | AV21: 4 | AW21: 6 | AX21: 15 | AY21: 7 | AZ21: 5 | BA21: 9 | BB21: 21 | BC21: 3 | BD21: 5 | BE21: 5 | BF21: 8 | BG21: 5 | BH21: 8 | BI21: 13 | BJ21: 21 | BK21: 34 | BL21: 346 | BM21: 4 | BN21: 2 | BO21: 6 | BP21: 12 | BQ21: 4 | BR21: 4 | BS21: 4 | BT21: 12 | BU21: دورثان | BV21: فى : لغة عربية - محاسبة مالية - | BW21: 2 | BX21: راسبة و لها حق الاعادة | BZ21: لغة عربية | CB21: محاسبة مالية | CG21: تربية قومية | CH21: 10
A22: 15 | B22: 248 | C22: اسم 231 | D22: 7/1 | F22: 1128 | G22: 8 | H22: 8 | I22: 9 | J22: 25 | K22: 8 | L22: 2 | M22: 2 | N22: 12 | O22: 5 | P22: 5 | Q22: 4 | R22: 14 | S22: 8 | T22: 3 | U22: 4 | V22: 15 | W22: 8 | X22: 10 | Y22: 10 | Z22: 28 | AA22: 9 | AB22: 16 | AC22: 14 | AD22: 39 | AE22: 9 | AF22: 8 | AG22: 11 | AH22: 28 | AI22: 9 | AJ22: 12 | AK22: 17 | AL22: 38 | AM22: 9 | AN22: 7 | AO22: 15 | AP22: 31 | AQ22: 9 | AR22: 12 | AS22: 17 | AT22: 38 | AU22: 5 | AV22: 5 | AW22: 5 | AX22: 15 | AY22: 7 | AZ22: 4 | BA22: 9 | BB22: 20 | BC22: 3 | BD22: 5 | BE22: 5 | BF22: 6 | BG22: 5 | BH22: 6 | BI22: 13 | BJ22: 17 | BK22: 30 | BL22: 333 | BM22: 4 | BN22: 4 | BO22: 6 | BP22: 14 | BQ22: 4 | BR22: 6 | BS22: 6 | BT22: 16 | BU22: دورثان | BV22: فى : لغة انجليزية - محاسبة مالية - | BW22: 2 | BX22: راسبة و لها حق الاعادة | BZ22: لغة انجليزية | CB22: محاسبة مالية | CG22: تربية دينية | CH22: 10
A23: 16 | B23: 251 | C23: اسم 234 | D23: 7/1 | F23: 1131 | G23: 9 | H23: 8 | I23: 8 | J23: 25 | K23: 8 | L23: 7 | M23: 5 | N23: 20 | O23: 5 | P23: 4 | Q23: 6 | R23: 15 | S23: 8 | T23: 2 | U23: 5 | V23: 15 | W23: 8 | X23: 8 | Y23: 11 | Z23: 27 | AA23: 9 | AB23: 16 | AC23: 14 | AD23: 39 | AE23: 9 | AF23: 14 | AG23: 19 | AH23: 42 | AI23: 9 | AJ23: 8 | AK23: 10 | AL23: 27 | AM23: 9 | AN23: 10 | AO23: 11 | AP23: 30 | AQ23: 9 | AR23: 10 | AS23: 17 | AT23: 36 | AU23: 5 | AV23: 2 | AW23: 2 | AX23: 9 | AY23: 7 | AZ23: 6 | BA23: 9 | BB23: 22 | BC23: 3 | BD23: 5 | BE23: 5 | BF23: 8 | BG23: 5 | BH23: 8 | BI23: 13 | BJ23: 21 | BK23: 34 | BL23: 341 | BM23: 4 | BN23: 4 | BO23: 6 | BP23: 14 | BQ23: 4 | BR23: 5 | BS23: 5 | BT23: 14 | BU23: دورثان | BV23: فى : محاسبة مالية - رياضة عامة - | BW23: 2 | BX23: راسبة و لها حق الاعادة | BZ23: محاسبة مالية | CB23: رياضة عامة
A24: 17 | B24: 254 | C24: اسم 237 | D24: 7/1 | F24: 1134 | G24: 8 | H24: 4 | I24: 7 | J24: 19 | K24: 8 | L24: 9 | M24: 5 | N24: 22 | O24: 5 | P24: 6 | Q24: 6 | R24: 17 | S24: 8 | T24: 9 | U24: 8 | V24: 25 | W24: 8 | X24: 8 | Y24: 10 | Z24: 26 | AA24: 9 | AB24: 16 | AC24: 14 | AD24: 39 | AE24: 9 | AF24: 10 | AG24: 20 | AH24: 39 | AI24: 9 | AJ24: 11 | AK24: 19 | AL24: 39 | AM24: 9 | AN24: 10 | AO24: 16 | AP24: 35 | AQ24: 9 | AR24: 16 | AS24: 19 | AT24: 44 | AU24: 5 | AV24: 3 | AW24: 1 | AX24: 9 | AY24: 7 | AZ24: 8 | BA24: 8 | BB24: 23 | BC24: 3 | BD24: 5 | BE24: 5 | BF24: 8 | BG24: 5 | BH24: 8 | BI24: 13 | BJ24: 21 | BK24: 34 | BL24: 371 | BM24: 4 | BN24: 4 | BO24: 6 | BP24: 14 | BQ24: 4 | BR24: 6 | BS24: 6 | BT24: 16 | BU24: دورثان | BV24: فى : لغة عربية - رياضة عامة - | BW24: 2 | BX24: راسبة و لها حق الاعادة | BZ24: لغة عربية | CB24: رياضة عامة
A25: 18 | B25: 256 | C25: اسم 239 | D25: 7/1 | F25: 1136 | G25: 8 | H25: 7 | I25: 10 | J25: 25 | K25: 8 | L25: 9 | M25: 4 | N25: 21 | O25: 5 | P25: 6 | Q25: 6 | R25: 17 | S25: 8 | T25: 10 | U25: 14 | V25: 32 | W25: 8 | X25: 10 | Y25: 11 | Z25: 29 | AA25: 9 | AB25: 16 | AC25: 16 | AD25: 41 | AE25: 9 | AF25: 10 | AG25: 17 | AH25: 36 | AI25: 9 | AJ25: 12 | AK25: 17 | AL25: 38 | AM25: 9 | AN25: 10 | AO25: 19 | AP25: 38 | AQ25: 9 | AR25: 17 | AS25: 20 | AT25: 46 | AU25: 5 | AV25: 4 | AW25: 1 | AX25: 10 | AY25: 7 | AZ25: 13 | BA25: 13 | BB25: 33 | BC25: 3 | BD25: 5 | BE25: 5 | BF25: 7 | BG25: 5 | BH25: 7 | BI25: 13 | BJ25: 19 | BK25: 32 | BL25: 398 | BM25: 4 | BN25: 5 | BO25: 6 | BP25: 15 | BQ25: 4 | BR25: 6 | BS25: 6 | BT25: 16 | BU25: دورثان | BV25: فى : لغة انجليزية - رياضة عامة - | BW25: 2 | BX25: راسبة و لها حق الاعادة | BZ25: لغة انجليزية | CB25: رياضة عامة
A26: 19 | B26: 257 | C26: اسم 24 | D26: 1/1 | F26: 1137 | G26: 8 | H26: 7 | I26: 14 | J26: 29 | K26: 8 | L26: 6 | M26: 6 | N26: 20 | O26: 5 | P26: 6 | Q26: 6 | R26: 17 | S26: 8 | T26: 2 | U26: 2 | V26: 12 | W26: 8 | X26: 11 | Y26: 15 | Z26: 34 | AA26: 9 | AB26: 9 | AC26: 15 | AD26: 33 | AE26: 9 | AF26: 7 | AG26: 20 | AH26: 36 | AI26: 9 | AJ26: 13 | AK26: 19 | AL26: 41 | AM26: 9 | AN26: 13 | AO26: 19 | AP26: 41 | AQ26: 9 | AR26: 14 | AS26: 19 | AT26: 42 | AU26: 5 | AV26: 3 | AW26: 1 | AX26: 9 | AY26: 7 | AZ26: 11 | BA26: 11 | BB26: 29 | BC26: 3 | BD26: 5 | BE26: 5 | BF26: 7 | BG26: 5 | BH26: 7 | BI26: 13 | BJ26: 19 | BK26: 32 | BL26: 375 | BM26: 4 | BN26: 5 | BO26: 6 | BP26: 15 | BQ26: 4 | BR26: 7 | BS26: 7 | BT26: 18 | BU26: دورثان | BV26: فى : محاسبة مالية - رياضة عامة - | BW26: 2 | BX26: راسبة و لها حق الاعادة | BZ26: محاسبة مالية | CB26: رياضة عامة
A27: 20 | B27: 263 | C27: اسم 245 | D27: 7/1 | F27: 1143 | G27: 8 | H27: 5 | I27: 15 | J27: 28 | K27: 8 | L27: 7 | M27: 5 | N27: 20 | O27: 5 | P27: 5 | Q27: 6 | R27: 16 | S27: 8 | T27: 11 | U27: 16 | V27: 35 | W27: 8 | X27: 15 | Y27: 11 | Z27: 34 | AA27: 9 | AB27: 11 | AC27: 16 | AD27: 36 | AE27: 9 | AF27: 10 | AG27: 19 | AH27: 38 | AI27: 9 | AJ27: 18 | AK27: 12 | AL27: 39 | AM27: 9 | AN27: 16 | AO27: 19 | AP27: 44 | AQ27: 9 | AR27: 14 | AS27: 19 | AT27: 42 | AU27: 5 | AV27: 3 | AW27: 1 | AX27: 9 | AY27: 7 | AZ27: 10 | BA27: 10 | BB27: 27 | BC27: 3 | BD27: 5 | BE27: 7 | BF27: 11 | BG27: 7 | BH27: 11 | BI27: 17 | BJ27: 27 | BK27: 44 | BL27: 412 | BM27: 4 | BN27: 3 | BO27: 6 | BP27: 13 | BQ27: 4 | BR27: 6 | BS27: 6 | BT27: 16 | BU27: دورثان | BV27: فى : رياضة عامة - | BW27: 1 | BX27: راسبة و لها حق الاعادة | BZ27: رياضة عامة
A28: 21 | B28: 264 | C28: اسم 246 | D28: 1/1 | F28: 1144 | G28: 8 | H28: 9 | I28: 11 | J28: 28 | K28: 8 | L28: 8 | M28: 11 | N28: 27 | O28: 5 | P28: 5 | Q28: 6 | R28: 16 | S28: 8 | T28: 5 | U28: 16 | V28: 29 | W28: 8 | X28: 15 | Y28: 14 | Z28: 37 | AA28: 9 | AB28: 12 | AC28: 11 | AD28: 32 | AE28: 9 | AF28: 10 | AG28: 19 | AH28: 38 | AI28: 9 | AJ28: 18 | AK28: 13 | AL28: 40 | AM28: 9 | AN28: 14 | AO28: 19 | AP28: 42 | AQ28: 9 | AR28: 20 | AS28: 19 | AT28: 48 | AU28: 5 | AV28: 2 | AW28: 1 | AX28: 8 | AY28: 7 | AZ28: 12 | BA28: 12 | BB28: 31 | BC28: 3 | BD28: 5 | BE28: 6 | BF28: 9 | BG28: 6 | BH28: 9 | BI28: 15 | BJ28: 23 | BK28: 38 | BL28: 414 | BM28: 4 | BN28: 5 | BO28: 6 | BP28: 15 | BQ28: 4 | BR28: 6 | BS28: 6 | BT28: 16 | BU28: دورثان | BV28: فى : رياضة عامة - | BW28: 1 | BX28: راسبة و لها حق الاعادة | BZ28: رياضة عامة
A29: 22 | B29: 267 | C29: اسم 249 | D29: 7/1 | F29: 1147 | G29: 8 | H29: 6 | I29: 12 | J29: 26 | K29: 8 | L29: 3 | M29: 3 | N29: 14 | O29: 5 | P29: 6 | Q29: 6 | R29: 17 | S29: 8 | T29: 15 | U29: 15 | V29: 38 | W29: 8 | X29: 9 | Y29: 13 | Z29: 30 | AA29: 9 | AB29: 12 | AC29: 13 | AD29: 34 | AE29: 9 | AF29: 7 | AG29: 17 | AH29: 33 | AI29: 9 | AJ29: 12 | AK29: 12 | AL29: 33 | AM29: 9 | AN29: 11 | AO29: 19 | AP29: 39 | AQ29: 9 | AR29: 14 | AS29: 19 | AT29: 42 | AU29: 5 | AV29: 4 | AW29: 1 | AX29: 10 | AY29: 7 | AZ29: 8 | BA29: 8 | BB29: 23 | BC29: 3 | BD29: 5 | BE29: 6 | BF29: 10 | BG29: 6 | BH29: 10 | BI29: 15 | BJ29: 25 | BK29: 40 | BL29: 379 | BM29: 4 | BN29: 5 | BO29: 6 | BP29: 15 | BQ29: 4 | BR29: 4 | BS29: 4 | BT29: 12 | BU29: دورثان | BV29: فى : لغة انجليزية - رياضة عامة - | BW29: 2 | BX29: راسبة و لها حق الاعادة | BZ29: لغة انجليزية | CB29: رياضة عامة
A30: 23 | B30: 271 | C30: اسم 252 | D30: 1/1 | F30: 1151 | G30: 8 | H30: 6 | I30: 11 | J30: 25 | K30: 8 | L30: 5 | M30: 7 | N30: 20 | O30: 5 | P30: 5 | Q30: 7 | R30: 17 | S30: 8 | T30: 5 | U30: 3 | V30: 16 | W30: 8 | X30: 7 | Y30: 10 | Z30: 25 | AA30: 9 | AB30: 13 | AC30: 13 | AD30: 35 | AE30: 9 | AF30: 10 | AG30: 20 | AH30: 39 | AI30: 9 | AJ30: 15 | AK30: 14 | AL30: 38 | AM30: 9 | AN30: 10 | AO30: 19 | AP30: 38 | AQ30: 9 | AR30: 15 | AS30: 19 | AT30: 43 | AU30: 5 | AV30: 2 | AW30: 1 | AX30: 8 | AY30: 7 | AZ30: 11 | BA30: 11 | BB30: 29 | BC30: 3 | BD30: 5 | BE30: 5 | BF30: 5 | BG30: 5 | BH30: 5 | BI30: 13 | BJ30: 15 | BK30: 28 | BL30: 361 | BM30: 4 | BN30: 4 | BO30: 6 | BP30: 14 | BQ30: 4 | BR30: 7 | BS30: 7 | BT30: 18 | BU30: دورثان | BV30: فى : محاسبة مالية - رياضة عامة - | BW30: 2 | BX30: راسبة و لها حق الاعادة | BZ30: محاسبة مالية | CB30: رياضة عامة
A31: 24 | B31: 273 | C31: اسم 254 | D31: 1/1 | F31: 1153 | G31: 8 | H31: 7 | I31: 11 | J31: 26 | K31: 8 | L31: 2 | M31: 2 | N31: 12 | O31: 5 | P31: 4 | Q31: 5 | R31: 14 | S31: 8 | T31: 3 | U31: 4 | V31: 15 | W31: 8 | X31: 4 | Y31: 13 | Z31: 25 | AA31: 9 | AB31: 13 | AC31: 13 | AD31: 35 | AE31: 9 | AF31: 8 | AG31: 20 | AH31: 37 | AI31: 9 | AJ31: 15 | AK31: 12 | AL31: 36 | AM31: 9 | AN31: 10 | AO31: 19 | AP31: 38 | AQ31: 9 | AR31: 18 | AS31: 19 | AT31: 46 | AU31: 5 | AV31: 6 | AW31: 5 | AX31: 16 | AY31: 7 | AZ31: 8 | BA31: 8 | BB31: 23 | BC31: 3 | BD31: 5 | BE31: 6 | BF31: 9 | BG31: 6 | BH31: 9 | BI31: 15 | BJ31: 23 | BK31: 38 | BL31: 361 | BM31: 4 | BN31: 6 | BO31: 6 | BP31: 16 | BQ31: 4 | BR31: 5 | BS31: 5 | BT31: 14 | BU31: دورثان | BV31: فى : لغة انجليزية - محاسبة مالية - | BW31: 2 | BX31: راسبة و لها حق الاعادة | BZ31: لغة انجليزية | CB31: محاسبة مالية
A32: 25 | B32: 274 | C32: اسم 255 | D32: 1/1 | F32: 1154 | G32: 8 | H32: 7 | I32: 12 | J32: 27 | K32: 8 | L32: 8 | M32: 4 | N32: 20 | O32: 5 | P32: 4 | Q32: 5 | R32: 14 | S32: 8 | T32: 4 | U32: 5 | V32: 17 | W32: 8 | X32: 10 | Y32: 11 | Z32: 29 | AA32: 9 | AB32: 16 | AC32: 12 | AD32: 37 | AE32: 9 | AF32: 10 | AG32: 17 | AH32: 36 | AI32: 9 | AJ32: 18 | AK32: 14 | AL32: 41 | AM32: 9 | AN32: 14 | AO32: 19 | AP32: 42 | AQ32: 9 | AR32: 18 | AS32: 19 | AT32: 46 | AU32: 5 | AV32: 5 | AW32: 5 | AX32: 15 | AY32: 7 | AZ32: 10 | BA32: 10 | BB32: 27 | BC32: 3 | BD32: 5 | BE32: 5 | BF32: 5 | BG32: 5 | BH32: 5 | BI32: 13 | BJ32: 15 | BK32: 28 | BL32: 379 | BM32: 4 | BN32: 5 | BO32: 6 | BP32: 15 | BQ32: 4 | BR32: 6 | BS32: 6 | BT32: 16 | BU32: دورثان | BV32: فى : لغة انجليزية - محاسبة مالية - | BW32: 2 | BX32: راسبة و لها حق الاعادة | BZ32: لغة انجليزية | CB32: محاسبة مالية
A33: 26 | B33: 279 | C33: اسم 26 | D33: 1/1 | F33: 1159 | G33: 8 | H33: 8 | I33: 9 | J33: 25 | K33: 8 | L33: 1 | M33: 5 | N33: 14 | O33: 5 | P33: 4 | Q33: 5 | R33: 14 | S33: 8 | T33: 6 | U33: 6 | V33: 20 | W33: 8 | X33: 8 | Y33: 9 | Z33: 25 | AA33: 9 | AB33: 12 | AC33: 14 | AD33: 35 | AE33: 9 | AF33: 10 | AG33: 11 | AH33: 30 | AI33: 9 | AJ33: 19 | AK33: 12 | AL33: 40 | AM33: 9 | AN33: 18 | AO33: 17 | AP33: 44 | AQ33: 9 | AR33: 13 | AS33: 20 | AT33: 42 | AU33: 5 | AV33: 5 | AW33: 5 | AX33: 15 | AY33: 7 | AZ33: 4 | BA33: 9 | BB33: 20 | BC33: 3 | BD33: 5 | BE33: 6 | BF33: 9 | BG33: 6 | BH33: 9 | BI33: 15 | BJ33: 23 | BK33: 38 | BL33: 362 | BM33: 4 | BN33: 3 | BO33: 6 | BP33: 13 | BQ33: 4 | BR33: 5 | BS33: 5 | BT33: 14 | BU33: دورثان | BV33: فى : لغة انجليزية - محاسبة مالية - | BW33: 2 | BX33: راسبة و لها حق الاعادة | BZ33: لغة انجليزية | CB33: محاسبة مالية
A34: 27 | B34: 284 | C34: اسم 264 | D34: 5/1 | F34: 1284 | G34: 8 | H34: 1 | I34: 6 | J34: 15 | K34: 8 | L34: 2 | M34: 3 | N34: 13 | O34: 5 | P34: 5 | Q34: 3 | R34: 13 | S34: 8 | T34: 4 | U34: 16 | V34: 28 | W34: 8 | X34: 13 | Y34: 10 | Z34: 31 | AA34: 9 | AB34: 14 | AC34: 14 | AD34: 37 | AE34: 9 | AF34: 8 | AG34: 12 | AH34: 29 | AI34: 9 | AJ34: 10 | AK34: 12 | AL34: 31 | AM34: 9 | AN34: 19 | AO34: 17 | AP34: 45 | AQ34: 9 | AR34: 18 | AS34: 20 | AT34: 47 | AU34: 5 | AV34: 3 | AW34: 7 | AX34: 15 | AY34: 7 | AZ34: 5 | BA34: 9 | BB34: 21 | BC34: 3 | BD34: 5 | BE34: 6 | BF34: 9 | BG34: 6 | BH34: 9 | BI34: 15 | BJ34: 23 | BK34: 38 | BL34: 363 | BM34: 4 | BN34: 2 | BO34: 6 | BP34: 12 | BQ34: 4 | BR34: 5 | BS34: 5 | BT34: 14 | BU34: دورثان | BV34: فى : لغة عربية - لغة انجليزية - | BW34: 2 | BX34: راسبة و لها حق الاعادة | BZ34: لغة عربية | CB34: لغة انجليزية
A35: 28 | B35: 299 | C35: اسم 278 | D35: 8/1 | F35: 1299 | G35: 8 | H35: 7 | I35: 11 | J35: 26 | K35: 8 | L35: 2 | M35: 5 | N35: 15 | O35: 5 | P35: 6 | Q35: 5 | R35: 16 | S35: 8 | T35: 4 | U35: 16 | V35: 28 | W35: 8 | X35: 11 | Y35: 13 | Z35: 32 | AA35: 9 | AB35: 18 | AC35: 14 | AD35: 41 | AE35: 9 | AF35: 8 | AG35: 11 | AH35: 28 | AI35: 9 | AJ35: 10 | AK35: 14 | AL35: 33 | AM35: 9 | AN35: 14 | AO35: 18 | AP35: 41 | AQ35: 9 | AR35: 5 | AS35: 19 | AT35: 33 | AU35: 5 | AV35: 1 | AW35: 1 | AX35: 7 | AY35: 7 | AZ35: 9 | BA35: 9 | BB35: 25 | BC35: 3 | BD35: 5 | BE35: 6 | BF35: 9 | BG35: 6 | BH35: 9 | BI35: 15 | BJ35: 23 | BK35: 38 | BL35: 363 | BM35: 4 | BN35: 4 | BO35: 6 | BP35: 14 | BQ35: 4 | BR35: 7 | BS35: 7 | BT35: 18 | BU35: دورثان | BV35: فى : لغة انجليزية - رياضة عامة - | BW35: 2 | BX35: راسبة و لها حق الاعادة | BZ35: لغة انجليزية | CB35: رياضة عامة
A36: 29 | B36: 300 | C36: اسم 279 | D36: 8/1 | F36: 1300 | G36: 8 | H36: 7 | I36: 11 | J36: 26 | K36: 8 | L36: 2 | M36: 2 | N36: 12 | O36: 5 | P36: 8 | Q36: 5 | R36: 18 | S36: 8 | T36: 6 | U36: 4 | V36: 18 | W36: 8 | X36: 11 | Y36: 14 | Z36: 33 | AA36: 9 | AB36: 19 | AC36: 13 | AD36: 41 | AE36: 9 | AF36: 6 | AG36: 11 | AH36: 26 | AI36: 9 | AJ36: 14 | AK36: 8 | AL36: 31 | AM36: 9 | AN36: 12 | AO36: 16 | AP36: 37 | AQ36: 9 | AR36: 5 | AS36: 19 | AT36: 33 | AU36: 5 | AV36: 3 | AW36: 7 | AX36: 15 | AY36: 7 | AZ36: 6 | BA36: 9 | BB36: 22 | BC36: 3 | BD36: 5 | BE36: 5 | BF36: 7 | BG36: 5 | BH36: 7 | BI36: 13 | BJ36: 19 | BK36: 32 | BL36: 344 | BM36: 4 | BN36: 4 | BO36: 6 | BP36: 14 | BQ36: 4 | BR36: 5 | BS36: 5 | BT36: 14 | BU36: دورثان | BV36: فى : لغة انجليزية - محاسبة مالية - | BW36: 2 | BX36: راسبة و لها حق الاعادة | BZ36: لغة انجليزية | CB36: محاسبة مالية
A37: 30 | B37: 316 | C37: اسم 293 | D37: 8/1 | F37: 1316 | G37: 8 | H37: 8 | I37: 9 | J37: 25 | K37: 8 | L37: 4 | M37: 2 | N37: 14 | O37: 5 | P37: 4 | Q37: 4 | R37: 13 | S37: 8 | T37: 7 | U37: 11 | V37: 26 | W37: 8 | X37: 10 | Y37: 15 | Z37: 33 | AA37: 9 | AB37: 10 | AC37: 16 | AD37: 35 | AE37: 9 | AF37: 10 | AG37: 16 | AH37: 35 | AI37: 9 | AJ37: 13 | AK37: 13 | AL37: 35 | AM37: 9 | AN37: 19 | AO37: 18 | AP37: 46 | AQ37: 9 | AR37: 17 | AS37: 13 | AT37: 39 | AU37: 5 | AV37: 2 | AW37: 3 | AX37: 10 | AY37: 7 | AZ37: 9 | BA37: 9 | BB37: 25 | BC37: 3 | BD37: 5 | BE37: 5 | BF37: 3 | BG37: 5 | BH37: 8 | BI37: 13 | BJ37: 16 | BK37: 29 | BL37: 365 | BM37: 4 | BN37: 5 | BO37: 6 | BP37: 15 | BQ37: 4 | BR37: 7 | BS37: 7 | BT37: 18 | BU37: دورثان | BV37: فى : لغة انجليزية - رياضة عامة - | BW37: 2 | BX37: راسبة و لها حق الاعادة | BZ37: لغة انجليزية | CB37: رياضة عامة
A38: 31 | B38: 324 | C38: اسم 30 | D38: 2/1 | F38: 1324 | G38: 8 | H38: 7 | I38: 10 | J38: 25 | K38: 8 | L38: 1 | M38: 5 | N38: 14 | O38: 5 | P38: 7 | Q38: 5 | R38: 17 | S38: 8 | T38: 2 | U38: 8 | V38: 18 | W38: 8 | X38: 11 | Y38: 11 | Z38: 30 | AA38: 9 | AB38: 18 | AC38: 14 | AD38: 41 | AE38: 9 | AF38: 14 | AG38: 16 | AH38: 39 | AI38: 9 | AJ38: 12 | AK38: 17 | AL38: 38 | AM38: 9 | AN38: 17 | AO38: 17 | AP38: 43 | AQ38: 9 | AR38: 20 | AS38: 20 | AT38: 49 | AU38: 5 | AV38: 2 | AW38: 9 | AX38: 16 | AY38: 7 | AZ38: 11 | BA38: 11 | BB38: 29 | BC38: 3 | BD38: 5 | BE38: 7 | BF38: 11 | BG38: 7 | BH38: 11 | BI38: 17 | BJ38: 27 | BK38: 44 | BL38: 403 | BM38: 4 | BN38: 5 | BO38: 6 | BP38: 15 | BQ38: 4 | BR38: 5 | BS38: 5 | BT38: 14 | BU38: دورثان | BV38: فى : لغة انجليزية - محاسبة مالية - | BW38: 2 | BX38: راسبة و لها حق الاعادة | BZ38: لغة انجليزية | CB38: محاسبة مالية
A39: 32 | B39: 325 | C39: اسم 300 | D39: 5/1 | F39: 1325 | G39: 8 | H39: 11 | I39: 6 | J39: 25 | K39: 8 | L39: 6 | M39: 6 | N39: 20 | O39: 5 | P39: 6 | Q39: 5 | R39: 16 | S39: 8 | T39: 4 | U39: 1 | V39: 13 | W39: 8 | X39: 10 | Y39: 12 | Z39: 30 | AA39: 9 | AB39: 15 | AC39: 12 | AD39: 36 | AE39: 9 | AF39: 16 | AG39: 19 | AH39: 44 | AI39: 9 | AJ39: 12 | AK39: 13 | AL39: 34 | AM39: 9 | AN39: 14 | AO39: 16 | AP39: 39 | AQ39: 9 | AR39: 16 | AS39: 19 | AT39: 44 | AU39: 5 | AV39: 2 | AW39: 10 | AX39: 17 | AY39: 7 | AZ39: 10 | BA39: 10 | BB39: 27 | BC39: 3 | BD39: 5 | BE39: 6 | BF39: 10 | BG39: 6 | BH39: 10 | BI39: 15 | BJ39: 25 | BK39: 40 | BL39: 385 | BM39: 4 | BN39: 6 | BO39: 6 | BP39: 16 | BQ39: 4 | BR39: 6 | BS39: 6 | BT39: 16 | BU39: دورثان | BV39: فى : محاسبة مالية - | BW39: 1 | BX39: راسبة و لها حق الاعادة | BZ39: محاسبة مالية
A40: 33 | B40: 328 | C40: اسم 303 | D40: 8/1 | F40: 1328 | G40: 8 | H40: 9 | I40: 9 | J40: 26 | K40: 8 | L40: 3 | M40: 3 | N40: 14 | O40: 5 | P40: 5 | Q40: 6 | R40: 16 | S40: 8 | T40: 4 | U40: 3 | V40: 15 | W40: 8 | X40: 7 | Y40: 10 | Z40: 25 | AA40: 9 | AB40: 13 | AC40: 14 | AD40: 36 | AE40: 9 | AF40: 10 | AG40: 16 | AH40: 35 | AI40: 9 | AJ40: 15 | AK40: 14 | AL40: 38 | AM40: 9 | AN40: 16 | AO40: 16 | AP40: 41 | AQ40: 9 | AR40: 13 | AS40: 19 | AT40: 41 | AU40: 5 | AV40: 5 | AW40: 5 | AX40: 15 | AY40: 7 | AZ40: 10 | BA40: 10 | BB40: 27 | BC40: 3 | BD40: 5 | BE40: 5 | BF40: 8 | BG40: 5 | BH40: 8 | BI40: 13 | BJ40: 21 | BK40: 34 | BL40: 363 | BM40: 4 | BN40: 3 | BO40: 6 | BP40: 13 | BQ40: 4 | BR40: 5 | BS40: 5 | BT40: 14 | BU40: دورثان | BV40: فى : لغة انجليزية - محاسبة مالية - | BW40: 2 | BX40: راسبة و لها حق الاعادة | BZ40: لغة انجليزية | CB40: محاسبة مالية
A41: 34 | B41: 345 | C41: اسم 319 | D41: 9/1 | F41: 1165 | G41: 8 | H41: 10 | I41: 7 | J41: 25 | K41: 8 | L41: 2 | M41: 3 | N41: 13 | O41: 5 | P41: 9 | Q41: 7 | R41: 21 | S41: 8 | T41: 6 | U41: 1 | V41: 15 | W41: 8 | X41: 8 | Y41: 9 | Z41: 25 | AA41: 9 | AB41: 14 | AC41: 13 | AD41: 36 | AE41: 9 | AF41: 17 | AG41: 16 | AH41: 42 | AI41: 9 | AJ41: 6 | AK41: 14 | AL41: 29 | AM41: 9 | AN41: 8 | AO41: 16 | AP41: 33 | AQ41: 9 | AR41: 9 | AS41: 15 | AT41: 33 | AU41: 5 | AV41: 5 | AW41: 5 | AX41: 15 | AY41: 7 | AZ41: 6 | BA41: 9 | BB41: 22 | BC41: 3 | BD41: 5 | BE41: 5 | BF41: 8 | BG41: 5 | BH41: 8 | BI41: 13 | BJ41: 21 | BK41: 34 | BL41: 343 | BM41: 4 | BN41: 3 | BO41: 6 | BP41: 13 | BQ41: 4 | BR41: 5 | BS41: 5 | BT41: 14 | BU41: دورثان | BV41: فى : لغة انجليزية - محاسبة مالية - | BW41: 2 | BX41: راسبة و لها حق الاعادة | BZ41: لغة انجليزية | CB41: محاسبة مالية
A42: 35 | B42: 368 | C42: اسم 34 | D42: 2/1 | F42: 1188 | G42: 8 | H42: 10 | I42: 13 | J42: 31 | K42: 8 | L42: 5 | M42: 9 | N42: 22 | O42: 5 | P42: 6 | Q42: 4 | R42: 15 | S42: 8 | T42: 4 | U42: 1 | V42: 13 | W42: 8 | X42: 13 | Y42: 14 | Z42: 35 | AA42: 9 | AB42: 16 | AC42: 16 | AD42: 41 | AE42: 9 | AF42: 13 | AG42: 20 | AH42: 42 | AI42: 9 | AJ42: 16 | AK42: 17 | AL42: 42 | AM42: 9 | AN42: 9 | AO42: 18 | AP42: 36 | AQ42: 9 | AR42: 20 | AS42: 19 | AT42: 48 | AU42: 5 | AV42: 6 | AW42: 11 | AX42: 22 | AY42: 7 | AZ42: 7 | BA42: 7 | BB42: 21 | BC42: 3 | BD42: 5 | BE42: 6 | BF42: 9 | BG42: 6 | BH42: 9 | BI42: 15 | BJ42: 23 | BK42: 38 | BL42: 406 | BM42: 4 | BN42: 5 | BO42: 6 | BP42: 15 | BQ42: 4 | BR42: 7 | BS42: 7 | BT42: 18 | BU42: دورثان | BV42: فى : محاسبة مالية - | BW42: 1 | BX42: راسبة و لها حق الاعادة | BZ42: محاسبة مالية
A43: 36 | B43: 379 | C43: اسم 35 | D43: 2/1 | F43: 1199 | G43: 8 | H43: 7 | I43: 14 | J43: 29 | K43: 8 | L43: 8 | M43: 4 | N43: 20 | O43: 5 | P43: 4 | Q43: 5 | R43: 14 | S43: 8 | T43: 4 | U43: 7 | V43: 19 | W43: 8 | X43: 12 | Y43: 12 | Z43: 32 | AA43: 9 | AB43: 10 | AC43: 15 | AD43: 34 | AE43: 9 | AF43: 13 | AG43: 19 | AH43: 41 | AI43: 9 | AJ43: 13 | AK43: 9 | AL43: 31 | AM43: 9 | AN43: 8 | AO43: 19 | AP43: 36 | AQ43: 9 | AR43: 16 | AS43: 19 | AT43: 44 | AU43: 5 | AV43: 5 | AW43: 6 | AX43: 16 | AY43: 7 | AZ43: 5 | BA43: 9 | BB43: 21 | BC43: 3 | BD43: 5 | BE43: 6 | BF43: 10 | BG43: 6 | BH43: 10 | BI43: 15 | BJ43: 25 | BK43: 40 | BL43: 377 | BM43: 4 | BN43: 5 | BO43: 6 | BP43: 15 | BQ43: 4 | BR43: 7 | BS43: 7 | BT43: 18 | BU43: دورثان | BV43: فى : لغة انجليزية - محاسبة مالية - | BW43: 2 | BX43: راسبة و لها حق الاعادة | BZ43: لغة انجليزية | CB43: محاسبة مالية
A44: 37 | B44: 380 | C44: اسم 350 | D44: 9/1 | F44: 1200 | G44: 8 | H44: 9 | I44: 8 | J44: 25 | K44: 8 | L44: 4 | M44: 8 | N44: 20 | O44: 5 | P44: 6 | Q44: 5 | R44: 16 | S44: 8 | T44: 4 | U44: 5 | V44: 17 | W44: 8 | X44: 8 | Y44: 15 | Z44: 31 | AA44: 9 | AB44: 6 | AC44: 15 | AD44: 30 | AE44: 9 | AF44: 18 | AG44: 20 | AH44: 47 | AI44: 9 | AJ44: 12 | AK44: 19 | AL44: 40 | AM44: 9 | AN44: 16 | AO44: 19 | AP44: 44 | AQ44: 9 | AR44: 16 | AS44: 19 | AT44: 44 | AU44: 5 | AV44: 5 | AW44: 5 | AX44: 15 | AY44: 7 | AZ44: 12 | BA44: 12 | BB44: 31 | BC44: 3 | BD44: 5 | BE44: 5 | BF44: 5 | BG44: 5 | BH44: 5 | BI44: 13 | BJ44: 15 | BK44: 28 | BL44: 388 | BM44: 4 | BN44: 5 | BO44: 6 | BP44: 15 | BQ44: 4 | BR44: 7 | BS44: 7 | BT44: 18 | BU44: دورثان | BV44: فى : محاسبة مالية - | BW44: 1 | BX44: راسبة و لها حق الاعادة | BZ44: محاسبة مالية
A45: 38 | B45: 394 | C45: اسم 46 | D45: 2/1 | F45: 1214 | G45: 8 | H45: 5 | I45: 13 | J45: 26 | K45: 8 | L45: 5 | M45: 10 | N45: 23 | O45: 5 | P45: 6 | Q45: 6 | R45: 17 | S45: 8 | T45: 2 | U45: 4 | V45: 14 | W45: 8 | X45: 18 | Y45: 19 | Z45: 45 | AA45: 9 | AB45: 11 | AC45: 15 | AD45: 35 | AE45: 9 | AF45: 18 | AG45: 18 | AH45: 45 | AI45: 9 | AJ45: 17 | AK45: 19 | AL45: 45 | AM45: 9 | AN45: 18 | AO45: 16 | AP45: 43 | AQ45: 9 | AR45: 20 | AS45: 20 | AT45: 49 | AU45: 5 | AV45: 6 | AW45: 4 | AX45: 15 | AY45: 7 | AZ45: 9 | BA45: 9 | BB45: 25 | BC45: 3 | BD45: 5 | BE45: 5 | BF45: 8 | BG45: 5 | BH45: 8 | BI45: 13 | BJ45: 21 | BK45: 34 | BL45: 416 | BM45: 4 | BN45: 4 | BO45: 6 | BP45: 14 | BQ45: 4 | BR45: 5 | BS45: 5 | BT45: 14 | BU45: دورثان | BV45: فى : محاسبة مالية - | BW45: 1 | BX45: راسبة و لها حق الاعادة | BZ45: محاسبة مالية
A46: 39 | B46: 398 | C46: اسم 5 | D46: 1/1 | F46: 1218 | G46: 8 | H46: 7 | I46: 12 | J46: 27 | K46: 8 | L46: 6 | M46: 14 | N46: 28 | O46: 5 | P46: 4 | Q46: 5 | R46: 14 | S46: 8 | T46: 4 | U46: 2 | V46: 14 | W46: 8 | X46: 14 | Y46: 17 | Z46: 39 | AA46: 9 | AB46: 17 | AC46: 17 | AD46: 43 | AE46: 9 | AF46: 12 | AG46: 18 | AH46: 39 | AI46: 9 | AJ46: 16 | AK46: 19 | AL46: 44 | AM46: 9 | AN46: 15 | AO46: 16 | AP46: 40 | AQ46: 9 | AR46: 20 | AS46: 20 | AT46: 49 | AU46: 5 | AV46: 5 | AW46: 7 | AX46: 17 | AY46: 7 | AZ46: 14 | BA46: 14 | BB46: 35 | BC46: 3 | BD46: 5 | BE46: 6 | BF46: 9 | BG46: 6 | BH46: 9 | BI46: 15 | BJ46: 23 | BK46: 38 | BL46: 427 | BM46: 4 | BN46: 6 | BO46: 6 | BP46: 16 | BQ46: 4 | BR46: 6 | BS46: 6 | BT46: 16 | BU46: دورثان | BV46: فى : محاسبة مالية - | BW46: 1 | BX46: راسبة و لها حق الاعادة | BZ46: محاسبة مالية
A47: 40 | B47: 406 | C47: اسم 57 | D47: 2/1 | F47: 2306 | G47: 8 | H47: 6 | I47: 11 | J47: 25 | K47: 8 | L47: 6 | M47: 6 | N47: 20 | O47: 5 | P47: 6 | Q47: 6 | R47: 17 | S47: 8 | T47: 4 | U47: 1 | V47: 13 | W47: 8 | X47: 10 | Y47: 13 | Z47: 31 | AA47: 9 | AB47: 12 | AC47: 12 | AD47: 33 | AE47: 9 | AF47: 15 | AG47: 11 | AH47: 35 | AI47: 9 | AJ47: 17 | AK47: 17 | AL47: 43 | AM47: 9 | AN47: 16 | AO47: 18 | AP47: 43 | AQ47: 9 | AR47: 15 | AS47: 16 | AT47: 40 | AU47: 5 | AV47: 3 | AW47: 7 | AX47: 15 | AY47: 7 | AZ47: 4 | BA47: 9 | BB47: 20 | BC47: 3 | BD47: 5 | BE47: 6 | BF47: 9 | BG47: 6 | BH47: 9 | BI47: 15 | BJ47: 23 | BK47: 38 | BL47: 373 | BM47: 4 | BN47: 5 | BO47: 6 | BP47: 15 | BQ47: 4 | BR47: 7 | BS47: 7 | BT47: 18 | BU47: دورثان | BV47: فى : محاسبة مالية - | BW47: 1 | BX47: راسبة و لها حق الاعادة | BZ47: محاسبة مالية
A48: 41 | B48: 426 | C48: اسم 75 | D48: 3/1 | F48: 2326 | G48: 8 | H48: 7 | I48: 11 | J48: 26 | K48: 8 | L48: 2 | M48: 2 | N48: 12 | O48: 5 | P48: 6 | Q48: 6 | R48: 17 | S48: 8 | T48: 5 | U48: 2 | V48: 15 | W48: 8 | X48: 12 | Y48: 15 | Z48: 35 | AA48: 9 | AB48: 3 | AC48: 8 | AD48: 20 | AE48: 9 | AF48: 10 | AG48: 11 | AH48: 30 | AI48: 9 | AJ48: 13 | AK48: 13 | AL48: 35 | AM48: 9 | AN48: 18 | AO48: 18 | AP48: 45 | AQ48: 9 | AR48: 15 | AS48: 13 | AT48: 37 | AU48: 5 | AV48: 4 | AW48: 7 | AX48: 16 | AY48: 7 | AZ48: 7 | BA48: 7 | BB48: 21 | BC48: 3 | BD48: 5 | BE48: 5 | BF48: 5 | BG48: 5 | BH48: 5 | BI48: 13 | BJ48: 15 | BK48: 28 | BL48: 337 | BM48: 4 | BN48: 7 | BO48: 6 | BP48: 17 | BQ48: 4 | BR48: 7 | BS48: 7 | BT48: 18 | BU48: دورثان | BV48: فى : لغة انجليزية - محاسبة مالية - | BW48: 2 | BX48: راسبة و لها حق الاعادة | BZ48: لغة انجليزية | CB48: محاسبة مالية
A49: 42 | B49: 443 | C49: اسم 90 | D49: 3/1 | F49: 2343 | G49: 8 | H49: 8 | I49: 14 | J49: 30 | K49: 8 | L49: 3 | M49: غ | N49: 11 | O49: 5 | P49: 8 | Q49: 8 | R49: 21 | S49: 8 | T49: 11 | U49: 6 | V49: 25 | W49: 8 | X49: 12 | Y49: 14 | Z49: 34 | AA49: 9 | AB49: 7 | AC49: 9 | AD49: 25 | AE49: 9 | AF49: 12 | AG49: 10 | AH49: 31 | AI49: 9 | AJ49: 10 | AK49: 10 | AL49: 29 | AM49: 9 | AN49: 16 | AO49: 17 | AP49: 42 | AQ49: 9 | AR49: 14 | AS49: 19 | AT49: 42 | AU49: 5 | AV49: 10 | AW49: 3 | AX49: 18 | AY49: 7 | AZ49: 10 | BA49: 10 | BB49: 27 | BC49: 3 | BD49: 5 | BE49: 6 | BF49: 9 | BG49: 6 | BH49: 9 | BI49: 15 | BJ49: 23 | BK49: 38 | BL49: 373 | BM49: 4 | BN49: 4 | BO49: 6 | BP49: 14 | BQ49: 4 | BR49: 6 | BS49: 6 | BT49: 16 | BU49: دورثان | BV49: فى : لغة انجليزية - | BW49: 1 | BX49: راسبة و لها حق الاعادة | BZ49: لغة انجليزية
A50: 43 | B50: 451 | C50: اسم 98 | D50: 3/1 | F50: 2351 | G50: 8 | H50: 9 | I50: 8 | J50: 25 | K50: 8 | L50: 1 | M50: 3 | N50: 12 | O50: 5 | P50: 7 | Q50: 7 | R50: 19 | S50: 8 | T50: 11 | U50: 12 | V50: 31 | W50: 8 | X50: 14 | Y50: 17 | Z50: 39 | AA50: 9 | AB50: 17 | AC50: 13 | AD50: 39 | AE50: 9 | AF50: 14 | AG50: 14 | AH50: 37 | AI50: 9 | AJ50: 17 | AK50: 17 | AL50: 43 | AM50: 9 | AN50: 12 | AO50: 17 | AP50: 38 | AQ50: 9 | AR50: 17 | AS50: 17 | AT50: 43 | AU50: 5 | AV50: 5 | AW50: 8 | AX50: 18 | AY50: 7 | AZ50: 5 | BA50: 9 | BB50: 21 | BC50: 3 | BD50: 5 | BE50: 5 | BF50: 8 | BG50: 5 | BH50: 8 | BI50: 13 | BJ50: 21 | BK50: 34 | BL50: 399 | BM50: 4 | BN50: 5 | BO50: 6 | BP50: 15 | BQ50: 4 | BR50: 8 | BS50: 8 | BT50: 20 | BU50: دورثان | BV50: فى : لغة انجليزية - | BW50: 1 | BX50: راسبة و لها حق الاعادة | BZ50: لغة انجليزية
A51: 44 | B51: 502 | C51: اسم 354 | D51: 10/1 | F51: 3556 | G51: 8 | H51: 8 | I51: 9 | J51: 25 | K51: 8 | L51: 1 | M51: 1 | N51: 10 | O51: 5 | P51: 6 | Q51: 6 | R51: 17 | S51: 8 | T51: 5 | U51: 6 | V51: 19 | W51: 8 | X51: 8 | Y51: 11 | Z51: 27 | AA51: 9 | AB51: 10 | AC51: 12 | AD51: 31 | AE51: 9 | AF51: 14 | AG51: 12 | AH51: 35 | AI51: 9 | AJ51: 11 | AK51: 11 | AL51: 31 | AM51: 9 | AN51: 13 | AO51: 12 | AP51: 34 | AQ51: 9 | AR51: 11 | AS51: 18 | AT51: 38 | AU51: 5 | AV51: 7 | AW51: 3 | AX51: 15 | AY51: 7 | AZ51: 3 | BA51: 11 | BB51: 21 | BC51: 3 | BD51: 5 | BE51: 5 | BF51: 6 | BG51: 5 | BH51: 6 | BI51: 13 | BJ51: 17 | BK51: 30 | BL51: 333 | BM51: 4 | BN51: 6 | BO51: 6 | BP51: 16 | BQ51: 4 | BR51: 6 | BS51: 6 | BT51: 16 | BU51: دورثان | BV51: فى : لغة انجليزية - محاسبة مالية - | BW51: 2 | BX51: راسبة و لها حق الاعادة | BZ51: لغة انجليزية | CB51: محاسبة مالية
A52: 45 | B52: 503 | C52: اسم 355 | D52: 10/1 | F52: 3557 | G52: 8 | H52: 9 | I52: 8 | J52: 25 | K52: 8 | L52: 6 | M52: 6 | N52: 20 | O52: 5 | P52: 4 | Q52: 4 | R52: 13 | S52: 8 | T52: 3 | U52: 1 | V52: 12 | W52: 8 | X52: 9 | Y52: 12 | Z52: 29 | AA52: 9 | AB52: 12 | AC52: 11 | AD52: 32 | AE52: 9 | AF52: 16 | AG52: 9 | AH52: 34 | AI52: 9 | AJ52: 9 | AK52: 9 | AL52: 27 | AM52: 9 | AN52: 13 | AO52: 14 | AP52: 36 | AQ52: 9 | AR52: 11 | AS52: 19 | AT52: 39 | AU52: 5 | AV52: 1 | AW52: 2 | AX52: 8 | AY52: 7 | AZ52: 6 | BA52: 9 | BB52: 22 | BC52: 3 | BD52: 5 | BE52: 6 | BF52: 9 | BG52: 6 | BH52: 9 | BI52: 15 | BJ52: 23 | BK52: 38 | BL52: 335 | BM52: 4 | BN52: 5 | BO52: 6 | BP52: 15 | BQ52: 4 | BR52: 5 | BS52: 5 | BT52: 14 | BU52: دورثان | BV52: فى : محاسبة مالية - رياضة عامة - | BW52: 2 | BX52: راسبة و لها حق الاعادة | BZ52: محاسبة مالية | CB52: رياضة عامة
A53: 46 | B53: 506 | C53: اسم 358 | D53: 10/1 | F53: 3560 | G53: 8 | H53: 10 | I53: 11 | J53: 29 | K53: 8 | L53: 1 | M53: 2 | N53: 11 | O53: 5 | P53: 7 | Q53: 7 | R53: 19 | S53: 8 | T53: 9 | U53: 10 | V53: 27 | W53: 8 | X53: 9 | Y53: 16 | Z53: 33 | AA53: 9 | AB53: 18 | AC53: 13 | AD53: 40 | AE53: 9 | AF53: 12 | AG53: 14 | AH53: 35 | AI53: 9 | AJ53: 8 | AK53: 8 | AL53: 25 | AM53: 9 | AN53: 13 | AO53: 16 | AP53: 38 | AQ53: 9 | AR53: 10 | AS53: 19 | AT53: 38 | AU53: 5 | AV53: 5 | AW53: 5 | AX53: 15 | AY53: 7 | AZ53: 3 | BA53: 10 | BB53: 20 | BC53: 3 | BD53: 5 | BE53: 5 | BF53: 7 | BG53: 5 | BH53: 7 | BI53: 13 | BJ53: 19 | BK53: 32 | BL53: 362 | BM53: 4 | BN53: 7 | BO53: 6 | BP53: 17 | BQ53: 4 | BR53: 6 | BS53: 6 | BT53: 16 | BU53: دورثان | BV53: فى : لغة انجليزية - | BW53: 1 | BX53: راسبة و لها حق الاعادة | BZ53: لغة انجليزية
A54: 47 | B54: 511 | C54: اسم 363 | D54: 10/1 | F54: 3565 | G54: 9 | H54: 8 | I54: 8 | J54: 25 | K54: 8 | L54: 1 | M54: 1 | N54: 10 | O54: 5 | P54: 4 | Q54: 4 | R54: 13 | S54: 8 | T54: 11 | U54: 6 | V54: 25 | W54: 8 | X54: 9 | Y54: 9 | Z54: 26 | AA54: 9 | AB54: 7 | AC54: 11 | AD54: 27 | AE54: 9 | AF54: 9 | AG54: 10 | AH54: 28 | AI54: 9 | AJ54: 7 | AK54: 9 | AL54: 25 | AM54: 9 | AN54: 12 | AO54: 18 | AP54: 39 | AQ54: 9 | AR54: 10 | AS54: 15 | AT54: 34 | AU54: 5 | AV54: 2 | AW54: 1 | AX54: 8 | AY54: 7 | AZ54: 3 | BA54: 11 | BB54: 21 | BC54: 3 | BD54: 5 | BE54: 5 | BF54: 6 | BG54: 5 | BH54: 6 | BI54: 13 | BJ54: 17 | BK54: 30 | BL54: 311 | BM54: 4 | BN54: 4 | BO54: 6 | BP54: 14 | BQ54: 4 | BR54: 4 | BS54: 4 | BT54: 12 | BU54: دورثان | BV54: فى : لغة انجليزية - رياضة عامة - | BW54: 2 | BX54: راسبة و لها حق الاعادة | BZ54: لغة انجليزية | CB54: رياضة عامة
A55: 48 | B55: 512 | C55: اسم 364 | D55: 10/1 | F55: 3566 | G55: 8 | H55: 9 | I55: 8 | J55: 25 | K55: 8 | L55: 10 | M55: 6 | N55: 24 | O55: 5 | P55: 5 | Q55: 5 | R55: 15 | S55: 8 | T55: 2 | U55: 3 | V55: 13 | W55: 8 | X55: 12 | Y55: 5 | Z55: 25 | AA55: 9 | AB55: 10 | AC55: 7 | AD55: 26 | AE55: 9 | AF55: 12 | AG55: 12 | AH55: 33 | AI55: 9 | AJ55: 4 | AK55: 12 | AL55: 25 | AM55: 9 | AN55: 11 | AO55: 14 | AP55: 34 | AQ55: 9 | AR55: 8 | AS55: 18 | AT55: 35 | AU55: 5 | AV55: 1 | AW55: 1 | AX55: 7 | AY55: 7 | AZ55: 5 | BA55: 9 | BB55: 21 | BC55: 3 | BD55: 5 | BE55: 5 | BF55: 8 | BG55: 5 | BH55: 8 | BI55: 13 | BJ55: 21 | BK55: 34 | BL55: 317 | BM55: 4 | BN55: 4 | BO55: 6 | BP55: 14 | BQ55: 4 | BR55: 6 | BS55: 6 | BT55: 16 | BU55: دورثان | BV55: فى : محاسبة مالية - رياضة عامة - | BW55: 2 | BX55: راسبة و لها حق الاعادة | BZ55: محاسبة مالية | CB55: رياضة عامة
A56: 49 | B56: 517 | C56: اسم 369 | D56: 10/1 | F56: 3571 | G56: 8 | H56: 10 | I56: 7 | J56: 25 | K56: 8 | L56: 1 | M56: 4 | N56: 13 | O56: 5 | P56: 6 | Q56: 6 | R56: 17 | S56: 8 | T56: 2 | U56: 6 | V56: 16 | W56: 8 | X56: 11 | Y56: 6 | Z56: 25 | AA56: 9 | AB56: 4 | AC56: 9 | AD56: 22 | AE56: 9 | AF56: 17 | AG56: 14 | AH56: 40 | AI56: 9 | AJ56: 10 | AK56: 10 | AL56: 29 | AM56: 9 | AN56: 12 | AO56: 10 | AP56: 31 | AQ56: 9 | AR56: 11 | AS56: 12 | AT56: 32 | AU56: 5 | AV56: 7 | AW56: 3 | AX56: 15 | AY56: 7 | AZ56: 4 | BA56: 9 | BB56: 20 | BC56: 3 | BD56: 5 | BE56: 5 | BF56: 7 | BG56: 5 | BH56: 7 | BI56: 13 | BJ56: 19 | BK56: 32 | BL56: 317 | BM56: 4 | BN56: 4 | BO56: 6 | BP56: 14 | BQ56: 4 | BR56: 4 | BS56: 4 | BT56: 12 | BU56: دورثان | BV56: فى : لغة انجليزية - محاسبة مالية - | BW56: 2 | BX56: راسبة و لها حق الاعادة | BZ56: لغة انجليزية | CB56: محاسبة مالية
A57: 50 | B57: 519 | C57: اسم 371 | D57: 10/1 | F57: 3573 | G57: 8 | H57: 9 | I57: 8 | J57: 25 | K57: 8 | L57: 3 | M57: 4 | N57: 15 | O57: 5 | P57: 6 | Q57: 6 | R57: 17 | S57: 8 | T57: 8 | U57: 2 | V57: 18 | W57: 8 | X57: 7 | Y57: 10 | Z57: 25 | AA57: 9 | AB57: 8 | AC57: 11 | AD57: 28 | AE57: 9 | AF57: 14 | AG57: 8 | AH57: 31 | AI57: 9 | AJ57: 8 | AK57: 8 | AL57: 25 | AM57: 9 | AN57: 11 | AO57: 9 | AP57: 29 | AQ57: 9 | AR57: 12 | AS57: 15 | AT57: 36 | AU57: 5 | AV57: 7 | AW57: 4 | AX57: 16 | AY57: 7 | AZ57: 5 | BA57: 8 | BB57: 20 | BC57: 3 | BD57: 5 | BE57: 6 | BF57: 10 | BG57: 6 | BH57: 10 | BI57: 15 | BJ57: 25 | BK57: 40 | BL57: 325 | BM57: 4 | BN57: 4 | BO57: 6 | BP57: 14 | BQ57: 4 | BR57: 6 | BS57: 6 | BT57: 16 | BU57: دورثان | BV57: فى : لغة انجليزية - محاسبة مالية - | BW57: 2 | BX57: راسبة و لها حق الاعادة | BZ57: لغة انجليزية | CB57: محاسبة مالية
A58: 51 | B58: 528 | C58: اسم 380 | D58: 10/1 | F58: 3582 | G58: 8 | H58: 9 | I58: 8 | J58: 25 | K58: 8 | L58: 1 | M58: 3 | N58: 12 | O58: 5 | P58: 7 | Q58: 7 | R58: 19 | S58: 8 | T58: 7 | U58: 1 | V58: 16 | W58: 8 | X58: 10 | Y58: 10 | Z58: 28 | AA58: 9 | AB58: 16 | AC58: 7 | AD58: 32 | AE58: 9 | AF58: 15 | AG58: 11 | AH58: 35 | AI58: 9 | AJ58: 14 | AK58: 14 | AL58: 37 | AM58: 9 | AN58: 9 | AO58: 18 | AP58: 36 | AQ58: 9 | AR58: 9 | AS58: 13 | AT58: 31 | AU58: 5 | AV58: 5 | AW58: 5 | AX58: 15 | AY58: 7 | AZ58: 5 | BA58: 9 | BB58: 21 | BC58: 3 | BD58: 5 | BE58: 5 | BF58: 6 | BG58: 5 | BH58: 6 | BI58: 13 | BJ58: 17 | BK58: 30 | BL58: 337 | BM58: 4 | BN58: 4 | BO58: 6 | BP58: 14 | BQ58: 4 | BR58: 5 | BS58: 5 | BT58: 14 | BU58: دورثان | BV58: فى : لغة انجليزية - محاسبة مالية - | BW58: 2 | BX58: راسبة و لها حق الاعادة | BZ58: لغة انجليزية | CB58: محاسبة مالية
A59: 52 | B59: 536 | C59: اسم 388 | D59: 11/1 | F59: 3590 | G59: 8 | H59: 10 | I59: 7 | J59: 25 | K59: 8 | L59: 4 | M59: 2 | N59: 14 | O59: 5 | P59: 4 | Q59: 4 | R59: 13 | S59: 8 | T59: 5 | U59: 12 | V59: 25 | W59: 8 | X59: 7 | Y59: 10 | Z59: 25 | AA59: 9 | AB59: 5 | AC59: 12 | AD59: 26 | AE59: 9 | AF59: 8 | AG59: 19 | AH59: 36 | AI59: 9 | AJ59: 17 | AK59: 17 | AL59: 43 | AM59: 9 | AN59: 13 | AO59: 18 | AP59: 40 | AQ59: 9 | AR59: 15 | AS59: 19 | AT59: 43 | AU59: 5 | AV59: 1 | AW59: 3 | AX59: 9 | AY59: 7 | AZ59: 4 | BA59: 9 | BB59: 20 | BC59: 3 | BD59: 5 | BE59: 5 | BF59: 8 | BG59: 5 | BH59: 8 | BI59: 13 | BJ59: 21 | BK59: 34 | BL59: 353 | BM59: 4 | BN59: 6 | BO59: 6 | BP59: 16 | BQ59: 4 | BR59: 3 | BS59: 3 | BT59: 10 | BU59: دورثان | BV59: فى : لغة انجليزية - رياضة عامة - | BW59: 2 | BX59: راسبة و لها حق الاعادة | BZ59: لغة انجليزية | CB59: رياضة عامة
A60: 53 | B60: 537 | C60: اسم 389 | D60: 11/1 | F60: 3591 | G60: 8 | H60: 7 | I60: 10 | J60: 25 | K60: 8 | L60: 6 | M60: 7 | N60: 21 | O60: 5 | P60: 4 | Q60: 4 | R60: 13 | S60: 8 | T60: 3 | U60: 7 | V60: 18 | W60: 8 | X60: 7 | Y60: 10 | Z60: 25 | AA60: 9 | AB60: 11 | AC60: 10 | AD60: 30 | AE60: 9 | AF60: 11 | AG60: 19 | AH60: 39 | AI60: 9 | AJ60: 15 | AK60: 15 | AL60: 39 | AM60: 9 | AN60: 12 | AO60: 18 | AP60: 39 | AQ60: 9 | AR60: 13 | AS60: 19 | AT60: 41 | AU60: 5 | AV60: 1 | AW60: 2 | AX60: 8 | AY60: 7 | AZ60: 6 | BA60: 9 | BB60: 22 | BC60: 3 | BD60: 5 | BE60: 6 | BF60: 9 | BG60: 6 | BH60: 9 | BI60: 15 | BJ60: 23 | BK60: 38 | BL60: 358 | BM60: 4 | BN60: 5 | BO60: 6 | BP60: 15 | BQ60: 4 | BR60: 5 | BS60: 5 | BT60: 14 | BU60: دورثان | BV60: فى : محاسبة مالية - رياضة عامة - | BW60: 2 | BX60: راسبة و لها حق الاعادة | BZ60: محاسبة مالية | CB60: رياضة عامة
A61: 54 | B61: 538 | C61: اسم 390 | D61: 11/1 | F61: 3592 | G61: 8 | H61: 9 | I61: 8 | J61: 25 | K61: 8 | L61: 3 | M61: 4 | N61: 15 | O61: 5 | P61: 4 | Q61: 4 | R61: 13 | S61: 8 | T61: 11 | U61: 6 | V61: 25 | W61: 8 | X61: 9 | Y61: 8 | Z61: 25 | AA61: 9 | AB61: 13 | AC61: 14 | AD61: 36 | AE61: 9 | AF61: 14 | AG61: 19 | AH61: 42 | AI61: 9 | AJ61: 13 | AK61: 13 | AL61: 35 | AM61: 9 | AN61: 14 | AO61: 18 | AP61: 41 | AQ61: 9 | AR61: 12 | AS61: 18 | AT61: 39 | AU61: 5 | AV61: 1 | AW61: 3 | AX61: 9 | AY61: 7 | AZ61: 5 | BA61: 9 | BB61: 21 | BC61: 3 | BD61: 5 | BE61: 6 | BF61: 9 | BG61: 6 | BH61: 9 | BI61: 15 | BJ61: 23 | BK61: 38 | BL61: 364 | BM61: 4 | BN61: 4 | BO61: 6 | BP61: 14 | BQ61: 4 | BR61: 3 | BS61: 3 | BT61: 10 | BU61: دورثان | BV61: فى : لغة انجليزية - رياضة عامة - | BW61: 2 | BX61: راسبة و لها حق الاعادة | BZ61: لغة انجليزية | CB61: رياضة عامة
A62: 55 | B62: 540 | C62: اسم 392 | D62: 11/1 | F62: 3594 | G62: 8 | H62: 5 | I62: 16 | J62: 29 | K62: 8 | L62: 1 | M62: 2 | N62: 11 | O62: 5 | P62: 5 | Q62: 5 | R62: 15 | S62: 8 | T62: 3 | U62: 3 | V62: 14 | W62: 8 | X62: 16 | Y62: 15 | Z62: 39 | AA62: 9 | AB62: 14 | AC62: 10 | AD62: 33 | AE62: 9 | AF62: 16 | AG62: 15 | AH62: 40 | AI62: 9 | AJ62: 15 | AK62: 15 | AL62: 39 | AM62: 9 | AN62: 9 | AO62: 18 | AP62: 36 | AQ62: 9 | AR62: 15 | AS62: 18 | AT62: 42 | AU62: 5 | AV62: 5 | AW62: 5 | AX62: 15 | AY62: 7 | AZ62: 9 | BA62: 9 | BB62: 25 | BC62: 3 | BD62: 5 | BE62: 5 | BF62: 8 | BG62: 5 | BH62: 8 | BI62: 13 | BJ62: 21 | BK62: 34 | BL62: 372 | BM62: 4 | BN62: 6 | BO62: 6 | BP62: 16 | BQ62: 4 | BR62: 3 | BS62: 3 | BT62: 10 | BU62: دورثان | BV62: فى : لغة انجليزية - محاسبة مالية - | BW62: 2 | BX62: راسبة و لها حق الاعادة | BZ62: لغة انجليزية | CB62: محاسبة مالية
A63: 56 | B63: 552 | C63: اسم 404 | D63: 11/1 | F63: 3502 | G63: 8 | H63: 4 | I63: 6 | J63: 18 | K63: 8 | L63: 3 | M63: 4 | N63: 15 | O63: 5 | P63: 6 | Q63: 6 | R63: 17 | S63: 8 | T63: 10 | U63: 11 | V63: 29 | W63: 8 | X63: 5 | Y63: 13 | Z63: 26 | AA63: 9 | AB63: 9 | AC63: 11 | AD63: 29 | AE63: 9 | AF63: 12 | AG63: 12 | AH63: 33 | AI63: 9 | AJ63: 9 | AK63: 9 | AL63: 27 | AM63: 9 | AN63: 13 | AO63: 17 | AP63: 39 | AQ63: 9 | AR63: 12 | AS63: 17 | AT63: 38 | AU63: 5 | AV63: 5 | AW63: 5 | AX63: 15 | AY63: 7 | AZ63: 4 | BA63: 9 | BB63: 20 | BC63: 3 | BD63: 5 | BE63: 5 | BF63: 6 | BG63: 5 | BH63: 6 | BI63: 13 | BJ63: 17 | BK63: 30 | BL63: 336 | BM63: 4 | BN63: 5 | BO63: 6 | BP63: 15 | BQ63: 4 | BR63: 6 | BS63: 6 | BT63: 16 | BU63: دورثان | BV63: فى : لغة عربية - لغة انجليزية - | BW63: 2 | BX63: راسبة و لها حق الاعادة | BZ63: لغة عربية | CB63: لغة انجليزية
A64: 57 | B64: 555 | C64: اسم 407 | D64: 11/1 | F64: 3505 | G64: 8 | H64: 8 | I64: 9 | J64: 25 | K64: 8 | L64: 2 | M64: 1 | N64: 11 | O64: 5 | P64: 5 | Q64: 5 | R64: 15 | S64: 8 | T64: 1 | U64: 9 | V64: 18 | W64: 8 | X64: 11 | Y64: 10 | Z64: 29 | AA64: 9 | AB64: 8 | AC64: 8 | AD64: 25 | AE64: 9 | AF64: 6 | AG64: 15 | AH64: 30 | AI64: 9 | AJ64: 9 | AK64: 9 | AL64: 27 | AM64: 9 | AN64: 12 | AO64: 17 | AP64: 38 | AQ64: 9 | AR64: 8 | AS64: 18 | AT64: 35 | AU64: 5 | AV64: 5 | AW64: 6 | AX64: 16 | AY64: 7 | AZ64: 5 | BA64: 9 | BB64: 21 | BC64: 3 | BD64: 5 | BE64: 5 | BF64: 5 | BG64: 5 | BH64: 5 | BI64: 13 | BJ64: 15 | BK64: 28 | BL64: 318 | BM64: 4 | BN64: 4 | BO64: 6 | BP64: 14 | BQ64: 4 | BR64: 5 | BS64: 5 | BT64: 14 | BU64: دورثان | BV64: فى : لغة انجليزية - محاسبة مالية - | BW64: 2 | BX64: راسبة و لها حق الاعادة | BZ64: لغة انجليزية | CB64: محاسبة مالية
A65: 58 | B65: 570 | C65: اسم 422 | D65: 11/1 | F65: 3520 | G65: 8 | H65: 10 | I65: 7 | J65: 25 | K65: 8 | L65: 7 | M65: 5 | N65: 20 | O65: 5 | P65: 6 | Q65: 6 | R65: 17 | S65: 8 | T65: 3 | U65: 2 | V65: 13 | W65: 8 | X65: 9 | Y65: 9 | Z65: 26 | AA65: 9 | AB65: 7 | AC65: 10 | AD65: 26 | AE65: 9 | AF65: 6 | AG65: 10 | AH65: 25 | AI65: 9 | AJ65: 11 | AK65: 11 | AL65: 31 | AM65: 9 | AN65: 7 | AO65: 9 | AP65: 25 | AQ65: 9 | AR65: 9 | AS65: 13 | AT65: 31 | AU65: 5 | AV65: 3 | AW65: 2 | AX65: 10 | AY65: 7 | AZ65: 6 | BA65: 8 | BB65: 21 | BC65: 3 | BD65: 5 | BE65: 6 | BF65: 9 | BG65: 6 | BH65: 9 | BI65: 15 | BJ65: 23 | BK65: 38 | BL65: 308 | BM65: 4 | BN65: 6 | BO65: 6 | BP65: 16 | BQ65: 4 | BR65: 6 | BS65: 6 | BT65: 16 | BU65: دورثان | BV65: فى : محاسبة مالية - رياضة عامة - | BW65: 2 | BX65: راسبة و لها حق الاعادة | BZ65: محاسبة مالية | CB65: رياضة عامة
A66: 59 | B66: 575 | C66: اسم 427 | D66: 12/1 | F66: 3525 | G66: 8 | H66: 9 | I66: 8 | J66: 25 | K66: 8 | L66: 4 | M66: 2 | N66: 14 | O66: 5 | P66: 5 | Q66: 5 | R66: 15 | S66: 8 | T66: 1 | U66: 2 | V66: 11 | W66: 8 | X66: 9 | Y66: 12 | Z66: 29 | AA66: 9 | AB66: 5 | AC66: 9 | AD66: 23 | AE66: 9 | AF66: 6 | AG66: 10 | AH66: 25 | AI66: 9 | AJ66: 10 | AK66: 10 | AL66: 29 | AM66: 9 | AN66: 5 | AO66: 11 | AP66: 25 | AQ66: 9 | AR66: 19 | AS66: 18 | AT66: 46 | AU66: 5 | AV66: 7 | AW66: 3 | AX66: 15 | AY66: 7 | AZ66: 4 | BA66: 9 | BB66: 20 | BC66: 3 | BD66: 5 | BE66: 6 | BF66: 9 | BG66: 6 | BH66: 9 | BI66: 15 | BJ66: 23 | BK66: 38 | BL66: 315 | BM66: 4 | BN66: 6 | BO66: 6 | BP66: 16 | BQ66: 4 | BR66: 5 | BS66: 5 | BT66: 14 | BU66: دورثان | BV66: فى : لغة انجليزية - محاسبة مالية - | BW66: 2 | BX66: راسبة و لها حق الاعادة | BZ66: لغة انجليزية | CB66: محاسبة مالية
BX67: راسبة و لها حق الاعادة | BZ67: لغة انجليزية | CB67: رياضة عامة
BX68: راسبة و لها حق الاعادة | BZ68: لغة انجليزية | CB68: رياضة عامة
BX69: راسبة و لها حق الاعادة | BZ69: لغة انجليزية | CB69: رياضة عامة
BX70: راسبة و لها حق الاعادة | BZ70: لغة انجليزية | CB70: محاسبة مالية
BX71: راسبة و لها حق الاعادة | BZ71: محاسبة مالية | CB71: رياضة عامة
BX72: راسبة و لها حق الاعادة | BZ72: لغة عربية | CB72: محاسبة مالية
BX73: راسبة و لها حق الاعادة | BZ73: لغة عربية | CB73: محاسبة مالية
BX74: راسبة و لها حق الاعادة | BZ74: لغة انجليزية | CB74: محاسبة مالية
BX75: راسبة و لها حق الاعادة | BZ75: محاسبة مالية | CB75: رياضة عامة
BX76: راسبة و لها حق الاعادة | BZ76: لغة انجليزية | CB76: محاسبة مالية

Sheet شهادات آخر العام
J1: شهادات درجـــات امتحان آخر العام | S1: ورقة رقم : | V1: 1
J2: للعام الدراسى | N2: 2017 / 2018 | S2: الى ورقة رقم : | AA2: حدد الخلية اولا
Z3: حالة الرسوب فى مادة بسبب ربع الدرجة
F5: مدرسة كوم امبو التجارية بنات | M5: شهادة نتيجة آخر العام 2017 / 2018
F6: الاسم / | G6: اسم 1 | O6: الفصل / | Q6: 1/1 | S6: جلوس / | U6: 101
F7: المادة | G7: لغة عربية | H7: لغة انجليزية | I7: لغة فرنسية | J7: محاسبة مالية | K7: سكرتارية عربية | L7: سكرتارية اجنبية | M7: اقتصاد | N7: تسويق | O7: ادارة اعمال | P7: قانون تجارى | Q7: رياضة عامة | R7: جغرافيا | S7: حاسب ألى | T7: مجموع | U7: تربية قومية | V7: تربية دينية
F8: العظمى | G8: 50 | H8: 50 | I8: 30 | J8: 50 | K8: 50 | L8: 50 | M8: 50 | N8: 50 | O8: 50 | P8: 50 | Q8: 30 | R8: 40 | S8: 50 | T8: 600 | U8: 20 | V8: 20
F9: الصغرى | G9: 25 | H9: 20 | I9: 9 | J9: 25 | K9: 25 | L9: 20 | M9: 25 | N9: 25 | O9: 25 | P9: 25 | Q9: 15 | R9: 20 | S9: 25 | T9: 300 | U9: 10 | V9: 10
F10: الدرجة | G10: 31 | H10: 30 | I10: 18 | J10: 26 | K10: 42 | L10: 36 | M10: 46 | N10: 37 | O10: 37 | P10: 42 | Q10: 26 | R10: 21 | S10: 36 | T10: 428 | U10: 14 | V10: 16
F11: النتيجـــة | G11: ناجحة ومنقولة للصف الثانى | Q11: موعد الدور الثانى
F14: مدرسة كوم امبو التجارية بنات | M14: شهادة نتيجة آخر العام 2017 / 2018
F15: الاسم / | G15: اسم 10 | O15: الفصل / | Q15: 1/1 | S15: جلوس / | U15: 102
F16: المادة | G16: لغة عربية | H16: لغة انجليزية | I16: لغة فرنسية | J16: محاسبة مالية | K16: سكرتارية عربية | L16: سكرتارية اجنبية | M16: اقتصاد | N16: تسويق | O16: ادارة اعمال | P16: قانون تجارى | Q16: رياضة عامة | R16: جغرافيا | S16: حاسب ألى | T16: مجموع | U16: تربية قومية | V16: تربية دينية
F17: العظمى | G17: 50 | H17: 50 | I17: 30 | J17: 50 | K17: 50 | L17: 50 | M17: 50 | N17: 50 | O17: 50 | P17: 50 | Q17: 30 | R17: 40 | S17: 50 | T17: 600 | U17: 20 | V17: 20
F18: الصغرى | G18: 25 | H18: 20 | I18: 9 | J18: 25 | K18: 25 | L18: 20 | M18: 25 | N18: 25 | O18: 25 | P18: 25 | Q18: 15 | R18: 20 | S18: 25 | T18: 300 | U18: 10 | V18: 10
F19: الدرجة | G19: 31 | H19: 28 | I19: 19 | J19: 44 | K19: 44 | L19: 37 | M19: 47 | N19: 40 | O19: 39 | P19: 43 | Q19: 24 | R19: 22 | S19: 34 | T19: 452 | U19: 16 | V19: 18
F20: النتيجـــة | G20: ناجحة ومنقولة للصف الثانى | Q20: موعد الدور الثانى
F23: مدرسة كوم امبو التجارية بنات | M23: شهادة نتيجة آخر العام 2017 / 2018
F24: الاسم / | G24: اسم 100 | O24: الفصل / | Q24: 3/1 | S24: جلوس / | U24: 103
F25: المادة | G25: لغة عربية | H25: لغة انجليزية | I25: لغة فرنسية | J25: محاسبة مالية | K25: سكرتارية عربية | L25: سكرتارية اجنبية | M25: اقتصاد | N25: تسويق | O25: ادارة اعمال | P25: قانون تجارى | Q25: رياضة عامة | R25: جغرافيا | S25: حاسب ألى | T25: مجموع | U25: تربية قومية | V25: تربية دينية | W25: 8
F26: العظمى | G26: 50 | H26: 50 | I26: 30 | J26: 50 | K26: 50 | L26: 50 | M26: 50 | N26: 50 | O26: 50 | P26: 50 | Q26: 30 | R26: 40 | S26: 50 | T26: 600 | U26: 20 | V26: 20
F27: الصغرى | G27: 25 | H27: 20 | I27: 9 | J27: 25 | K27: 25 | L27: 20 | M27: 25 | N27: 25 | O27: 25 | P27: 25 | Q27: 15 | R27: 20 | S27: 25 | T27: 300 | U27: 10 | V27: 10
F28: الدرجة | G28: 26 | H28: 22 | I28: 19 | J28: 30 | K28: 31 | L28: 40 | M28: 41 | N28: 35 | O28: 36 | P28: 40 | Q28: 15 | R28: 27 | S28: 40 | T28: 402 | U28: 13 | V28: 16
F29: النتيجـــة | G29: ناجحة ومنقولة للصف الثانى | Q29: موعد الدور الثانى
F32: مدرسة كوم امبو التجارية بنات | M32: شهادة نتيجة آخر العام 2017 / 2018
F33: الاسم / | G33: اسم 101 | O33: الفصل / | Q33: 3/1 | S33: جلوس / | U33: 104 | W33: 0
F34: المادة | G34: لغة عربية | H34: لغة انجليزية | I34: لغة فرنسية | J34: محاسبة مالية | K34: سكرتارية عربية | L34: سكرتارية اجنبية | M34: اقتصاد | N34: تسويق | O34: ادارة اعمال | P34: قانون تجارى | Q34: رياضة عامة | R34: جغرافيا | S34: حاسب ألى | T34: مجموع | U34: تربية قومية | V34: تربية دينية
F35: العظمى | G35: 50 | H35: 50 | I35: 30 | J35: 50 | K35: 50 | L35: 50 | M35: 50 | N35: 50 | O35: 50 | P35: 50 | Q35: 30 | R35: 40 | S35: 50 | T35: 600 | U35: 20 | V35: 20
F36: الصغرى | G36: 25 | H36: 20 | I36: 9 | J36: 25 | K36: 25 | L36: 20 | M36: 25 | N36: 25 | O36: 25 | P36: 25 | Q36: 15 | R36: 20 | S36: 25 | T36: 300 | U36: 10 | V36: 10
F37: الدرجة | G37: 27 | H37: 20 | I37: 18 | J37: 25 | K37: 39 | L37: 40 | M37: 38 | N37: 38 | O37: 36 | P37: 40 | Q37: 15 | R37: 33 | S37: 36 | T37: 405 | U37: 15 | V37: 16
F38: النتيجـــة | G38: ناجحة ومنقولة للصف الثانى | Q38: موعد الدور الثانى

Sheet اوائل المدرسة
D1: بسم الله الرحمن الرحيم | H1: مدرسة كوم امبو التجارية
D2: ادارة كوم امبو التعليمية | H2: كنترول الصف الاول
F3: العشرة الاوائل نصف العام | G3: 2017 / 2018 | L3: اختر الفترة
D5: م | E5: جلوس | F5: الاسم | G5: الفصل | H5: المجموع | I5: الترتيب | L5: نصف العام
D6: 1 | E6: 173 | F6: اسم 164 | G6: 5/1 | H6: 189 | I6: 5 | J6: الخامس
D7: 2 | E7: 191 | F7: اسم 180 | G7: 6/1 | H7: 198 | I7: 2 | J7: الثانى
D8: 3 | E8: 200 | F8: اسم 189 | G8: 6/1 | H8: 191 | I8: 4 | J8: الرابع
D9: 4 | E9: 214 | F9: اسم 200 | G9: 6/1 | H9: 199 | I9: 1 | J9: الاول
D10: 5 | E10: 258 | F10: اسم 240 | G10: 7/1 | H10: 185 | I10: 9 | J10: التاسع
D11: 6 | E11: 323 | F11: اسم 3 | G11: 1/1 | H11: 185 | I11: 9 | J11: التاسع مكرر
D12: 7 | E12: 354 | F12: اسم 327 | G12: 9/1 | H12: 188 | I12: 7 | J12: السابع
D13: 8 | E13: 397 | F13: اسم 49 | G13: 2/1 | H13: 188 | I13: 7 | J13: السابع مكرر
D14: 9 | E14: 405 | F14: اسم 56 | G14: 2/1 | H14: 192 | I14: 3 | J14: الثالث
D15: 10 | E15: 411 | F15: اسم 61 | G15: 2/1 | H15: 189 | I15: 5 | J15: الخامس مكرر
D21: مع تحيات / كنترول الصف الاول | J21: ادارة المدرسة

Sheet كشف الملاحق
D1: مدرسة كوم امبو التجارية | H1: كشف الملاحق
D2: كنترول الصف الاول | H2: للعام الدراسى 2017 / 2018
D3: كشف رقم : | F3: 1 | H3: موعد امتحان الدور الثانى فى 22 / 7 / 2019
D4: م | E4: جلوس | F4: اسم الطالبة | G4: الفصل | H4: مواد الرسوب | I4: العدد | J4: التوقيع بالعلم
D5: 1 | E5: 122 | F5: اسم 118 | G5: 4/1 | H5: فى : محاسبة مالية - | I5: 1
D6: 2 | E6: 138 | F6: اسم 132 | G6: 4/1 | H6: فى : محاسبة مالية - | I6: 1
D7: 3 | E7: 160 | F7: اسم 152 | G7: 5/1 | H7: فى : محاسبة مالية - رياضة عامة - | I7: 2
D8: 4 | E8: 167 | F8: اسم 159 | G8: 5/1 | H8: فى : محاسبة مالية - رياضة عامة - | I8: 2
D9: 5 | E9: 168 | F9: اسم 16 | G9: 1/1 | H9: فى : لغة انجليزية - محاسبة مالية - | I9: 2
D10: 6 | E10: 175 | F10: اسم 166 | G10: 1/1 | H10: فى : محاسبة مالية - | I10: 1
D11: 7 | E11: 180 | F11: اسم 170 | G11: 5/1 | H11: فى : لغة انجليزية - رياضة عامة - | I11: 2
D12: 8 | E12: 197 | F12: اسم 186 | G12: 6/1 | H12: فى : محاسبة مالية - رياضة عامة - | I12: 2
D13: 9 | E13: 208 | F13: اسم 196 | G13: 6/1 | H13: فى : محاسبة مالية - | I13: 1
D14: 10 | E14: 210 | F14: اسم 198 | G14: 6/1 | H14: فى : محاسبة مالية - | I14: 1
D15: 11 | E15: 217 | F15: اسم 203 | G15: 6/1 | H15: فى : لغة عربية - محاسبة مالية - | I15: 2
D16: 12 | E16: 224 | F16: اسم 21 | G16: 1/1 | H16: فى : محاسبة مالية - | I16: 1
D17: 13 | E17: 241 | F17: اسم 225 | G17: 7/1 | H17: فى : لغة عربية - لغة انجليزية - | I17: 2
D18: 14 | E18: 244 | F18: اسم 228 | G18: 7/1 | H18: فى : لغة عربية - محاسبة مالية - | I18: 2
D19: 15 | E19: 248 | F19: اسم 231 | G19: 7/1 | H19: فى : لغة انجليزية - محاسبة مالية - | I19: 2
D20: 16 | E20: 251 | F20: اسم 234 | G20: 7/1 | H20: فى : محاسبة مالية - رياضة عامة - | I20: 2
D21: 17 | E21: 254 | F21: اسم 237 | G21: 7/1 | H21: فى : لغة عربية - رياضة عامة - | I21: 2
D22: 18 | E22: 256 | F22: اسم 239 | G22: 7/1 | H22: فى : لغة انجليزية - رياضة عامة - | I22: 2
D23: 19 | E23: 257 | F23: اسم 24 | G23: 1/1 | H23: فى : محاسبة مالية - رياضة عامة - | I23: 2
D24: 20 | E24: 263 | F24: اسم 245 | G24: 7/1 | H24: فى : رياضة عامة - | I24: 1
D25: 21 | E25: 264 | F25: اسم 246 | G25: 1/1 | H25: فى : رياضة عامة - | I25: 1
D26: 22 | E26: 267 | F26: اسم 249 | G26: 7/1 | H26: فى : لغة انجليزية - رياضة عامة - | I26: 2
D27: 23 | E27: 271 | F27: اسم 252 | G27: 1/1 | H27: فى : محاسبة مالية - رياضة عامة - | I27: 2
D28: 24 | E28: 273 | F28: اسم 254 | G28: 1/1 | H28: فى : لغة انجليزية - محاسبة مالية - | I28: 2
D29: 25 | E29: 274 | F29: اسم 255 | G29: 1/1 | H29: فى : لغة انجليزية - محاسبة مالية - | I29: 2
D30: 26 | E30: 279 | F30: اسم 26 | G30: 1/1 | H30: فى : لغة انجليزية - محاسبة مالية - | I30: 2
D31: 27 | E31: 284 | F31: اسم 264 | G31: 5/1 | H31: فى : لغة عربية - لغة انجليزية - | I31: 2
D32: 28 | E32: 299 | F32: اسم 278 | G32: 8/1 | H32: فى : لغة انجليزية - رياضة عامة - | I32: 2
D33: 29 | E33: 300 | F33: اسم 279 | G33: 8/1 | H33: فى : لغة انجليزية - محاسبة مالية - | I33: 2
D34: 30 | E34: 316 | F34: اسم 293 | G34: 8/1 | H34: فى : لغة انجليزية - رياضة عامة - | I34: 2
D35: 31 | E35: 324 | F35: اسم 30 | G35: 2/1 | H35: فى : لغة انجليزية - محاسبة مالية - | I35: 2
D36: 32 | E36: 325 | F36: اسم 300 | G36: 5/1 | H36: فى : محاسبة مالية - | I36: 1
D37: 33 | E37: 328 | F37: اسم 303 | G37: 8/1 | H37: فى : لغة انجليزية - محاسبة مالية - | I37: 2
D38: 34 | E38: 345 | F38: اسم 319 | G38: 9/1 | H38: فى : لغة انجليزية - محاسبة مالية - | I38: 2
D39: 35 | E39: 368 | F39: اسم 34 | G39: 2/1 | H39: فى : محاسبة مالية - | I39: 1
D40: 36 | E40: 379 | F40: اسم 35 | G40: 2/1 | H40: فى : لغة انجليزية - محاسبة مالية - | I40: 2
D41: 37 | E41: 380 | F41: اسم 350 | G41: 9/1 | H41: فى : محاسبة مالية - | I41: 1
D42: 38 | E42: 394 | F42: اسم 46 | G42: 2/1 | H42: فى : محاسبة مالية - | I42: 1
D43: 39 | E43: 398 | F43: اسم 5 | G43: 1/1 | H43: فى : محاسبة مالية - | I43: 1
D44: 40 | E44: 406 | F44: اسم 57 | G44: 2/1 | H44: فى : محاسبة مالية - | I44: 1
E45: كنترول الصف الاول | H45: ادارة المدرسة

Sheet سرى
D2: توزيع الارقام السرية لجميع ارقام الجلوس
D3: الرجا ملء جميع البيانات قبل الضغط على زر الترحيل
D5: المجموعة | E5: ارقام الجلوس | G5: ارقام السرى | I5: العدد | L5: يجب توافق الارقام السرية مع البيانات التالية
E6: من | F6: الى | G6: من | H6: الى | L6: الصفة | M6: صباحى | O6: العدد | P6: مسائى | R6: العدد
D7: 1 | E7: 101 | F7: 160 | G7: 1221 | H7: 1280 | I7: 60 | L7: جلوس | M7: من | N7: الى | P7: من | Q7: الى
D8: 2 | E8: 161 | F8: 220 | G8: 1341 | H8: 1400 | I8: 60 | L8: انتظام - بنات | M8: 101 | N8: 400 | O8: 300 | P8: 401 | Q8: 452 | R8: 52
D9: 3 | E9: 221 | F9: 280 | G9: 1101 | H9: 1160 | I9: 60 | L9: حدمات - بنات | M9: 0 | P9: 501 | Q9: 604 | R9: 104
D10: 4 | E10: 281 | F10: 340 | G10: 1281 | H10: 1340 | I10: 60 | L10: انتظام - بنين | M10: 0 | P10: 651 | Q10: 681 | R10: 31
D11: 5 | E11: 341 | F11: 400 | G11: 1161 | H11: 1220 | I11: 60 | L11: خدمات - بنين | M11: 0 | P11: 0
D12: 6 | E12: 401 | F12: 451 | G12: 2301 | H12: 2351 | I12: 51 | M12: اجمالى | O12: =SUM(O8:O11) -> 300 | P12: اجمالى | R12: =SUM(R8:R11) -> 187
D13: 7 | E13: 501 | F13: 550 | G13: 3555 | H13: 3604 | I13: 50
D14: 8 | E14: 551 | F14: 604 | G14: 3501 | H14: 3554 | I14: 54
D15: 9 | E15: 651 | F15: 681 | G15: 4751 | H15: 4718 | I15: 31
D16: 10
D17: 11
D18: 12

Sheet شهادات نتيجة الدور الثانى
G1: شهادات نتيجة امتحان الدور الثانى 2017 / 2017 | S1: ورقة رقم : | V1: 1
S2: الى ورقة رقم : | V2: 2 | Z2: =V1 -> 1
F5: مدرسة كوم امبو التجارية بنات | L5: شهادة نتيجة امتحان الدور الثانى 2017 / 2017
F6: الاسم / | G6: اسم 118 | O6: الفصل / | Q6: 4/1 | S6: جلوس / | U6: 122 | AA6: =($Z$2-1)*4+1 -> 1
F7: المادة | G7: لغة عربية | H7: لغة انجليزية | I7: لغة فرنسية | J7: محاسبة مالية | K7: سكرتارية عربية | L7: سكرتارية اجنبية | M7: اقتصاد | N7: تسويق | O7: ادارة اعمال | P7: قانون تجارى | Q7: رياضة عامة | R7: جغرافيا | S7: حاسب ألى | T7: مجموع | U7: تربية قومية | V7: تربية دينية
F8: العظمى | G8: 50 | H8: 50 | I8: 30 | J8: 50 | K8: 50 | L8: 50 | M8: 50 | N8: 50 | O8: 50 | P8: 50 | Q8: 30 | R8: 40 | S8: 50 | T8: 600 | U8: 20 | V8: 20
F9: الصغرى | G9: 25 | H9: 20 | I9: 9 | J9: 25 | K9: 25 | L9: 20 | M9: 25 | N9: 25 | O9: 25 | P9: 25 | Q9: 15 | R9: 20 | S9: 25 | T9: 300 | U9: 10 | V9: 10
F10: الدرجة | G10: 25 | H10: 24 | I10: 15 | J10: 23 | K10: 37 | L10: 39 | M10: 44 | N10: 35 | O10: 41 | P10: 38 | Q10: 15 | R10: 21 | S10: 28 | T10: 385 | U10: 15 | V10: 14
F11: النتيجة | G11: ناجحة و منقولة للصف الثانى
F14: مدرسة كوم امبو التجارية بنات | L14: شهادة نتيجة امتحان الدور الثانى 2017 / 2017
F15: الاسم / | G15: اسم 132 | O15: الفصل / | Q15: 4/1 | S15: جلوس / | U15: 138 | AA15: =$AA$6+1 -> 2
F16: المادة | G16: لغة عربية | H16: لغة انجليزية | I16: لغة فرنسية | J16: محاسبة مالية | K16: سكرتارية عربية | L16: سكرتارية اجنبية | M16: اقتصاد | N16: تسويق | O16: ادارة اعمال | P16: قانون تجارى | Q16: رياضة عامة | R16: جغرافيا | S16: حاسب ألى | T16: مجموع | U16: تربية قومية | V16: تربية دينية
F17: العظمى | G17: 50 | H17: 50 | I17: 30 | J17: 50 | K17: 50 | L17: 50 | M17: 50 | N17: 50 | O17: 50 | P17: 50 | Q17: 30 | R17: 40 | S17: 50 | T17: 600 | U17: 20 | V17: 20
F18: الصغرى | G18: 25 | H18: 20 | I18: 9 | J18: 25 | K18: 25 | L18: 20 | M18: 25 | N18: 25 | O18: 25 | P18: 25 | Q18: 15 | R18: 20 | S18: 25 | T18: 300 | U18: 10 | V18: 10
F19: الدرجة | G19: 26 | H19: 26 | I19: 16 | J19: 15 | K19: 31 | L19: 37 | M19: 39 | N19: 43 | O19: 39 | P19: 40 | Q19: 15 | R19: 22 | S19: 38 | T19: 387 | U19: 14 | V19: 16
F20: النتيجة | G20: راسبة و لها حق الاعادة
F23: مدرسة كوم امبو التجارية بنات | L23: شهادة نتيجة امتحان الدور الثانى 2017 / 2017
F24: الاسم / | G24: اسم 152 | O24: الفصل / | Q24: 5/1 | S24: جلوس / | U24: 160 | AA24: =$AA$6+2 -> 3
F25: المادة | G25: لغة عربية | H25: لغة انجليزية | I25: لغة فرنسية | J25: محاسبة مالية | K25: سكرتارية عربية | L25: سكرتارية اجنبية | M25: اقتصاد | N25: تسويق | O25: ادارة اعمال | P25: قانون تجارى | Q25: رياضة عامة | R25: جغرافيا | S25: حاسب ألى | T25: مجموع | U25: تربية قومية | V25: تربية دينية | W25: 8
F26: العظمى | G26: 50 | H26: 50 | I26: 30 | J26: 50 | K26: 50 | L26: 50 | M26: 50 | N26: 50 | O26: 50 | P26: 50 | Q26: 30 | R26: 40 | S26: 50 | T26: 600 | U26: 20 | V26: 20
F27: الصغرى | G27: 25 | H27: 20 | I27: 9 | J27: 25 | K27: 25 | L27: 20 | M27: 25 | N27: 25 | O27: 25 | P27: 25 | Q27: 15 | R27: 20 | S27: 25 | T27: 300 | U27: 10 | V27: 10
F28: الدرجة | G28: 32 | H28: 20 | I28: 16 | J28: 20 | K28: 37 | L28: 42 | M28: 35 | N28: 41 | O28: 33 | P28: 40 | Q28: 9 | R28: 21 | S28: 44 | T28: 390 | U28: 12 | V28: 14
F29: النتيجة | G29: راسبة و لها حق الاعادة
F32: مدرسة كوم امبو التجارية بنات | L32: شهادة نتيجة امتحان الدور الثانى 2017 / 2017
F33: الاسم / | G33: اسم 159 | Q33: 5/1 | U33: 167 | W33: 0 | AA33: =$AA$6+3 -> 4
F34: المادة | G34: لغة عربية | H34: لغة انجليزية | I34: لغة فرنسية | J34: محاسبة مالية | K34: سكرتارية عربية | L34: سكرتارية اجنبية | M34: اقتصاد | N34: تسويق | O34: ادارة اعمال | P34: قانون تجارى | Q34: رياضة عامة | R34: جغرافيا | S34: حاسب ألى | T34: مجموع | U34: تربية قومية | V34: تربية دينية
F35: العظمى | G35: 50 | H35: 50 | I35: 30 | J35: 50 | K35: 50 | L35: 50 | M35: 50 | N35: 50 | O35: 50 | P35: 50 | Q35: 30 | R35: 40 | S35: 50 | T35: 600 | U35: 20 | V35: 20
F36: الصغرى | G36: 25 | H36: 20 | I36: 9 | J36: 25 | K36: 25 | L36: 20 | M36: 25 | N36: 25 | O36: 25 | P36: 25 | Q36: 15 | R36: 20 | S36: 25 | T36: 300 | U36: 10 | V36: 10
F37: الدرجة | G37: 25 | H37: 20 | I37: 15 | J37: 17 | K37: 33 | L37: 41 | M37: 41 | N37: 38 | O37: 43 | P37: 44 | Q37: 10 | R37: 22 | S37: 36 | T37: 385 | U37: 13 | V37: 16
F38: النتيجة | G38: ناجحة و منقولة للصف الثانى

Sheet النسبة
G1: ادارة كوم امبـــــو التعليمية | L1: العام الدراسى 2017 / 2018
G2: مدرسة كوم امبـــــو التجارية | N2: كشف رقم : | O2: 1
H3: كشف بأسماء الحاصلين على مجموع 75 % فأكثر
A4: المجموع المطلوب الحصول على نسبته | F4: مسلسل | G4: جلوس | H4: اسم الطالبة | I4: المجموع | J4: النسبة | L4: مسلسل | M4: جلوس | N4: اسم الطالبة | O4: المجموع | P4: النسبة
B7: 450
B9: العدد | F9: 1 | G9: 110 | H9: اسم 107 | I9: 452 | J9: 0.7533333333 | L9: 41 | M9: 344 | N9: اسم 318 | O9: 463 | P9: 0.7716666667
B10: 61 | F10: 2 | G10: 111 | H10: اسم 108 | I10: 471 | J10: 0.785 | L10: 42 | M10: 352 | N10: اسم 325 | O10: 451 | P10: 0.7516666667
F11: 3 | G11: 113 | H11: اسم 11 | I11: 466 | J11: 0.7766666667 | L11: 43 | M11: 353 | N11: اسم 326 | O11: 465 | P11: 0.775
F12: 4 | G12: 123 | H12: اسم 119 | I12: 453 | J12: 0.755 | L12: 44 | M12: 354 | N12: اسم 327 | O12: 480 | P12: 0.8
F13: 5 | G13: 134 | H13: اسم 129 | I13: 463 | J13: 0.7716666667 | L13: 45 | M13: 367 | N13: اسم 339 | O13: 459 | P13: 0.765
F14: 6 | G14: 136 | H14: اسم 130 | I14: 471 | J14: 0.785 | L14: 46 | M14: 370 | N14: اسم 341 | O14: 462 | P14: 0.77
F15: 7 | G15: 137 | H15: اسم 131 | I15: 463 | J15: 0.7716666667 | L15: 47 | M15: 382 | N15: اسم 352 | O15: 472 | P15: 0.7866666667
F16: 8 | G16: 143 | H16: اسم 137 | I16: 479 | J16: 0.7983333333 | L16: 48 | M16: 383 | N16: اسم 36 | O16: 470 | P16: 0.7833333333
F17: 9 | G17: 144 | H17: اسم 138 | I17: 479 | J17: 0.7983333333 | L17: 49 | M17: 386 | N17: اسم 39 | O17: 459 | P17: 0.765
F18: 10 | G18: 147 | H18: اسم 140 | I18: 472 | J18: 0.7866666667 | L18: 50 | M18: 390 | N18: اسم 42 | O18: 460 | P18: 0.7666666667
F19: 11 | G19: 149 | H19: اسم 142 | I19: 451 | J19: 0.7516666667 | L19: 51 | M19: 393 | N19: اسم 45 | O19: 465 | P19: 0.775
F20: 12 | G20: 172 | H20: اسم 163 | I20: 471 | J20: 0.785 | L20: 52 | M20: 397 | N20: اسم 49 | O20: 488 | P20: 0.8133333333
F21: 13 | G21: 173 | H21: اسم 164 | I21: 474 | J21: 0.79 | L21: 53 | M21: 401 | N21: اسم 52 | O21: 457 | P21: 0.7616666667
F22: 14 | G22: 182 | H22: اسم 172 | I22: 457 | J22: 0.7616666667 | L22: 54 | M22: 405 | N22: اسم 56 | O22: 480 | P22: 0.8
F23: 15 | G23: 188 | H23: اسم 178 | I23: 454 | J23: 0.7566666667 | L23: 55 | M23: 411 | N23: اسم 61 | O23: 468 | P23: 0.78
F24: 16 | G24: 191 | H24: اسم 180 | I24: 509 | J24: 0.8483333333 | L24: 56 | M24: 417 | N24: اسم 67 | O24: 459 | P24: 0.765
F25: 17 | G25: 192 | H25: اسم 181 | I25: 463 | J25: 0.7716666667 | L25: 57 | M25: 433 | N25: اسم 81 | O25: 466 | P25: 0.7766666667
F26: 18 | G26: 199 | H26: اسم 188 | I26: 479 | J26: 0.7983333333 | L26: 58 | M26: 435 | N26: اسم 83 | O26: 450 | P26: 0.75
F27: 19 | G27: 200 | H27: اسم 189 | I27: 489 | J27: 0.815 | L27: 59 | M27: 448 | N27: اسم 95 | O27: 450 | P27: 0.75
F28: 20 | G28: 214 | H28: اسم 200 | I28: 502 | J28: 0.8366666667 | L28: 60 | M28: 449 | N28: اسم 96 | O28: 457 | P28: 0.7616666667
F29: 21 | G29: 221 | H29: اسم 207 | I29: 481 | J29: 0.8016666667 | L29: 61 | M29: 450 | N29: اسم 97 | O29: 460 | P29: 0.7666666667
F30: 22 | G30: 223 | H30: اسم 209 | I30: 450 | J30: 0.75
F31: 23 | G31: 227 | H31: اسم 212 | I31: 454 | J31: 0.7566666667
F32: 24 | G32: 253 | H32: اسم 236 | I32: 458 | J32: 0.7633333333
F33: 25 | G33: 258 | H33: اسم 240 | I33: 487 | J33: 0.8116666667
F34: 26 | G34: 259 | H34: اسم 241 | I34: 461 | J34: 0.7683333333
F35: 27 | G35: 261 | H35: اسم 243 | I35: 452 | J35: 0.7533333333
F36: 28 | G36: 277 | H36: اسم 258 | I36: 451 | J36: 0.7516666667
F37: 29 | G37: 291 | H37: اسم 270 | I37: 458 | J37: 0.7633333333
F38: 30 | G38: 292 | H38: اسم 271 | I38: 451 | J38: 0.7516666667
F39: 31 | G39: 294 | H39: اسم 273 | I39: 466 | J39: 0.7766666667
F40: 32 | G40: 295 | H40: اسم 274 | I40: 470 | J40: 0.7833333333
F41: 33 | G41: 308 | H41: اسم 286 | I41: 455 | J41: 0.7583333333
F42: 34 | G42: 309 | H42: اسم 287 | I42: 457 | J42: 0.7616666667
F43: 35 | G43: 314 | H43: اسم 291 | I43: 475 | J43: 0.7916666667
F44: 36 | G44: 323 | H44: اسم 3 | I44: 463 | J44: 0.7716666667
F45: 37 | G45: 327 | H45: اسم 302 | I45: 459 | J45: 0.765
F46: 38 | G46: 330 | H46: اسم 305 | I46: 461 | J46: 0.7683333333
F47: 39 | G47: 332 | H47: اسم 307 | I47: 462 | J47: 0.77
F48: 40 | G48: 336 | H48: اسم 310 | I48: 464 | J48: 0.7733333333
G49: كنترول الصف الاول | N49: ادارة المدرسة

Sheet كشف الراسبات
D1: مدرسة كوم امبو التجارية | H1: كشف الطالبات الراسبات
D2: كنترول الصف الاول | H2: للعام الدراسى 2017 / 2018
D3: كشف رقم : | F3: 1
D4: م | E4: جلوس | F4: اسم الطالبة | G4: الفصل | H4: مواد الرسوب | I4: العدد
D5: 1 | E5: 106 | F5: اسم 103 | G5: 3/1 | H5: فى : لغة عربية - لغة انجليزية - لغة فرنسية - محاسبة مالية - سكرتارية اجنبية - اقتصاد - ادارة اعمال - رياضة عامة - جغرافيا - حاسب ألى - مجموع - | I5: 12
D6: 2 | E6: 108 | F6: اسم 105 | G6: 3/1 | H6: فى : لغة عربية - لغة انجليزية - محاسبة مالية - سكرتارية عربية - رياضة عامة - | I6: 5
D7: 3 | E7: 112 | F7: اسم 109 | G7: 4/1 | H7: فى : لغة عربية - لغة انجليزية - لغة فرنسية - محاسبة مالية - سكرتارية عربية - سكرتارية اجنبية - اقتصاد - تسويق - ادارة اعمال - رياضة عامة - جغرافيا - حاسب ألى - مجموع - تربية قوميةتربية دينية | I7: 16
D8: 4 | E8: 126 | F8: اسم 121 | G8: 4/1 | H8: فى : لغة عربية - لغة انجليزية - لغة فرنسية - محاسبة مالية - سكرتارية عربية - سكرتارية اجنبية - اقتصاد - تسويق - ادارة اعمال - رياضة عامة - جغرافيا - حاسب ألى - مجموع - تربية دينية | I8: 15
D9: 5 | E9: 139 | F9: اسم 133 | G9: 4/1 | H9: فى : محاسبة مالية - سكرتارية اجنبية - ادارة اعمال - جغرافيا - | I9: 4
D10: 6 | E10: 159 | F10: اسم 151 | G10: 5/1 | H10: فى : لغة عربية - محاسبة مالية - رياضة عامة - | I10: 3
D11: 7 | E11: 164 | F11: اسم 156 | G11: 5/1 | H11: فى : لغة عربية - لغة انجليزية - محاسبة مالية - رياضة عامة - مجموع - | I11: 5
D12: 8 | E12: 225 | F12: اسم 210 | G12: 6/1 | H12: فى : لغة عربية - لغة انجليزية - لغة فرنسية - محاسبة مالية - سكرتارية عربية - سكرتارية اجنبية - اقتصاد - تسويق - ادارة اعمال - رياضة عامة - جغرافيا - حاسب ألى - مجموع - تربية دينية | I12: 15
D13: 9 | E13: 276 | F13: اسم 257 | G13: 7/1 | H13: فى : لغة عربية - لغة انجليزية - لغة فرنسية - محاسبة مالية - سكرتارية عربية - سكرتارية اجنبية - اقتصاد - تسويق - ادارة اعمال - رياضة عامة - جغرافيا - حاسب ألى - مجموع - تربية قوميةتربية دينية | I13: 16
D14: 10 | E14: 285 | F14: اسم 265 | G14: 8/1 | H14: فى : لغة انجليزية - محاسبة مالية - رياضة عامة - | I14: 3
D15: 11 | E15: 289 | F15: اسم 269 | G15: 8/1 | H15: فى : لغة عربية - لغة انجليزية - لغة فرنسية - محاسبة مالية - سكرتارية عربية - سكرتارية اجنبية - اقتصاد - تسويق - ادارة اعمال - رياضة عامة - جغرافيا - حاسب ألى - مجموع - تربية قوميةتربية دينية | I15: 16
D16: 12 | E16: 369 | F16: اسم 340 | G16: 9/1 | H16: فى : لغة عربية - لغة انجليزية - لغة فرنسية - محاسبة مالية - سكرتارية عربية - سكرتارية اجنبية - اقتصاد - تسويق - ادارة اعمال - رياضة عامة - جغرافيا - حاسب ألى - مجموع - تربية قوميةتربية دينية | I16: 16
D17: 13 | E17: 384 | F17: اسم 37 | G17: 2/1 | H17: فى : لغة عربية - لغة انجليزية - لغة فرنسية - محاسبة مالية - سكرتارية عربية - سكرتارية اجنبية - اقتصاد - تسويق - ادارة اعمال - رياضة عامة - جغرافيا - حاسب ألى - مجموع - تربية دينية | I17: 15
D18: 14 | E18: 403 | F18: اسم 54 | G18: 2/1 | H18: فى : لغة عربية - لغة انجليزية - محاسبة مالية - رياضة عامة - | I18: 4
D19: 15 | E19: 408 | F19: اسم 59 | G19: 2/1 | H19: فى : لغة عربية - لغة انجليزية - محاسبة مالية - تسويق - رياضة عامة - مجموع - | I19: 6
D20: 16 | E20: 452 | F20: اسم 99 | G20: 3/1 | H20: فى : لغة عربية - لغة انجليزية - محاسبة مالية - رياضة عامة - | I20: 4
D21: 17 | E21: 501 | F21: اسم 353 | G21: 10/1 | H21: فى : لغة انجليزية - محاسبة مالية - رياضة عامة - | I21: 3
D22: 18 | E22: 504 | F22: اسم 356 | G22: 10/1 | H22: فى : لغة انجليزية - محاسبة مالية - تسويق - رياضة عامة - | I22: 4
D23: 19 | E23: 510 | F23: اسم 362 | G23: 10/1 | H23: فى : لغة عربية - لغة انجليزية - محاسبة مالية - رياضة عامة - مجموع - | I23: 5
D24: 20 | E24: 513 | F24: اسم 365 | G24: 10/1 | H24: فى : لغة عربية - لغة انجليزية - محاسبة مالية - رياضة عامة - مجموع - | I24: 5
D25: 21 | E25: 523 | F25: اسم 375 | G25: 10/1 | H25: فى : لغة عربية - لغة انجليزية - لغة فرنسية - محاسبة مالية - سكرتارية عربية - سكرتارية اجنبية - اقتصاد - تسويق - ادارة اعمال - رياضة عامة - جغرافيا - حاسب ألى - مجموع - تربية قوميةتربية دينية | I25: 16
D26: 22 | E26: 526 | F26: اسم 378 | G26: 10/1 | H26: فى : لغة عربية - لغة انجليزية - محاسبة مالية - رياضة عامة - | I26: 4
D27: 23 | E27: 527 | F27: اسم 379 | G27: 10/1 | H27: فى : لغة عربية - لغة انجليزية - لغة فرنسية - اقتصاد - ادارة اعمال - جغرافيا - مجموع - | I27: 8
D28: 24 | E28: 541 | F28: اسم 393 | G28: 11/1 | H28: فى : لغة عربية - لغة انجليزية - لغة فرنسية - محاسبة مالية - سكرتارية عربية - سكرتارية اجنبية - اقتصاد - تسويق - ادارة اعمال - رياضة عامة - جغرافيا - حاسب ألى - مجموع - تربية دينية | I28: 15
D29: 25 | E29: 542 | F29: اسم 394 | G29: 11/1 | H29: فى : لغة عربية - لغة انجليزية - لغة فرنسية - محاسبة مالية - سكرتارية عربية - سكرتارية اجنبية - اقتصاد - تسويق - ادارة اعمال - رياضة عامة - جغرافيا - حاسب ألى - مجموع - تربية قوميةتربية دينية | I29: 16
D30: 26 | E30: 548 | F30: اسم 400 | G30: 11/1 | H30: فى : لغة عربية - لغة انجليزية - محاسبة مالية - سكرتارية اجنبية - رياضة عامة - | I30: 5
D31: 27 | E31: 549 | F31: اسم 401 | G31: 11/1 | H31: فى : لغة عربية - لغة انجليزية - لغة فرنسية - محاسبة مالية - سكرتارية عربية - سكرتارية اجنبية - اقتصاد - تسويق - ادارة اعمال - رياضة عامة - جغرافيا - حاسب ألى - مجموع - تربية دينية | I31: 15
D32: 28 | E32: 553 | F32: اسم 405 | G32: 11/1 | H32: فى : لغة عربية - لغة انجليزية - محاسبة مالية - تسويق - رياضة عامة - مجموع - | I32: 6
D33: 29 | E33: 556 | F33: اسم 408 | G33: 11/1 | H33: فى : محاسبة مالية - تسويق - حاسب ألى - مجموع - | I33: 4
D34: 30 | E34: 557 | F34: اسم 409 | G34: 11/1 | H34: فى : لغة عربية - محاسبة مالية - رياضة عامة - مجموع - | I34: 4
D35: 31 | E35: 562 | F35: اسم 414 | G35: 11/1 | H35: فى : لغة انجليزية - محاسبة مالية - رياضة عامة - مجموع - | I35: 4
D36: 32 | E36: 563 | F36: اسم 415 | G36: 11/1 | H36: فى : لغة انجليزية - محاسبة مالية - رياضة عامة - | I36: 3
D37: 33 | E37: 566 | F37: اسم 418 | G37: 11/1 | H37: فى : لغة عربية - لغة انجليزية - محاسبة مالية - رياضة عامة - مجموع - | I37: 5
D38: 34 | E38: 568 | F38: اسم 420 | G38: 11/1 | H38: فى : لغة عربية - لغة انجليزية - لغة فرنسية - محاسبة مالية - سكرتارية عربية - سكرتارية اجنبية - اقتصاد - تسويق - ادارة اعمال - رياضة عامة - جغرافيا - حاسب ألى - مجموع - تربية دينية | I38: 15
D39: 35 | E39: 571 | F39: اسم 423 | G39: 12/1 | H39: فى : لغة انجليزية - محاسبة مالية - سكرتارية اجنبية - رياضة عامة - مجموع - | I39: 5
D40: 36 | E40: 572 | F40: اسم 424 | G40: 12/1 | H40: فى : لغة انجليزية - محاسبة مالية - رياضة عامة - | I40: 3
D41: 37 | E41: 573 | F41: اسم 425 | G41: 12/1 | H41: فى : لغة عربية - لغة انجليزية - محاسبة مالية - رياضة عامة - مجموع - | I41: 5
D42: 38 | E42: 576 | F42: اسم 428 | G42: 12/1 | H42: فى : لغة عربية - لغة انجليزية - محاسبة مالية - رياضة عامة - مجموع - | I42: 5
D43: 39 | E43: 578 | F43: اسم 430 | G43: 12/1 | H43: فى : لغة عربية - لغة انجليزية - محاسبة مالية - رياضة عامة - مجموع - | I43: 5
D44: 40 | E44: 579 | F44: اسم 431 | G44: 12/1 | H44: فى : لغة عربية - لغة انجليزية - لغة فرنسية - محاسبة مالية - سكرتارية عربية - سكرتارية اجنبية - اقتصاد - تسويق - ادارة اعمال - رياضة عامة - جغرافيا - حاسب ألى - مجموع - تربية دينية | I44: 15
D45: كنترول الصف الاول | G45: ادارة المدرسة

Sheet رصد
G1: متابعة رصد درجات اعمال السنة و درجات أخر العام
C3: رصد درجات اعمال السنة | D3: المادة | E3: لغة عربية | F3: لغة انجليزية | G3: لغة فرنسية | H3: محاسبة مالية | I3: سكرتارية عربية | J3: سكرتارية اجنبية | K3: اقتصاد | L3: تسويق | M3: ادارة اعمال | N3: قانون تجارى | O3: رياضة عامة | P3: جغرافيا | Q3: حاسب ألى عملى | R3: حاسب ألى تحريرى | S3: تربية قومية | T3: تربية دينية
A4: 1 | D4: المرصود اعمال السنة | E4: 476 | F4: 478 | G4: 479 | H4: 477 | I4: 478 | J4: 478 | K4: 479 | L4: 478 | M4: 479 | N4: 478 | O4: 478 | P4: 477 | Q4: 478 | R4: 476 | S4: 479 | T4: 478
D5: الغياب من اعمال السنة | E5: 11 | F5: 9 | G5: 8 | H5: 10 | I5: 9 | J5: 9 | K5: 8 | L5: 9 | M5: 8 | N5: 9 | O5: 9 | P5: 10 | Q5: 9 | R5: 11 | S5: 8 | T5: 9
D6: المتبقى من الرصد | E6: 1 | F6: 1 | G6: 1 | H6: 1 | I6: 1 | J6: 1 | K6: 1 | L6: 1 | M6: 1 | N6: 1 | O6: 1 | P6: 1 | Q6: 1 | R6: 1 | S6: 1 | T6: 1
C8: رصد درجات نصف العام | D8: المادة | E8: لغة عربية | F8: لغة انجليزية | G8: لغة فرنسية | H8: محاسبة مالية | I8: سكرتارية عربية | J8: سكرتارية اجنبية | K8: اقتصاد | L8: تسويق | M8: ادارة اعمال | N8: قانون تجارى | O8: رياضة عامة | P8: جغرافيا | Q8: حاسب ألى عملى | R8: حاسب ألى تحريرى | S8: تربية قومية | T8: تربية دينية
A9: 2 | D9: المرصود نصف العام | E9: 476 | F9: 474 | G9: 475 | H9: 474 | I9: 476 | J9: 475 | K9: 475 | L9: 474 | M9: 475 | N9: 476 | O9: 474 | P9: 476 | Q9: 476 | R9: 470 | S9: 474 | T9: 476
D10: الغياب نصف العام | E10: 11 | F10: 13 | G10: 12 | H10: 13 | I10: 11 | J10: 12 | K10: 12 | L10: 13 | M10: 12 | N10: 11 | O10: 13 | P10: 11 | Q10: 11 | R10: 17 | S10: 13 | T10: 11
D11: المتبقى من الرصد | E11: 1 | F11: 1 | G11: 1 | H11: 1 | I11: 1 | J11: 1 | K11: 1 | L11: 1 | M11: 1 | N11: 1 | O11: 1 | P11: 1 | Q11: 1 | R11: 1 | S11: 1 | T11: 1
C13: رصد درجات آخر العام | D13: المادة | E13: لغة عربية | F13: لغة انجليزية | G13: لغة فرنسية | H13: محاسبة مالية | I13: سكرتارية عربية | J13: سكرتارية اجنبية | K13: اقتصاد | L13: تسويق | M13: ادارة اعمال | N13: قانون تجارى | O13: رياضة عامة | P13: جغرافيا | Q13: حاسب ألى عملى | R13: حاسب ألى تحريرى | S13: تربية قومية | T13: تربية دينية
A14: 3 | D14: المرصود آخر العام | E14: 468 | F14: 469 | G14: 468 | H14: 470 | I14: 470 | J14: 468 | K14: 468 | L14: 469 | M14: 468 | N14: 468 | O14: 470 | P14: 468 | Q14: 470 | R14: 470 | S14: 487 | T14: 470
D15: الغياب آخر العام | E15: 19 | F15: 18 | G15: 19 | H15: 17 | I15: 17 | J15: 19 | K15: 19 | L15: 18 | M15: 19 | N15: 19 | O15: 17 | P15: 19 | Q15: 17 | R15: 17 | S15: 0 | T15: 17
D16: المتبقى من الرصد | E16: 1 | F16: 1 | G16: 1 | H16: 1 | I16: 1 | J16: 1 | K16: 1 | L16: 1 | M16: 1 | N16: 1 | O16: 1 | P16: 1 | Q16: 1 | R16: 1 | S16: 1 | T16: 1

Sheet جودة
A1: مديرية التربية والتعليم بمحافظة اسوان | G1: النسب والبيانات المتعلقة ببيانات الجودة للصف الاول
A2: ادارة كوم امبو التعليمية | I2: للعام الدراسى 2017 / 2018
A3: مدرسة كوم امبو التجارية بنات
A5: الفترة | C5: المواد البيان | G5: عربى | H5: انجليزى | I5: فرنسى | J5: محاسبة | K5: س . عربية | L5: س . اجنبية | M5: اقتصاد | N5: تسويق | O5: ادارة اعمال | P5: قانون تجارى | Q5: رياضة عامة | R5: جغرافيا | S5: حاسب . ع | T5: حاسب . ت | U5: مواطنة | V5: دين
A6: نصف العام | C6: عدد الطلاب الحاضرين فى المادة
C7: عدد الطلاب الحاصلين 50% فأكثر بنصف العام
C8: نسبة الحاصلين على 50% فاكثر
C9: عدد الطلاب الحاصلين 65% فأكثر بنصف العام
C10: نسبة الحاصلين على 65% فاكثر
A11: آخر العام | C11: عدد الطلاب الحاضرين فى المادة
C12: عدد الطلاب الناجحين ( ربع الدرجة )
C13: النسبة المئوية للحاصلين على ربع الدرجة
C14: عدد الحاصلين على 65% فاكثر فى كل مادة
C15: نسبة الحاصلين على 65% فاكثر فى كل مادة
A16: كنترول الصف الاول | I16: مسئول الجودة | Q16: ادارة المدرسة

Sheet شيت
H1: ادارة كوم امبو التعليمية | AE1: شيت كنترول الصف الاول
H2: مدرسة كوم امبو التجارية | AE2: للعام الدراسى 2017 / 2018 | BY2: =OFFSET(BY9,0,4) -> 
A3: مسلسل | B3: جلوس | C3: الاسم | D3: الفصل | E3: الحــــالة | F3: سرى | G3: لغة عربية | K3: لغة انجليزية | O3: لغة فرنسية | S3: محاسبة مالية | W3: سكرتارية عربية | AA3: سكرتارية اجنبية | AE3: اقتصاد | AI3: تسويق | AM3: ادارة اعمال | AQ3: قانون تجارى | AU3: رياضة عامة | AY3: جغرافيا | BC3: حاسب آلى | BL3: مجموع كلى | BM3: تربية قومية | BQ3: تربية دينية | BU3: النتيجة | BV3: مواد الرسوب | BW3: عدد المواد | CA3: لغة عربية | CB3: لغة انجليزية | CC3: لغة فرنسية | CD3: محاسبة مالية | CE3: سكرتارية عربية | CF3: سكرتارية اجنبية | CG3: اقتصاد | CH3: تسويق | CI3: ادارة اعمال | CJ3: قانون تجارى | CK3: رياضة عامة | CL3: جغرافيا | CM3: حاسب ألى | CN3: مجموع | CO3: تربية قومية | CP3: تربية دينية | CS3: مجموع نصف العام
G4: اعمال السنة | H4: نصف العام | I4: آخر العام | J4: المجموع | K4: اعمال السنة | L4: نصف العام | M4: آخر العام | N4: المجموع | O4: اعمال السنة | P4: نصف العام | Q4: آخر العام | R4: المجموع | S4: اعمال السنة | T4: نصف العام | U4: آخر العام | V4: المجموع | W4: اعمال السنة | X4: نصف العام | Y4: آخر العام | Z4: المجموع | AA4: اعمال السنة | AB4: نصف العام | AC4: آخر العام | AD4: المجموع | AE4: اعمال السنة | AF4: نصف العام | AG4: آخر العام | AH4: المجموع | AI4: اعمال السنة | AJ4: نصف العام | AK4: آخر العام | AL4: المجموع | AM4: اعمال السنة | AN4: نصف العام | AO4: آخر العام | AP4: المجموع | AQ4: اعمال السنة | AR4: نصف العام | AS4: آخر العام | AT4: المجموع | AU4: اعمال السنة | AV4: نصف العام | AW4: آخر العام | AX4: المجموع | AY4: اعمال السنة | AZ4: نصف العام | BA4: آخر العام | BB4: المجموع | BC4: اعمال السنة | BE4: نصف العام | BG4: آخر العام | BI4: مج عملى | BJ4: مج تحريرى | BK4: مج حاسب | BM4: اعمال السنة | BN4: نصف العام | BO4: آخر العام | BP4: المجموع | BQ4: اعمال السنة | BR4: نصف العام | BS4: آخر العام | BT4: المجموع | BY4: =OFFSET(BY11,0,4) -> 
BC5: عملى | BD5: تحريرى | BE5: عملى | BF5: تحريرى | BG5: عملى | BH5: تحريرى
F6: عظمى | G6: 10 | H6: 20 | I6: 20 | J6: 50 | K6: 10 | L6: 20 | M6: 20 | N6: 50 | O6: 6 | P6: 12 | Q6: 12 | R6: 30 | S6: 10 | T6: 20 | U6: 20 | V6: 50 | W6: 10 | X6: 20 | Y6: 20 | Z6: 50 | AA6: 10 | AB6: 20 | AC6: 20 | AD6: 50 | AE6: 10 | AF6: 20 | AG6: 20 | AH6: 50 | AI6: 10 | AJ6: 20 | AK6: 20 | AL6: 50 | AM6: 10 | AN6: 20 | AO6: 20 | AP6: 50 | AQ6: 10 | AR6: 20 | AS6: 20 | AT6: 50 | AU6: 6 | AV6: 12 | AW6: 12 | AX6: 30 | AY6: 8 | AZ6: 16 | BA6: 16 | BB6: 40 | BC6: 4 | BD6: 6 | BE6: 8 | BF6: 12 | BG6: 8 | BH6: 12 | BI6: 20 | BJ6: 30 | BK6: 50 | BL6: 600 | BM6: 4 | BN6: 8 | BO6: 8 | BP6: 20 | BQ6: 4 | BR6: 8 | BS6: 8 | BT6: 20
F7: صغرى | G7: 0 | H7: 0 | I7: 5 | J7: 25 | K7: 0 | L7: 0 | M7: 5 | N7: 20 | P7: 0 | Q7: 3 | R7: 9 | S7: 0 | T7: 0 | U7: 5 | V7: 25 | W7: 0 | X7: 0 | Y7: 5 | Z7: 25 | AA7: 0 | AB7: 0 | AC7: 5 | AD7: 20 | AE7: 0 | AF7: 0 | AG7: 5 | AH7: 25 | AI7: 0 | AJ7: 0 | AK7: 5 | AL7: 25 | AM7: 0 | AN7: 0 | AO7: 5 | AP7: 25 | AQ7: 0 | AR7: 0 | AS7: 5 | AT7: 25 | AU7: 0 | AV7: 0 | AW7: 3 | AX7: 15 | AY7: 0 | AZ7: 0 | BA7: 4 | BB7: 20 | BC7: 0 | BD7: 0 | BE7: 0 | BF7: 0 | BG7: 2 | BH7: 3 | BI7: 10 | BJ7: 15 | BK7: 25 | BL7: 300 | BM7: 0 | BN7: 0 | BO7: 2 | BP7: 10 | BQ7: 0 | BR7: 0 | BS7: 2 | BT7: 10
A8: 1 | B8: 101 | C8: اسم 1 | D8: 1/1 | F8: 1221 | G8: 8 | H8: 9 | I8: 14 | J8: =SUM(G8:I8) -> 31 | K8: 8 | L8: 9 | M8: 13 | N8: =SUM(K8:M8) -> 30 | O8: 5 | P8: 6 | Q8: 7 | R8: =SUM(O8:Q8) -> 18 | S8: 8 | T8: 7 | U8: 11 | V8: =SUM(S8:U8) -> 26 | W8: 8 | X8: 19 | Y8: 15 | Z8: =SUM(W8:Y8) -> 42 | AA8: 9 | AB8: 15 | AC8: 12 | AD8: =SUM(AA8:AC8) -> 36 | AE8: 9 | AF8: 18 | AG8: 19 | AH8: =SUM(AE8:AG8) -> 46 | AI8: 9 | AJ8: 11 | AK8: 17 | AL8: =SUM(AI8:AK8) -> 37 | AM8: 9 | AN8: 12 | AO8: 16 | AP8: =SUM(AM8:AO8) -> 37 | AQ8: 9 | AR8: 15 | AS8: 18 | AT8: =SUM(AQ8:AS8) -> 42 | AU8: 5 | AV8: 11 | AW8: 10 | AX8: =SUM(AU8:AW8) -> 26 | AY8: 7 | AZ8: 7 | BA8: 7 | BB8: =SUM(AY8:BA8) -> 21 | BC8: 3 | BD8: 5 | BE8: 7 | BF8: 7 | BG8: 7 | BH8: 7 | BI8: =SUM(BC8,BE8,BG8) -> 17 | BJ8: =SUM(BD8,BF8,BH8) -> 19 | BK8: =SUM(BI8,BJ8) -> 36 | BL8: =SUM(J8,N8,R8,V8,Z8,AD8,AH8,AL8,AP8,AT8,AX8,BB8,BK8) -> 428 | BM8: 4 | BN8: 4 | BO8: 6 | BP8: =SUM(BM8:BO8) -> 14 | BQ8: 4 | BR8: 6 | BS8: 6 | BT8: =SUM(BQ8:BS8) -> 16 | BU8: =IF(C8="","",IF(BW8=0,"ناجحة",IF(BW8<=2,"دورثان","راسبة"))) -> ناجحة | BV8: =IF(C8="","",IF(BW8=0,"ومنقولة للصف الثانى",IF(BW8>0,"فى : "&CONCATENATE(CA8,CB8,CC8,CD8,CE8,CF8,CG8,CH8,CI8,CK8,CL8,CM8,CN8,CO8,CP8)))) -> ومنقولة للصف الثانى | BW8: =IF(C8="","",COUNTA(CA8:CP8)-COUNTBLANK(CA8:CP8)) -> 0 | CA8: =IF(C8="","",IF(OR(I8<$I$7,I8="غ",J8<$J$7),CA$3&" - ","")) ->  | CB8: =IF(C8="","",IF(OR(M8<$M$7,M8="غ",N8<$N$7),CB$3&" - ","")) ->  | CC8: =IF(C8="","",IF(OR(Q8<$Q$7,Q8="غ",R8<$R$7),CC$3&" - ","")) ->  | CD8: =IF(C8="","",IF(OR(U8<$U$7,U8="غ",V8<$V$7),CD$3&" - ","")) ->  | CE8: =IF(C8="","",IF(OR(Y8<$Y$7,Y8="غ",Z8<$Z$7),CE$3&" - ","")) ->  | CF8: =IF(C8="","",IF(OR(AC8<$AC$7,AC8="غ",AD8<$AD$7),CF$3&" - ","")) ->  | CG8: =IF(C8="","",IF(OR(AG8<$AG$7,AG8="غ",AH8<$AH$7),CG$3&" - ","")) ->  | CH8: =IF(C8="","",IF(OR(AK8<$AK$7,AK8="غ",AL8<$AL$7),CH$3&" - ","")) ->  | CI8: =IF(C8="","",IF(OR(AO8<$AO$7,AO8="غ",AP8<$AP$7),CI$3&" - ","")) ->  | CJ8: =IF(C8="","",IF(OR(AS8<$AS$7,AS8="غ",AT8<$AT$7),CJ$3&" - ","")) ->  | CK8: =IF(C8="","",IF(OR(AW8<$AW$7,AW8="غ",AX8<$AX$7),CK$3&" - ","")) ->  | CL8: =IF(C8="","",IF(OR(BA8<$BA$7,BA8="غ",BB8<$BB$7),CL$3&" - ","")) ->  | CM8: =IF(C8="","",IF(OR(BG8<$BG$7,BH8<$BH$7,BI8<$BI$7,BI8="غ",BJ8<$BJ$7,BJ8="غ"),CM$3&" - ","")) ->  | CN8: =IF(C8="","",IF(BL8<$BL$7,CN$3&" - ","")) ->  | CO8: =IF(C8="","",IF(OR(BO8<$BO$7,BO8="غ",BP8<$BP$7),CO$3,"")) ->  | CP8: =IF(C8="","",IF(OR(BS8<$BS$7,BS8="غ",BT8<$BT$7),CP$3,"")) ->  | CS8: =IF(C8="","",SUM(H8,L8,P8,T8,X8,AB8,AF8,AJ8,AN8,AR8,AV8,AZ8,BE8,BF8)) -> 153
A9: 2 | B9: 102 | C9: اسم 10 | D9: 1/1 | F9: 1222 | G9: 8 | H9: 7 | I9: 16 | J9: 31 | K9: 8 | L9: 8 | M9: 12 | N9: 28 | O9: 5 | P9: 7 | Q9: 7 | R9: 19 | S9: 8 | T9: 16 | U9: 20 | V9: 44 | W9: 8 | X9: 17 | Y9: 19 | Z9: 44 | AA9: 9 | AB9: 14 | AC9: 14 | AD9: 37 | AE9: 9 | AF9: 19 | AG9: 19 | AH9: 47 | AI9: 9 | AJ9: 16 | AK9: 15 | AL9: 40 | AM9: 9 | AN9: 14 | AO9: 16 | AP9: 39 | AQ9: 9 | AR9: 16 | AS9: 18 | AT9: 43 | AU9: 5 | AV9: 8 | AW9: 11 | AX9: 24 | AY9: 7 | AZ9: 6 | BA9: 9 | BB9: 22 | BC9: 3 | BD9: 5 | BE9: 7 | BF9: 6 | BG9: 7 | BH9: 6 | BI9: 17 | BJ9: 17 | BK9: 34 | BL9: 452 | BM9: 4 | BN9: 6 | BO9: 6 | BP9: 16 | BQ9: 4 | BR9: 7 | BS9: 7 | BT9: 18 | BU9: =IF(C9="","",IF(BW9=0,"ناجحة",IF(BW9<=2,"دورثان","راسبة"))) -> ناجحة | BV9: ومنقولة للصف الثانى | BW9: 0 | CS9: 161
A10: 3 | B10: 103 | C10: اسم 100 | D10: 3/1 | F10: 1223 | G10: 8 | H10: 6 | I10: 12 | J10: 26 | K10: 8 | L10: 6 | M10: 8 | N10: 22 | O10: 5 | P10: 7 | Q10: 7 | R10: 19 | S10: 8 | T10: 9 | U10: 13 | V10: 30 | W10: 8 | X10: 12 | Y10: 11 | Z10: 31 | AA10: 9 | AB10: 13 | AC10: 18 | AD10: 40 | AE10: 9 | AF10: 15 | AG10: 17 | AH10: 41 | AI10: 9 | AJ10: 6 | AK10: 20 | AL10: 35 | AM10: 9 | AN10: 11 | AO10: 16 | AP10: 36 | AQ10: 9 | AR10: 12 | AS10: 19 | AT10: 40 | AU10: 5 | AV10: 6 | AW10: 4 | AX10: 15 | AY10: 7 | AZ10: 10 | BA10: 10 | BB10: 27 | BC10: 3 | BD10: 5 | BE10: 7 | BF10: 9 | BG10: 7 | BH10: 9 | BI10: 17 | BJ10: 23 | BK10: 40 | BL10: 402 | BM10: 4 | BN10: 3 | BO10: 6 | BP10: 13 | BQ10: 4 | BR10: 6 | BS10: 6 | BT10: 16 | BU10: ناجحة | BV10: ومنقولة للصف الثانى | BW10: 0 | CS10: 129
A11: 4 | B11: 104 | C11: اسم 101 | D11: 3/1 | F11: 1224 | G11: 8 | H11: 7 | I11: 12 | J11: 27 | K11: 8 | L11: 5 | M11: 7 | N11: 20 | O11: 5 | P11: 6 | Q11: 7 | R11: 18 | S11: 8 | T11: 5 | U11: 12 | V11: 25 | W11: 8 | X11: 14 | Y11: 17 | Z11: 39 | AA11: 9 | AB11: 14 | AC11: 17 | AD11: 40 | AE11: 9 | AF11: 13 | AG11: 16 | AH11: 38 | AI11: 9 | AJ11: 9 | AK11: 20 | AL11: 38 | AM11: 9 | AN11: 11 | AO11: 16 | AP11: 36 | AQ11: 9 | AR11: 12 | AS11: 19 | AT11: 40 | AU11: 5 | AV11: 5 | AW11: 5 | AX11: 15 | AY11: 7 | AZ11: 13 | BA11: 13 | BB11: 33 | BC11: 3 | BD11: 5 | BE11: 7 | BF11: 7 | BG11: 7 | BH11: 7 | BI11: 17 | BJ11: 19 | BK11: 36 | BL11: 405 | BM11: 4 | BN11: 5 | BO11: 6 | BP11: 15 | BQ11: 4 | BR11: 6 | BS11: 6 | BT11: 16 | BU11: ناجحة | BV11: ومنقولة للصف الثانى | BW11: 0 | CS11: 128
A12: 5 | B12: 105 | C12: اسم 102 | D12: 3/1 | F12: 1225 | G12: 8 | H12: 8 | I12: 12 | J12: 28 | K12: 8 | L12: 6 | M12: 6 | N12: 20 | O12: 5 | P12: 6 | Q12: 7 | R12: 18 | S12: 8 | T12: 5 | U12: 16 | V12: 29 | W12: 8 | X12: 15 | Y12: 16 | Z12: 39 | AA12: 9 | AB12: 13 | AC12: 11 | AD12: 33 | AE12: 9 | AF12: 20 | AG12: 20 | AH12: 49 | AI12: 9 | AJ12: 15 | AK12: 19 | AL12: 43 | AM12: 9 | AN12: 10 | AO12: 16 | AP12: 35 | AQ12: 9 | AR12: 19 | AS12: 19 | AT12: 47 | AU12: 5 | AV12: 6 | AW12: 4 | AX12: 15 | AY12: 7 | AZ12: 14 | BA12: 14 | BB12: 35 | BC12: 3 | BD12: 5 | BE12: 7 | BF12: 7 | BG12: 7 | BH12: 7 | BI12: 17 | BJ12: 19 | BK12: 36 | BL12: 427 | BM12: 4 | BN12: 6 | BO12: 6 | BP12: 16 | BQ12: 4 | BR12: 7 | BS12: 7 | BT12: 18 | BU12: ناجحة | BV12: ومنقولة للصف الثانى | BW12: 0 | CS12: 151
A13: 6 | B13: 106 | C13: اسم 103 | D13: 3/1 | F13: 1226 | G13: غ | H13: غ | I13: غ | J13: 0 | K13: 8 | L13: غ | M13: 8 | N13: 16 | O13: 5 | P13: غ | Q13: غ | R13: 5 | S13: 8 | T13: غ | U13: 1 | V13: 9 | W13: 8 | X13: غ | Y13: 17 | Z13: 25 | AA13: 9 | AB13: غ | AC13: غ | AD13: 9 | AE13: 9 | AF13: غ | AG13: غ | AH13: 9 | AI13: 9 | AJ13: غ | AK13: 19 | AL13: 28 | AM13: 9 | AN13: غ | AO13: غ | AP13: 9 | AQ13: 9 | AR13: غ | AS13: غ | AT13: 9 | AU13: 5 | AV13: غ | AW13: 2 | AX13: 7 | AY13: 7 | AZ13: غ | BA13: غ | BB13: 7 | BC13: 3 | BD13: 5 | BE13: غ | BF13: غ | BG13: 2 | BH13: 6 | BI13: 5 | BJ13: 11 | BK13: 16 | BL13: 149 | BM13: 4 | BN13: غ | BO13: 6 | BP13: 10 | BQ13: 4 | BR13: غ | BS13: 7 | BT13: 11 | BU13: راسبة | BV13: فى : لغة عربية - لغة انجليزية - لغة فرنسية - محاسبة مالية - سكرتارية اجنبية - اقتصاد - ادارة اعمال - رياضة عامة - جغرافيا - حاسب ألى - مجموع - | BW13: 12 | CA13: لغة عربية - | CB13: لغة انجليزية - | CC13: لغة فرنسية - | CD13: محاسبة مالية - | CF13: سكرتارية اجنبية - | CG13: اقتصاد - | CI13: ادارة اعمال - | CJ13: قانون تجارى - | CK13: رياضة عامة - | CL13: جغرافيا - | CM13: حاسب ألى - | CN13: مجموع - | CS13: 0
A14: 7 | B14: 107 | C14: اسم 104 | D14: 3/1 | F14: 1227 | G14: 8 | H14: 7 | I14: 10 | J14: 25 | K14: 8 | L14: 5 | M14: 7 | N14: 20 | O14: 5 | P14: 5 | Q14: 6 | R14: 16 | S14: 8 | T14: 11 | U14: 17 | V14: 36 | W14: 8 | X14: 16 | Y14: 13 | Z14: 37 | AA14: 9 | AB14: 16 | AC14: 12 | AD14: 37 | AE14: 9 | AF14: 7 | AG14: 17 | AH14: 33 | AI14: 9 | AJ14: 16 | AK14: 18 | AL14: 43 | AM14: 9 | AN14: 16 | AO14: 15 | AP14: 40 | AQ14: 9 | AR14: 10 | AS14: 19 | AT14: 38 | AU14: 5 | AV14: 7 | AW14: 3 | AX14: 15 | AY14: 7 | AZ14: 7 | BA14: 7 | BB14: 21 | BC14: 3 | BD14: 5 | BE14: 7 | BF14: 7 | BG14: 7 | BH14: 7 | BI14: 17 | BJ14: 19 | BK14: 36 | BL14: 397 | BM14: 4 | BN14: 4 | BO14: 6 | BP14: 14 | BQ14: 4 | BR14: 6 | BS14: 6 | BT14: 16 | BU14: ناجحة | BV14: ومنقولة للصف الثانى | BW14: 0 | CS14: 137
A15: 8 | B15: 108 | C15: اسم 105 | D15: 3/1 | F15: 1228 | G15: 8 | H15: 3 | I15: 4 | J15: 15 | K15: 8 | L15: 2 | M15: 3 | N15: 13 | O15: 5 | P15: 4 | Q15: 6 | R15: 15 | S15: 8 | T15: 5 | U15: 1 | V15: 14 | W15: 8 | X15: 10 | Y15: 5 | Z15: 23 | AA15: 9 | AB15: 16 | AC15: 13 | AD15: 38 | AE15: 9 | AF15: 3 | AG15: 13 | AH15: 25 | AI15: 9 | AJ15: 9 | AK15: 18 | AL15: 36 | AM15: 9 | AN15: 9 | AO15: 8 | AP15: 26 | AQ15: 9 | AR15: 6 | AS15: 18 | AT15: 33 | AU15: 5 | AV15: 2 | AW15: 1 | AX15: 8 | AY15: 7 | AZ15: 3 | BA15: 11 | BB15: 21 | BC15: 3 | BD15: 5 | BE15: 7 | BF15: 7 | BG15: 7 | BH15: 7 | BI15: 17 | BJ15: 19 | BK15: 36 | BL15: 303 | BM15: 4 | BN15: 2 | BO15: 6 | BP15: 12 | BQ15: 4 | BR15: 3 | BS15: 3 | BT15: 10 | BU15: راسبة | BV15: فى : لغة عربية - لغة انجليزية - محاسبة مالية - سكرتارية عربية - رياضة عامة - | BW15: 5 | CA15: لغة عربية - | CB15: لغة انجليزية - | CD15: محاسبة مالية - | CE15: سكرتارية عربية - | CK15: رياضة عامة - | CS15: 86
A16: 9 | B16: 109 | C16: اسم 106 | D16: 3/1 | F16: 1229 | G16: 8 | H16: 7 | I16: 11 | J16: 26 | K16: 8 | L16: 9 | M16: 12 | N16: 29 | O16: 5 | P16: 5 | Q16: 6 | R16: 16 | S16: 8 | T16: 15 | U16: 15 | V16: 38 | W16: 8 | X16: 15 | Y16: 18 | Z16: 41 | AA16: 9 | AB16: 15 | AC16: 13 | AD16: 37 | AE16: 9 | AF16: 16 | AG16: 13 | AH16: 38 | AI16: 9 | AJ16: 17 | AK16: 18 | AL16: 44 | AM16: 9 | AN16: 17 | AO16: 17 | AP16: 43 | AQ16: 9 | AR16: 17 | AS16: 19 | AT16: 45 | AU16: 5 | AV16: 8 | AW16: 8 | AX16: 21 | AY16: 7 | AZ16: 9 | BA16: 9 | BB16: 25 | BC16: 3 | BD16: 5 | BE16: 7 | BF16: 7 | BG16: 7 | BH16: 7 | BI16: 17 | BJ16: 19 | BK16: 36 | BL16: 439 | BM16: 4 | BN16: 7 | BO16: 6 | BP16: 17 | BQ16: 4 | BR16: 7 | BS16: 7 | BT16: 18 | BU16: ناجحة | BV16: ومنقولة للصف الثانى | BW16: 0 | CS16: 164
A17: 10 | B17: 110 | C17: اسم 107 | D17: 3/1 | F17: 1230 | G17: 8 | H17: 7 | I17: 12 | J17: 27 | K17: 8 | L17: 13 | M17: 17 | N17: 38 | O17: 5 | P17: 8 | Q17: 6 | R17: 19 | S17: 8 | T17: 9 | U17: 18 | V17: 35 | W17: 8 | X17: 17 | Y17: 19 | Z17: 44 | AA17: 9 | AB17: 13 | AC17: 14 | AD17: 36 | AE17: 9 | AF17: 17 | AG17: 18 | AH17: 44 | AI17: 9 | AJ17: 15 | AK17: 18 | AL17: 42 | AM17: 9 | AN17: 16 | AO17: 17 | AP17: 42 | AQ17: 9 | AR17: 19 | AS17: 19 | AT17: 47 | AU17: 5 | AV17: 6 | AW17: 10 | AX17: 21 | AY17: 7 | AZ17: 10 | BA17: 10 | BB17: 27 | BC17: 3 | BD17: 5 | BE17: 6 | BF17: 5 | BG17: 6 | BH17: 5 | BI17: 15 | BJ17: 15 | BK17: 30 | BL17: 452 | BM17: 4 | BN17: 8 | BO17: 6 | BP17: 18 | BQ17: 4 | BR17: 6 | BS17: 6 | BT17: 16 | BU17: ناجحة | BV17: ومنقولة للصف الثانى | BW17: 0 | CS17: 161
A18: 11 | B18: 111 | C18: اسم 108 | D18: 3/1 | F18: 1231 | G18: 8 | H18: 10 | I18: 12 | J18: 30 | K18: 8 | L18: 9 | M18: 18 | N18: 35 | O18: 5 | P18: 10 | Q18: 6 | R18: 21 | S18: 8 | T18: 17 | U18: 20 | V18: 45 | W18: 8 | X18: 17 | Y18: 19 | Z18: 44 | AA18: 9 | AB18: 14 | AC18: 13 | AD18: 36 | AE18: 9 | AF18: 16 | AG18: 18 | AH18: 43 | AI18: 9 | AJ18: 15 | AK18: 19 | AL18: 43 | AM18: 9 | AN18: 17 | AO18: 16 | AP18: 42 | AQ18: 9 | AR18: 19 | AS18: 19 | AT18: 47 | AU18: 5 | AV18: 4 | AW18: 11 | AX18: 20 | AY18: 7 | AZ18: 8 | BA18: 8 | BB18: 23 | BC18: 3 | BD18: 5 | BE18: 7 | BF18: 10 | BG18: 7 | BH18: 10 | BI18: 17 | BJ18: 25 | BK18: 42 | BL18: 471 | BM18: 4 | BN18: 8 | BO18: 6 | BP18: 18 | BQ18: 4 | BR18: 8 | BS18: 8 | BT18: 20 | BU18: ناجحة | BV18: ومنقولة للصف الثانى | BW18: 0 | CS18: 173
A19: 12 | B19: 112 | C19: اسم 109 | D19: 4/1 | F19: 1232 | G19: غ | H19: غ | I19: غ | J19: 0 | K19: غ | L19: غ | M19: غ | N19: 0 | O19: غ | P19: غ | Q19: غ | R19: 0 | S19: غ | T19: غ | U19: غ | V19: 0 | W19: غ | X19: غ | Y19: غ | Z19: 0 | AA19: غ | AB19: غ | AC19: غ | AD19: 0 | AE19: غ | AF19: غ | AG19: غ | AH19: 0 | AI19: غ | AJ19: غ | AK19: غ | AL19: 0 | AM19: غ | AN19: غ | AO19: غ | AP19: 0 | AQ19: غ | AR19: غ | AS19: غ | AT19: 0 | AU19: غ | AV19: غ | AW19: غ | AX19: 0 | AY19: غ | AZ19: غ | BA19: غ | BB19: 0 | BC19: غ | BD19: غ | BE19: غ | BF19: غ | BG19: غ | BH19: غ | BI19: 0 | BJ19: 0 | BK19: 0 | BL19: 0 | BM19: غ | BN19: غ | BO19: 6 | BP19: 6 | BQ19: غ | BR19: غ | BS19: غ | BT19: 0 | BU19: راسبة | BV19: فى : لغة عربية - لغة انجليزية - لغة فرنسية - محاسبة مالية - سكرتارية عربية - سكرتارية اجنبية - اقتصاد - تسويق - ادارة اعمال - رياضة عامة - جغرافيا - حاسب ألى - مجموع - تربية قوميةتربية دينية | BW19: 16 | CA19: لغة عربية - | CB19: لغة انجليزية - | CC19: لغة فرنسية - | CD19: محاسبة مالية - | CE19: سكرتارية عربية - | CF19: سكرتارية اجنبية - | CG19: اقتصاد - | CH19: تسويق - | CI19: ادارة اعمال - | CJ19: قانون تجارى - | CK19: رياضة عامة - | CL19: جغرافيا - | CM19: حاسب ألى - | CN19: مجموع - | CO19: تربية قومية | CP19: تربية دينية | CS19: 0
A20: 13 | B20: 113 | C20: اسم 11 | D20: 1/1 | F20: 1233 | G20: 8 | H20: 8 | I20: 13 | J20: 29 | K20: 8 | L20: 12 | M20: 15 | N20: 35 | O20: 5 | P20: 5 | Q20: 5 | R20: 15 | S20: 8 | T20: 15 | U20: 18 | V20: 41 | W20: 8 | X20: 15 | Y20: 18 | Z20: 41 | AA20: 9 | AB20: 13 | AC20: 15 | AD20: 37 | AE20: 9 | AF20: 18 | AG20: 18 | AH20: 45 | AI20: 9 | AJ20: 16 | AK20: 19 | AL20: 44 | AM20: 9 | AN20: 16 | AO20: 17 | AP20: 42 | AQ20: 9 | AR20: 19 | AS20: 19 | AT20: 47 | AU20: 5 | AV20: 10 | AW20: 10 | AX20: 25 | AY20: 7 | AZ20: 13 | BA20: 13 | BB20: 33 | BC20: 3 | BD20: 5 | BE20: 5 | BF20: 7 | BG20: 5 | BH20: 7 | BI20: 13 | BJ20: 19 | BK20: 32 | BL20: 466 | BM20: 4 | BN20: 7 | BO20: 6 | BP20: 17 | BQ20: 4 | BR20: 6 | BS20: 6 | BT20: 16 | BU20: ناجحة | BV20: ومنقولة للصف الثانى | BW20: 0 | CS20: 172
A21: 14 | B21: 114 | C21: اسم 110 | D21: 4/1 | F21: 1234 | G21: 8 | H21: 9 | I21: 10 | J21: 27 | K21: 8 | L21: 3 | M21: 9 | N21: 20 | O21: 5 | P21: 4 | Q21: 4 | R21: 13 | S21: 8 | T21: 10 | U21: 7 | V21: 25 | W21: 8 | X21: 14 | Y21: 18 | Z21: 40 | AA21: 9 | AB21: 17 | AC21: 15 | AD21: 41 | AE21: 9 | AF21: 15 | AG21: 20 | AH21: 44 | AI21: 9 | AJ21: 10 | AK21: 19 | AL21: 38 | AM21: 9 | AN21: 12 | AO21: 17 | AP21: 38 | AQ21: 9 | AR21: 14 | AS21: 19 | AT21: 42 | AU21: 5 | AV21: 7 | AW21: 3 | AX21: 15 | AY21: 7 | AZ21: 9 | BA21: 9 | BB21: 25 | BC21: 3 | BD21: 5 | BE21: 5 | BF21: 5 | BG21: 5 | BH21: 5 | BI21: 13 | BJ21: 15 | BK21: 28 | BL21: 396 | BM21: 4 | BN21: 4 | BO21: 6 | BP21: 14 | BQ21: 4 | BR21: 7 | BS21: 7 | BT21: 18 | BU21: ناجحة | BV21: ومنقولة للصف الثانى | BW21: 0 | CS21: 134
A22: 15 | B22: 115 | C22: اسم 111 | D22: 4/1 | F22: 1235 | G22: 8 | H22: 7 | I22: 14 | J22: 29 | K22: 8 | L22: 7 | M22: 10 | N22: 25 | O22: 5 | P22: 6 | Q22: 6 | R22: 17 | S22: 8 | T22: 12 | U22: 5 | V22: 25 | W22: 8 | X22: 10 | Y22: 17 | Z22: 35 | AA22: 9 | AB22: 15 | AC22: 14 | AD22: 38 | AE22: 9 | AF22: 16 | AG22: 17 | AH22: 42 | AI22: 9 | AJ22: 14 | AK22: 19 | AL22: 42 | AM22: 9 | AN22: 12 | AO22: 17 | AP22: 38 | AQ22: 9 | AR22: 11 | AS22: 19 | AT22: 39 | AU22: 5 | AV22: 5 | AW22: 6 | AX22: 16 | AY22: 7 | AZ22: 10 | BA22: 10 | BB22: 27 | BC22: 3 | BD22: 5 | BE22: 5 | BF22: 6 | BG22: 5 | BH22: 6 | BI22: 13 | BJ22: 17 | BK22: 30 | BL22: 403 | BM22: 4 | BN22: 3 | BO22: 6 | BP22: 13 | BQ22: 4 | BR22: 4 | BS22: 4 | BT22: 12 | BU22: ناجحة | BV22: ومنقولة للصف الثانى | BW22: 0 | CS22: 136
A23: 16 | B23: 116 | C23: اسم 112 | D23: 4/1 | F23: 1236 | G23: 8 | H23: 5 | I23: 12 | J23: 25 | K23: 8 | L23: 6 | M23: 12 | N23: 26 | O23: 5 | P23: 6 | Q23: 7 | R23: 18 | S23: 8 | T23: 10 | U23: 7 | V23: 25 | W23: 8 | X23: 12 | Y23: 12 | Z23: 32 | AA23: 9 | AB23: 17 | AC23: 16 | AD23: 42 | AE23: 9 | AF23: 15 | AG23: 19 | AH23: 43 | AI23: 9 | AJ23: 12 | AK23: 18 | AL23: 39 | AM23: 9 | AN23: 13 | AO23: 17 | AP23: 39 | AQ23: 9 | AR23: 11 | AS23: 19 | AT23: 39 | AU23: 5 | AV23: 3 | AW23: 7 | AX23: 15 | AY23: 7 | AZ23: 8 | BA23: 8 | BB23: 23 | BC23: 3 | BD23: 5 | BE23: 5 | BF23: 8 | BG23: 5 | BH23: 8 | BI23: 13 | BJ23: 21 | BK23: 34 | BL23: 400 | BM23: 4 | BN23: 3 | BO23: 6 | BP23: 13 | BQ23: 4 | BR23: 4 | BS23: 4 | BT23: 12 | BU23: ناجحة | BV23: ومنقولة للصف الثانى | BW23: 0 | CS23: 131
A24: 17 | B24: 117 | C24: اسم 113 | D24: 4/1 | F24: 1237 | G24: 8 | H24: 9 | I24: 10 | J24: 27 | K24: 8 | L24: 8 | M24: 6 | N24: 22 | O24: 5 | P24: 8 | Q24: 4 | R24: 17 | S24: 8 | T24: 12 | U24: 17 | V24: 37 | W24: 8 | X24: 17 | Y24: 19 | Z24: 44 | AA24: 9 | AB24: 12 | AC24: 17 | AD24: 38 | AE24: 9 | AF24: 16 | AG24: 19 | AH24: 44 | AI24: 9 | AJ24: 12 | AK24: 18 | AL24: 39 | AM24: 9 | AN24: 14 | AO24: 17 | AP24: 40 | AQ24: 9 | AR24: 10 | AS24: 18 | AT24: 37 | AU24: 5 | AV24: 4 | AW24: 6 | AX24: 15 | AY24: 7 | AZ24: 5 | BA24: 9 | BB24: 21 | BC24: 3 | BD24: 5 | BE24: 6 | BF24: 9 | BG24: 6 | BH24: 9 | BI24: 15 | BJ24: 23 | BK24: 38 | BL24: 419 | BM24: 4 | BN24: 4 | BO24: 6 | BP24: 14 | BQ24: 4 | BR24: 6 | BS24: 6 | BT24: 16 | BU24: ناجحة | BV24: ومنقولة للصف الثانى | BW24: 0 | CS24: 142
A25: 18 | B25: 118 | C25: اسم 114 | D25: 4/1 | F25: 1238 | G25: 8 | H25: 6 | I25: 11 | J25: 25 | K25: 8 | L25: 12 | M25: 14 | N25: 34 | O25: 5 | P25: 6 | Q25: 8 | R25: 19 | S25: 8 | T25: 10 | U25: 17 | V25: 35 | W25: 8 | X25: 15 | Y25: 18 | Z25: 41 | AA25: 9 | AB25: 15 | AC25: 13 | AD25: 37 | AE25: 9 | AF25: 16 | AG25: 17 | AH25: 42 | AI25: 9 | AJ25: 9 | AK25: 19 | AL25: 37 | AM25: 9 | AN25: 17 | AO25: 17 | AP25: 43 | AQ25: 9 | AR25: 12 | AS25: 19 | AT25: 40 | AU25: 5 | AV25: 5 | AW25: 8 | AX25: 18 | AY25: 7 | AZ25: 5 | BA25: 9 | BB25: 21 | BC25: 3 | BD25: 5 | BE25: 5 | BF25: 7 | BG25: 5 | BH25: 7 | BI25: 13 | BJ25: 19 | BK25: 32 | BL25: 424 | BM25: 4 | BN25: 4 | BO25: 6 | BP25: 14 | BQ25: 4 | BR25: 4 | BS25: 4 | BT25: 12 | BU25: ناجحة | BV25: ومنقولة للصف الثانى | BW25: 0 | CS25: 140
